Workbook

Sheet Инструкция
A1: Инструкция по заполнению базы данных (БД)
A2: 1. Информация по каждому субъекту РФ заполняется в отдельном файле на листе "БД", в наименовании файла указывается название субъекта РФ. В стороках 5, 6, 7 в соответствующих ячейках необходимо вставить утвержденные тарифы, соблюдая указанную размерность.
A3: 2. Информация заполняется по энергопримающим устройствам и / или совокупности энергопринимающих устройств имеющих между собой электрические связи потребителей электрической энергии (мощности) (далее - ЭПУ). Информация не заполняется по следующим группам потребителей не оплачивающих резервируемую максимальную мощность в т.ч.: 1. население и приравненные к нему категории потребителей; 2. сетевые организации.
A4: 3. Информация об ЭПУ потребителей с максимальной мощностью 670 кВт и выше и об ЭПУ потребителей с максимальной мощностью менее 670 кВт - представляется по каждому ЭПУ (группе ЭПУ) потребителя. Информация заполняется по ЭПУ (группе ЭПУ) потребителей, подключенных к сетям ТСО - ДЗО ПАО "Россети" (в том числе опосредованно), а также по ЭПУ потребителей, подключенным к сетям смежных ТСО субъекта Российской Федерации, услугу по передаче электроэнергии которым оказывает ТСО - ДЗО ПАО "Россети" на основании договоров оказания услуг по передаче электрической энергии, заключенных со смежной ТСО - только в части потребителей с максимальной мощностью 670 кВт и выше! В случае если одно ЭПУ имеет присоединения на нескольких уровнях напряжения, то максимальная мощность данного ЭПУ разбивается ежемесячно по уровням напряжения пропорционально фактической мощности, либо пропорционально пропускной способности в случае если фактическая мощность равна нулю.
A5: 4. При отсутствии почасового учета электроэнергии фактическая сетевая мощность ЭПУ потребителей, в отношении ЭПУ, максимальная мощность которого составляет менее 670 кВт равна произведению коэффициента оплаты мощности, равного 0,0048, и суммарного по всем точкам поставки, в отношении которых отсутствуют объемы потребления по часам суток, на соответствующем уровне напряжения, относящимся к ЭПУ, объема потребления электрической энергии за расчетный период. Для ЭПУ потребителей с максимальной мощностью 670 кВт и выше фактическая мощность определяется в порядке предусмотренном Основными положениями функционирования розничных рынков электрической энергии, утв. постановление Правительства РФ от 04.05.2012 № 442.
A6: 5. В целях единого наименования потребителей электрической энергии в группе компаний Россети рекомендуется использовать сокращенное наименование организации из Единого государственного реестра юридических лиц (https://egrul.nalog.ru/index.html).
A7: 6. Информация о собственной генерации: - при наличии у потребителя собственной генерации в графе 10 ставится признак "ДА".
A8: 7. В случе если ЭПУ потребителя присоединено к шинам генерирующей станции и в графе 20 указан вариант тарифа "ГН", то в графе 11 необходимо указать наименование генерирующей станции.
A9: 8. Не разрешается удалять или добавлять столбцы и вносить изменения в расчетные формулы!

Sheet БД
A1: array1 | B1: =$B$2+B3 -> 2 | C1: =$B$2+C3 -> 2 | D1: 2 | E1: 2 | F1: 2 | G1: 2 | H1: 2 | I1: 2 | J1: 2 | K1: 2 | L1: 2 | M1: 2 | N1: 2 | O1: 2 | P1: 2 | Q1: 2 | R1: 2 | S1: 2 | T1: =T2+T3 -> 2 | U1: =T2+U3 -> 2 | V1: =T2+V3 -> 2 | W1: =T2+W3 -> 2 | X1: =T2+X3 -> 2 | Y1: =T2+Y3 -> 2 | Z1: =T2+Z3 -> 2 | AA1: =AA2+AA3 -> 2 | AB1: =AA2+AB3 -> 2 | AC1: =AA2+AC3 -> 2 | AD1: =AA2+AD3 -> 2 | AE1: =AA2+AE3 -> 2 | AF1: =AA2+AF3 -> 2 | AG1: =AA2+AG3 -> 2 | AH1: =AH2+AH3 -> 2 | AI1: =AH2+AI3 -> 2 | AJ1: =AH2+AJ3 -> 2 | AK1: =AH2+AK3 -> 2 | AL1: =AH2+AL3 -> 2 | AM1: =AH2+AM3 -> 2 | AN1: =AH2+AN3 -> 2 | AO1: =AO2+AO3 -> 2 | AP1: =AO2+AP3 -> 2 | AQ1: =AO2+AQ3 -> 2 | AR1: =AO2+AR3 -> 2 | AS1: =AO2+AS3 -> 2 | AT1: =AO2+AT3 -> 2 | AU1: =AO2+AU3 -> 2 | AV1: =AV2+AV3 -> 2 | AW1: =AV2+AW3 -> 2 | AX1: =AV2+AX3 -> 2 | AY1: =AV2+AY3 -> 2 | AZ1: =AV2+AZ3 -> 2 | BA1: =AV2+BA3 -> 2 | BB1: =AV2+BB3 -> 2 | BC1: =BC2+BC3 -> 2 | BD1: =BC2+BD3 -> 2 | BE1: =BC2+BE3 -> 2 | BF1: =BC2+BF3 -> 2 | BG1: =BC2+BG3 -> 2 | BH1: =BC2+BH3 -> 2 | BI1: =BC2+BI3 -> 2 | BJ1: =BJ2+BJ3 -> 2 | BK1: =BJ2+BK3 -> 2 | BL1: =BJ2+BL3 -> 2 | BM1: =BJ2+BM3 -> 2 | BN1: =BJ2+BN3 -> 2 | BO1: =BJ2+BO3 -> 2 | BP1: =BJ2+BP3 -> 2 | BQ1: =BQ2+BQ3 -> 2 | BR1: =BQ2+BR3 -> 2 | BS1: =BQ2+BS3 -> 2 | BT1: =BQ2+BT3 -> 2 | BU1: =BQ2+BU3 -> 2 | BV1: =BQ2+BV3 -> 2 | BW1: =BQ2+BW3 -> 2 | BX1: =BX2+BX3 -> 2 | BY1: =BX2+BY3 -> 2 | BZ1: =BX2+BZ3 -> 2 | CA1: =BX2+CA3 -> 2 | CB1: =BX2+CB3 -> 2 | CC1: =BX2+CC3 -> 2 | CD1: =BX2+CD3 -> 2 | CE1: =CE2+CE3 -> 2 | CF1: =CE2+CF3 -> 2 | CG1: =CE2+CG3 -> 2 | CH1: =CE2+CH3 -> 2 | CI1: =CE2+CI3 -> 2 | CJ1: =CE2+CJ3 -> 2 | CK1: =CE2+CK3 -> 2 | CL1: =CL2+CL3 -> 2 | CM1: =CL2+CM3 -> 2 | CN1: =CL2+CN3 -> 2 | CO1: =CL2+CO3 -> 2 | CP1: =CL2+CP3 -> 2 | CQ1: =CL2+CQ3 -> 2 | CR1: =CL2+CR3 -> 2 | CS1: =CS2+CS3 -> 2 | CT1: =CS2+CT3 -> 2 | CU1: =CS2+CU3 -> 2 | CV1: =CS2+CV3 -> 2 | CW1: =CS2+CW3 -> 2 | CX1: =CS2+CX3 -> 2 | CY1: =CS2+CY3 -> 2 | CZ1: =CZ2+CZ3 -> 2 | DA1: =CZ2+DA3 -> 2 | DB1: =CZ2+DB3 -> 2 | DC1: =CZ2+DC3 -> 2 | DD1: =CZ2+DD3 -> 2 | DE1: =CZ2+DE3 -> 2 | DF1: =CZ2+DF3 -> 2 | DG1: =CZ2+DG3 -> 2 | DH1: =CZ2+DH3 -> 2 | DI1: =CZ2+DI3 -> 2 | DJ1: =CZ2+DJ3 -> 2 | DK1: =DK2+DK3 -> 2 | DL1: =DK2+DL3 -> 2 | DM1: =DK2+DM3 -> 2 | DN1: =DK2+DN3 -> 2 | DO1: =DK2+DO3 -> 2 | DP1: =DK2+DP3 -> 2 | DQ1: =DK2+DQ3 -> 2 | DR1: =DK2+DR3 -> 2 | DS1: =DK2+DS3 -> 2 | DT1: =DK2+DT3 -> 2 | DU1: =DK2+DU3 -> 2 | DV1: =DV2+DV3 -> 2 | DW1: =DV2+DW3 -> 2 | DX1: =DV2+DX3 -> 2 | DY1: =DV2+DY3 -> 2 | DZ1: =DV2+DZ3 -> 2 | EA1: =DV2+EA3 -> 2 | EB1: =DV2+EB3 -> 2 | EC1: =DV2+EC3 -> 2 | ED1: =DV2+ED3 -> 2 | EE1: =DV2+EE3 -> 2 | EF1: =DV2+EF3 -> 2 | EG1: =EG2+EG3 -> 2 | EH1: =EG2+EH3 -> 2 | EI1: =EG2+EI3 -> 2 | EJ1: =EG2+EJ3 -> 2 | EK1: =EG2+EK3 -> 2 | EL1: =EG2+EL3 -> 2 | EM1: =EG2+EM3 -> 2 | EN1: =EG2+EN3 -> 2 | EO1: =EG2+EO3 -> 2 | EP1: =EG2+EP3 -> 2 | EQ1: =EG2+EQ3 -> 2 | ER1: =ER2+ER3 -> 2 | ES1: =ER2+ES3 -> 2 | ET1: =ER2+ET3 -> 2 | EU1: =ER2+EU3 -> 2 | EV1: =ER2+EV3 -> 2 | EW1: =ER2+EW3 -> 2 | EX1: =ER2+EX3 -> 2 | EY1: =ER2+EY3 -> 2 | EZ1: =ER2+EZ3 -> 2 | FA1: =ER2+FA3 -> 2 | FB1: =ER2+FB3 -> 2 | FC1: =FC2+FC3 -> 2 | FD1: =FC2+FD3 -> 2 | FE1: =FC2+FE3 -> 2 | FF1: =FC2+FF3 -> 2 | FG1: =FC2+FG3 -> 2 | FH1: =FC2+FH3 -> 2 | FI1: =FC2+FI3 -> 2 | FJ1: =FC2+FJ3 -> 2 | FK1: =FC2+FK3 -> 2 | FL1: =FC2+FL3 -> 2 | FM1: =FC2+FM3 -> 2 | FN1: =FN2+FN3 -> 2 | FO1: =FN2+FO3 -> 2 | FP1: =FN2+FP3 -> 2 | FQ1: =FN2+FQ3 -> 2 | FR1: =FN2+FR3 -> 2 | FS1: =FN2+FS3 -> 2 | FT1: =FN2+FT3 -> 2 | FU1: =FN2+FU3 -> 2 | FV1: =FN2+FV3 -> 2 | FW1: =FN2+FW3 -> 2 | FX1: =FN2+FX3 -> 2 | FY1: =FY2+FY3 -> 2 | FZ1: =FY2+FZ3 -> 2 | GA1: =FY2+GA3 -> 2 | GB1: =FY2+GB3 -> 2 | GC1: =FY2+GC3 -> 2 | GD1: =FY2+GD3 -> 2 | GE1: =FY2+GE3 -> 2 | GF1: =FY2+GF3 -> 2 | GG1: =FY2+GG3 -> 2 | GH1: =FY2+GH3 -> 2 | GI1: =FY2+GI3 -> 2 | GJ1: =GJ2+GJ3 -> 2 | GK1: =GJ2+GK3 -> 2 | GL1: =GJ2+GL3 -> 2 | GM1: =GJ2+GM3 -> 2 | GN1: =GJ2+GN3 -> 2 | GO1: =GJ2+GO3 -> 2 | GP1: =GJ2+GP3 -> 2 | GQ1: =GJ2+GQ3 -> 2 | GR1: =GJ2+GR3 -> 2 | GS1: =GJ2+GS3 -> 2 | GT1: =GJ2+GT3 -> 2 | GU1: =GU2+GU3 -> 2 | GV1: =GU2+GV3 -> 2 | GW1: =GU2+GW3 -> 2 | GX1: =GU2+GX3 -> 2 | GY1: =GU2+GY3 -> 2 | GZ1: =GU2+GZ3 -> 2 | HA1: =GU2+HA3 -> 2 | HB1: =GU2+HB3 -> 2 | HC1: =GU2+HC3 -> 2 | HD1: =GU2+HD3 -> 2 | HE1: =GU2+HE3 -> 2 | HF1: =HF2+HF3 -> 2 | HG1: =HF2+HG3 -> 2 | HH1: =HF2+HH3 -> 2 | HI1: =HF2+HI3 -> 2 | HJ1: =HF2+HJ3 -> 2 | HK1: =HF2+HK3 -> 2 | HL1: =HF2+HL3 -> 2 | HM1: =HF2+HM3 -> 2 | HN1: =HF2+HN3 -> 2 | HO1: =HF2+HO3 -> 2 | HP1: =HF2+HP3 -> 2 | HQ1: =HQ2+HQ3 -> 2 | HR1: =HQ2+HR3 -> 2 | HS1: =HQ2+HS3 -> 2 | HT1: =HQ2+HT3 -> 2 | HU1: =HQ2+HU3 -> 2 | HV1: =HQ2+HV3 -> 2 | HW1: =HQ2+HW3 -> 2 | HX1: =HQ2+HX3 -> 2 | HY1: =HQ2+HY3 -> 2 | HZ1: =HQ2+HZ3 -> 2 | IA1: =HQ2+IA3 -> 2 | IB1: =IB2+IB3 -> 2 | IC1: =IB2+IC3 -> 2 | ID1: =IB2+ID3 -> 2 | IE1: =IB2+IE3 -> 2 | IF1: =IB2+IF3 -> 2 | IG1: =IB2+IG3 -> 2 | IH1: =IB2+IH3 -> 2 | II1: =IB2+II3 -> 2 | IJ1: =IB2+IJ3 -> 2 | IK1: =IB2+IK3 -> 2
A2: мес./группа | B2: TRUE | T2: TRUE | AA2: TRUE | AH2: TRUE | AO2: TRUE | AV2: TRUE | BC2: TRUE | BJ2: TRUE | BQ2: TRUE | BX2: TRUE | CE2: TRUE | CL2: TRUE | CS2: TRUE | CZ2: TRUE | DK2: TRUE | DV2: TRUE | EG2: TRUE | ER2: TRUE | FC2: TRUE | FN2: TRUE | FY2: TRUE | GJ2: TRUE | GU2: TRUE | HF2: TRUE | HQ2: TRUE | IB2: TRUE
A3: поле | B3: TRUE | C3: TRUE | D3: TRUE | E3: TRUE | F3: TRUE | G3: TRUE | H3: TRUE | I3: TRUE | J3: TRUE | K3: TRUE | L3: TRUE | M3: TRUE | N3: TRUE | O3: TRUE | P3: TRUE | Q3: TRUE | R3: TRUE | S3: TRUE | T3: TRUE | U3: TRUE | V3: TRUE | W3: TRUE | X3: TRUE | Y3: TRUE | Z3: TRUE | AA3: =$T$3 -> TRUE | AB3: =$U$3 -> TRUE | AC3: =$V$3 -> TRUE | AD3: =$W$3 -> TRUE | AE3: =$X$3 -> TRUE | AF3: =$Y$3 -> TRUE | AG3: =$Z$3 -> TRUE | AH3: =$T$3 -> TRUE | AI3: =$U$3 -> TRUE | AJ3: =$V$3 -> TRUE | AK3: =$W$3 -> TRUE | AL3: =$X$3 -> TRUE | AM3: =$Y$3 -> TRUE | AN3: =$Z$3 -> TRUE | AO3: =$T$3 -> TRUE | AP3: =$U$3 -> TRUE | AQ3: =$V$3 -> TRUE | AR3: =$W$3 -> TRUE | AS3: =$X$3 -> TRUE | AT3: =$Y$3 -> TRUE | AU3: =$Z$3 -> TRUE | AV3: =$T$3 -> TRUE | AW3: =$U$3 -> TRUE | AX3: =$V$3 -> TRUE | AY3: =$W$3 -> TRUE | AZ3: =$X$3 -> TRUE | BA3: =$Y$3 -> TRUE | BB3: =$Z$3 -> TRUE | BC3: =$T$3 -> TRUE | BD3: =$U$3 -> TRUE | BE3: =$V$3 -> TRUE | BF3: =$W$3 -> TRUE | BG3: =$X$3 -> TRUE | BH3: =$Y$3 -> TRUE | BI3: =$Z$3 -> TRUE | BJ3: =$T$3 -> TRUE | BK3: =$U$3 -> TRUE | BL3: =$V$3 -> TRUE | BM3: =$W$3 -> TRUE | BN3: =$X$3 -> TRUE | BO3: =$Y$3 -> TRUE | BP3: =$Z$3 -> TRUE | BQ3: =$T$3 -> TRUE | BR3: =$U$3 -> TRUE | BS3: =$V$3 -> TRUE | BT3: =$W$3 -> TRUE | BU3: =$X$3 -> TRUE | BV3: =$Y$3 -> TRUE | BW3: =$Z$3 -> TRUE | BX3: =$T$3 -> TRUE | BY3: =$U$3 -> TRUE | BZ3: =$V$3 -> TRUE | CA3: =$W$3 -> TRUE | CB3: =$X$3 -> TRUE | CC3: =$Y$3 -> TRUE | CD3: =$Z$3 -> TRUE | CE3: =$T$3 -> TRUE | CF3: =$U$3 -> TRUE | CG3: =$V$3 -> TRUE | CH3: =$W$3 -> TRUE | CI3: =$X$3 -> TRUE | CJ3: =$Y$3 -> TRUE | CK3: =$Z$3 -> TRUE | CL3: =$T$3 -> TRUE | CM3: =$U$3 -> TRUE | CN3: =$V$3 -> TRUE | CO3: =$W$3 -> TRUE | CP3: =$X$3 -> TRUE | CQ3: =$Y$3 -> TRUE | CR3: =$Z$3 -> TRUE | CS3: =$T$3 -> TRUE | CT3: =$U$3 -> TRUE | CU3: =$V$3 -> TRUE | CV3: =$W$3 -> TRUE | CW3: =$X$3 -> TRUE | CX3: =$Y$3 -> TRUE | CY3: =$Z$3 -> TRUE | CZ3: TRUE | DA3: TRUE | DB3: TRUE | DC3: TRUE | DD3: TRUE | DE3: TRUE | DF3: TRUE | DG3: TRUE | DH3: TRUE | DI3: TRUE | DJ3: TRUE | DK3: =$CZ$3 -> TRUE | DL3: =$DA$3 -> TRUE | DM3: =$DB$3 -> TRUE | DN3: =$DC$3 -> TRUE | DO3: =$DD$3 -> TRUE | DP3: =$DE$3 -> TRUE | DQ3: =$DF$3 -> TRUE | DR3: =$DG$3 -> TRUE | DS3: =$DH$3 -> TRUE | DT3: =$DI$3 -> TRUE | DU3: =$DJ$3 -> TRUE | DV3: =$CZ$3 -> TRUE | DW3: =$DA$3 -> TRUE | DX3: =$DB$3 -> TRUE | DY3: =$DC$3 -> TRUE | DZ3: =$DD$3 -> TRUE | EA3: =$DE$3 -> TRUE | EB3: =$DF$3 -> TRUE | EC3: =$DG$3 -> TRUE | ED3: =$DH$3 -> TRUE | EE3: =$DI$3 -> TRUE | EF3: =$DJ$3 -> TRUE | EG3: =$CZ$3 -> TRUE | EH3: =$DA$3 -> TRUE | EI3: =$DB$3 -> TRUE | EJ3: =$DC$3 -> TRUE | EK3: =$DD$3 -> TRUE | EL3: =$DE$3 -> TRUE | EM3: =$DF$3 -> TRUE | EN3: =$DG$3 -> TRUE | EO3: =$DH$3 -> TRUE | EP3: =$DI$3 -> TRUE | EQ3: =$DJ$3 -> TRUE | ER3: =$CZ$3 -> TRUE | ES3: =$DA$3 -> TRUE | ET3: =$DB$3 -> TRUE | EU3: =$DC$3 -> TRUE | EV3: =$DD$3 -> TRUE | EW3: =$DE$3 -> TRUE | EX3: =$DF$3 -> TRUE | EY3: =$DG$3 -> TRUE | EZ3: =$DH$3 -> TRUE | FA3: =$DI$3 -> TRUE | FB3: =$DJ$3 -> TRUE | FC3: =$CZ$3 -> TRUE | FD3: =$DA$3 -> TRUE | FE3: =$DB$3 -> TRUE | FF3: =$DC$3 -> TRUE | FG3: =$DD$3 -> TRUE | FH3: =$DE$3 -> TRUE | FI3: =$DF$3 -> TRUE | FJ3: =$DG$3 -> TRUE | FK3: =$DH$3 -> TRUE | FL3: =$DI$3 -> TRUE | FM3: =$DJ$3 -> TRUE | FN3: =$CZ$3 -> TRUE | FO3: =$DA$3 -> TRUE | FP3: =$DB$3 -> TRUE | FQ3: =$DC$3 -> TRUE | FR3: =$DD$3 -> TRUE | FS3: =$DE$3 -> TRUE | FT3: =$DF$3 -> TRUE | FU3: =$DG$3 -> TRUE | FV3: =$DH$3 -> TRUE | FW3: =$DI$3 -> TRUE | FX3: =$DJ$3 -> TRUE | FY3: =$CZ$3 -> TRUE | FZ3: =$DA$3 -> TRUE | GA3: =$DB$3 -> TRUE | GB3: =$DC$3 -> TRUE | GC3: =$DD$3 -> TRUE | GD3: =$DE$3 -> TRUE | GE3: =$DF$3 -> TRUE | GF3: =$DG$3 -> TRUE | GG3: =$DH$3 -> TRUE | GH3: =$DI$3 -> TRUE | GI3: =$DJ$3 -> TRUE | GJ3: =$CZ$3 -> TRUE | GK3: =$DA$3 -> TRUE | GL3: =$DB$3 -> TRUE | GM3: =$DC$3 -> TRUE | GN3: =$DD$3 -> TRUE | GO3: =$DE$3 -> TRUE | GP3: =$DF$3 -> TRUE | GQ3: =$DG$3 -> TRUE | GR3: =$DH$3 -> TRUE | GS3: =$DI$3 -> TRUE | GT3: =$DJ$3 -> TRUE | GU3: =$CZ$3 -> TRUE | GV3: =$DA$3 -> TRUE | GW3: =$DB$3 -> TRUE | GX3: =$DC$3 -> TRUE | GY3: =$DD$3 -> TRUE | GZ3: =$DE$3 -> TRUE | HA3: =$DF$3 -> TRUE | HB3: =$DG$3 -> TRUE | HC3: =$DH$3 -> TRUE | HD3: =$DI$3 -> TRUE | HE3: =$DJ$3 -> TRUE | HF3: =$CZ$3 -> TRUE | HG3: =$DA$3 -> TRUE | HH3: =$DB$3 -> TRUE | HI3: =$DC$3 -> TRUE | HJ3: =$DD$3 -> TRUE | HK3: =$DE$3 -> TRUE | HL3: =$DF$3 -> TRUE | HM3: =$DG$3 -> TRUE | HN3: =$DH$3 -> TRUE | HO3: =$DI$3 -> TRUE | HP3: =$DJ$3 -> TRUE | HQ3: =$CZ$3 -> TRUE | HR3: =$DA$3 -> TRUE | HS3: =$DB$3 -> TRUE | HT3: =$DC$3 -> TRUE | HU3: =$DD$3 -> TRUE | HV3: =$DE$3 -> TRUE | HW3: =$DF$3 -> TRUE | HX3: =$DG$3 -> TRUE | HY3: =$DH$3 -> TRUE | HZ3: =$DI$3 -> TRUE | IA3: =$DJ$3 -> TRUE | IB3: TRUE | IC3: TRUE | ID3: TRUE | IE3: TRUE | IF3: TRUE | IG3: TRUE | IH3: TRUE | II3: TRUE | IJ3: TRUE | IK3: TRUE
W4: ВН | X4: СН1 | Y4: СН2 | Z4: НН | AD4: ВН | AE4: СН1 | AF4: СН2 | AG4: НН | AK4: ВН | AL4: СН1 | AM4: СН2 | AN4: НН | AR4: ВН | AS4: СН1 | AT4: СН2 | AU4: НН | AY4: ВН | AZ4: СН1 | BA4: СН2 | BB4: НН | BF4: ВН | BG4: СН1 | BH4: СН2 | BI4: НН | BM4: ВН | BN4: СН1 | BO4: СН2 | BP4: НН | BT4: ВН | BU4: СН1 | BV4: СН2 | BW4: НН | CA4: ВН | CB4: СН1 | CC4: СН2 | CD4: НН | CH4: ВН | CI4: СН1 | CJ4: СН2 | CK4: НН | CO4: ВН | CP4: СН1 | CQ4: СН2 | CR4: НН | CV4: ВН | CW4: СН1 | CX4: СН2 | CY4: НН | DG4: ВН | DH4: СН1 | DI4: СН2 | DJ4: НН | DR4: ВН | DS4: СН1 | DT4: СН2 | DU4: НН | EC4: ВН | ED4: СН1 | EE4: СН2 | EF4: НН | EN4: ВН | EO4: СН1 | EP4: СН2 | EQ4: НН | EY4: ВН | EZ4: СН1 | FA4: СН2 | FB4: НН | FJ4: ВН | FK4: СН1 | FL4: СН2 | FM4: НН | FU4: ВН | FV4: СН1 | FW4: СН2 | FX4: НН | GF4: ВН | GG4: СН1 | GH4: СН2 | GI4: НН | GQ4: ВН | GR4: СН1 | GS4: СН2 | GT4: НН | HB4: ВН | HC4: СН1 | HD4: СН2 | HE4: НН | HM4: ВН | HN4: СН1 | HO4: СН2 | HP4: НН | HX4: ВН | HY4: СН1 | HZ4: СН2 | IA4: НН | IB4: Вариант тарифа
A5: Расчет резервируемой максимальной мощности энергопринимающих устройств потребителей электрической энергии (мощности) и стоимости оплачиваемого резерва с разбивкой по категориям потребителей | J5: Приложение 2 | V5: Ставка содержание, руб./МВт в месяц | W5: 1258990.67 | X5: 1510117.24 | Y5: 1061976.56 | Z5: 1148011.08 | AC5: Ставка содержание, руб./МВт в месяц | AD5: 1258990.67 | AE5: 1510117.24 | AF5: 1061976.56 | AG5: 1148011.08 | AJ5: Ставка содержание, руб./МВт в месяц | AK5: 1258990.67 | AL5: 1510117.24 | AM5: 1061976.56 | AN5: 1148011.08 | AQ5: Ставка содержание, руб./МВт в месяц | AR5: 1258990.67 | AS5: 1510117.24 | AT5: 1061976.56 | AU5: 1148011.08 | AX5: Ставка содержание, руб./МВт в месяц | AY5: 1258990.67 | AZ5: 1510117.24 | BA5: 1061976.56 | BB5: 1148011.08 | BE5: Ставка содержание, руб./МВт в месяц | BF5: 1258990.67 | BG5: 1510117.24 | BH5: 1061976.56 | BI5: 1148011.08 | BL5: Ставка содержание, руб./МВт в месяц | BM5: 1347120.02 | BN5: 1615825.45 | BO5: 1136314.92 | BP5: 1228371.86 | BS5: Ставка содержание, руб./МВт в месяц | BT5: 1347120.02 | BU5: 1615825.45 | BV5: 1136314.92 | BW5: 1228371.86 | BZ5: Ставка содержание, руб./МВт в месяц | CA5: 1347120.02 | CB5: 1615825.45 | CC5: 1136314.92 | CD5: 1228371.86 | CG5: Ставка содержание, руб./МВт в месяц | CH5: 1347120.02 | CI5: 1615825.45 | CJ5: 1136314.92 | CK5: 1228371.86 | CN5: Ставка содержание, руб./МВт в месяц | CO5: 1347120.02 | CP5: 1615825.45 | CQ5: 1136314.92 | CR5: 1228371.86 | CU5: Ставка содержание, руб./МВт в месяц | DF5: Ставка содержание, руб./МВт в месяц | DQ5: Ставка содержание, руб./МВт в месяц | EB5: Ставка содержание, руб./МВт в месяц | EM5: Ставка содержание, руб./МВт в месяц | EX5: Ставка содержание, руб./МВт в месяц | FI5: Ставка содержание, руб./МВт в месяц | FT5: Ставка содержание, руб./МВт в месяц | GE5: Ставка содержание, руб./МВт в месяц | GP5: Ставка содержание, руб./МВт в месяц | HA5: Ставка содержание, руб./МВт в месяц | HL5: Ставка содержание, руб./МВт в месяц | HW5: Ставка содержание, руб./МВт в месяц | IB5: 1
A6: Таблица 1. Распределительный комплекс | V6: Ставка потери, руб./МВтч | W6: 85.06 | X6: 199.5 | Y6: 343.27 | Z6: 622.8 | AC6: Ставка потери, руб./МВтч | AD6: 85.06 | AE6: 199.5 | AF6: 343.27 | AG6: 622.8 | AJ6: Ставка потери, руб./МВтч | AK6: 85.06 | AL6: 199.5 | AM6: 343.27 | AN6: 622.8 | AQ6: Ставка потери, руб./МВтч | AR6: 85.06 | AS6: 199.5 | AT6: 343.27 | AU6: 622.8 | AX6: Ставка потери, руб./МВтч | AY6: 85.06 | AZ6: 199.5 | BA6: 343.27 | BB6: 622.8 | BE6: Ставка потери, руб./МВтч | BF6: 85.06 | BG6: 199.5 | BH6: 343.27 | BI6: 622.8 | BL6: Ставка потери, руб./МВтч | BM6: 89.62 | BN6: 210.1 | BO6: 361.68 | BP6: 656.19 | BS6: Ставка потери, руб./МВтч | BT6: 89.62 | BU6: 210.1 | BV6: 361.68 | BW6: 656.19 | BZ6: Ставка потери, руб./МВтч | CA6: 89.62 | CB6: 210.1 | CC6: 361.68 | CD6: 656.19 | CG6: Ставка потери, руб./МВтч | CH6: 89.62 | CI6: 210.1 | CJ6: 361.68 | CK6: 656.19 | CN6: Ставка потери, руб./МВтч | CO6: 89.62 | CP6: 210.1 | CQ6: 361.68 | CR6: 656.19 | CU6: Ставка потери, руб./МВтч | DF6: Ставка потери, руб./МВтч | DQ6: Ставка потери, руб./МВтч | EB6: Ставка потери, руб./МВтч | EM6: Ставка потери, руб./МВтч | EX6: Ставка потери, руб./МВтч | FI6: Ставка потери, руб./МВтч | FT6: Ставка потери, руб./МВтч | GE6: Ставка потери, руб./МВтч | GP6: Ставка потери, руб./МВтч | HA6: Ставка потери, руб./МВтч | HL6: Ставка потери, руб./МВтч | HW6: Ставка потери, руб./МВтч | IB6: 2
B7: - вычисляемые ячейки | V7: Одност. Тариф, руб./МВтч | W7: 1850.4 | X7: 2308.92 | Y7: 1919.88 | Z7: 2746.17 | AC7: Одност. Тариф, руб./МВтч | AD7: 1850.4 | AE7: 2308.92 | AF7: 1919.88 | AG7: 2746.17 | AJ7: Одност. Тариф, руб./МВтч | AK7: 1850.4 | AL7: 2308.92 | AM7: 1919.88 | AN7: 2746.17 | AQ7: Одност. Тариф, руб./МВтч | AR7: 1850.4 | AS7: 2308.92 | AT7: 1919.88 | AU7: 2746.17 | AX7: Одност. Тариф, руб./МВтч | AY7: 1850.4 | AZ7: 2308.92 | BA7: 1919.88 | BB7: 2746.17 | BE7: Одност. Тариф, руб./МВтч | BF7: 1850.4 | BG7: 2308.92 | BH7: 1919.88 | BI7: 2746.17 | BL7: Одност. Тариф, руб./МВтч | BM7: 1979.29 | BN7: 2470.56 | BO7: 2054.29 | BP7: 2938.41 | BS7: Одност. Тариф, руб./МВтч | BT7: 1979.29 | BU7: 2470.56 | BV7: 2054.29 | BW7: 2938.41 | BZ7: Одност. Тариф, руб./МВтч | CA7: 1979.29 | CB7: 2470.56 | CC7: 2054.29 | CD7: 2938.41 | CG7: Одност. Тариф, руб./МВтч | CH7: 1979.29 | CI7: 2470.56 | CJ7: 2054.29 | CK7: 2938.41 | CN7: Одност. Тариф, руб./МВтч | CO7: 1979.29 | CP7: 2470.56 | CQ7: 2054.29 | CR7: 2938.41 | CU7: Одност. Тариф, руб./МВтч | DF7: Одност. Тариф, руб./МВтч | DQ7: Одност. Тариф, руб./МВтч | EB7: Одност. Тариф, руб./МВтч | EM7: Одност. Тариф, руб./МВтч | EX7: Одност. Тариф, руб./МВтч | FI7: Одност. Тариф, руб./МВтч | FT7: Одност. Тариф, руб./МВтч | GE7: Одност. Тариф, руб./МВтч | GP7: Одност. Тариф, руб./МВтч | HA7: Одност. Тариф, руб./МВтч | HL7: Одност. Тариф, руб./МВтч | HW7: Одност. Тариф, руб./МВтч | IB7: ГН
B8: - данные заполняются пользователем
A9: х | B9: - в ячейки данные не заполняются | EH9: =#REF! ->  | ES9: =#REF! ->  | FD9: =#REF! -> 
A10: Понижающий коэффициент по критиреиям 1,2,3,4 Правил ограничения | F10: Промышленность | G10: Нефтедобывающая | H10: - | I10: ЛУКОЙЛ | Q10: 0.55 | X10: =IF(IF($Q10=1,V10*$Q$10-W10,V10-W10)<0,0,IF($Q10=1,V10*$Q$10-W10,V10-W10)) -> 0 | Y10: =IFERROR(X10/V10,0) -> 0 | Z10: =IF(T10=1,SUMIF(W$4:Z$4,$S10,W$7:Z$7)*U10,IF(T10="ГН",W10*SUMIF(W$4:Z$4,$S10,W$5:Z$5),IF(T10=2,W10*SUMIF(W$4:Z$4,$S10,W$5:Z$5)+U10*SUMIF(W$4:Z$4,$S10,W$6:Z$6),0))) -> 0 | AE10: =IF(IF($Q10=1,AC10*$Q$10-AD10,AC10-AD10)<0,0,IF($Q10=1,AC10*$Q$10-AD10,AC10-AD10)) -> 0 | AF10: =IFERROR(AE10/AC10,0) -> 0 | AG10: =IF(AA10=1,SUMIF(AD$4:AG$4,$S10,AD$7:AG$7)*AB10,IF(AA10="ГН",AD10*SUMIF(AD$4:AG$4,$S10,AD$5:AG$5),IF(AA10=2,AD10*SUMIF(AD$4:AG$4,$S10,AD$5:AG$5)+AB10*SUMIF(AD$4:AG$4,$S10,AD$6:AG$6),0))) -> 0 | AL10: =IF(IF($Q10=1,AJ10*$Q$10-AK10,AJ10-AK10)<0,0,IF($Q10=1,AJ10*$Q$10-AK10,AJ10-AK10)) -> 0 | AM10: =IFERROR(AL10/AJ10,0) -> 0 | AN10: =IF(AH10=1,SUMIF(AK$4:AN$4,$S10,AK$7:AN$7)*AI10,IF(AH10="ГН",AK10*SUMIF(AK$4:AN$4,$S10,AK$5:AN$5),IF(AH10=2,AK10*SUMIF(AK$4:AN$4,$S10,AK$5:AN$5)+AI10*SUMIF(AK$4:AN$4,$S10,AK$6:AN$6),0))) -> 0 | AS10: =IF(IF($Q10=1,AQ10*$Q$10-AR10,AQ10-AR10)<0,0,IF($Q10=1,AQ10*$Q$10-AR10,AQ10-AR10)) -> 0 | AT10: =IFERROR(AS10/AQ10,0) -> 0 | AU10: =IF(AO10=1,SUMIF(AR$4:AU$4,$S10,AR$7:AU$7)*AP10,IF(AO10="ГН",AR10*SUMIF(AR$4:AU$4,$S10,AR$5:AU$5),IF(AO10=2,AR10*SUMIF(AR$4:AU$4,$S10,AR$5:AU$5)+AP10*SUMIF(AR$4:AU$4,$S10,AR$6:AU$6),0))) -> 0 | AZ10: =IF(IF($Q10=1,AX10*$Q$10-AY10,AX10-AY10)<0,0,IF($Q10=1,AX10*$Q$10-AY10,AX10-AY10)) -> 0 | BA10: =IFERROR(AZ10/AX10,0) -> 0 | BB10: =IF(AV10=1,SUMIF(AY$4:BB$4,$S10,AY$7:BB$7)*AW10,IF(AV10="ГН",AY10*SUMIF(AY$4:BB$4,$S10,AY$5:BB$5),IF(AV10=2,AY10*SUMIF(AY$4:BB$4,$S10,AY$5:BB$5)+AW10*SUMIF(AY$4:BB$4,$S10,AY$6:BB$6),0))) -> 0 | BG10: =IF(IF($Q10=1,BE10*$Q$10-BF10,BE10-BF10)<0,0,IF($Q10=1,BE10*$Q$10-BF10,BE10-BF10)) -> 0 | BH10: =IFERROR(BG10/BE10,0) -> 0 | BI10: =IF(BC10=1,SUMIF(BF$4:BI$4,$S10,BF$7:BI$7)*BD10,IF(BC10="ГН",BF10*SUMIF(BF$4:BI$4,$S10,BF$5:BI$5),IF(BC10=2,BF10*SUMIF(BF$4:BI$4,$S10,BF$5:BI$5)+BD10*SUMIF(BF$4:BI$4,$S10,BF$6:BI$6),0))) -> 0 | BN10: =IF(IF($Q10=1,BL10*$Q$10-BM10,BL10-BM10)<0,0,IF($Q10=1,BL10*$Q$10-BM10,BL10-BM10)) -> 0 | BO10: =IFERROR(BN10/BL10,0) -> 0 | BP10: =IF(BJ10=1,SUMIF(BM$4:BP$4,$S10,BM$7:BP$7)*BK10,IF(BJ10="ГН",BM10*SUMIF(BM$4:BP$4,$S10,BM$5:BP$5),IF(BJ10=2,BM10*SUMIF(BM$4:BP$4,$S10,BM$5:BP$5)+BK10*SUMIF(BM$4:BP$4,$S10,BM$6:BP$6),0))) -> 0 | BU10: =IF(IF($Q10=1,BS10*$Q$10-BT10,BS10-BT10)<0,0,IF($Q10=1,BS10*$Q$10-BT10,BS10-BT10)) -> 0 | BV10: =IFERROR(BU10/BS10,0) -> 0 | BW10: =IF(BQ10=1,SUMIF(BT$4:BW$4,$S10,BT$7:BW$7)*BR10,IF(BQ10="ГН",BT10*SUMIF(BT$4:BW$4,$S10,BT$5:BW$5),IF(BQ10=2,BT10*SUMIF(BT$4:BW$4,$S10,BT$5:BW$5)+BR10*SUMIF(BT$4:BW$4,$S10,BT$6:BW$6),0))) -> 0 | CB10: =IF(IF($Q10=1,BZ10*$Q$10-CA10,BZ10-CA10)<0,0,IF($Q10=1,BZ10*$Q$10-CA10,BZ10-CA10)) -> 0 | CC10: =IFERROR(CB10/BZ10,0) -> 0 | CD10: =IF(BX10=1,SUMIF(CA$4:CD$4,$S10,CA$7:CD$7)*BY10,IF(BX10="ГН",CA10*SUMIF(CA$4:CD$4,$S10,CA$5:CD$5),IF(BX10=2,CA10*SUMIF(CA$4:CD$4,$S10,CA$5:CD$5)+BY10*SUMIF(CA$4:CD$4,$S10,CA$6:CD$6),0))) -> 0 | CI10: =IF(IF($Q10=1,CG10*$Q$10-CH10,CG10-CH10)<0,0,IF($Q10=1,CG10*$Q$10-CH10,CG10-CH10)) -> 0 | CJ10: =IFERROR(CI10/CG10,0) -> 0 | CK10: =IF(CE10=1,SUMIF(CH$4:CK$4,$S10,CH$7:CK$7)*CF10,IF(CE10="ГН",CH10*SUMIF(CH$4:CK$4,$S10,CH$5:CK$5),IF(CE10=2,CH10*SUMIF(CH$4:CK$4,$S10,CH$5:CK$5)+CF10*SUMIF(CH$4:CK$4,$S10,CH$6:CK$6),0))) -> 0 | CP10: =IF(IF($Q10=1,CN10*$Q$10-CO10,CN10-CO10)<0,0,IF($Q10=1,CN10*$Q$10-CO10,CN10-CO10)) -> 0 | CQ10: =IFERROR(CP10/CN10,0) -> 0 | CR10: =IF(CL10=1,SUMIF(CO$4:CR$4,$S10,CO$7:CR$7)*CM10,IF(CL10="ГН",CO10*SUMIF(CO$4:CR$4,$S10,CO$5:CR$5),IF(CL10=2,CO10*SUMIF(CO$4:CR$4,$S10,CO$5:CR$5)+CM10*SUMIF(CO$4:CR$4,$S10,CO$6:CR$6),0))) -> 0 | CW10: =IF(IF($Q10=1,CU10*$Q$10-CV10,CU10-CV10)<0,0,IF($Q10=1,CU10*$Q$10-CV10,CU10-CV10)) -> 0 | CX10: =IFERROR(CW10/CU10,0) -> 0 | CY10: =IF(CS10=1,SUMIF(CV$4:CY$4,$S10,CV$7:CY$7)*CT10,IF(CS10="ГН",CV10*SUMIF(CV$4:CY$4,$S10,CV$5:CY$5),IF(CS10=2,CV10*SUMIF(CV$4:CY$4,$S10,CV$5:CY$5)+CT10*SUMIF(CV$4:CY$4,$S10,CV$6:CY$6),0))) -> 0 | DD10: =IF(IF($Q10=1,DB10*$Q$10-DC10,DB10-DC10)<0,0,IF($Q10=1,DB10*$Q$10-DC10,DB10-DC10)) -> 0 | DE10: =IFERROR(DD10/DB10,0) -> 0 | DF10: =MIN(CX10,CQ10,CJ10,CC10,BV10,BO10,BH10,BA10,AT10,AM10,AF10,Y10,DE10) -> 0 | DG10: =IF(AND(DF10>0.4,DJ10>0),DD10*DG$11,0) -> 0 | DH10: =SUM(DI10:DJ10) -> 0 | DI10: =DG10*SUMIF(DG$4:DJ$4,$S10,DG$5:DJ$5) -> 0 | DJ10: =IF(CZ10=1,SUMIF(DG$4:DJ$4,$S10,DG$7:DJ$7)*DA10,IF(CZ10="ГН",DC10*SUMIF(DG$4:DJ$4,$S10,DG$5:DJ$5),IF(CZ10=2,DC10*SUMIF(DG$4:DJ$4,$S10,DG$5:DJ$5)+DA10*SUMIF(DG$4:DJ$4,$S10,DG$6:DJ$6),0))) -> 0 | DO10: =IF(IF($Q10=1,DM10*$Q$10-DN10,DM10-DN10)<0,0,IF($Q10=1,DM10*$Q$10-DN10,DM10-DN10)) -> 0 | DP10: =IFERROR(DO10/DM10,0) -> 0 | DQ10: =MIN(DE10,CX10,CQ10,CJ10,CC10,BV10,BO10,BH10,BA10,AT10,AM10,AF10,DP10) -> 0 | DR10: =IF(AND(DQ10>0.4,DU10>0),DO10*DR$11,0) -> 0 | DS10: =SUM(DT10:DU10) -> 0 | DT10: =DR10*SUMIF(DR$4:DU$4,$S10,DR$5:DU$5) -> 0 | DU10: =IF(DK10=1,SUMIF(DR$4:DU$4,$S10,DR$7:DU$7)*DL10,IF(DK10="ГН",DN10*SUMIF(DR$4:DU$4,$S10,DR$5:DU$5),IF(DK10=2,DN10*SUMIF(DR$4:DU$4,$S10,DR$5:DU$5)+DL10*SUMIF(DR$4:DU$4,$S10,DR$6:DU$6),0))) -> 0 | DZ10: =IF(IF($Q10=1,DX10*$Q$10-DY10,DX10-DY10)<0,0,IF($Q10=1,DX10*$Q$10-DY10,DX10-DY10)) -> 0 | EA10: =IFERROR(DZ10/DX10,0) -> 0 | EB10: =MIN(DP10,DE10,CX10,CQ10,CJ10,CC10,BV10,BO10,BH10,BA10,AT10,AM10,EA10) -> 0 | EC10: =IF(AND(EB10>0.4,EF10>0),DZ10*EC$11,0) -> 0 | ED10: =SUM(EE10:EF10) -> 0 | EE10: =EC10*SUMIF(EC$4:EF$4,$S10,EC$5:EF$5) -> 0 | EF10: =IF(DV10=1,SUMIF(EC$4:EF$4,$S10,EC$7:EF$7)*DW10,IF(DV10="ГН",DY10*SUMIF(EC$4:EF$4,$S10,EC$5:EF$5),IF(DV10=2,DY10*SUMIF(EC$4:EF$4,$S10,EC$5:EF$5)+DW10*SUMIF(EC$4:EF$4,$S10,EC$6:EF$6),0))) -> 0 | EK10: =IF(IF($Q10=1,EI10*$Q$10-EJ10,EI10-EJ10)<0,0,IF($Q10=1,EI10*$Q$10-EJ10,EI10-EJ10)) -> 0 | EL10: =IFERROR(EK10/EI10,0) -> 0 | EM10: =MIN(EA10,DP10,DE10,CX10,CQ10,CJ10,CC10,BV10,BO10,BH10,BA10,AT10,EL10) -> 0 | EN10: =IF(AND(EM10>0.4,EQ10>0),EK10*EN$11,0) -> 0 | EO10: =SUM(EP10:EQ10) -> 0 | EP10: =EN10*SUMIF(EN$4:EQ$4,$S10,EN$5:EQ$5) -> 0 | EQ10: =IF(EG10=1,SUMIF(EN$4:EQ$4,$S10,EN$7:EQ$7)*EH10,IF(EG10="ГН",EJ10*SUMIF(EN$4:EQ$4,$S10,EN$5:EQ$5),IF(EG10=2,EJ10*SUMIF(EN$4:EQ$4,$S10,EN$5:EQ$5)+EH10*SUMIF(EN$4:EQ$4,$S10,EN$6:EQ$6),0))) -> 0 | EV10: =IF(IF($Q10=1,ET10*$Q$10-EU10,ET10-EU10)<0,0,IF($Q10=1,ET10*$Q$10-EU10,ET10-EU10)) -> 0 | EW10: =IFERROR(EV10/ET10,0) -> 0 | EX10: =MIN(EL10,EA10,DP10,DE10,CX10,CQ10,CJ10,CC10,BV10,BO10,BH10,BA10,EW10) -> 0 | EY10: =IF(AND(EX10>0.4,FB10>0),EV10*EY$11,0) -> 0 | EZ10: =SUM(FA10:FB10) -> 0 | FA10: =EY10*SUMIF(EY$4:FB$4,$S10,EY$5:FB$5) -> 0 | FB10: =IF(ER10=1,SUMIF(EY$4:FB$4,$S10,EY$7:FB$7)*ES10,IF(ER10="ГН",EU10*SUMIF(EY$4:FB$4,$S10,EY$5:FB$5),IF(ER10=2,EU10*SUMIF(EY$4:FB$4,$S10,EY$5:FB$5)+ES10*SUMIF(EY$4:FB$4,$S10,EY$6:FB$6),0))) -> 0 | FG10: =IF(IF($Q10=1,FE10*$Q$10-FF10,FE10-FF10)<0,0,IF($Q10=1,FE10*$Q$10-FF10,FE10-FF10)) -> 0 | FH10: =IFERROR(FG10/FE10,0) -> 0 | FI10: =MIN(EW10,EL10,EA10,DP10,DE10,CX10,CQ10,CJ10,CC10,BV10,BO10,BH10,FH10) -> 0 | FJ10: =IF(AND(FI10>0.4,FM10>0),FG10*FJ$11,0) -> 0 | FK10: =SUM(FL10:FM10) -> 0 | FL10: =FJ10*SUMIF(FJ$4:FM$4,$S10,FJ$5:FM$5) -> 0 | FM10: =IF(FC10=1,SUMIF(FJ$4:FM$4,$S10,FJ$7:FM$7)*FD10,IF(FC10="ГН",FF10*SUMIF(FJ$4:FM$4,$S10,FJ$5:FM$5),IF(FC10=2,FF10*SUMIF(FJ$4:FM$4,$S10,FJ$5:FM$5)+FD10*SUMIF(FJ$4:FM$4,$S10,FJ$6:FM$6),0))) -> 0 | FR10: =IF(IF($Q10=1,FP10*$Q$10-FQ10,FP10-FQ10)<0,0,IF($Q10=1,FP10*$Q$10-FQ10,FP10-FQ10)) -> 0 | FS10: =IFERROR(FR10/FP10,0) -> 0 | FT10: =MIN(FH10,EW10,EL10,EA10,DP10,DE10,CX10,CQ10,CJ10,CC10,BV10,BO10,FS10) -> 0 | FU10: =IF(AND(FT10>0.4,FX10>0),FR10*FU$11,0) -> 0 | FV10: =SUM(FW10:FX10) -> 0 | FW10: =FU10*SUMIF(FU$4:FX$4,$S10,FU$5:FX$5) -> 0 | FX10: =IF(FN10=1,SUMIF(FU$4:FX$4,$S10,FU$7:FX$7)*FO10,IF(FN10="ГН",FQ10*SUMIF(FU$4:FX$4,$S10,FU$5:FX$5),IF(FN10=2,FQ10*SUMIF(FU$4:FX$4,$S10,FU$5:FX$5)+FO10*SUMIF(FU$4:FX$4,$S10,FU$6:FX$6),0))) -> 0 | GC10: =IF(IF($Q10=1,GA10*$Q$10-GB10,GA10-GB10)<0,0,IF($Q10=1,GA10*$Q$10-GB10,GA10-GB10)) -> 0 | GD10: =IFERROR(GC10/GA10,0) -> 0 | GE10: =MIN(FS10,FH10,EW10,EL10,EA10,DP10,DE10,CX10,CQ10,CJ10,CC10,BV10,GD10) -> 0 | GF10: =IF(AND(GE10>0.4,GI10>0),GC10*GF$11,0) -> 0 | GG10: =SUM(GH10:GI10) -> 0 | GH10: =GF10*SUMIF(GF$4:GI$4,$S10,GF$5:GI$5) -> 0 | GI10: =IF(FY10=1,SUMIF(GF$4:GI$4,$S10,GF$7:GI$7)*FZ10,IF(FY10="ГН",GB10*SUMIF(GF$4:GI$4,$S10,GF$5:GI$5),IF(FY10=2,GB10*SUMIF(GF$4:GI$4,$S10,GF$5:GI$5)+FZ10*SUMIF(GF$4:GI$4,$S10,GF$6:GI$6),0))) -> 0 | GN10: =IF(IF($Q10=1,GL10*$Q$10-GM10,GL10-GM10)<0,0,IF($Q10=1,GL10*$Q$10-GM10,GL10-GM10)) -> 0 | GO10: =IFERROR(GN10/GL10,0) -> 0 | GP10: =MIN(GD10,FS10,FH10,EW10,EL10,EA10,DP10,DE10,CX10,CQ10,CJ10,CC10,GO10) -> 0 | GQ10: =IF(AND(GP10>0.4,GT10>0),GN10*GQ$11,0) -> 0 | GR10: =SUM(GS10:GT10) -> 0 | GS10: =GQ10*SUMIF(GQ$4:GT$4,$S10,GQ$5:GT$5) -> 0 | GT10: =IF(GJ10=1,SUMIF(GQ$4:GT$4,$S10,GQ$7:GT$7)*GK10,IF(GJ10="ГН",GM10*SUMIF(GQ$4:GT$4,$S10,GQ$5:GT$5),IF(GJ10=2,GM10*SUMIF(GQ$4:GT$4,$S10,GQ$5:GT$5)+GK10*SUMIF(GQ$4:GT$4,$S10,GQ$6:GT$6),0))) -> 0 | GY10: =IF(IF($Q10=1,GW10*$Q$10-GX10,GW10-GX10)<0,0,IF($Q10=1,GW10*$Q$10-GX10,GW10-GX10)) -> 0 | GZ10: =IFERROR(GY10/GW10,0) -> 0 | HA10: =MIN(GO10,GD10,FS10,FH10,EW10,EL10,EA10,DP10,DE10,CX10,CQ10,CJ10,GZ10) -> 0 | HB10: =IF(AND(HA10>0.4,HE10>0),GY10*HB$11,0) -> 0 | HC10: =SUM(HD10:HE10) -> 0 | HD10: =HB10*SUMIF(HB$4:HE$4,$S10,HB$5:HE$5) -> 0 | HE10: =IF(GU10=1,SUMIF(HB$4:HE$4,$S10,HB$7:HE$7)*GV10,IF(GU10="ГН",GX10*SUMIF(HB$4:HE$4,$S10,HB$5:HE$5),IF(GU10=2,GX10*SUMIF(HB$4:HE$4,$S10,HB$5:HE$5)+GV10*SUMIF(HB$4:HE$4,$S10,HB$6:HE$6),0))) -> 0 | HJ10: =IF(IF($Q10=1,HH10*$Q$10-HI10,HH10-HI10)<0,0,IF($Q10=1,HH10*$Q$10-HI10,HH10-HI10)) -> 0 | HK10: =IFERROR(HJ10/HH10,0) -> 0 | HL10: =MIN(GZ10,GO10,GD10,FS10,FH10,EW10,EL10,EA10,DP10,DE10,CX10,CQ10,HK10) -> 0 | HM10: =IF(AND(HL10>0.4,HP10>0),HJ10*HM$11,0) -> 0 | HN10: =SUM(HO10:HP10) -> 0 | HO10: =HM10*SUMIF(HM$4:HP$4,$S10,HM$5:HP$5) -> 0 | HP10: =IF(HF10=1,SUMIF(HM$4:HP$4,$S10,HM$7:HP$7)*HG10,IF(HF10="ГН",HI10*SUMIF(HM$4:HP$4,$S10,HM$5:HP$5),IF(HF10=2,HI10*SUMIF(HM$4:HP$4,$S10,HM$5:HP$5)+HG10*SUMIF(HM$4:HP$4,$S10,HM$6:HP$6),0))) -> 0 | HU10: =IF(IF($Q10=1,HS10*$Q$10-HT10,HS10-HT10)<0,0,IF($Q10=1,HS10*$Q$10-HT10,HS10-HT10)) -> 0 | HV10: =IFERROR(HU10/HS10,0) -> 0 | HW10: =MIN(HK10,GZ10,GO10,GD10,FS10,FH10,EW10,EL10,EA10,DP10,DE10,CX10,HV10) -> 0 | HX10: =IF(AND(HW10>0.4,IA10>0),HU10*HX$11,0) -> 0 | HY10: =SUM(HZ10:IA10) -> 0 | HZ10: =HX10*SUMIF(HX$4:IA$4,$S10,HX$5:IA$5) -> 0 | IA10: =IF(HQ10=1,SUMIF(HX$4:IA$4,$S10,HX$7:IA$7)*HR10,IF(HQ10="ГН",HT10*SUMIF(HX$4:IA$4,$S10,HX$5:IA$5),IF(HQ10=2,HT10*SUMIF(HX$4:IA$4,$S10,HX$5:IA$5)+HR10*SUMIF(HX$4:IA$4,$S10,HX$6:IA$6),0))) -> 0 | IC10: =SUM(HR10,HG10,GV10,GK10,FZ10,FO10,FD10,ES10,EH10,DW10,DL10,DA10) -> 0 | ID10: =IFERROR(AVERAGE(HS10,HH10,GW10,GL10,GA10,FP10,FE10,ET10,EI10,DX10,DM10,DB10),0) -> 0 | IE10: =IFERROR(AVERAGE(HT10,HI10,GX10,GM10,GB10,FQ10,FF10,EU10,EJ10,DY10,DN10,DC10),0) -> 0 | IF10: =IFERROR(AVERAGE(HU10,HJ10,GY10,GN10,GC10,FR10,FG10,EV10,EK10,DZ10,DO10,DD10),0) -> 0 | IG10: =IFERROR(IF10/ID10,0) -> 0 | IH10: =IFERROR(AVERAGE(HX10,HM10,HB10,GQ10,GF10,FU10,FJ10,EY10,EN10,EC10,DR10,DG10),0) -> 0 | II10: =IJ10+IK10 -> 0 | IJ10: =SUM(HZ10,HO10,HD10,GS10,GH10,FW10,FL10,FA10,EP10,EE10,DT10,DI10) -> 0 | IK10: =SUM(IA10,HP10,HE10,GT10,GI10,FX10,FM10,FB10,EQ10,EF10,DU10,DJ10) -> 0
A11: Объем оплачиваемой резервируемой максимальной мощности - определяется с учетом понижающего коэффициента 5% | DG11: 0.05 | DR11: 0.05 | EC11: 0.05 | EN11: 0.05 | EY11: 0.05 | FJ11: 0.05 | FU11: 0.05 | GF11: 0.05 | GQ11: 0.05 | HB11: 0.05 | HM11: 0.05 | HX11: 0.05
CL12: 1 месяц из 12 предыдущих ноябрю 2020 месяцев | CS12: 2 месяц из 12 предыдущих ноябрю 2020 месяцев | CZ12: 3 месяц из 12 предыдущих ноябрю 2020 месяцев | DK12: 4 месяц из 12 предыдущих ноябрю 2020 месяцев | DV12: 5 месяц из 12 предыдущих ноябрю 2020 месяцев | EG12: 6 месяц из 12 предыдущих ноябрю 2020 месяцев | ER12: 7 месяц из 12 предыдущих ноябрю 2020 месяцев | FC12: 8 месяц из 12 предыдущих ноябрю 2020 месяцев | FN12: 9 месяц из 12 предыдущих ноябрю 2020 месяцев | FY12: 10 месяц из 12 предыдущих ноябрю 2020 месяцев | GJ12: 11 месяц из 12 предыдущих ноябрю 2020 месяцев | GU12: 12 месяц из 12 предыдущих ноябрю 2020 месяцев | HF12: Расчетный месяц
A13: Субъект отчетности ДЗО | B13: Субъект РФ | C13: Данные сетевой компании | J13: Признак наличия собственной генерации у потребителя ("ДА", если есть) | K13: Наименование генерирующей станции (в случае если ур. напряжения ГН) | L13: ЭПУ (группа ЭПУ) 670 кВт и выше/менее 670 кВт | M13: ИНН ГП (ЭСК) | N13: Наименование ГП (ЭСК) | O13: ИНН сетевой организации | P13: Наименование сетевой организации | Q13: Категорий ограничения | R13: Признак договора | S13: Уровень напряжения | T13: 2019-01-01 | AA13: 2019-02-01 | AH13: 2019-03-01 | AO13: 2019-04-01 | AV13: 2019-05-01 | BC13: 2019-06-01 | BJ13: 2019-07-01 | BQ13: 2019-08-01 | BX13: 2019-09-01 | CE13: 2019-10-01 | CL13: 2019-11-01 | CS13: 2019-12-01 | CZ13: 2020-01-01 | DK13: 2020-02-01 | DV13: 2020-03-01 | EG13: 2020-04-01 | ER13: 2020-05-01 | FC13: 2020-06-01 | FN13: 2020-07-01 | FY13: 2020-08-01 | GJ13: 2020-09-01 | GU13: 2020-10-01 | HF13: 2020-11-01 | HQ13: 2020-12-01 | IB13: ИТОГО ЗА 2020 год
C14: ИНН потребителя | D14: Наименование потребителя | E14: Объект | F14: Классификатор потребителей | T14: Вариант тарифа | U14: ЭЭ, тыс. кВтч | V14: Pmax, МВт | W14: Pфакт, МВт | X14: Pрезерв, МВт | Y14: доля Pрезерв, % | Z14: Стоимость услуги по передаче, руб. | AA14: Вариант тарифа | AB14: ЭЭ, тыс. кВтч | AC14: Pmax, МВт | AD14: Pфакт, МВт | AE14: Pрезерв, МВт | AF14: доля Pрезерв, % | AG14: Стоимость услуги по передаче, руб. | AH14: Вариант тарифа | AI14: ЭЭ, тыс. кВтч | AJ14: Pmax, МВт | AK14: Pфакт, МВт | AL14: Pрезерв, МВт | AM14: доля Pрезерв, % | AN14: Стоимость услуги по передаче, руб. | AO14: Вариант тарифа | AP14: ЭЭ, тыс. кВтч | AQ14: Pmax, МВт | AR14: Pфакт, МВт | AS14: Pрезерв, МВт | AT14: доля Pрезерв, % | AU14: Стоимость услуги по передаче, руб. | AV14: Вариант тарифа | AW14: ЭЭ, тыс. кВтч | AX14: Pmax, МВт | AY14: Pфакт, МВт | AZ14: Pрезерв, МВт | BA14: доля Pрезерв, % | BB14: Стоимость услуги по передаче, руб. | BC14: Вариант тарифа | BD14: ЭЭ, тыс. кВтч | BE14: Pmax, МВт | BF14: Pфакт, МВт | BG14: Pрезерв, МВт | BH14: доля Pрезерв, % | BI14: Стоимость услуги по передаче, руб. | BJ14: Вариант тарифа | BK14: ЭЭ, тыс. кВтч | BL14: Pmax, МВт | BM14: Pфакт, МВт | BN14: Pрезерв, МВт | BO14: доля Pрезерв, % | BP14: Стоимость услуги по передаче, руб. | BQ14: Вариант тарифа | BR14: ЭЭ, тыс. кВтч | BS14: Pmax, МВт | BT14: Pфакт, МВт | BU14: Pрезерв, МВт | BV14: доля Pрезерв, % | BW14: Стоимость услуги по передаче, руб. | BX14: Вариант тарифа | BY14: ЭЭ, тыс. кВтч | BZ14: Pmax, МВт | CA14: Pфакт, МВт | CB14: Pрезерв, МВт | CC14: доля Pрезерв, % | CD14: Стоимость услуги по передаче, руб. | CE14: Вариант тарифа | CF14: ЭЭ, тыс. кВтч | CG14: Pmax, МВт | CH14: Pфакт, МВт | CI14: Pрезерв, МВт | CJ14: доля Pрезерв, % | CK14: Стоимость услуги по передаче, руб. | CL14: Вариант тарифа | CM14: ЭЭ, тыс. кВтч | CN14: Pmax, МВт | CO14: Pфакт, МВт | CP14: Pрезерв, МВт | CQ14: доля Pрезерв, % | CR14: Стоимость услуги по передаче, руб. | CS14: Вариант тарифа | CT14: ЭЭ, тыс. кВтч | CU14: Pmax, МВт | CV14: Pфакт, МВт | CW14: Pрезерв, МВт | CX14: доля Pрезерв, % | CY14: Стоимость услуги по передаче, руб. | CZ14: Вариант тарифа | DA14: ЭЭ, тыс. кВтч | DB14: Pmax, МВт | DC14: Pфакт, МВт | DD14: Pрезерв, МВт | DE14: доля Pрезерв, % | DF14: min доля Pрезерв, % из 12 мес. | DG14: Pрезерв_опл, МВт | DH14: Стоимость услуги по передаче, руб. | DK14: Вариант тарифа | DL14: ЭЭ, тыс. кВтч | DM14: Pmax, МВт | DN14: Pфакт, МВт | DO14: Pрезерв, МВт | DP14: доля Pрезерв, % | DQ14: min доля Pрезерв, % из 12 мес. | DR14: Pрезерв_опл, МВт | DS14: Стоимость услуги по передаче, руб. | DV14: Вариант тарифа | DW14: ЭЭ, тыс. кВтч | DX14: Pmax, МВт | DY14: Pфакт, МВт | DZ14: Pрезерв, МВт | EA14: доля Pрезерв, % | EB14: min доля Pрезерв, % из 12 мес. | EC14: Pрезерв_опл, МВт | ED14: Стоимость услуги по передаче, руб. | EG14: Вариант тарифа | EH14: ЭЭ, тыс. кВтч | EI14: Pmax, МВт | EJ14: Pфакт, МВт | EK14: Pрезерв, МВт | EL14: доля Pрезерв, % | EM14: min доля Pрезерв, % из 12 мес. | EN14: Pрезерв_опл, МВт | EO14: Стоимость услуги по передаче, руб. | ER14: Вариант тарифа | ES14: ЭЭ, тыс. кВтч | ET14: Pmax, МВт | EU14: Pфакт, МВт | EV14: Pрезерв, МВт | EW14: доля Pрезерв, % | EX14: min доля Pрезерв, % из 12 мес. | EY14: Pрезерв_опл, МВт | EZ14: Стоимость услуги по передаче, руб. | FC14: Вариант тарифа | FD14: ЭЭ, тыс. кВтч | FE14: Pmax, МВт | FF14: Pфакт, МВт | FG14: Pрезерв, МВт | FH14: доля Pрезерв, % | FI14: min доля Pрезерв, % из 12 мес. | FJ14: Pрезерв_опл, МВт | FK14: Стоимость услуги по передаче, руб. | FN14: Вариант тарифа | FO14: ЭЭ, тыс. кВтч | FP14: Pmax, МВт | FQ14: Pфакт, МВт | FR14: Pрезерв, МВт | FS14: доля Pрезерв, % | FT14: min доля Pрезерв, % из 12 мес. | FU14: Pрезерв_опл, МВт | FV14: Стоимость услуги по передаче, руб. | FY14: Вариант тарифа | FZ14: ЭЭ, тыс. кВтч | GA14: Pmax, МВт | GB14: Pфакт, МВт | GC14: Pрезерв, МВт | GD14: доля Pрезерв, % | GE14: min доля Pрезерв, % из 12 мес. | GF14: Pрезерв_опл, МВт | GG14: Стоимость услуги по передаче, руб. | GJ14: Вариант тарифа | GK14: ЭЭ, тыс. кВтч | GL14: Pmax, МВт | GM14: Pфакт, МВт | GN14: Pрезерв, МВт | GO14: доля Pрезерв, % | GP14: min доля Pрезерв, % из 12 мес. | GQ14: Pрезерв_опл, МВт | GR14: Стоимость услуги по передаче, руб. | GU14: Вариант тарифа | GV14: ЭЭ, тыс. кВтч | GW14: Pmax, МВт | GX14: Pфакт, МВт | GY14: Pрезерв, МВт | GZ14: доля Pрезерв, % | HA14: min доля Pрезерв, % из 12 мес. | HB14: Pрезерв_опл, МВт | HC14: Стоимость услуги по передаче, руб. | HF14: Вариант тарифа | HG14: ЭЭ, тыс. кВтч | HH14: Pmax, МВт | HI14: Pфакт, МВт | HJ14: Pрезерв, МВт | HK14: доля Pрезерв, % | HL14: min доля Pрезерв, % из 12 мес. | HM14: Pрезерв_опл, МВт | HN14: Стоимость услуги по передаче, руб. | HQ14: Вариант тарифа | HR14: ЭЭ, тыс. кВтч | HS14: Pmax, МВт | HT14: Pфакт, МВт | HU14: Pрезерв, МВт | HV14: доля Pрезерв, % | HW14: min доля Pрезерв, % из 12 мес. | HX14: Pрезерв_опл, МВт | HY14: Стоимость услуги по передаче, руб. | IB14: Вариант тарифа | IC14: ЭЭ, тыс. кВтч | ID14: сред. знач Pmax, МВт | IE14: сред. знач Pфакт, МВт | IF14: Pрезерв, МВт | IG14: доля Pрезерв, % | IH14: сред знач Pрезерв_опл, МВт | II14: Стоимость услуги по передаче, руб.
F15: Основной | G15: Дополнит. | H15: Бюджет | I15: Группа компаний | Q15: да - "1" / нет - "" | R15: (Э / КП) | S15: (ВН1/ВН/СН1/СН2/НН) | T15: (1/2/ ГН) | Z15: (для ВН1, заполняется пользователем) | AA15: (1/2/ ГН) | AG15: (для ВН1, заполняется пользователем) | AH15: (1/2/ ГН) | AN15: (для ВН1, заполняется пользователем) | AO15: (1/2/ ГН) | AU15: (для ВН1, заполняется пользователем) | AV15: (1/2/ ГН) | BB15: (для ВН1, заполняется пользователем) | BC15: (1/2/ ГН) | BI15: (для ВН1, заполняется пользователем) | BJ15: (1/2/ ГН) | BP15: (для ВН1, заполняется пользователем) | BQ15: (1/2/ ГН) | BW15: (для ВН1, заполняется пользователем) | BX15: (1/2/ ГН) | CD15: (для ВН1, заполняется пользователем) | CE15: (1/2/ ГН) | CK15: (для ВН1, заполняется пользователем) | CL15: (1/2/ ГН) | CR15: (для ВН1, заполняется пользователем) | CS15: (1/2/ ГН) | CY15: (для ВН1, заполняется пользователем) | CZ15: (1 / 2 / ГН) | DG15: 0.05 | DH15: всего | DI15: резерв | DJ15: передача (для ВН1, заполняется пользователем) | DK15: (1 / 2 / ГН) | DR15: 0.05 | DS15: всего | DT15: резерв | DU15: передача (для ВН1, заполняется пользователем) | DV15: (1 / 2 / ГН) | EC15: 0.05 | ED15: всего | EE15: резерв | EF15: передача (для ВН1, заполняется пользователем) | EG15: (1 / 2 / ГН) | EN15: 0.05 | EO15: всего | EP15: резерв | EQ15: передача (для ВН1, заполняется пользователем) | ER15: (1 / 2 / ГН) | EY15: 0.05 | EZ15: всего | FA15: резерв | FB15: передача (для ВН1, заполняется пользователем) | FC15: (1 / 2 / ГН) | FJ15: 0.05 | FK15: всего | FL15: резерв | FM15: передача (для ВН1, заполняется пользователем) | FN15: (1 / 2 / ГН) | FU15: 0.05 | FV15: всего | FW15: резерв | FX15: передача (для ВН1, заполняется пользователем) | FY15: (1 / 2 / ГН) | GF15: 0.05 | GG15: всего | GH15: резерв | GI15: передача (для ВН1, заполняется пользователем) | GJ15: (1 / 2 / ГН) | GQ15: 0.05 | GR15: всего | GS15: резерв | GT15: передача (для ВН1, заполняется пользователем) | GU15: (1 / 2 / ГН) | HB15: 0.05 | HC15: всего | HD15: резерв | HE15: передача (для ВН1, заполняется пользователем) | HF15: (1 / 2 / ГН) | HM15: 0.05 | HN15: всего | HO15: резерв | HP15: передача (для ВН1, заполняется пользователем) | HQ15: (1 / 2 / ГН) | HX15: 0.05 | HY15: всего | HZ15: резерв | IA15: передача (для ВН1, заполняется пользователем) | IB15: (1 / 2 / ГН) | IH15: 0.05 | II15: всего | IJ15: резерв | IK15: передача
A16: 1 | B16: =A16+1 -> 2 | C16: =B16+1 -> 3 | D16: =C16+1 -> 4 | E16: 5 | F16: =E16+1 -> 6 | G16: =F16+1 -> 7 | H16: =G16+1 -> 8 | I16: =H16+1 -> 9 | J16: 10 | K16: 11 | L16: 12 | M16: 13 | N16: 14 | O16: 15 | P16: 16 | Q16: 17 | R16: 18 | S16: 19 | T16: 20 | U16: 21 | V16: 22 | W16: 23 | X16: 24 | Y16: 25 | Z16: 26 | AA16: 27 | AB16: 28 | AC16: 29 | AD16: 30 | AE16: 31 | AF16: 32 | AG16: 33 | AH16: 34 | AI16: 35 | AJ16: 36 | AK16: 37 | AL16: 38 | AM16: 39 | AN16: 40 | AO16: 41 | AP16: 42 | AQ16: 43 | AR16: 44 | AS16: 45 | AT16: 46 | AU16: 47 | AV16: 48 | AW16: 49 | AX16: 50 | AY16: 51 | AZ16: 52 | BA16: 53 | BB16: 54 | BC16: 55 | BD16: 56 | BE16: 57 | BF16: 58 | BG16: 59 | BH16: 60 | BI16: 61 | BJ16: 62 | BK16: 63 | BL16: 64 | BM16: 65 | BN16: 66 | BO16: 67 | BP16: 68 | BQ16: 69 | BR16: 70 | BS16: 71 | BT16: 72 | BU16: =BT16+1 -> 73 | BV16: 74 | BW16: 75 | BX16: 76 | BY16: 77 | BZ16: 78 | CA16: 79 | CB16: 80 | CC16: 81 | CD16: 82 | CE16: 83 | CF16: 84 | CG16: 85 | CH16: 86 | CI16: 87 | CJ16: 88 | CK16: 89 | CL16: 90 | CM16: 91 | CN16: 92 | CO16: 93 | CP16: 94 | CQ16: 95 | CR16: 96 | CS16: 97 | CT16: 98 | CU16: 99 | CV16: 100 | CW16: 101 | CX16: 102 | CY16: 103 | CZ16: 104 | DA16: 105 | DB16: 106 | DC16: 107 | DD16: 108 | DE16: 109 | DF16: 110 | DG16: 111 | DH16: 112 | DI16: 113 | DJ16: 114 | DK16: 115 | DL16: 116 | DM16: 117 | DN16: 118 | DO16: 119 | DP16: 120 | DQ16: 121 | DR16: 122 | DS16: 123 | DT16: 124 | DU16: 125 | DV16: 126 | DW16: 127 | DX16: 128 | DY16: 129 | DZ16: 130 | EA16: 131 | EB16: 132 | EC16: 133 | ED16: 134 | EE16: 135 | EF16: 136 | EG16: =EF16+1 -> 137 | EH16: 138 | EI16: 139 | EJ16: 140 | EK16: 141 | EL16: 142 | EM16: 143 | EN16: 144 | EO16: 145 | EP16: 146 | EQ16: 147 | ER16: 148 | ES16: 149 | ET16: 150 | EU16: 151 | EV16: 152 | EW16: 153 | EX16: 154 | EY16: 155 | EZ16: 156 | FA16: 157 | FB16: 158 | FC16: 159 | FD16: 160 | FE16: 161 | FF16: 162 | FG16: 163 | FH16: 164 | FI16: 165 | FJ16: 166 | FK16: 167 | FL16: 168 | FM16: 169 | FN16: 170 | FO16: 171 | FP16: 172 | FQ16: 173 | FR16: 174 | FS16: 175 | FT16: 176 | FU16: 177 | FV16: 178 | FW16: 179 | FX16: 180 | FY16: 181 | FZ16: 182 | GA16: 183 | GB16: 184 | GC16: 185 | GD16: 186 | GE16: 187 | GF16: 188 | GG16: 189 | GH16: 190 | GI16: 191 | GJ16: 192 | GK16: 193 | GL16: 194 | GM16: 195 | GN16: 196 | GO16: 197 | GP16: 198 | GQ16: 199 | GR16: 200 | GS16: =GR16+1 -> 201 | GT16: 202 | GU16: 203 | GV16: 204 | GW16: 205 | GX16: 206 | GY16: 207 | GZ16: 208 | HA16: 209 | HB16: 210 | HC16: 211 | HD16: 212 | HE16: 213 | HF16: 214 | HG16: 215 | HH16: 216 | HI16: 217 | HJ16: 218 | HK16: 219 | HL16: 220 | HM16: 221 | HN16: 222 | HO16: 223 | HP16: 224 | HQ16: 225 | HR16: 226 | HS16: 227 | HT16: 228 | HU16: 229 | HV16: 230 | HW16: 231 | HX16: 232 | HY16: 233 | HZ16: 234 | IA16: 235 | IB16: 236 | IC16: 237 | ID16: 238 | IE16: 239 | IF16: 240 | IG16: 241 | IH16: 242 | II16: 243 | IJ16: 244 | IK16: 245
A17: ООО "МИП "Кинешма" | B17: Ивановская область | D17: ОГУЗ "Наркодиспансер" | E17: КТП№14 ООО "МИП "Кинешма", ячейка в РУ04кВ, ЩР в КТП14 | F17: Гос. Учреждения | G17: ГУ.Прочие | H17: Областной | L17: менее 670 | M17: 5612042824 | N17: АО "ЭнергосбыТ Плюс" | O17: 3703020510 | P17: ООО "МИП "Кинешма" | R17: Э | S17: СН2 | X17: =IF(IF($Q17=1,V17*$Q$10-W17,V17-W17)<0,0,IF($Q17=1,V17*$Q$10-W17,V17-W17)) -> 0 | Y17: =IFERROR(X17/V17,0) -> 0 | Z17: =IF(T17=1,SUMIF(W$4:Z$4,$S17,W$7:Z$7)*U17,IF(T17="ГН",W17*SUMIF(W$4:Z$4,$S17,W$5:Z$5),IF(T17=2,W17*SUMIF(W$4:Z$4,$S17,W$5:Z$5)+U17*SUMIF(W$4:Z$4,$S17,W$6:Z$6),0))) -> 0 | AE17: =IF(IF($Q17=1,AC17*$Q$10-AD17,AC17-AD17)<0,0,IF($Q17=1,AC17*$Q$10-AD17,AC17-AD17)) -> 0 | AF17: =IFERROR(AE17/AC17,0) -> 0 | AG17: =IF(AA17=1,SUMIF(AD$4:AG$4,$S17,AD$7:AG$7)*AB17,IF(AA17="ГН",AD17*SUMIF(AD$4:AG$4,$S17,AD$5:AG$5),IF(AA17=2,AD17*SUMIF(AD$4:AG$4,$S17,AD$5:AG$5)+AB17*SUMIF(AD$4:AG$4,$S17,AD$6:AG$6),0))) -> 0 | AL17: =IF(IF($Q17=1,AJ17*$Q$10-AK17,AJ17-AK17)<0,0,IF($Q17=1,AJ17*$Q$10-AK17,AJ17-AK17)) -> 0 | AM17: =IFERROR(AL17/AJ17,0) -> 0 | AN17: =IF(AH17=1,SUMIF(AK$4:AN$4,$S17,AK$7:AN$7)*AI17,IF(AH17="ГН",AK17*SUMIF(AK$4:AN$4,$S17,AK$5:AN$5),IF(AH17=2,AK17*SUMIF(AK$4:AN$4,$S17,AK$5:AN$5)+AI17*SUMIF(AK$4:AN$4,$S17,AK$6:AN$6),0))) -> 0 | AS17: =IF(IF($Q17=1,AQ17*$Q$10-AR17,AQ17-AR17)<0,0,IF($Q17=1,AQ17*$Q$10-AR17,AQ17-AR17)) -> 0 | AT17: =IFERROR(AS17/AQ17,0) -> 0 | AU17: =IF(AO17=1,SUMIF(AR$4:AU$4,$S17,AR$7:AU$7)*AP17,IF(AO17="ГН",AR17*SUMIF(AR$4:AU$4,$S17,AR$5:AU$5),IF(AO17=2,AR17*SUMIF(AR$4:AU$4,$S17,AR$5:AU$5)+AP17*SUMIF(AR$4:AU$4,$S17,AR$6:AU$6),0))) -> 0 | AZ17: =IF(IF($Q17=1,AX17*$Q$10-AY17,AX17-AY17)<0,0,IF($Q17=1,AX17*$Q$10-AY17,AX17-AY17)) -> 0 | BA17: =IFERROR(AZ17/AX17,0) -> 0 | BB17: =IF(AV17=1,SUMIF(AY$4:BB$4,$S17,AY$7:BB$7)*AW17,IF(AV17="ГН",AY17*SUMIF(AY$4:BB$4,$S17,AY$5:BB$5),IF(AV17=2,AY17*SUMIF(AY$4:BB$4,$S17,AY$5:BB$5)+AW17*SUMIF(AY$4:BB$4,$S17,AY$6:BB$6),0))) -> 0 | BG17: =IF(IF($Q17=1,BE17*$Q$10-BF17,BE17-BF17)<0,0,IF($Q17=1,BE17*$Q$10-BF17,BE17-BF17)) -> 0 | BH17: =IFERROR(BG17/BE17,0) -> 0 | BI17: =IF(BC17=1,SUMIF(BF$4:BI$4,$S17,BF$7:BI$7)*BD17,IF(BC17="ГН",BF17*SUMIF(BF$4:BI$4,$S17,BF$5:BI$5),IF(BC17=2,BF17*SUMIF(BF$4:BI$4,$S17,BF$5:BI$5)+BD17*SUMIF(BF$4:BI$4,$S17,BF$6:BI$6),0))) -> 0 | BN17: =IF(IF($Q17=1,BL17*$Q$10-BM17,BL17-BM17)<0,0,IF($Q17=1,BL17*$Q$10-BM17,BL17-BM17)) -> 0 | BO17: =IFERROR(BN17/BL17,0) -> 0 | BP17: =IF(BJ17=1,SUMIF(BM$4:BP$4,$S17,BM$7:BP$7)*BK17,IF(BJ17="ГН",BM17*SUMIF(BM$4:BP$4,$S17,BM$5:BP$5),IF(BJ17=2,BM17*SUMIF(BM$4:BP$4,$S17,BM$5:BP$5)+BK17*SUMIF(BM$4:BP$4,$S17,BM$6:BP$6),0))) -> 0 | BU17: =IF(IF($Q17=1,BS17*$Q$10-BT17,BS17-BT17)<0,0,IF($Q17=1,BS17*$Q$10-BT17,BS17-BT17)) -> 0 | BV17: =IFERROR(BU17/BS17,0) -> 0 | BW17: =IF(BQ17=1,SUMIF(BT$4:BW$4,$S17,BT$7:BW$7)*BR17,IF(BQ17="ГН",BT17*SUMIF(BT$4:BW$4,$S17,BT$5:BW$5),IF(BQ17=2,BT17*SUMIF(BT$4:BW$4,$S17,BT$5:BW$5)+BR17*SUMIF(BT$4:BW$4,$S17,BT$6:BW$6),0))) -> 0 | CB17: =IF(IF($Q17=1,BZ17*$Q$10-CA17,BZ17-CA17)<0,0,IF($Q17=1,BZ17*$Q$10-CA17,BZ17-CA17)) -> 0 | CC17: =IFERROR(CB17/BZ17,0) -> 0 | CD17: =IF(BX17=1,SUMIF(CA$4:CD$4,$S17,CA$7:CD$7)*BY17,IF(BX17="ГН",CA17*SUMIF(CA$4:CD$4,$S17,CA$5:CD$5),IF(BX17=2,CA17*SUMIF(CA$4:CD$4,$S17,CA$5:CD$5)+BY17*SUMIF(CA$4:CD$4,$S17,CA$6:CD$6),0))) -> 0 | CI17: =IF(IF($Q17=1,CG17*$Q$10-CH17,CG17-CH17)<0,0,IF($Q17=1,CG17*$Q$10-CH17,CG17-CH17)) -> 0 | CJ17: =IFERROR(CI17/CG17,0) -> 0 | CK17: =IF(CE17=1,SUMIF(CH$4:CK$4,$S17,CH$7:CK$7)*CF17,IF(CE17="ГН",CH17*SUMIF(CH$4:CK$4,$S17,CH$5:CK$5),IF(CE17=2,CH17*SUMIF(CH$4:CK$4,$S17,CH$5:CK$5)+CF17*SUMIF(CH$4:CK$4,$S17,CH$6:CK$6),0))) -> 0 | CL17: 1 | CM17: 6.636 | CN17: 0.03 | CO17: 0.021319 | CP17: =IF(IF($Q17=1,CN17*$Q$10-CO17,CN17-CO17)<0,0,IF($Q17=1,CN17*$Q$10-CO17,CN17-CO17)) -> 0.008681 | CQ17: =IFERROR(CP17/CN17,0) -> 0.2893666667 | CR17: =IF(CL17=1,SUMIF(CO$4:CR$4,$S17,CO$7:CR$7)*CM17,IF(CL17="ГН",CO17*SUMIF(CO$4:CR$4,$S17,CO$5:CR$5),IF(CL17=2,CO17*SUMIF(CO$4:CR$4,$S17,CO$5:CR$5)+CM17*SUMIF(CO$4:CR$4,$S17,CO$6:CR$6),0))) -> 13632.26844 | CS17: 1 | CT17: 6.96 | CU17: 0.03 | CV17: 0.021959 | CW17: =IF(IF($Q17=1,CU17*$Q$10-CV17,CU17-CV17)<0,0,IF($Q17=1,CU17*$Q$10-CV17,CU17-CV17)) -> 0.008041 | CX17: =IFERROR(CW17/CU17,0) -> 0.2680333333 | CY17: =IF(CS17=1,SUMIF(CV$4:CY$4,$S17,CV$7:CY$7)*CT17,IF(CS17="ГН",CV17*SUMIF(CV$4:CY$4,$S17,CV$5:CY$5),IF(CS17=2,CV17*SUMIF(CV$4:CY$4,$S17,CV$5:CY$5)+CT17*SUMIF(CV$4:CY$4,$S17,CV$6:CY$6),0))) -> 0 | CZ17: 1 | DA17: 6.889 | DB17: 0.03 | DC17: 0.021402 | DD17: =IF(IF($Q17=1,DB17*$Q$10-DC17,DB17-DC17)<0,0,IF($Q17=1,DB17*$Q$10-DC17,DB17-DC17)) -> 0.008598 | DE17: =IFERROR(DD17/DB17,0) -> 0.2866 | DF17: =MIN(CX17,CQ17,CJ17,CC17,BV17,BO17,BH17,BA17,AT17,AM17,AF17,Y17,DE17) -> 0 | DG17: =IF(AND(DF17>0.4,DJ17>0),DD17*DG$11,0) -> 0 | DH17: =SUM(DI17:DJ17) -> 0 | DI17: =DG17*SUMIF(DG$4:DJ$4,$S17,DG$5:DJ$5) -> 0 | DJ17: =IF(CZ17=1,SUMIF(DG$4:DJ$4,$S17,DG$7:DJ$7)*DA17,IF(CZ17="ГН",DC17*SUMIF(DG$4:DJ$4,$S17,DG$5:DJ$5),IF(CZ17=2,DC17*SUMIF(DG$4:DJ$4,$S17,DG$5:DJ$5)+DA17*SUMIF(DG$4:DJ$4,$S17,DG$6:DJ$6),0))) -> 0 | DK17: 1 | DL17: 6.661 | DM17: 0.03 | DN17: 0.021794 | DO17: =IF(IF($Q17=1,DM17*$Q$10-DN17,DM17-DN17)<0,0,IF($Q17=1,DM17*$Q$10-DN17,DM17-DN17)) -> 0.008206 | DP17: =IFERROR(DO17/DM17,0) -> 0.2735333333 | DQ17: =MIN(DE17,CX17,CQ17,CJ17,CC17,BV17,BO17,BH17,BA17,AT17,AM17,AF17,DP17) -> 0 | DR17: =IF(AND(DQ17>0.4,DU17>0),DO17*DR$11,0) -> 0 | DS17: =SUM(DT17:DU17) -> 0 | DT17: =DR17*SUMIF(DR$4:DU$4,$S17,DR$5:DU$5) -> 0 | DU17: =IF(DK17=1,SUMIF(DR$4:DU$4,$S17,DR$7:DU$7)*DL17,IF(DK17="ГН",DN17*SUMIF(DR$4:DU$4,$S17,DR$5:DU$5),IF(DK17=2,DN17*SUMIF(DR$4:DU$4,$S17,DR$5:DU$5)+DL17*SUMIF(DR$4:DU$4,$S17,DR$6:DU$6),0))) -> 0 | DV17: 1 | DW17: 6.493 | DX17: 0.03 | DY17: 0.019586 | DZ17: =IF(IF($Q17=1,DX17*$Q$10-DY17,DX17-DY17)<0,0,IF($Q17=1,DX17*$Q$10-DY17,DX17-DY17)) -> 0.010414 | EA17: =IFERROR(DZ17/DX17,0) -> 0.3471333333 | EB17: =MIN(DP17,DE17,CX17,CQ17,CJ17,CC17,BV17,BO17,BH17,BA17,AT17,AM17,EA17) -> 0 | EC17: =IF(AND(EB17>0.4,EF17>0),DZ17*EC$11,0) -> 0 | ED17: =SUM(EE17:EF17) -> 0 | EE17: =EC17*SUMIF(EC$4:EF$4,$S17,EC$5:EF$5) -> 0 | EF17: =IF(DV17=1,SUMIF(EC$4:EF$4,$S17,EC$7:EF$7)*DW17,IF(DV17="ГН",DY17*SUMIF(EC$4:EF$4,$S17,EC$5:EF$5),IF(DV17=2,DY17*SUMIF(EC$4:EF$4,$S17,EC$5:EF$5)+DW17*SUMIF(EC$4:EF$4,$S17,EC$6:EF$6),0))) -> 0 | EG17: 1 | EH17: 5.763 | EI17: 0.03 | EJ17: 0.016355 | EK17: =IF(IF($Q17=1,EI17*$Q$10-EJ17,EI17-EJ17)<0,0,IF($Q17=1,EI17*$Q$10-EJ17,EI17-EJ17)) -> 0.013645 | EL17: =IFERROR(EK17/EI17,0) -> 0.4548333333 | EM17: =MIN(EA17,DP17,DE17,CX17,CQ17,CJ17,CC17,BV17,BO17,BH17,BA17,AT17,EL17) -> 0 | EN17: =IF(AND(EM17>0.4,EQ17>0),EK17*EN$11,0) -> 0 | EO17: =SUM(EP17:EQ17) -> 0 | EP17: =EN17*SUMIF(EN$4:EQ$4,$S17,EN$5:EQ$5) -> 0 | EQ17: =IF(EG17=1,SUMIF(EN$4:EQ$4,$S17,EN$7:EQ$7)*EH17,IF(EG17="ГН",EJ17*SUMIF(EN$4:EQ$4,$S17,EN$5:EQ$5),IF(EG17=2,EJ17*SUMIF(EN$4:EQ$4,$S17,EN$5:EQ$5)+EH17*SUMIF(EN$4:EQ$4,$S17,EN$6:EQ$6),0))) -> 0 | ER17: 1 | ES17: 6.512 | ET17: 0.03 | EU17: 0.018154 | EV17: =IF(IF($Q17=1,ET17*$Q$10-EU17,ET17-EU17)<0,0,IF($Q17=1,ET17*$Q$10-EU17,ET17-EU17)) -> 0.011846 | EW17: =IFERROR(EV17/ET17,0) -> 0.3948666667 | EX17: =MIN(EL17,EA17,DP17,DE17,CX17,CQ17,CJ17,CC17,BV17,BO17,BH17,BA17,EW17) -> 0 | EY17: =IF(AND(EX17>0.4,FB17>0),EV17*EY$11,0) -> 0 | EZ17: =SUM(FA17:FB17) -> 0 | FA17: =EY17*SUMIF(EY$4:FB$4,$S17,EY$5:FB$5) -> 0 | FB17: =IF(ER17=1,SUMIF(EY$4:FB$4,$S17,EY$7:FB$7)*ES17,IF(ER17="ГН",EU17*SUMIF(EY$4:FB$4,$S17,EY$5:FB$5),IF(ER17=2,EU17*SUMIF(EY$4:FB$4,$S17,EY$5:FB$5)+ES17*SUMIF(EY$4:FB$4,$S17,EY$6:FB$6),0))) -> 0 | FC17: 1 | FD17: 6.069 | FE17: 0.03 | FF17: 0.017034 | FG17: =IF(IF($Q17=1,FE17*$Q$10-FF17,FE17-FF17)<0,0,IF($Q17=1,FE17*$Q$10-FF17,FE17-FF17)) -> 0.012966 | FH17: =IFERROR(FG17/FE17,0) -> 0.4322 | FI17: =MIN(EW17,EL17,EA17,DP17,DE17,CX17,CQ17,CJ17,CC17,BV17,BO17,BH17,FH17) -> 0 | FJ17: =IF(AND(FI17>0.4,FM17>0),FG17*FJ$11,0) -> 0 | FK17: =SUM(FL17:FM17) -> 0 | FL17: =FJ17*SUMIF(FJ$4:FM$4,$S17,FJ$5:FM$5) -> 0 | FM17: =IF(FC17=1,SUMIF(FJ$4:FM$4,$S17,FJ$7:FM$7)*FD17,IF(FC17="ГН",FF17*SUMIF(FJ$4:FM$4,$S17,FJ$5:FM$5),IF(FC17=2,FF17*SUMIF(FJ$4:FM$4,$S17,FJ$5:FM$5)+FD17*SUMIF(FJ$4:FM$4,$S17,FJ$6:FM$6),0))) -> 0 | FN17: 1 | FO17: 6.36 | FP17: 0.03 | FQ17: 0.018349 | FR17: =IF(IF($Q17=1,FP17*$Q$10-FQ17,FP17-FQ17)<0,0,IF($Q17=1,FP17*$Q$10-FQ17,FP17-FQ17)) -> 0.011651 | FS17: =IFERROR(FR17/FP17,0) -> 0.3883666667 | FT17: =MIN(FH17,EW17,EL17,EA17,DP17,DE17,CX17,CQ17,CJ17,CC17,BV17,BO17,FS17) -> 0 | FU17: =IF(AND(FT17>0.4,FX17>0),FR17*FU$11,0) -> 0 | FV17: =SUM(FW17:FX17) -> 0 | FW17: =FU17*SUMIF(FU$4:FX$4,$S17,FU$5:FX$5) -> 0 | FX17: =IF(FN17=1,SUMIF(FU$4:FX$4,$S17,FU$7:FX$7)*FO17,IF(FN17="ГН",FQ17*SUMIF(FU$4:FX$4,$S17,FU$5:FX$5),IF(FN17=2,FQ17*SUMIF(FU$4:FX$4,$S17,FU$5:FX$5)+FO17*SUMIF(FU$4:FX$4,$S17,FU$6:FX$6),0))) -> 0 | FY17: 1 | FZ17: 6.346 | GA17: 0.03 | GB17: 0.018109 | GC17: =IF(IF($Q17=1,GA17*$Q$10-GB17,GA17-GB17)<0,0,IF($Q17=1,GA17*$Q$10-GB17,GA17-GB17)) -> 0.011891 | GD17: =IFERROR(GC17/GA17,0) -> 0.3963666667 | GE17: =MIN(FS17,FH17,EW17,EL17,EA17,DP17,DE17,CX17,CQ17,CJ17,CC17,BV17,GD17) -> 0 | GF17: =IF(AND(GE17>0.4,GI17>0),GC17*GF$11,0) -> 0 | GG17: =SUM(GH17:GI17) -> 0 | GH17: =GF17*SUMIF(GF$4:GI$4,$S17,GF$5:GI$5) -> 0 | GI17: =IF(FY17=1,SUMIF(GF$4:GI$4,$S17,GF$7:GI$7)*FZ17,IF(FY17="ГН",GB17*SUMIF(GF$4:GI$4,$S17,GF$5:GI$5),IF(FY17=2,GB17*SUMIF(GF$4:GI$4,$S17,GF$5:GI$5)+FZ17*SUMIF(GF$4:GI$4,$S17,GF$6:GI$6),0))) -> 0 | GJ17: 1 | GK17: 6.595 | GL17: 0.03 | GM17: 0.019496 | GN17: =IF(IF($Q17=1,GL17*$Q$10-GM17,GL17-GM17)<0,0,IF($Q17=1,GL17*$Q$10-GM17,GL17-GM17)) -> 0.010504 | GO17: =IFERROR(GN17/GL17,0) -> 0.3501333333 | GP17: =MIN(GD17,FS17,FH17,EW17,EL17,EA17,DP17,DE17,CX17,CQ17,CJ17,CC17,GO17) -> 0 | GQ17: =IF(AND(GP17>0.4,GT17>0),GN17*GQ$11,0) -> 0 | GR17: =SUM(GS17:GT17) -> 0 | GS17: =GQ17*SUMIF(GQ$4:GT$4,$S17,GQ$5:GT$5) -> 0 | GT17: =IF(GJ17=1,SUMIF(GQ$4:GT$4,$S17,GQ$7:GT$7)*GK17,IF(GJ17="ГН",GM17*SUMIF(GQ$4:GT$4,$S17,GQ$5:GT$5),IF(GJ17=2,GM17*SUMIF(GQ$4:GT$4,$S17,GQ$5:GT$5)+GK17*SUMIF(GQ$4:GT$4,$S17,GQ$6:GT$6),0))) -> 0 | GU17: 1 | GV17: 6.496 | GW17: 0.03 | GX17: 0.01956 | GY17: =IF(IF($Q17=1,GW17*$Q$10-GX17,GW17-GX17)<0,0,IF($Q17=1,GW17*$Q$10-GX17,GW17-GX17)) -> 0.01044 | GZ17: =IFERROR(GY17/GW17,0) -> 0.348 | HA17: =MIN(GO17,GD17,FS17,FH17,EW17,EL17,EA17,DP17,DE17,CX17,CQ17,CJ17,GZ17) -> 0 | HB17: =IF(AND(HA17>0.4,HE17>0),GY17*HB$11,0) -> 0 | HC17: =SUM(HD17:HE17) -> 0 | HD17: =HB17*SUMIF(HB$4:HE$4,$S17,HB$5:HE$5) -> 0 | HE17: =IF(GU17=1,SUMIF(HB$4:HE$4,$S17,HB$7:HE$7)*GV17,IF(GU17="ГН",GX17*SUMIF(HB$4:HE$4,$S17,HB$5:HE$5),IF(GU17=2,GX17*SUMIF(HB$4:HE$4,$S17,HB$5:HE$5)+GV17*SUMIF(HB$4:HE$4,$S17,HB$6:HE$6),0))) -> 0 | HF17: 1 | HG17: 6.056 | HH17: 0.03 | HI17: 0.01875 | HJ17: =IF(IF($Q17=1,HH17*$Q$10-HI17,HH17-HI17)<0,0,IF($Q17=1,HH17*$Q$10-HI17,HH17-HI17)) -> 0.01125 | HK17: =IFERROR(HJ17/HH17,0) -> 0.375 | HL17: =MIN(GZ17,GO17,GD17,FS17,FH17,EW17,EL17,EA17,DP17,DE17,CX17,CQ17,HK17) -> 0.2680333333 | HM17: =IF(AND(HL17>0.4,HP17>0),HJ17*HM$11,0) -> 0 | HN17: =SUM(HO17:HP17) -> 0 | HO17: =HM17*SUMIF(HM$4:HP$4,$S17,HM$5:HP$5) -> 0 | HP17: =IF(HF17=1,SUMIF(HM$4:HP$4,$S17,HM$7:HP$7)*HG17,IF(HF17="ГН",HI17*SUMIF(HM$4:HP$4,$S17,HM$5:HP$5),IF(HF17=2,HI17*SUMIF(HM$4:HP$4,$S17,HM$5:HP$5)+HG17*SUMIF(HM$4:HP$4,$S17,HM$6:HP$6),0))) -> 0 | HU17: =IF(IF($Q17=1,HS17*$Q$10-HT17,HS17-HT17)<0,0,IF($Q17=1,HS17*$Q$10-HT17,HS17-HT17)) -> 0 | HV17: =IFERROR(HU17/HS17,0) -> 0 | HW17: =MIN(HK17,GZ17,GO17,GD17,FS17,FH17,EW17,EL17,EA17,DP17,DE17,CX17,HV17) -> 0 | HX17: =IF(AND(HW17>0.4,IA17>0),HU17*HX$11,0) -> 0 | HY17: =SUM(HZ17:IA17) -> 0 | HZ17: =HX17*SUMIF(HX$4:IA$4,$S17,HX$5:IA$5) -> 0 | IA17: =IF(HQ17=1,SUMIF(HX$4:IA$4,$S17,HX$7:IA$7)*HR17,IF(HQ17="ГН",HT17*SUMIF(HX$4:IA$4,$S17,HX$5:IA$5),IF(HQ17=2,HT17*SUMIF(HX$4:IA$4,$S17,HX$5:IA$5)+HR17*SUMIF(HX$4:IA$4,$S17,HX$6:IA$6),0))) -> 0 | IB17: =IFERROR(AVERAGE(HQ17,HF17,GU17,GJ17,FY17,FN17,FC17,ER17,EG17,DV17,DK17,CZ17),0) -> 1 | IC17: =SUM(HR17,HG17,GV17,GK17,FZ17,FO17,FD17,ES17,EH17,DW17,DL17,DA17) -> 70.24 | ID17: 0.03 | IE17: =IFERROR(AVERAGE(HT17,HI17,GX17,GM17,GB17,FQ17,FF17,EU17,EJ17,DY17,DN17,DC17),0) -> 0.01896263636 | IF17: =IFERROR(AVERAGE(HU17,HJ17,GY17,GN17,GC17,FR17,FG17,EV17,EK17,DZ17,DO17,DD17),0) -> 0.01011758333 | IG17: =IFERROR(IF17/ID17,0) -> 0.3372527778 | IH17: =IFERROR(AVERAGE(HX17,HM17,HB17,GQ17,GF17,FU17,FJ17,EY17,EN17,EC17,DR17,DG17),0) -> 0 | II17: =IJ17+IK17 -> 0 | IJ17: =SUM(HZ17,HO17,HD17,GS17,GH17,FW17,FL17,FA17,EP17,EE17,DT17,DI17) -> 0 | IK17: =SUM(IA17,HP17,HE17,GT17,GI17,FX17,FM17,FB17,EQ17,EF17,DU17,DJ17) -> 0
A18: ООО "МИП "Кинешма" | B18: Ивановская область | D18: УГХ г.Кинешмы | E18: КТП№31 КНС ООО "МИП "Кинешма", РУ 0,4кВ | F18: ЖКХ | G18: ЖКХ.Прочие | H18: Местный | L18: менее 670 | M18: 5612042824 | N18: АО "ЭнергосбыТ Плюс" | O18: 3703020510 | P18: ООО "МИП "Кинешма" | R18: Э | S18: СН2 | X18: =IF(IF($Q18=1,V18*$Q$10-W18,V18-W18)<0,0,IF($Q18=1,V18*$Q$10-W18,V18-W18)) -> 0 | Y18: =IFERROR(X18/V18,0) -> 0 | Z18: =IF(T18=1,SUMIF(W$4:Z$4,$S18,W$7:Z$7)*U18,IF(T18="ГН",W18*SUMIF(W$4:Z$4,$S18,W$5:Z$5),IF(T18=2,W18*SUMIF(W$4:Z$4,$S18,W$5:Z$5)+U18*SUMIF(W$4:Z$4,$S18,W$6:Z$6),0))) -> 0 | AE18: =IF(IF($Q18=1,AC18*$Q$10-AD18,AC18-AD18)<0,0,IF($Q18=1,AC18*$Q$10-AD18,AC18-AD18)) -> 0 | AF18: =IFERROR(AE18/AC18,0) -> 0 | AG18: =IF(AA18=1,SUMIF(AD$4:AG$4,$S18,AD$7:AG$7)*AB18,IF(AA18="ГН",AD18*SUMIF(AD$4:AG$4,$S18,AD$5:AG$5),IF(AA18=2,AD18*SUMIF(AD$4:AG$4,$S18,AD$5:AG$5)+AB18*SUMIF(AD$4:AG$4,$S18,AD$6:AG$6),0))) -> 0 | AL18: =IF(IF($Q18=1,AJ18*$Q$10-AK18,AJ18-AK18)<0,0,IF($Q18=1,AJ18*$Q$10-AK18,AJ18-AK18)) -> 0 | AM18: =IFERROR(AL18/AJ18,0) -> 0 | AN18: =IF(AH18=1,SUMIF(AK$4:AN$4,$S18,AK$7:AN$7)*AI18,IF(AH18="ГН",AK18*SUMIF(AK$4:AN$4,$S18,AK$5:AN$5),IF(AH18=2,AK18*SUMIF(AK$4:AN$4,$S18,AK$5:AN$5)+AI18*SUMIF(AK$4:AN$4,$S18,AK$6:AN$6),0))) -> 0 | AS18: =IF(IF($Q18=1,AQ18*$Q$10-AR18,AQ18-AR18)<0,0,IF($Q18=1,AQ18*$Q$10-AR18,AQ18-AR18)) -> 0 | AT18: =IFERROR(AS18/AQ18,0) -> 0 | AU18: =IF(AO18=1,SUMIF(AR$4:AU$4,$S18,AR$7:AU$7)*AP18,IF(AO18="ГН",AR18*SUMIF(AR$4:AU$4,$S18,AR$5:AU$5),IF(AO18=2,AR18*SUMIF(AR$4:AU$4,$S18,AR$5:AU$5)+AP18*SUMIF(AR$4:AU$4,$S18,AR$6:AU$6),0))) -> 0 | AZ18: =IF(IF($Q18=1,AX18*$Q$10-AY18,AX18-AY18)<0,0,IF($Q18=1,AX18*$Q$10-AY18,AX18-AY18)) -> 0 | BA18: =IFERROR(AZ18/AX18,0) -> 0 | BB18: =IF(AV18=1,SUMIF(AY$4:BB$4,$S18,AY$7:BB$7)*AW18,IF(AV18="ГН",AY18*SUMIF(AY$4:BB$4,$S18,AY$5:BB$5),IF(AV18=2,AY18*SUMIF(AY$4:BB$4,$S18,AY$5:BB$5)+AW18*SUMIF(AY$4:BB$4,$S18,AY$6:BB$6),0))) -> 0 | BG18: =IF(IF($Q18=1,BE18*$Q$10-BF18,BE18-BF18)<0,0,IF($Q18=1,BE18*$Q$10-BF18,BE18-BF18)) -> 0 | BH18: =IFERROR(BG18/BE18,0) -> 0 | BI18: =IF(BC18=1,SUMIF(BF$4:BI$4,$S18,BF$7:BI$7)*BD18,IF(BC18="ГН",BF18*SUMIF(BF$4:BI$4,$S18,BF$5:BI$5),IF(BC18=2,BF18*SUMIF(BF$4:BI$4,$S18,BF$5:BI$5)+BD18*SUMIF(BF$4:BI$4,$S18,BF$6:BI$6),0))) -> 0 | BN18: =IF(IF($Q18=1,BL18*$Q$10-BM18,BL18-BM18)<0,0,IF($Q18=1,BL18*$Q$10-BM18,BL18-BM18)) -> 0 | BO18: =IFERROR(BN18/BL18,0) -> 0 | BP18: =IF(BJ18=1,SUMIF(BM$4:BP$4,$S18,BM$7:BP$7)*BK18,IF(BJ18="ГН",BM18*SUMIF(BM$4:BP$4,$S18,BM$5:BP$5),IF(BJ18=2,BM18*SUMIF(BM$4:BP$4,$S18,BM$5:BP$5)+BK18*SUMIF(BM$4:BP$4,$S18,BM$6:BP$6),0))) -> 0 | BU18: =IF(IF($Q18=1,BS18*$Q$10-BT18,BS18-BT18)<0,0,IF($Q18=1,BS18*$Q$10-BT18,BS18-BT18)) -> 0 | BV18: =IFERROR(BU18/BS18,0) -> 0 | BW18: =IF(BQ18=1,SUMIF(BT$4:BW$4,$S18,BT$7:BW$7)*BR18,IF(BQ18="ГН",BT18*SUMIF(BT$4:BW$4,$S18,BT$5:BW$5),IF(BQ18=2,BT18*SUMIF(BT$4:BW$4,$S18,BT$5:BW$5)+BR18*SUMIF(BT$4:BW$4,$S18,BT$6:BW$6),0))) -> 0 | CB18: =IF(IF($Q18=1,BZ18*$Q$10-CA18,BZ18-CA18)<0,0,IF($Q18=1,BZ18*$Q$10-CA18,BZ18-CA18)) -> 0 | CC18: =IFERROR(CB18/BZ18,0) -> 0 | CD18: =IF(BX18=1,SUMIF(CA$4:CD$4,$S18,CA$7:CD$7)*BY18,IF(BX18="ГН",CA18*SUMIF(CA$4:CD$4,$S18,CA$5:CD$5),IF(BX18=2,CA18*SUMIF(CA$4:CD$4,$S18,CA$5:CD$5)+BY18*SUMIF(CA$4:CD$4,$S18,CA$6:CD$6),0))) -> 0 | CI18: =IF(IF($Q18=1,CG18*$Q$10-CH18,CG18-CH18)<0,0,IF($Q18=1,CG18*$Q$10-CH18,CG18-CH18)) -> 0 | CJ18: =IFERROR(CI18/CG18,0) -> 0 | CK18: =IF(CE18=1,SUMIF(CH$4:CK$4,$S18,CH$7:CK$7)*CF18,IF(CE18="ГН",CH18*SUMIF(CH$4:CK$4,$S18,CH$5:CK$5),IF(CE18=2,CH18*SUMIF(CH$4:CK$4,$S18,CH$5:CK$5)+CF18*SUMIF(CH$4:CK$4,$S18,CH$6:CK$6),0))) -> 0 | CL18: 1 | CM18: 2.859 | CN18: =0.0045 -> 0.0045 | CO18: 0.006353 | CP18: =IF(IF($Q18=1,CN18*$Q$10-CO18,CN18-CO18)<0,0,IF($Q18=1,CN18*$Q$10-CO18,CN18-CO18)) -> 0 | CQ18: =IFERROR(CP18/CN18,0) -> 0 | CR18: =IF(CL18=1,SUMIF(CO$4:CR$4,$S18,CO$7:CR$7)*CM18,IF(CL18="ГН",CO18*SUMIF(CO$4:CR$4,$S18,CO$5:CR$5),IF(CL18=2,CO18*SUMIF(CO$4:CR$4,$S18,CO$5:CR$5)+CM18*SUMIF(CO$4:CR$4,$S18,CO$6:CR$6),0))) -> 5873.21511 | CS18: 1 | CT18: 0.907 | CU18: =0.0045 -> 0.0045 | CV18: 0.001829 | CW18: =IF(IF($Q18=1,CU18*$Q$10-CV18,CU18-CV18)<0,0,IF($Q18=1,CU18*$Q$10-CV18,CU18-CV18)) -> 0.002671 | CX18: =IFERROR(CW18/CU18,0) -> 0.5935555556 | CY18: =IF(CS18=1,SUMIF(CV$4:CY$4,$S18,CV$7:CY$7)*CT18,IF(CS18="ГН",CV18*SUMIF(CV$4:CY$4,$S18,CV$5:CY$5),IF(CS18=2,CV18*SUMIF(CV$4:CY$4,$S18,CV$5:CY$5)+CT18*SUMIF(CV$4:CY$4,$S18,CV$6:CY$6),0))) -> 0 | CZ18: 1 | DA18: 0.727 | DB18: 0.0045 | DC18: 0.001466 | DD18: =IF(IF($Q18=1,DB18*$Q$10-DC18,DB18-DC18)<0,0,IF($Q18=1,DB18*$Q$10-DC18,DB18-DC18)) -> 0.003034 | DE18: =IFERROR(DD18/DB18,0) -> 0.6742222222 | DF18: =MIN(CX18,CQ18,CJ18,CC18,BV18,BO18,BH18,BA18,AT18,AM18,AF18,Y18,DE18) -> 0 | DG18: =IF(AND(DF18>0.4,DJ18>0),DD18*DG$11,0) -> 0 | DH18: =SUM(DI18:DJ18) -> 0 | DI18: =DG18*SUMIF(DG$4:DJ$4,$S18,DG$5:DJ$5) -> 0 | DJ18: =IF(CZ18=1,SUMIF(DG$4:DJ$4,$S18,DG$7:DJ$7)*DA18,IF(CZ18="ГН",DC18*SUMIF(DG$4:DJ$4,$S18,DG$5:DJ$5),IF(CZ18=2,DC18*SUMIF(DG$4:DJ$4,$S18,DG$5:DJ$5)+DA18*SUMIF(DG$4:DJ$4,$S18,DG$6:DJ$6),0))) -> 0 | DK18: 1 | DL18: 0.864 | DM18: 0.0045 | DN18: 0.0020128 | DO18: =IF(IF($Q18=1,DM18*$Q$10-DN18,DM18-DN18)<0,0,IF($Q18=1,DM18*$Q$10-DN18,DM18-DN18)) -> 0.0024872 | DP18: =IFERROR(DO18/DM18,0) -> 0.5527111111 | DQ18: =MIN(DE18,CX18,CQ18,CJ18,CC18,BV18,BO18,BH18,BA18,AT18,AM18,AF18,DP18) -> 0 | DR18: =IF(AND(DQ18>0.4,DU18>0),DO18*DR$11,0) -> 0 | DS18: =SUM(DT18:DU18) -> 0 | DT18: =DR18*SUMIF(DR$4:DU$4,$S18,DR$5:DU$5) -> 0 | DU18: =IF(DK18=1,SUMIF(DR$4:DU$4,$S18,DR$7:DU$7)*DL18,IF(DK18="ГН",DN18*SUMIF(DR$4:DU$4,$S18,DR$5:DU$5),IF(DK18=2,DN18*SUMIF(DR$4:DU$4,$S18,DR$5:DU$5)+DL18*SUMIF(DR$4:DU$4,$S18,DR$6:DU$6),0))) -> 0 | DV18: 1 | DW18: 0.454 | DX18: 0.0045 | DY18: 0.00122 | DZ18: =IF(IF($Q18=1,DX18*$Q$10-DY18,DX18-DY18)<0,0,IF($Q18=1,DX18*$Q$10-DY18,DX18-DY18)) -> 0.00328 | EA18: =IFERROR(DZ18/DX18,0) -> 0.7288888889 | EB18: =MIN(DP18,DE18,CX18,CQ18,CJ18,CC18,BV18,BO18,BH18,BA18,AT18,AM18,EA18) -> 0 | EC18: =IF(AND(EB18>0.4,EF18>0),DZ18*EC$11,0) -> 0 | ED18: =SUM(EE18:EF18) -> 0 | EE18: =EC18*SUMIF(EC$4:EF$4,$S18,EC$5:EF$5) -> 0 | EF18: =IF(DV18=1,SUMIF(EC$4:EF$4,$S18,EC$7:EF$7)*DW18,IF(DV18="ГН",DY18*SUMIF(EC$4:EF$4,$S18,EC$5:EF$5),IF(DV18=2,DY18*SUMIF(EC$4:EF$4,$S18,EC$5:EF$5)+DW18*SUMIF(EC$4:EF$4,$S18,EC$6:EF$6),0))) -> 0 | EG18: 1 | EH18: 0.367 | EI18: 0.0045 | EJ18: 0.001112 | EK18: =IF(IF($Q18=1,EI18*$Q$10-EJ18,EI18-EJ18)<0,0,IF($Q18=1,EI18*$Q$10-EJ18,EI18-EJ18)) -> 0.003388 | EL18: =IFERROR(EK18/EI18,0) -> 0.7528888889 | EM18: =MIN(EA18,DP18,DE18,CX18,CQ18,CJ18,CC18,BV18,BO18,BH18,BA18,AT18,EL18) -> 0 | EN18: =IF(AND(EM18>0.4,EQ18>0),EK18*EN$11,0) -> 0 | EO18: =SUM(EP18:EQ18) -> 0 | EP18: =EN18*SUMIF(EN$4:EQ$4,$S18,EN$5:EQ$5) -> 0 | EQ18: =IF(EG18=1,SUMIF(EN$4:EQ$4,$S18,EN$7:EQ$7)*EH18,IF(EG18="ГН",EJ18*SUMIF(EN$4:EQ$4,$S18,EN$5:EQ$5),IF(EG18=2,EJ18*SUMIF(EN$4:EQ$4,$S18,EN$5:EQ$5)+EH18*SUMIF(EN$4:EQ$4,$S18,EN$6:EQ$6),0))) -> 0 | ER18: 1 | ES18: 0.299 | ET18: 0.0045 | EU18: 0.001206 | EV18: =IF(IF($Q18=1,ET18*$Q$10-EU18,ET18-EU18)<0,0,IF($Q18=1,ET18*$Q$10-EU18,ET18-EU18)) -> 0.003294 | EW18: =IFERROR(EV18/ET18,0) -> 0.732 | EX18: =MIN(EL18,EA18,DP18,DE18,CX18,CQ18,CJ18,CC18,BV18,BO18,BH18,BA18,EW18) -> 0 | EY18: =IF(AND(EX18>0.4,FB18>0),EV18*EY$11,0) -> 0 | EZ18: =SUM(FA18:FB18) -> 0 | FA18: =EY18*SUMIF(EY$4:FB$4,$S18,EY$5:FB$5) -> 0 | FB18: =IF(ER18=1,SUMIF(EY$4:FB$4,$S18,EY$7:FB$7)*ES18,IF(ER18="ГН",EU18*SUMIF(EY$4:FB$4,$S18,EY$5:FB$5),IF(ER18=2,EU18*SUMIF(EY$4:FB$4,$S18,EY$5:FB$5)+ES18*SUMIF(EY$4:FB$4,$S18,EY$6:FB$6),0))) -> 0 | FC18: 1 | FD18: 0.116 | FE18: 0.0045 | FF18: 0.000552 | FG18: =IF(IF($Q18=1,FE18*$Q$10-FF18,FE18-FF18)<0,0,IF($Q18=1,FE18*$Q$10-FF18,FE18-FF18)) -> 0.003948 | FH18: =IFERROR(FG18/FE18,0) -> 0.8773333333 | FI18: =MIN(EW18,EL18,EA18,DP18,DE18,CX18,CQ18,CJ18,CC18,BV18,BO18,BH18,FH18) -> 0 | FJ18: =IF(AND(FI18>0.4,FM18>0),FG18*FJ$11,0) -> 0 | FK18: =SUM(FL18:FM18) -> 0 | FL18: =FJ18*SUMIF(FJ$4:FM$4,$S18,FJ$5:FM$5) -> 0 | FM18: =IF(FC18=1,SUMIF(FJ$4:FM$4,$S18,FJ$7:FM$7)*FD18,IF(FC18="ГН",FF18*SUMIF(FJ$4:FM$4,$S18,FJ$5:FM$5),IF(FC18=2,FF18*SUMIF(FJ$4:FM$4,$S18,FJ$5:FM$5)+FD18*SUMIF(FJ$4:FM$4,$S18,FJ$6:FM$6),0))) -> 0 | FN18: 1 | FO18: 0.27 | FP18: 0.0045 | FQ18: 0.001244 | FR18: =IF(IF($Q18=1,FP18*$Q$10-FQ18,FP18-FQ18)<0,0,IF($Q18=1,FP18*$Q$10-FQ18,FP18-FQ18)) -> 0.003256 | FS18: =IFERROR(FR18/FP18,0) -> 0.7235555556 | FT18: =MIN(FH18,EW18,EL18,EA18,DP18,DE18,CX18,CQ18,CJ18,CC18,BV18,BO18,FS18) -> 0 | FU18: =IF(AND(FT18>0.4,FX18>0),FR18*FU$11,0) -> 0 | FV18: =SUM(FW18:FX18) -> 0 | FW18: =FU18*SUMIF(FU$4:FX$4,$S18,FU$5:FX$5) -> 0 | FX18: =IF(FN18=1,SUMIF(FU$4:FX$4,$S18,FU$7:FX$7)*FO18,IF(FN18="ГН",FQ18*SUMIF(FU$4:FX$4,$S18,FU$5:FX$5),IF(FN18=2,FQ18*SUMIF(FU$4:FX$4,$S18,FU$5:FX$5)+FO18*SUMIF(FU$4:FX$4,$S18,FU$6:FX$6),0))) -> 0 | FY18: 1 | FZ18: 0.264 | GA18: 0.0045 | GB18: 0.001832 | GC18: =IF(IF($Q18=1,GA18*$Q$10-GB18,GA18-GB18)<0,0,IF($Q18=1,GA18*$Q$10-GB18,GA18-GB18)) -> 0.002668 | GD18: =IFERROR(GC18/GA18,0) -> 0.5928888889 | GE18: =MIN(FS18,FH18,EW18,EL18,EA18,DP18,DE18,CX18,CQ18,CJ18,CC18,BV18,GD18) -> 0 | GF18: =IF(AND(GE18>0.4,GI18>0),GC18*GF$11,0) -> 0 | GG18: =SUM(GH18:GI18) -> 0 | GH18: =GF18*SUMIF(GF$4:GI$4,$S18,GF$5:GI$5) -> 0 | GI18: =IF(FY18=1,SUMIF(GF$4:GI$4,$S18,GF$7:GI$7)*FZ18,IF(FY18="ГН",GB18*SUMIF(GF$4:GI$4,$S18,GF$5:GI$5),IF(FY18=2,GB18*SUMIF(GF$4:GI$4,$S18,GF$5:GI$5)+FZ18*SUMIF(GF$4:GI$4,$S18,GF$6:GI$6),0))) -> 0 | GJ18: 1 | GK18: 0.511 | GL18: 0.0045 | GM18: 0.0008 | GN18: =IF(IF($Q18=1,GL18*$Q$10-GM18,GL18-GM18)<0,0,IF($Q18=1,GL18*$Q$10-GM18,GL18-GM18)) -> 0.0037 | GO18: =IFERROR(GN18/GL18,0) -> 0.8222222222 | GP18: =MIN(GD18,FS18,FH18,EW18,EL18,EA18,DP18,DE18,CX18,CQ18,CJ18,CC18,GO18) -> 0 | GQ18: =IF(AND(GP18>0.4,GT18>0),GN18*GQ$11,0) -> 0 | GR18: =SUM(GS18:GT18) -> 0 | GS18: =GQ18*SUMIF(GQ$4:GT$4,$S18,GQ$5:GT$5) -> 0 | GT18: =IF(GJ18=1,SUMIF(GQ$4:GT$4,$S18,GQ$7:GT$7)*GK18,IF(GJ18="ГН",GM18*SUMIF(GQ$4:GT$4,$S18,GQ$5:GT$5),IF(GJ18=2,GM18*SUMIF(GQ$4:GT$4,$S18,GQ$5:GT$5)+GK18*SUMIF(GQ$4:GT$4,$S18,GQ$6:GT$6),0))) -> 0 | GU18: 1 | GV18: 0.625 | GW18: 0.0045 | GX18: 0.00144 | GY18: =IF(IF($Q18=1,GW18*$Q$10-GX18,GW18-GX18)<0,0,IF($Q18=1,GW18*$Q$10-GX18,GW18-GX18)) -> 0.00306 | GZ18: =IFERROR(GY18/GW18,0) -> 0.68 | HA18: =MIN(GO18,GD18,FS18,FH18,EW18,EL18,EA18,DP18,DE18,CX18,CQ18,CJ18,GZ18) -> 0 | HB18: =IF(AND(HA18>0.4,HE18>0),GY18*HB$11,0) -> 0 | HC18: =SUM(HD18:HE18) -> 0 | HD18: =HB18*SUMIF(HB$4:HE$4,$S18,HB$5:HE$5) -> 0 | HE18: =IF(GU18=1,SUMIF(HB$4:HE$4,$S18,HB$7:HE$7)*GV18,IF(GU18="ГН",GX18*SUMIF(HB$4:HE$4,$S18,HB$5:HE$5),IF(GU18=2,GX18*SUMIF(HB$4:HE$4,$S18,HB$5:HE$5)+GV18*SUMIF(HB$4:HE$4,$S18,HB$6:HE$6),0))) -> 0 | HF18: 1 | HG18: 0.634 | HH18: 0.0045 | HI18: 0.001321 | HJ18: =IF(IF($Q18=1,HH18*$Q$10-HI18,HH18-HI18)<0,0,IF($Q18=1,HH18*$Q$10-HI18,HH18-HI18)) -> 0.003179 | HK18: =IFERROR(HJ18/HH18,0) -> 0.7064444444 | HL18: =MIN(GZ18,GO18,GD18,FS18,FH18,EW18,EL18,EA18,DP18,DE18,CX18,CQ18,HK18) -> 0 | HM18: =IF(AND(HL18>0.4,HP18>0),HJ18*HM$11,0) -> 0 | HN18: =SUM(HO18:HP18) -> 0 | HO18: =HM18*SUMIF(HM$4:HP$4,$S18,HM$5:HP$5) -> 0 | HP18: =IF(HF18=1,SUMIF(HM$4:HP$4,$S18,HM$7:HP$7)*HG18,IF(HF18="ГН",HI18*SUMIF(HM$4:HP$4,$S18,HM$5:HP$5),IF(HF18=2,HI18*SUMIF(HM$4:HP$4,$S18,HM$5:HP$5)+HG18*SUMIF(HM$4:HP$4,$S18,HM$6:HP$6),0))) -> 0 | HU18: =IF(IF($Q18=1,HS18*$Q$10-HT18,HS18-HT18)<0,0,IF($Q18=1,HS18*$Q$10-HT18,HS18-HT18)) -> 0 | HV18: =IFERROR(HU18/HS18,0) -> 0 | HW18: =MIN(HK18,GZ18,GO18,GD18,FS18,FH18,EW18,EL18,EA18,DP18,DE18,CX18,HV18) -> 0 | HX18: =IF(AND(HW18>0.4,IA18>0),HU18*HX$11,0) -> 0 | HY18: =SUM(HZ18:IA18) -> 0 | HZ18: =HX18*SUMIF(HX$4:IA$4,$S18,HX$5:IA$5) -> 0 | IA18: =IF(HQ18=1,SUMIF(HX$4:IA$4,$S18,HX$7:IA$7)*HR18,IF(HQ18="ГН",HT18*SUMIF(HX$4:IA$4,$S18,HX$5:IA$5),IF(HQ18=2,HT18*SUMIF(HX$4:IA$4,$S18,HX$5:IA$5)+HR18*SUMIF(HX$4:IA$4,$S18,HX$6:IA$6),0))) -> 0 | IB18: =IFERROR(AVERAGE(HQ18,HF18,GU18,GJ18,FY18,FN18,FC18,ER18,EG18,DV18,DK18,CZ18),0) -> 1 | IC18: =SUM(HR18,HG18,GV18,GK18,FZ18,FO18,FD18,ES18,EH18,DW18,DL18,DA18) -> 5.131 | ID18: =IFERROR(AVERAGE(HS18,HH18,GW18,GL18,GA18,FP18,FE18,ET18,EI18,DX18,DM18,DB18),0) -> 0.0045 | IE18: =IFERROR(AVERAGE(HT18,HI18,GX18,GM18,GB18,FQ18,FF18,EU18,EJ18,DY18,DN18,DC18),0) -> 0.001291436364 | IF18: =IFERROR(AVERAGE(HU18,HJ18,GY18,GN18,GC18,FR18,FG18,EV18,EK18,DZ18,DO18,DD18),0) -> 0.002941183333 | IG18: =IFERROR(IF18/ID18,0) -> 0.6535962963 | IH18: =IFERROR(AVERAGE(HX18,HM18,HB18,GQ18,GF18,FU18,FJ18,EY18,EN18,EC18,DR18,DG18),0) -> 0 | II18: =IJ18+IK18 -> 0 | IJ18: =SUM(HZ18,HO18,HD18,GS18,GH18,FW18,FL18,FA18,EP18,EE18,DT18,DI18) -> 0 | IK18: =SUM(IA18,HP18,HE18,GT18,GI18,FX18,FM18,FB18,EQ18,EF18,DU18,DJ18) -> 0
A19: ООО "МИП "Кинешма" | B19: Ивановская область | D19: УГХ г.Кинешмы | E19: КТП№32 станция 2-го подъема ООО "МИП "Кинешма" яч.1 | F19: ЖКХ | G19: ЖКХ.Прочие | H19: Местный | L19: менее 670 | M19: 5612042824 | N19: АО "ЭнергосбыТ Плюс" | O19: 3703020510 | P19: ООО "МИП "Кинешма" | R19: Э | S19: СН2 | X19: 0 | Y19: 0 | Z19: 0 | AE19: 0 | AF19: 0 | AG19: 0 | AL19: 0 | AM19: 0 | AN19: 0 | AS19: 0 | AT19: 0 | AU19: 0 | AZ19: 0 | BA19: 0 | BB19: 0 | BG19: 0 | BH19: 0 | BI19: 0 | BN19: 0 | BO19: 0 | BP19: 0 | BU19: 0 | BV19: 0 | BW19: 0 | CB19: 0 | CC19: 0 | CD19: 0 | CI19: 0 | CJ19: 0 | CK19: 0 | CL19: 1 | CM19: 2.807 | CN19: 0.0044 | CO19: 0.005858 | CP19: 0 | CQ19: 0 | CR19: 5766.39203 | CS19: 1 | CT19: 1.129 | CU19: 0.0044 | CV19: 0.002297 | CW19: 0.002103 | CX19: 0.4779545455 | CY19: 0 | CZ19: 1 | DA19: 0.633 | DB19: 0.0044 | DC19: 0.001296 | DD19: 0.003104 | DE19: 0.7054545455 | DF19: 0 | DG19: 0 | DH19: 0 | DI19: 0 | DJ19: 0 | DK19: 1 | DL19: 0.516 | DM19: 0.0044 | DN19: 1.303 | DO19: 0 | DP19: 0 | DQ19: 0 | DR19: 0 | DS19: 0 | DT19: 0 | DU19: 0 | DV19: 1 | DW19: 0.453 | DX19: 0.0044 | DY19: 0.001296 | DZ19: 0.003104 | EA19: 0.7054545455 | EB19: 0 | EC19: 0 | ED19: 0 | EE19: 0 | EF19: 0 | EG19: 1 | EH19: 0.334 | EI19: 0.0044 | EJ19: 0.00113 | EK19: 0.00327 | EL19: 0.7431818182 | EM19: 0 | EN19: 0 | EO19: 0 | EP19: 0 | EQ19: 0 | ER19: 1 | ES19: 0.243 | ET19: 0.0044 | EU19: 7.4e-05 | EV19: 0.004326 | EW19: 0.9831818182 | EX19: 0 | EY19: 0 | EZ19: 0 | FA19: 0 | FB19: 0 | FC19: 1 | FD19: 0.17 | FE19: 0.0044 | FF19: 1.2e-05 | FG19: 0.004388 | FH19: 0.9972727273 | FI19: 0 | FJ19: 0 | FK19: 0 | FL19: 0 | FM19: 0 | FN19: 1 | FO19: 0.211 | FP19: 0.0044 | FQ19: 1e-05 | FR19: 0.00439 | FS19: 0.9977272727 | FT19: 0 | FU19: 0 | FV19: 0 | FW19: 0 | FX19: 0 | FY19: 1 | FZ19: 0.311 | GA19: 0.0044 | GB19: 0.000796 | GC19: 0.003604 | GD19: 0.8190909091 | GE19: 0 | GF19: 0 | GG19: 0 | GH19: 0 | GI19: 0 | GJ19: 1 | GK19: 0.4 | GL19: 0.0044 | GM19: 0.00128 | GN19: 0.00312 | GO19: 0.7090909091 | GP19: 0 | GQ19: 0 | GR19: 0 | GS19: 0 | GT19: 0 | GU19: 1 | GV19: 0.51 | GW19: 0.0044 | GX19: 0.001289 | GY19: 0.003111 | GZ19: 0.7070454545 | HA19: 0 | HB19: 0 | HC19: 0 | HD19: 0 | HE19: 0 | HF19: 1 | HG19: 0.593 | HH19: 0.0044 | HI19: 0.001304 | HJ19: 0.003096 | HK19: =IFERROR(HJ19/HH19,0) -> 0.7036363636 | HL19: 0 | HM19: 0 | HN19: 0 | HO19: 0 | HP19: 0 | HU19: =IF(IF($Q19=1,HS19*$Q$10-HT19,HS19-HT19)<0,0,IF($Q19=1,HS19*$Q$10-HT19,HS19-HT19)) -> 0 | HV19: 0 | HW19: 0 | HX19: 0 | HY19: 0 | HZ19: 0 | IA19: 0 | IB19: 1 | IC19: 4.374 | ID19: 0.0044 | IE19: 0.1192260909 | IF19: =IFERROR(AVERAGE(HU19,HJ19,GY19,GN19,GC19,FR19,FG19,EV19,EK19,DZ19,DO19,DD19),0) -> 0.002959416667 | IG19: 0.672594697 | IH19: 0 | II19: 0 | IJ19: 0 | IK19: 0
A20: ООО "МИП "Кинешма" | B20: Ивановская область | D20: УГХ г.Кинешмы | E20: РУ-0,4кВ ТП-ИК3/3 КЛ-0,4кВ | F20: ЖКХ | G20: ЖКХ.Прочие | H20: Местный | L20: менее 670 | M20: 5612042824 | N20: АО "ЭнергосбыТ Плюс" | O20: 3703020510 | P20: ООО "МИП "Кинешма" | R20: Э | S20: ВН | X20: =IF(IF($Q20=1,V20*$Q$10-W20,V20-W20)<0,0,IF($Q20=1,V20*$Q$10-W20,V20-W20)) -> 0 | Y20: =IFERROR(X20/V20,0) -> 0 | Z20: =IF(T20=1,SUMIF(W$4:Z$4,$S20,W$7:Z$7)*U20,IF(T20="ГН",W20*SUMIF(W$4:Z$4,$S20,W$5:Z$5),IF(T20=2,W20*SUMIF(W$4:Z$4,$S20,W$5:Z$5)+U20*SUMIF(W$4:Z$4,$S20,W$6:Z$6),0))) -> 0 | AE20: =IF(IF($Q20=1,AC20*$Q$10-AD20,AC20-AD20)<0,0,IF($Q20=1,AC20*$Q$10-AD20,AC20-AD20)) -> 0 | AF20: =IFERROR(AE20/AC20,0) -> 0 | AG20: =IF(AA20=1,SUMIF(AD$4:AG$4,$S20,AD$7:AG$7)*AB20,IF(AA20="ГН",AD20*SUMIF(AD$4:AG$4,$S20,AD$5:AG$5),IF(AA20=2,AD20*SUMIF(AD$4:AG$4,$S20,AD$5:AG$5)+AB20*SUMIF(AD$4:AG$4,$S20,AD$6:AG$6),0))) -> 0 | AL20: =IF(IF($Q20=1,AJ20*$Q$10-AK20,AJ20-AK20)<0,0,IF($Q20=1,AJ20*$Q$10-AK20,AJ20-AK20)) -> 0 | AM20: =IFERROR(AL20/AJ20,0) -> 0 | AN20: =IF(AH20=1,SUMIF(AK$4:AN$4,$S20,AK$7:AN$7)*AI20,IF(AH20="ГН",AK20*SUMIF(AK$4:AN$4,$S20,AK$5:AN$5),IF(AH20=2,AK20*SUMIF(AK$4:AN$4,$S20,AK$5:AN$5)+AI20*SUMIF(AK$4:AN$4,$S20,AK$6:AN$6),0))) -> 0 | AS20: =IF(IF($Q20=1,AQ20*$Q$10-AR20,AQ20-AR20)<0,0,IF($Q20=1,AQ20*$Q$10-AR20,AQ20-AR20)) -> 0 | AT20: =IFERROR(AS20/AQ20,0) -> 0 | AU20: =IF(AO20=1,SUMIF(AR$4:AU$4,$S20,AR$7:AU$7)*AP20,IF(AO20="ГН",AR20*SUMIF(AR$4:AU$4,$S20,AR$5:AU$5),IF(AO20=2,AR20*SUMIF(AR$4:AU$4,$S20,AR$5:AU$5)+AP20*SUMIF(AR$4:AU$4,$S20,AR$6:AU$6),0))) -> 0 | AZ20: =IF(IF($Q20=1,AX20*$Q$10-AY20,AX20-AY20)<0,0,IF($Q20=1,AX20*$Q$10-AY20,AX20-AY20)) -> 0 | BA20: =IFERROR(AZ20/AX20,0) -> 0 | BB20: =IF(AV20=1,SUMIF(AY$4:BB$4,$S20,AY$7:BB$7)*AW20,IF(AV20="ГН",AY20*SUMIF(AY$4:BB$4,$S20,AY$5:BB$5),IF(AV20=2,AY20*SUMIF(AY$4:BB$4,$S20,AY$5:BB$5)+AW20*SUMIF(AY$4:BB$4,$S20,AY$6:BB$6),0))) -> 0 | BG20: =IF(IF($Q20=1,BE20*$Q$10-BF20,BE20-BF20)<0,0,IF($Q20=1,BE20*$Q$10-BF20,BE20-BF20)) -> 0 | BH20: =IFERROR(BG20/BE20,0) -> 0 | BI20: =IF(BC20=1,SUMIF(BF$4:BI$4,$S20,BF$7:BI$7)*BD20,IF(BC20="ГН",BF20*SUMIF(BF$4:BI$4,$S20,BF$5:BI$5),IF(BC20=2,BF20*SUMIF(BF$4:BI$4,$S20,BF$5:BI$5)+BD20*SUMIF(BF$4:BI$4,$S20,BF$6:BI$6),0))) -> 0 | BN20: =IF(IF($Q20=1,BL20*$Q$10-BM20,BL20-BM20)<0,0,IF($Q20=1,BL20*$Q$10-BM20,BL20-BM20)) -> 0 | BO20: =IFERROR(BN20/BL20,0) -> 0 | BP20: =IF(BJ20=1,SUMIF(BM$4:BP$4,$S20,BM$7:BP$7)*BK20,IF(BJ20="ГН",BM20*SUMIF(BM$4:BP$4,$S20,BM$5:BP$5),IF(BJ20=2,BM20*SUMIF(BM$4:BP$4,$S20,BM$5:BP$5)+BK20*SUMIF(BM$4:BP$4,$S20,BM$6:BP$6),0))) -> 0 | BU20: =IF(IF($Q20=1,BS20*$Q$10-BT20,BS20-BT20)<0,0,IF($Q20=1,BS20*$Q$10-BT20,BS20-BT20)) -> 0 | BV20: =IFERROR(BU20/BS20,0) -> 0 | BW20: =IF(BQ20=1,SUMIF(BT$4:BW$4,$S20,BT$7:BW$7)*BR20,IF(BQ20="ГН",BT20*SUMIF(BT$4:BW$4,$S20,BT$5:BW$5),IF(BQ20=2,BT20*SUMIF(BT$4:BW$4,$S20,BT$5:BW$5)+BR20*SUMIF(BT$4:BW$4,$S20,BT$6:BW$6),0))) -> 0 | CB20: =IF(IF($Q20=1,BZ20*$Q$10-CA20,BZ20-CA20)<0,0,IF($Q20=1,BZ20*$Q$10-CA20,BZ20-CA20)) -> 0 | CC20: =IFERROR(CB20/BZ20,0) -> 0 | CD20: =IF(BX20=1,SUMIF(CA$4:CD$4,$S20,CA$7:CD$7)*BY20,IF(BX20="ГН",CA20*SUMIF(CA$4:CD$4,$S20,CA$5:CD$5),IF(BX20=2,CA20*SUMIF(CA$4:CD$4,$S20,CA$5:CD$5)+BY20*SUMIF(CA$4:CD$4,$S20,CA$6:CD$6),0))) -> 0 | CI20: =IF(IF($Q20=1,CG20*$Q$10-CH20,CG20-CH20)<0,0,IF($Q20=1,CG20*$Q$10-CH20,CG20-CH20)) -> 0 | CJ20: =IFERROR(CI20/CG20,0) -> 0 | CK20: =IF(CE20=1,SUMIF(CH$4:CK$4,$S20,CH$7:CK$7)*CF20,IF(CE20="ГН",CH20*SUMIF(CH$4:CK$4,$S20,CH$5:CK$5),IF(CE20=2,CH20*SUMIF(CH$4:CK$4,$S20,CH$5:CK$5)+CF20*SUMIF(CH$4:CK$4,$S20,CH$6:CK$6),0))) -> 0 | CL20: 1 | CM20: 1.12 | CN20: 0.015 | CO20: 0.002489 | CP20: =IF(IF($Q20=1,CN20*$Q$10-CO20,CN20-CO20)<0,0,IF($Q20=1,CN20*$Q$10-CO20,CN20-CO20)) -> 0.012511 | CQ20: =IFERROR(CP20/CN20,0) -> 0.8340666667 | CR20: =IF(CL20=1,SUMIF(CO$4:CR$4,$S20,CO$7:CR$7)*CM20,IF(CL20="ГН",CO20*SUMIF(CO$4:CR$4,$S20,CO$5:CR$5),IF(CL20=2,CO20*SUMIF(CO$4:CR$4,$S20,CO$5:CR$5)+CM20*SUMIF(CO$4:CR$4,$S20,CO$6:CR$6),0))) -> 2216.8048 | CS20: 1 | CT20: 0.72 | CU20: 0.015 | CV20: 0.001452 | CW20: =IF(IF($Q20=1,CU20*$Q$10-CV20,CU20-CV20)<0,0,IF($Q20=1,CU20*$Q$10-CV20,CU20-CV20)) -> 0.013548 | CX20: =IFERROR(CW20/CU20,0) -> 0.9032 | CY20: =IF(CS20=1,SUMIF(CV$4:CY$4,$S20,CV$7:CY$7)*CT20,IF(CS20="ГН",CV20*SUMIF(CV$4:CY$4,$S20,CV$5:CY$5),IF(CS20=2,CV20*SUMIF(CV$4:CY$4,$S20,CV$5:CY$5)+CT20*SUMIF(CV$4:CY$4,$S20,CV$6:CY$6),0))) -> 0 | CZ20: 1 | DA20: 1.44 | DB20: 0.015 | DC20: 0.002903 | DD20: =IF(IF($Q20=1,DB20*$Q$10-DC20,DB20-DC20)<0,0,IF($Q20=1,DB20*$Q$10-DC20,DB20-DC20)) -> 0.012097 | DE20: =IFERROR(DD20/DB20,0) -> 0.8064666667 | DF20: =MIN(CX20,CQ20,CJ20,CC20,BV20,BO20,BH20,BA20,AT20,AM20,AF20,Y20,DE20) -> 0 | DG20: =IF(AND(DF20>0.4,DJ20>0),DD20*DG$11,0) -> 0 | DH20: =SUM(DI20:DJ20) -> 0 | DI20: =DG20*SUMIF(DG$4:DJ$4,$S20,DG$5:DJ$5) -> 0 | DJ20: =IF(CZ20=1,SUMIF(DG$4:DJ$4,$S20,DG$7:DJ$7)*DA20,IF(CZ20="ГН",DC20*SUMIF(DG$4:DJ$4,$S20,DG$5:DJ$5),IF(CZ20=2,DC20*SUMIF(DG$4:DJ$4,$S20,DG$5:DJ$5)+DA20*SUMIF(DG$4:DJ$4,$S20,DG$6:DJ$6),0))) -> 0 | DK20: 1 | DL20: 0.54 | DM20: 0.015 | DN20: 0.00133 | DO20: =IF(IF($Q20=1,DM20*$Q$10-DN20,DM20-DN20)<0,0,IF($Q20=1,DM20*$Q$10-DN20,DM20-DN20)) -> 0.01367 | DP20: =IFERROR(DO20/DM20,0) -> 0.9113333333 | DQ20: =MIN(DE20,CX20,CQ20,CJ20,CC20,BV20,BO20,BH20,BA20,AT20,AM20,AF20,DP20) -> 0 | DR20: =IF(AND(DQ20>0.4,DU20>0),DO20*DR$11,0) -> 0 | DS20: =SUM(DT20:DU20) -> 0 | DT20: =DR20*SUMIF(DR$4:DU$4,$S20,DR$5:DU$5) -> 0 | DU20: =IF(DK20=1,SUMIF(DR$4:DU$4,$S20,DR$7:DU$7)*DL20,IF(DK20="ГН",DN20*SUMIF(DR$4:DU$4,$S20,DR$5:DU$5),IF(DK20=2,DN20*SUMIF(DR$4:DU$4,$S20,DR$5:DU$5)+DL20*SUMIF(DR$4:DU$4,$S20,DR$6:DU$6),0))) -> 0 | DV20: 1 | DW20: 1.42 | DX20: 0.015 | DY20: 0.003817 | DZ20: =IF(IF($Q20=1,DX20*$Q$10-DY20,DX20-DY20)<0,0,IF($Q20=1,DX20*$Q$10-DY20,DX20-DY20)) -> 0.011183 | EA20: =IFERROR(DZ20/DX20,0) -> 0.7455333333 | EB20: =MIN(DP20,DE20,CX20,CQ20,CJ20,CC20,BV20,BO20,BH20,BA20,AT20,AM20,EA20) -> 0 | EC20: =IF(AND(EB20>0.4,EF20>0),DZ20*EC$11,0) -> 0 | ED20: =SUM(EE20:EF20) -> 0 | EE20: =EC20*SUMIF(EC$4:EF$4,$S20,EC$5:EF$5) -> 0 | EF20: =IF(DV20=1,SUMIF(EC$4:EF$4,$S20,EC$7:EF$7)*DW20,IF(DV20="ГН",DY20*SUMIF(EC$4:EF$4,$S20,EC$5:EF$5),IF(DV20=2,DY20*SUMIF(EC$4:EF$4,$S20,EC$5:EF$5)+DW20*SUMIF(EC$4:EF$4,$S20,EC$6:EF$6),0))) -> 0 | EG20: 1 | EH20: 0.6 | EI20: 0.015 | EJ20: 0.001818 | EK20: =IF(IF($Q20=1,EI20*$Q$10-EJ20,EI20-EJ20)<0,0,IF($Q20=1,EI20*$Q$10-EJ20,EI20-EJ20)) -> 0.013182 | EL20: =IFERROR(EK20/EI20,0) -> 0.8788 | EM20: =MIN(EA20,DP20,DE20,CX20,CQ20,CJ20,CC20,BV20,BO20,BH20,BA20,AT20,EL20) -> 0 | EN20: =IF(AND(EM20>0.4,EQ20>0),EK20*EN$11,0) -> 0 | EO20: =SUM(EP20:EQ20) -> 0 | EP20: =EN20*SUMIF(EN$4:EQ$4,$S20,EN$5:EQ$5) -> 0 | EQ20: =IF(EG20=1,SUMIF(EN$4:EQ$4,$S20,EN$7:EQ$7)*EH20,IF(EG20="ГН",EJ20*SUMIF(EN$4:EQ$4,$S20,EN$5:EQ$5),IF(EG20=2,EJ20*SUMIF(EN$4:EQ$4,$S20,EN$5:EQ$5)+EH20*SUMIF(EN$4:EQ$4,$S20,EN$6:EQ$6),0))) -> 0 | ER20: 1 | ES20: 0.34 | ET20: 0.015 | EU20: 0.001371 | EV20: =IF(IF($Q20=1,ET20*$Q$10-EU20,ET20-EU20)<0,0,IF($Q20=1,ET20*$Q$10-EU20,ET20-EU20)) -> 0.013629 | EW20: =IFERROR(EV20/ET20,0) -> 0.9086 | EX20: =MIN(EL20,EA20,DP20,DE20,CX20,CQ20,CJ20,CC20,BV20,BO20,BH20,BA20,EW20) -> 0 | EY20: =IF(AND(EX20>0.4,FB20>0),EV20*EY$11,0) -> 0 | EZ20: =SUM(FA20:FB20) -> 0 | FA20: =EY20*SUMIF(EY$4:FB$4,$S20,EY$5:FB$5) -> 0 | FB20: =IF(ER20=1,SUMIF(EY$4:FB$4,$S20,EY$7:FB$7)*ES20,IF(ER20="ГН",EU20*SUMIF(EY$4:FB$4,$S20,EY$5:FB$5),IF(ER20=2,EU20*SUMIF(EY$4:FB$4,$S20,EY$5:FB$5)+ES20*SUMIF(EY$4:FB$4,$S20,EY$6:FB$6),0))) -> 0 | FC20: 1 | FD20: 0.3 | FE20: 0.015 | FF20: 0.001429 | FG20: =IF(IF($Q20=1,FE20*$Q$10-FF20,FE20-FF20)<0,0,IF($Q20=1,FE20*$Q$10-FF20,FE20-FF20)) -> 0.013571 | FH20: =IFERROR(FG20/FE20,0) -> 0.9047333333 | FI20: =MIN(EW20,EL20,EA20,DP20,DE20,CX20,CQ20,CJ20,CC20,BV20,BO20,BH20,FH20) -> 0 | FJ20: =IF(AND(FI20>0.4,FM20>0),FG20*FJ$11,0) -> 0 | FK20: =SUM(FL20:FM20) -> 0 | FL20: =FJ20*SUMIF(FJ$4:FM$4,$S20,FJ$5:FM$5) -> 0 | FM20: =IF(FC20=1,SUMIF(FJ$4:FM$4,$S20,FJ$7:FM$7)*FD20,IF(FC20="ГН",FF20*SUMIF(FJ$4:FM$4,$S20,FJ$5:FM$5),IF(FC20=2,FF20*SUMIF(FJ$4:FM$4,$S20,FJ$5:FM$5)+FD20*SUMIF(FJ$4:FM$4,$S20,FJ$6:FM$6),0))) -> 0 | FN20: 1 | FO20: 0.34 | FP20: 0.015 | FQ20: 0.001567 | FR20: =IF(IF($Q20=1,FP20*$Q$10-FQ20,FP20-FQ20)<0,0,IF($Q20=1,FP20*$Q$10-FQ20,FP20-FQ20)) -> 0.013433 | FS20: =IFERROR(FR20/FP20,0) -> 0.8955333333 | FT20: =MIN(FH20,EW20,EL20,EA20,DP20,DE20,CX20,CQ20,CJ20,CC20,BV20,BO20,FS20) -> 0 | FU20: =IF(AND(FT20>0.4,FX20>0),FR20*FU$11,0) -> 0 | FV20: =SUM(FW20:FX20) -> 0 | FW20: =FU20*SUMIF(FU$4:FX$4,$S20,FU$5:FX$5) -> 0 | FX20: =IF(FN20=1,SUMIF(FU$4:FX$4,$S20,FU$7:FX$7)*FO20,IF(FN20="ГН",FQ20*SUMIF(FU$4:FX$4,$S20,FU$5:FX$5),IF(FN20=2,FQ20*SUMIF(FU$4:FX$4,$S20,FU$5:FX$5)+FO20*SUMIF(FU$4:FX$4,$S20,FU$6:FX$6),0))) -> 0 | FY20: 1 | FZ20: 0.52 | GA20: 0.015 | GB20: 0.001864 | GC20: =IF(IF($Q20=1,GA20*$Q$10-GB20,GA20-GB20)<0,0,IF($Q20=1,GA20*$Q$10-GB20,GA20-GB20)) -> 0.013136 | GD20: =IFERROR(GC20/GA20,0) -> 0.8757333333 | GE20: =MIN(FS20,FH20,EW20,EL20,EA20,DP20,DE20,CX20,CQ20,CJ20,CC20,BV20,GD20) -> 0 | GF20: =IF(AND(GE20>0.4,GI20>0),GC20*GF$11,0) -> 0 | GG20: =SUM(GH20:GI20) -> 0 | GH20: =GF20*SUMIF(GF$4:GI$4,$S20,GF$5:GI$5) -> 0 | GI20: =IF(FY20=1,SUMIF(GF$4:GI$4,$S20,GF$7:GI$7)*FZ20,IF(FY20="ГН",GB20*SUMIF(GF$4:GI$4,$S20,GF$5:GI$5),IF(FY20=2,GB20*SUMIF(GF$4:GI$4,$S20,GF$5:GI$5)+FZ20*SUMIF(GF$4:GI$4,$S20,GF$6:GI$6),0))) -> 0 | GJ20: 1 | GK20: 0.62 | GL20: 0.015 | GM20: 0.001879 | GN20: =IF(IF($Q20=1,GL20*$Q$10-GM20,GL20-GM20)<0,0,IF($Q20=1,GL20*$Q$10-GM20,GL20-GM20)) -> 0.013121 | GO20: =IFERROR(GN20/GL20,0) -> 0.8747333333 | GP20: =MIN(GD20,FS20,FH20,EW20,EL20,EA20,DP20,DE20,CX20,CQ20,CJ20,CC20,GO20) -> 0 | GQ20: =IF(AND(GP20>0.4,GT20>0),GN20*GQ$11,0) -> 0 | GR20: =SUM(GS20:GT20) -> 0 | GS20: =GQ20*SUMIF(GQ$4:GT$4,$S20,GQ$5:GT$5) -> 0 | GT20: =IF(GJ20=1,SUMIF(GQ$4:GT$4,$S20,GQ$7:GT$7)*GK20,IF(GJ20="ГН",GM20*SUMIF(GQ$4:GT$4,$S20,GQ$5:GT$5),IF(GJ20=2,GM20*SUMIF(GQ$4:GT$4,$S20,GQ$5:GT$5)+GK20*SUMIF(GQ$4:GT$4,$S20,GQ$6:GT$6),0))) -> 0 | GU20: 1 | GV20: 0.88 | GW20: 0.015 | GX20: 0.002028 | GY20: =IF(IF($Q20=1,GW20*$Q$10-GX20,GW20-GX20)<0,0,IF($Q20=1,GW20*$Q$10-GX20,GW20-GX20)) -> 0.012972 | GZ20: =IFERROR(GY20/GW20,0) -> 0.8648 | HA20: =MIN(GO20,GD20,FS20,FH20,EW20,EL20,EA20,DP20,DE20,CX20,CQ20,CJ20,GZ20) -> 0 | HB20: =IF(AND(HA20>0.4,HE20>0),GY20*HB$11,0) -> 0 | HC20: =SUM(HD20:HE20) -> 0 | HD20: =HB20*SUMIF(HB$4:HE$4,$S20,HB$5:HE$5) -> 0 | HE20: =IF(GU20=1,SUMIF(HB$4:HE$4,$S20,HB$7:HE$7)*GV20,IF(GU20="ГН",GX20*SUMIF(HB$4:HE$4,$S20,HB$5:HE$5),IF(GU20=2,GX20*SUMIF(HB$4:HE$4,$S20,HB$5:HE$5)+GV20*SUMIF(HB$4:HE$4,$S20,HB$6:HE$6),0))) -> 0 | HF20: 1 | HG20: 0.92 | HH20: 0.015 | HI20: 0.001833 | HJ20: =IF(IF($Q20=1,HH20*$Q$10-HI20,HH20-HI20)<0,0,IF($Q20=1,HH20*$Q$10-HI20,HH20-HI20)) -> 0.013167 | HK20: =IFERROR(HJ20/HH20,0) -> 0.8778 | HL20: =MIN(GZ20,GO20,GD20,FS20,FH20,EW20,EL20,EA20,DP20,DE20,CX20,CQ20,HK20) -> 0.7455333333 | HM20: =IF(AND(HL20>0.4,HP20>0),HJ20*HM$11,0) -> 0 | HN20: =SUM(HO20:HP20) -> 0 | HO20: =HM20*SUMIF(HM$4:HP$4,$S20,HM$5:HP$5) -> 0 | HP20: =IF(HF20=1,SUMIF(HM$4:HP$4,$S20,HM$7:HP$7)*HG20,IF(HF20="ГН",HI20*SUMIF(HM$4:HP$4,$S20,HM$5:HP$5),IF(HF20=2,HI20*SUMIF(HM$4:HP$4,$S20,HM$5:HP$5)+HG20*SUMIF(HM$4:HP$4,$S20,HM$6:HP$6),0))) -> 0 | HU20: =IF(IF($Q20=1,HS20*$Q$10-HT20,HS20-HT20)<0,0,IF($Q20=1,HS20*$Q$10-HT20,HS20-HT20)) -> 0 | HV20: =IFERROR(HU20/HS20,0) -> 0 | HW20: =MIN(HK20,GZ20,GO20,GD20,FS20,FH20,EW20,EL20,EA20,DP20,DE20,CX20,HV20) -> 0 | HX20: =IF(AND(HW20>0.4,IA20>0),HU20*HX$11,0) -> 0 | HY20: =SUM(HZ20:IA20) -> 0 | HZ20: =HX20*SUMIF(HX$4:IA$4,$S20,HX$5:IA$5) -> 0 | IA20: =IF(HQ20=1,SUMIF(HX$4:IA$4,$S20,HX$7:IA$7)*HR20,IF(HQ20="ГН",HT20*SUMIF(HX$4:IA$4,$S20,HX$5:IA$5),IF(HQ20=2,HT20*SUMIF(HX$4:IA$4,$S20,HX$5:IA$5)+HR20*SUMIF(HX$4:IA$4,$S20,HX$6:IA$6),0))) -> 0 | IB20: =IFERROR(AVERAGE(HQ20,HF20,GU20,GJ20,FY20,FN20,FC20,ER20,EG20,DV20,DK20,CZ20),0) -> 1 | IC20: =SUM(HR20,HG20,GV20,GK20,FZ20,FO20,FD20,ES20,EH20,DW20,DL20,DA20) -> 7.92 | ID20: =IFERROR(AVERAGE(HS20,HH20,GW20,GL20,GA20,FP20,FE20,ET20,EI20,DX20,DM20,DB20),0) -> 0.015 | IE20: =IFERROR(AVERAGE(HT20,HI20,GX20,GM20,GB20,FQ20,FF20,EU20,EJ20,DY20,DN20,DC20),0) -> 0.001985363636 | IF20: =IFERROR(AVERAGE(HU20,HJ20,GY20,GN20,GC20,FR20,FG20,EV20,EK20,DZ20,DO20,DD20),0) -> 0.01193008333 | IG20: =IFERROR(IF20/ID20,0) -> 0.7953388889 | IH20: =IFERROR(AVERAGE(HX20,HM20,HB20,GQ20,GF20,FU20,FJ20,EY20,EN20,EC20,DR20,DG20),0) -> 0 | II20: =IJ20+IK20 -> 0 | IJ20: =SUM(HZ20,HO20,HD20,GS20,GH20,FW20,FL20,FA20,EP20,EE20,DT20,DI20) -> 0 | IK20: =SUM(IA20,HP20,HE20,GT20,GI20,FX20,FM20,FB20,EQ20,EF20,DU20,DJ20) -> 0
A21: ООО "МИП "Кинешма" | B21: Ивановская область | D21: ПАО «МТС» | E21: КТП№20 10/0,4кВ ООО "МИП "Кинешма", ЩР-1 0,4кВ | F21: Прочие | G21: Прочие | L21: менее 670 | M21: 5612042824 | N21: АО "ЭнергосбыТ Плюс" | O21: 3703020510 | P21: ООО "МИП "Кинешма" | R21: Э | S21: НН | X21: 0 | Y21: 0 | Z21: 0 | AE21: 0 | AF21: 0 | AG21: 0 | AL21: 0 | AM21: 0 | AN21: 0 | AS21: 0 | AT21: 0 | AU21: 0 | AZ21: 0 | BA21: 0 | BB21: 0 | BG21: 0 | BH21: 0 | BI21: 0 | BN21: 0 | BO21: 0 | BP21: 0 | BU21: 0 | BV21: 0 | BW21: 0 | CB21: 0 | CC21: 0 | CD21: 0 | CI21: 0 | CJ21: 0 | CK21: 0 | CL21: 2 | CM21: 3.851 | CN21: 0.005 | CO21: 0.00608 | CP21: 0 | CQ21: 0 | CR21: 9995.488599 | CS21: 2 | CT21: 3.969 | CU21: 0.005 | CV21: 0.006054 | CW21: 0 | CX21: 0 | CY21: 0 | CZ21: 2 | DA21: 3.941 | DB21: 0.005 | DC21: 0.005986 | DD21: 0 | DE21: 0 | DF21: 0 | DG21: 0 | DH21: 0 | DI21: 0 | DJ21: 0 | DK21: 2 | DL21: 3.688 | DM21: 0.005 | DN21: 0.005936 | DO21: 0 | DP21: 0 | DQ21: 0 | DR21: 0 | DS21: 0 | DT21: 0 | DU21: 0 | DV21: 2 | DW21: 4.022 | DX21: 0.005 | DY21: 0.005999 | DZ21: 0 | EA21: 0 | EB21: 0 | EC21: 0 | ED21: 0 | EE21: 0 | EF21: 0 | EG21: 2 | EH21: 4.026 | EI21: 0.005 | EJ21: 0.006329 | EK21: 0 | EL21: 0 | EM21: 0 | EN21: 0 | EO21: 0 | EP21: 0 | EQ21: 0 | ER21: 2 | ES21: 4.247 | ET21: 0.005 | EU21: 0.006392 | EV21: 0 | EW21: 0 | EX21: 0 | EY21: 0 | EZ21: 0 | FA21: 0 | FB21: 0 | FC21: 2 | FD21: 3.988 | FE21: 0.005 | FF21: 0.006299 | FG21: 0 | FH21: 0 | FI21: 0 | FJ21: 0 | FK21: 0 | FL21: 0 | FM21: 0 | FN21: 2 | FO21: 4.079 | FP21: 0.005 | FQ21: 0.006112 | FR21: 0 | FS21: 0 | FT21: 0 | FU21: 0 | FV21: 0 | FW21: 0 | FX21: 0 | FY21: 2 | FZ21: 4.008 | GA21: 0.005 | GB21: 0.006028 | GC21: 0 | GD21: 0 | GE21: 0 | GF21: 0 | GG21: 0 | GH21: 0 | GI21: 0 | GJ21: 2 | GK21: 3.803 | GL21: 0.005 | GM21: 0.005908 | GN21: 0 | GO21: 0 | GP21: 0 | GQ21: 0 | GR21: 0 | GS21: 0 | GT21: 0 | GU21: 2 | GV21: 3.856 | GW21: 0.005 | GX21: 0.005779 | GY21: 0 | GZ21: 0 | HA21: 0 | HB21: 0 | HC21: 0 | HD21: 0 | HE21: 0 | HF21: 2 | HG21: 3.656 | HH21: 0.005 | HI21: 0.005584 | HJ21: 0 | HK21: 0 | HL21: 0 | HM21: 0 | HN21: 0 | HO21: 0 | HP21: 0 | HU21: 0 | HV21: 0 | HW21: 0 | HX21: 0 | HY21: 0 | HZ21: 0 | IA21: 0 | IB21: 2 | IC21: 43.314 | ID21: 0.005 | IE21: 0.006032 | IF21: =IFERROR(AVERAGE(HU21,HJ21,GY21,GN21,GC21,FR21,FG21,EV21,EK21,DZ21,DO21,DD21),0) -> 0 | IG21: 0 | IH21: 0 | II21: 0 | IJ21: 0 | IK21: 0
A22: ООО "МИП "Кинешма" | B22: Ивановская область | D22: ООО «Партнер» | E22: КТП№30 10/0,4кВ ООО "МИП "Кинешма", РУ0,4кВ | F22: Прочие | G22: Прочие | L22: менее 670 | M22: 5612042824 | N22: АО "ЭнергосбыТ Плюс" | O22: 3703020510 | P22: ООО "МИП "Кинешма" | R22: Э | S22: СН2 | X22: 0 | Y22: 0 | Z22: 0 | AE22: 0 | AF22: 0 | AG22: 0 | AL22: 0 | AM22: 0 | AN22: 0 | AS22: 0 | AT22: 0 | AU22: 0 | AZ22: 0 | BA22: 0 | BB22: 0 | BG22: 0 | BH22: 0 | BI22: 0 | BN22: 0 | BO22: 0 | BP22: 0 | BU22: 0 | BV22: 0 | BW22: 0 | CB22: 0 | CC22: 0 | CD22: 0 | CI22: 0 | CJ22: 0 | CK22: 0 | CL22: 1 | CM22: 0.682 | CN22: 0.01 | CO22: 0.002927 | CP22: 0.007073 | CQ22: 0.7073 | CR22: 1401.02578 | CS22: 1 | CT22: 0.891 | CU22: 0.01 | CV22: 0.005186 | CW22: 0.004814 | CX22: 0.4814 | CY22: 0 | CZ22: 1 | DA22: 0.921 | DB22: 0.01 | DC22: 0.005143 | DD22: 0.004857 | DE22: 0.4857 | DF22: 0 | DG22: 0 | DH22: 0 | DI22: 0 | DJ22: 0 | DK22: 1 | DL22: 1.464 | DM22: 0.01 | DN22: 0.006191 | DO22: 0.003809 | DP22: 0.3809 | DQ22: 0 | DR22: 0 | DS22: 0 | DT22: 0 | DU22: 0 | DV22: 1 | DW22: 1.025 | DX22: 0.01 | DY22: 0.006031 | DZ22: 0.003969 | EA22: 0.3969 | EB22: 0 | EC22: 0 | ED22: 0 | EE22: 0 | EF22: 0 | EG22: 1 | EH22: 1.135 | EI22: 0.01 | EJ22: 0.004939 | EK22: 0.005061 | EL22: 0.5061 | EM22: 0 | EN22: 0 | EO22: 0 | EP22: 0 | EQ22: 0 | ER22: 1 | ES22: 1.031 | ET22: 0.01 | EU22: 0.005515 | EV22: 0.004485 | EW22: 0.4485 | EX22: 0 | EY22: 0 | EZ22: 0 | FA22: 0 | FB22: 0 | FC22: 1 | FD22: 0.923 | FE22: 0.01 | FF22: 0.004661 | FG22: 0.005339 | FH22: 0.5339 | FI22: 0 | FJ22: 0 | FK22: 0 | FL22: 0 | FM22: 0 | FN22: 1 | FO22: 0.943 | FP22: 0.01 | FQ22: 0.006461 | FR22: 0.003539 | FS22: 0.3539 | FT22: 0 | FU22: 0 | FV22: 0 | FW22: 0 | FX22: 0 | FY22: 1 | FZ22: 1.023 | GA22: 0.01 | GB22: 0.005917 | GC22: 0.004083 | GD22: 0.4083 | GE22: 0 | GF22: 0 | GG22: 0 | GH22: 0 | GI22: 0 | GJ22: 1 | GK22: 1.087 | GL22: 0.01 | GM22: 0.005244 | GN22: 0.004756 | GO22: 0.4756 | GP22: 0 | GQ22: 0 | GR22: 0 | GS22: 0 | GT22: 0 | GU22: 1 | GV22: 1.234 | GW22: 0.01 | GX22: 0.007282 | GY22: 0.002718 | GZ22: 0.2718 | HA22: 0 | HB22: 0 | HC22: 0 | HD22: 0 | HE22: 0 | HF22: 1 | HG22: 1.146 | HH22: 0.01 | HI22: 0.007883 | HJ22: 0.002117 | HK22: 0.2117 | HL22: 0.2117 | HM22: =IF(AND(HL22>0.4,HP22>0),HJ22*HM$11,0) -> 0 | HN22: 0 | HO22: 0 | HP22: 0 | HU22: 0 | HV22: 0 | HW22: 0 | HX22: 0 | HY22: 0 | HZ22: 0 | IA22: 0 | IB22: 1 | IC22: 11.932 | ID22: 0.01 | IE22: 0.005933363636 | IF22: 0.00372775 | IG22: 0.372775 | IH22: 0 | II22: 0 | IJ22: 0 | IK22: 0
A23: ООО "МИП "Кинешма" | B23: Ивановская область | D23: Григорян Н.Х. | E23: КТП№30 10/0,4кВ ООО "МИП "Кинешма" РУ0,4кВ | F23: Прочие | G23: Прочие | L23: менее 670 | M23: 5612042824 | N23: АО "ЭнергосбыТ Плюс" | O23: 3703020510 | P23: ООО "МИП "Кинешма" | R23: Э | S23: СН2 | X23: 0 | Y23: 0 | Z23: 0 | AE23: 0 | AF23: 0 | AG23: 0 | AL23: 0 | AM23: 0 | AN23: 0 | AS23: 0 | AT23: 0 | AU23: 0 | AZ23: 0 | BA23: 0 | BB23: 0 | BG23: 0 | BH23: 0 | BI23: 0 | BN23: 0 | BO23: 0 | BP23: 0 | BU23: 0 | BV23: 0 | BW23: 0 | CB23: 0 | CC23: 0 | CD23: 0 | CI23: 0 | CJ23: 0 | CK23: 0 | CL23: 1 | CM23: 1.74 | CN23: 0.015 | CO23: 0.006012 | CP23: 0.008988 | CQ23: 0.5992 | CR23: 3574.4646 | CS23: 1 | CT23: 3.705 | CU23: 0.015 | CV23: 0.008627 | CW23: 0.006373 | CX23: 0.4248666667 | CY23: 0 | CZ23: 1 | DA23: 1.045 | DB23: 0.015 | DC23: 0.002226 | DD23: 0.012774 | DE23: 0.8516 | DF23: 0 | DG23: 0 | DH23: 0 | DI23: 0 | DJ23: 0 | DK23: 1 | DL23: 0.768 | DM23: 0.015 | DN23: 0.003385 | DO23: 0.011615 | DP23: 0.7743333333 | DQ23: 0 | DR23: 0 | DS23: 0 | DT23: 0 | DU23: 0 | DV23: 1 | DW23: 0.62 | DX23: 0.015 | DY23: 0.002341 | DZ23: 0.012659 | EA23: 0.8439333333 | EB23: 0 | EC23: 0 | ED23: 0 | EE23: 0 | EF23: 0 | EG23: 1 | EH23: 0.628 | EI23: 0.015 | EJ23: 0.002013 | EK23: 0.012987 | EL23: 0.8658 | EM23: 0 | EN23: 0 | EO23: 0 | EP23: 0 | EQ23: 0 | ER23: 1 | ES23: 0.31 | ET23: 0.015 | EU23: 0.00099 | EV23: 0.01401 | EW23: 0.934 | EX23: 0 | EY23: 0 | EZ23: 0 | FA23: 0 | FB23: 0 | FC23: 1 | FD23: 0.325 | FE23: 0.015 | FF23: 0.001028 | FG23: 0.013972 | FH23: 0.9314666667 | FI23: 0 | FJ23: 0 | FK23: 0 | FL23: 0 | FM23: 0 | FN23: 1 | FO23: 0.327 | FP23: 0.015 | FQ23: 0.00139 | FR23: 0.01361 | FS23: 0.9073333333 | FT23: 0 | FU23: 0 | FV23: 0 | FW23: 0 | FX23: 0 | FY23: 1 | FZ23: 0.285 | GA23: 0.015 | GB23: 0.001161 | GC23: 0.013839 | GD23: 0.9226 | GE23: 0 | GF23: 0 | GG23: 0 | GH23: 0 | GI23: 0 | GJ23: 1 | GK23: 0.711 | GL23: 0.015 | GM23: 0.003555 | GN23: 0.011445 | GO23: 0.763 | GP23: 0 | GQ23: 0 | GR23: 0 | GS23: 0 | GT23: 0 | GU23: 1 | GV23: 1.099 | GW23: 0.015 | GX23: 0.005341 | GY23: 0.009659 | GZ23: 0.6439333333 | HA23: 0 | HB23: 0 | HC23: 0 | HD23: 0 | HE23: 0 | HF23: 1 | HG23: 0.902 | HH23: 0.015 | HI23: 0.004422 | HJ23: 0.010578 | HK23: 0.7052 | HL23: 0.4248666667 | HM23: 0 | HN23: 0 | HO23: 0 | HP23: =IF(HF23=1,SUMIF(HM$4:HP$4,$S23,HM$7:HP$7)*HG23,IF(HF23="ГН",HI23*SUMIF(HM$4:HP$4,$S23,HM$5:HP$5),IF(HF23=2,HI23*SUMIF(HM$4:HP$4,$S23,HM$5:HP$5)+HG23*SUMIF(HM$4:HP$4,$S23,HM$6:HP$6),0))) -> 0 | HU23: 0 | HV23: 0 | HW23: 0 | HX23: 0 | HY23: 0 | HZ23: 0 | IA23: 0 | IB23: 1 | IC23: 7.02 | ID23: 0.015 | IE23: 0.002532 | IF23: 0.011429 | IG23: 0.7619333333 | IH23: 0 | II23: 0 | IJ23: 0 | IK23: 0
A24: ООО "МИП "Кинешма" | B24: Ивановская область | D24: ПАО "ВымпелКом" | E24: КТП№20 ООО "МИП "Кинешма" ШР №1 | F24: Прочие | G24: Прочие | L24: менее 670 | M24: 5612042824 | N24: АО "ЭнергосбыТ Плюс" | O24: 3703020510 | P24: ООО "МИП "Кинешма" | R24: Э | S24: НН | X24: =IF(IF($Q24=1,V24*$Q$10-W24,V24-W24)<0,0,IF($Q24=1,V24*$Q$10-W24,V24-W24)) -> 0 | Y24: =IFERROR(X24/V24,0) -> 0 | Z24: =IF(T24=1,SUMIF(W$4:Z$4,$S24,W$7:Z$7)*U24,IF(T24="ГН",W24*SUMIF(W$4:Z$4,$S24,W$5:Z$5),IF(T24=2,W24*SUMIF(W$4:Z$4,$S24,W$5:Z$5)+U24*SUMIF(W$4:Z$4,$S24,W$6:Z$6),0))) -> 0 | AE24: =IF(IF($Q24=1,AC24*$Q$10-AD24,AC24-AD24)<0,0,IF($Q24=1,AC24*$Q$10-AD24,AC24-AD24)) -> 0 | AF24: =IFERROR(AE24/AC24,0) -> 0 | AG24: =IF(AA24=1,SUMIF(AD$4:AG$4,$S24,AD$7:AG$7)*AB24,IF(AA24="ГН",AD24*SUMIF(AD$4:AG$4,$S24,AD$5:AG$5),IF(AA24=2,AD24*SUMIF(AD$4:AG$4,$S24,AD$5:AG$5)+AB24*SUMIF(AD$4:AG$4,$S24,AD$6:AG$6),0))) -> 0 | AL24: =IF(IF($Q24=1,AJ24*$Q$10-AK24,AJ24-AK24)<0,0,IF($Q24=1,AJ24*$Q$10-AK24,AJ24-AK24)) -> 0 | AM24: =IFERROR(AL24/AJ24,0) -> 0 | AN24: =IF(AH24=1,SUMIF(AK$4:AN$4,$S24,AK$7:AN$7)*AI24,IF(AH24="ГН",AK24*SUMIF(AK$4:AN$4,$S24,AK$5:AN$5),IF(AH24=2,AK24*SUMIF(AK$4:AN$4,$S24,AK$5:AN$5)+AI24*SUMIF(AK$4:AN$4,$S24,AK$6:AN$6),0))) -> 0 | AS24: =IF(IF($Q24=1,AQ24*$Q$10-AR24,AQ24-AR24)<0,0,IF($Q24=1,AQ24*$Q$10-AR24,AQ24-AR24)) -> 0 | AT24: =IFERROR(AS24/AQ24,0) -> 0 | AU24: =IF(AO24=1,SUMIF(AR$4:AU$4,$S24,AR$7:AU$7)*AP24,IF(AO24="ГН",AR24*SUMIF(AR$4:AU$4,$S24,AR$5:AU$5),IF(AO24=2,AR24*SUMIF(AR$4:AU$4,$S24,AR$5:AU$5)+AP24*SUMIF(AR$4:AU$4,$S24,AR$6:AU$6),0))) -> 0 | AZ24: =IF(IF($Q24=1,AX24*$Q$10-AY24,AX24-AY24)<0,0,IF($Q24=1,AX24*$Q$10-AY24,AX24-AY24)) -> 0 | BA24: =IFERROR(AZ24/AX24,0) -> 0 | BB24: =IF(AV24=1,SUMIF(AY$4:BB$4,$S24,AY$7:BB$7)*AW24,IF(AV24="ГН",AY24*SUMIF(AY$4:BB$4,$S24,AY$5:BB$5),IF(AV24=2,AY24*SUMIF(AY$4:BB$4,$S24,AY$5:BB$5)+AW24*SUMIF(AY$4:BB$4,$S24,AY$6:BB$6),0))) -> 0 | BG24: =IF(IF($Q24=1,BE24*$Q$10-BF24,BE24-BF24)<0,0,IF($Q24=1,BE24*$Q$10-BF24,BE24-BF24)) -> 0 | BH24: =IFERROR(BG24/BE24,0) -> 0 | BI24: =IF(BC24=1,SUMIF(BF$4:BI$4,$S24,BF$7:BI$7)*BD24,IF(BC24="ГН",BF24*SUMIF(BF$4:BI$4,$S24,BF$5:BI$5),IF(BC24=2,BF24*SUMIF(BF$4:BI$4,$S24,BF$5:BI$5)+BD24*SUMIF(BF$4:BI$4,$S24,BF$6:BI$6),0))) -> 0 | BN24: =IF(IF($Q24=1,BL24*$Q$10-BM24,BL24-BM24)<0,0,IF($Q24=1,BL24*$Q$10-BM24,BL24-BM24)) -> 0 | BO24: =IFERROR(BN24/BL24,0) -> 0 | BP24: =IF(BJ24=1,SUMIF(BM$4:BP$4,$S24,BM$7:BP$7)*BK24,IF(BJ24="ГН",BM24*SUMIF(BM$4:BP$4,$S24,BM$5:BP$5),IF(BJ24=2,BM24*SUMIF(BM$4:BP$4,$S24,BM$5:BP$5)+BK24*SUMIF(BM$4:BP$4,$S24,BM$6:BP$6),0))) -> 0 | BU24: =IF(IF($Q24=1,BS24*$Q$10-BT24,BS24-BT24)<0,0,IF($Q24=1,BS24*$Q$10-BT24,BS24-BT24)) -> 0 | BV24: =IFERROR(BU24/BS24,0) -> 0 | BW24: =IF(BQ24=1,SUMIF(BT$4:BW$4,$S24,BT$7:BW$7)*BR24,IF(BQ24="ГН",BT24*SUMIF(BT$4:BW$4,$S24,BT$5:BW$5),IF(BQ24=2,BT24*SUMIF(BT$4:BW$4,$S24,BT$5:BW$5)+BR24*SUMIF(BT$4:BW$4,$S24,BT$6:BW$6),0))) -> 0 | CB24: =IF(IF($Q24=1,BZ24*$Q$10-CA24,BZ24-CA24)<0,0,IF($Q24=1,BZ24*$Q$10-CA24,BZ24-CA24)) -> 0 | CC24: =IFERROR(CB24/BZ24,0) -> 0 | CD24: =IF(BX24=1,SUMIF(CA$4:CD$4,$S24,CA$7:CD$7)*BY24,IF(BX24="ГН",CA24*SUMIF(CA$4:CD$4,$S24,CA$5:CD$5),IF(BX24=2,CA24*SUMIF(CA$4:CD$4,$S24,CA$5:CD$5)+BY24*SUMIF(CA$4:CD$4,$S24,CA$6:CD$6),0))) -> 0 | CI24: =IF(IF($Q24=1,CG24*$Q$10-CH24,CG24-CH24)<0,0,IF($Q24=1,CG24*$Q$10-CH24,CG24-CH24)) -> 0 | CJ24: =IFERROR(CI24/CG24,0) -> 0 | CK24: =IF(CE24=1,SUMIF(CH$4:CK$4,$S24,CH$7:CK$7)*CF24,IF(CE24="ГН",CH24*SUMIF(CH$4:CK$4,$S24,CH$5:CK$5),IF(CE24=2,CH24*SUMIF(CH$4:CK$4,$S24,CH$5:CK$5)+CF24*SUMIF(CH$4:CK$4,$S24,CH$6:CK$6),0))) -> 0 | CL24: 2 | CM24: 1.786 | CN24: 0.01 | CO24: 0.002567 | CP24: =IF(IF($Q24=1,CN24*$Q$10-CO24,CN24-CO24)<0,0,IF($Q24=1,CN24*$Q$10-CO24,CN24-CO24)) -> 0.007433 | CQ24: =IFERROR(CP24/CN24,0) -> 0.7433 | CR24: =IF(CL24=1,SUMIF(CO$4:CR$4,$S24,CO$7:CR$7)*CM24,IF(CL24="ГН",CO24*SUMIF(CO$4:CR$4,$S24,CO$5:CR$5),IF(CL24=2,CO24*SUMIF(CO$4:CR$4,$S24,CO$5:CR$5)+CM24*SUMIF(CO$4:CR$4,$S24,CO$6:CR$6),0))) -> 4325.185905 | CS24: 2 | CT24: 1.842 | CU24: 0.01 | CV24: 0.002546 | CW24: =IF(IF($Q24=1,CU24*$Q$10-CV24,CU24-CV24)<0,0,IF($Q24=1,CU24*$Q$10-CV24,CU24-CV24)) -> 0.007454 | CX24: =IFERROR(CW24/CU24,0) -> 0.7454 | CY24: =IF(CS24=1,SUMIF(CV$4:CY$4,$S24,CV$7:CY$7)*CT24,IF(CS24="ГН",CV24*SUMIF(CV$4:CY$4,$S24,CV$5:CY$5),IF(CS24=2,CV24*SUMIF(CV$4:CY$4,$S24,CV$5:CY$5)+CT24*SUMIF(CV$4:CY$4,$S24,CV$6:CY$6),0))) -> 0 | CZ24: 2 | DA24: 1.836 | DB24: 0.01 | DC24: 0.002553 | DD24: =IF(IF($Q24=1,DB24*$Q$10-DC24,DB24-DC24)<0,0,IF($Q24=1,DB24*$Q$10-DC24,DB24-DC24)) -> 0.007447 | DE24: =IFERROR(DD24/DB24,0) -> 0.7447 | DF24: =MIN(CX24,CQ24,CJ24,CC24,BV24,BO24,BH24,BA24,AT24,AM24,AF24,Y24,DE24) -> 0 | DG24: =IF(AND(DF24>0.4,DJ24>0),DD24*DG$11,0) -> 0 | DH24: =SUM(DI24:DJ24) -> 0 | DI24: =DG24*SUMIF(DG$4:DJ$4,$S24,DG$5:DJ$5) -> 0 | DJ24: =IF(CZ24=1,SUMIF(DG$4:DJ$4,$S24,DG$7:DJ$7)*DA24,IF(CZ24="ГН",DC24*SUMIF(DG$4:DJ$4,$S24,DG$5:DJ$5),IF(CZ24=2,DC24*SUMIF(DG$4:DJ$4,$S24,DG$5:DJ$5)+DA24*SUMIF(DG$4:DJ$4,$S24,DG$6:DJ$6),0))) -> 0 | DK24: 2 | DL24: 1.734 | DM24: 0.01 | DN24: 0.002547 | DO24: =IF(IF($Q24=1,DM24*$Q$10-DN24,DM24-DN24)<0,0,IF($Q24=1,DM24*$Q$10-DN24,DM24-DN24)) -> 0.007453 | DP24: =IFERROR(DO24/DM24,0) -> 0.7453 | DQ24: =MIN(DE24,CX24,CQ24,CJ24,CC24,BV24,BO24,BH24,BA24,AT24,AM24,AF24,DP24) -> 0 | DR24: =IF(AND(DQ24>0.4,DU24>0),DO24*DR$11,0) -> 0 | DS24: =SUM(DT24:DU24) -> 0 | DT24: =DR24*SUMIF(DR$4:DU$4,$S24,DR$5:DU$5) -> 0 | DU24: =IF(DK24=1,SUMIF(DR$4:DU$4,$S24,DR$7:DU$7)*DL24,IF(DK24="ГН",DN24*SUMIF(DR$4:DU$4,$S24,DR$5:DU$5),IF(DK24=2,DN24*SUMIF(DR$4:DU$4,$S24,DR$5:DU$5)+DL24*SUMIF(DR$4:DU$4,$S24,DR$6:DU$6),0))) -> 0 | DV24: 2 | DW24: 1.843 | DX24: 0.01 | DY24: 0.002552 | DZ24: =IF(IF($Q24=1,DX24*$Q$10-DY24,DX24-DY24)<0,0,IF($Q24=1,DX24*$Q$10-DY24,DX24-DY24)) -> 0.007448 | EA24: =IFERROR(DZ24/DX24,0) -> 0.7448 | EB24: =MIN(DP24,DE24,CX24,CQ24,CJ24,CC24,BV24,BO24,BH24,BA24,AT24,AM24,EA24) -> 0 | EC24: =IF(AND(EB24>0.4,EF24>0),DZ24*EC$11,0) -> 0 | ED24: =SUM(EE24:EF24) -> 0 | EE24: =EC24*SUMIF(EC$4:EF$4,$S24,EC$5:EF$5) -> 0 | EF24: =IF(DV24=1,SUMIF(EC$4:EF$4,$S24,EC$7:EF$7)*DW24,IF(DV24="ГН",DY24*SUMIF(EC$4:EF$4,$S24,EC$5:EF$5),IF(DV24=2,DY24*SUMIF(EC$4:EF$4,$S24,EC$5:EF$5)+DW24*SUMIF(EC$4:EF$4,$S24,EC$6:EF$6),0))) -> 0 | EG24: 2 | EH24: 1.737 | EI24: 0.01 | EJ24: 0.002511 | EK24: =IF(IF($Q24=1,EI24*$Q$10-EJ24,EI24-EJ24)<0,0,IF($Q24=1,EI24*$Q$10-EJ24,EI24-EJ24)) -> 0.007489 | EL24: =IFERROR(EK24/EI24,0) -> 0.7489 | EM24: =MIN(EA24,DP24,DE24,CX24,CQ24,CJ24,CC24,BV24,BO24,BH24,BA24,AT24,EL24) -> 0 | EN24: =IF(AND(EM24>0.4,EQ24>0),EK24*EN$11,0) -> 0 | EO24: =SUM(EP24:EQ24) -> 0 | EP24: =EN24*SUMIF(EN$4:EQ$4,$S24,EN$5:EQ$5) -> 0 | EQ24: =IF(EG24=1,SUMIF(EN$4:EQ$4,$S24,EN$7:EQ$7)*EH24,IF(EG24="ГН",EJ24*SUMIF(EN$4:EQ$4,$S24,EN$5:EQ$5),IF(EG24=2,EJ24*SUMIF(EN$4:EQ$4,$S24,EN$5:EQ$5)+EH24*SUMIF(EN$4:EQ$4,$S24,EN$6:EQ$6),0))) -> 0 | ER24: 2 | ES24: 1.799 | ET24: 0.01 | EU24: 0.002551 | EV24: =IF(IF($Q24=1,ET24*$Q$10-EU24,ET24-EU24)<0,0,IF($Q24=1,ET24*$Q$10-EU24,ET24-EU24)) -> 0.007449 | EW24: =IFERROR(EV24/ET24,0) -> 0.7449 | EX24: =MIN(EL24,EA24,DP24,DE24,CX24,CQ24,CJ24,CC24,BV24,BO24,BH24,BA24,EW24) -> 0 | EY24: =IF(AND(EX24>0.4,FB24>0),EV24*EY$11,0) -> 0 | EZ24: =SUM(FA24:FB24) -> 0 | FA24: =EY24*SUMIF(EY$4:FB$4,$S24,EY$5:FB$5) -> 0 | FB24: =IF(ER24=1,SUMIF(EY$4:FB$4,$S24,EY$7:FB$7)*ES24,IF(ER24="ГН",EU24*SUMIF(EY$4:FB$4,$S24,EY$5:FB$5),IF(ER24=2,EU24*SUMIF(EY$4:FB$4,$S24,EY$5:FB$5)+ES24*SUMIF(EY$4:FB$4,$S24,EY$6:FB$6),0))) -> 0 | FC24: 2 | FD24: 1.831 | FE24: 0.01 | FF24: 0.002824 | FG24: =IF(IF($Q24=1,FE24*$Q$10-FF24,FE24-FF24)<0,0,IF($Q24=1,FE24*$Q$10-FF24,FE24-FF24)) -> 0.007176 | FH24: =IFERROR(FG24/FE24,0) -> 0.7176 | FI24: =MIN(EW24,EL24,EA24,DP24,DE24,CX24,CQ24,CJ24,CC24,BV24,BO24,BH24,FH24) -> 0 | FJ24: =IF(AND(FI24>0.4,FM24>0),FG24*FJ$11,0) -> 0 | FK24: =SUM(FL24:FM24) -> 0 | FL24: =FJ24*SUMIF(FJ$4:FM$4,$S24,FJ$5:FM$5) -> 0 | FM24: =IF(FC24=1,SUMIF(FJ$4:FM$4,$S24,FJ$7:FM$7)*FD24,IF(FC24="ГН",FF24*SUMIF(FJ$4:FM$4,$S24,FJ$5:FM$5),IF(FC24=2,FF24*SUMIF(FJ$4:FM$4,$S24,FJ$5:FM$5)+FD24*SUMIF(FJ$4:FM$4,$S24,FJ$6:FM$6),0))) -> 0 | FN24: 2 | FO24: 1.866 | FP24: 0.01 | FQ24: 0.002813 | FR24: =IF(IF($Q24=1,FP24*$Q$10-FQ24,FP24-FQ24)<0,0,IF($Q24=1,FP24*$Q$10-FQ24,FP24-FQ24)) -> 0.007187 | FS24: =IFERROR(FR24/FP24,0) -> 0.7187 | FT24: =MIN(FH24,EW24,EL24,EA24,DP24,DE24,CX24,CQ24,CJ24,CC24,BV24,BO24,FS24) -> 0 | FU24: =IF(AND(FT24>0.4,FX24>0),FR24*FU$11,0) -> 0 | FV24: =SUM(FW24:FX24) -> 0 | FW24: =FU24*SUMIF(FU$4:FX$4,$S24,FU$5:FX$5) -> 0 | FX24: =IF(FN24=1,SUMIF(FU$4:FX$4,$S24,FU$7:FX$7)*FO24,IF(FN24="ГН",FQ24*SUMIF(FU$4:FX$4,$S24,FU$5:FX$5),IF(FN24=2,FQ24*SUMIF(FU$4:FX$4,$S24,FU$5:FX$5)+FO24*SUMIF(FU$4:FX$4,$S24,FU$6:FX$6),0))) -> 0 | FY24: 2 | FZ24: 1.798 | GA24: 0.01 | GB24: 0.002736 | GC24: =IF(IF($Q24=1,GA24*$Q$10-GB24,GA24-GB24)<0,0,IF($Q24=1,GA24*$Q$10-GB24,GA24-GB24)) -> 0.007264 | GD24: =IFERROR(GC24/GA24,0) -> 0.7264 | GE24: =MIN(FS24,FH24,EW24,EL24,EA24,DP24,DE24,CX24,CQ24,CJ24,CC24,BV24,GD24) -> 0 | GF24: =IF(AND(GE24>0.4,GI24>0),GC24*GF$11,0) -> 0 | GG24: =SUM(GH24:GI24) -> 0 | GH24: =GF24*SUMIF(GF$4:GI$4,$S24,GF$5:GI$5) -> 0 | GI24: =IF(FY24=1,SUMIF(GF$4:GI$4,$S24,GF$7:GI$7)*FZ24,IF(FY24="ГН",GB24*SUMIF(GF$4:GI$4,$S24,GF$5:GI$5),IF(FY24=2,GB24*SUMIF(GF$4:GI$4,$S24,GF$5:GI$5)+FZ24*SUMIF(GF$4:GI$4,$S24,GF$6:GI$6),0))) -> 0 | GJ24: 2 | GK24: 1.752 | GL24: 0.01 | GM24: 0.002844 | GN24: =IF(IF($Q24=1,GL24*$Q$10-GM24,GL24-GM24)<0,0,IF($Q24=1,GL24*$Q$10-GM24,GL24-GM24)) -> 0.007156 | GO24: =IFERROR(GN24/GL24,0) -> 0.7156 | GP24: =MIN(GD24,FS24,FH24,EW24,EL24,EA24,DP24,DE24,CX24,CQ24,CJ24,CC24,GO24) -> 0 | GQ24: =IF(AND(GP24>0.4,GT24>0),GN24*GQ$11,0) -> 0 | GR24: =SUM(GS24:GT24) -> 0 | GS24: =GQ24*SUMIF(GQ$4:GT$4,$S24,GQ$5:GT$5) -> 0 | GT24: =IF(GJ24=1,SUMIF(GQ$4:GT$4,$S24,GQ$7:GT$7)*GK24,IF(GJ24="ГН",GM24*SUMIF(GQ$4:GT$4,$S24,GQ$5:GT$5),IF(GJ24=2,GM24*SUMIF(GQ$4:GT$4,$S24,GQ$5:GT$5)+GK24*SUMIF(GQ$4:GT$4,$S24,GQ$6:GT$6),0))) -> 0 | GU24: 2 | GV24: 1.905 | GW24: 0.01 | GX24: 0.00272 | GY24: =IF(IF($Q24=1,GW24*$Q$10-GX24,GW24-GX24)<0,0,IF($Q24=1,GW24*$Q$10-GX24,GW24-GX24)) -> 0.00728 | GZ24: =IFERROR(GY24/GW24,0) -> 0.728 | HA24: =MIN(GO24,GD24,FS24,FH24,EW24,EL24,EA24,DP24,DE24,CX24,CQ24,CJ24,GZ24) -> 0 | HB24: =IF(AND(HA24>0.4,HE24>0),GY24*HB$11,0) -> 0 | HC24: =SUM(HD24:HE24) -> 0 | HD24: =HB24*SUMIF(HB$4:HE$4,$S24,HB$5:HE$5) -> 0 | HE24: =IF(GU24=1,SUMIF(HB$4:HE$4,$S24,HB$7:HE$7)*GV24,IF(GU24="ГН",GX24*SUMIF(HB$4:HE$4,$S24,HB$5:HE$5),IF(GU24=2,GX24*SUMIF(HB$4:HE$4,$S24,HB$5:HE$5)+GV24*SUMIF(HB$4:HE$4,$S24,HB$6:HE$6),0))) -> 0 | HF24: 2 | HG24: 1.798 | HH24: 0.01 | HI24: 0.002577 | HJ24: =IF(IF($Q24=1,HH24*$Q$10-HI24,HH24-HI24)<0,0,IF($Q24=1,HH24*$Q$10-HI24,HH24-HI24)) -> 0.007423 | HK24: =IFERROR(HJ24/HH24,0) -> 0.7423 | HL24: =MIN(GZ24,GO24,GD24,FS24,FH24,EW24,EL24,EA24,DP24,DE24,CX24,CQ24,HK24) -> 0.7156 | HM24: =IF(AND(HL24>0.4,HP24>0),HJ24*HM$11,0) -> 0 | HN24: =SUM(HO24:HP24) -> 0 | HO24: =HM24*SUMIF(HM$4:HP$4,$S24,HM$5:HP$5) -> 0 | HP24: =IF(HF24=1,SUMIF(HM$4:HP$4,$S24,HM$7:HP$7)*HG24,IF(HF24="ГН",HI24*SUMIF(HM$4:HP$4,$S24,HM$5:HP$5),IF(HF24=2,HI24*SUMIF(HM$4:HP$4,$S24,HM$5:HP$5)+HG24*SUMIF(HM$4:HP$4,$S24,HM$6:HP$6),0))) -> 0 | HU24: =IF(IF($Q24=1,HS24*$Q$10-HT24,HS24-HT24)<0,0,IF($Q24=1,HS24*$Q$10-HT24,HS24-HT24)) -> 0 | HV24: =IFERROR(HU24/HS24,0) -> 0 | HW24: =MIN(HK24,GZ24,GO24,GD24,FS24,FH24,EW24,EL24,EA24,DP24,DE24,CX24,HV24) -> 0 | HX24: =IF(AND(HW24>0.4,IA24>0),HU24*HX$11,0) -> 0 | HY24: =SUM(HZ24:IA24) -> 0 | HZ24: =HX24*SUMIF(HX$4:IA$4,$S24,HX$5:IA$5) -> 0 | IA24: =IF(HQ24=1,SUMIF(HX$4:IA$4,$S24,HX$7:IA$7)*HR24,IF(HQ24="ГН",HT24*SUMIF(HX$4:IA$4,$S24,HX$5:IA$5),IF(HQ24=2,HT24*SUMIF(HX$4:IA$4,$S24,HX$5:IA$5)+HR24*SUMIF(HX$4:IA$4,$S24,HX$6:IA$6),0))) -> 0 | IB24: =IFERROR(AVERAGE(HQ24,HF24,GU24,GJ24,FY24,FN24,FC24,ER24,EG24,DV24,DK24,CZ24),0) -> 2 | IC24: =SUM(HR24,HG24,GV24,GK24,FZ24,FO24,FD24,ES24,EH24,DW24,DL24,DA24) -> 19.899 | ID24: =IFERROR(AVERAGE(HS24,HH24,GW24,GL24,GA24,FP24,FE24,ET24,EI24,DX24,DM24,DB24),0) -> 0.01 | IE24: =IFERROR(AVERAGE(HT24,HI24,GX24,GM24,GB24,FQ24,FF24,EU24,EJ24,DY24,DN24,DC24),0) -> 0.002657090909 | IF24: =IFERROR(AVERAGE(HU24,HJ24,GY24,GN24,GC24,FR24,FG24,EV24,EK24,DZ24,DO24,DD24),0) -> 0.006731 | IG24: =IFERROR(IF24/ID24,0) -> 0.6731 | IH24: =IFERROR(AVERAGE(HX24,HM24,HB24,GQ24,GF24,FU24,FJ24,EY24,EN24,EC24,DR24,DG24),0) -> 0 | II24: =IJ24+IK24 -> 0 | IJ24: =SUM(HZ24,HO24,HD24,GS24,GH24,FW24,FL24,FA24,EP24,EE24,DT24,DI24) -> 0 | IK24: =SUM(IA24,HP24,HE24,GT24,GI24,FX24,FM24,FB24,EQ24,EF24,DU24,DJ24) -> 0
A25: ООО "МИП "Кинешма" | B25: Ивановская область | D25: ООО "Авангард " | E25: ГПП "Автозаводская" ООО "МИП "Кинешма", яч.29 ф.№122 | F25: Прочие | G25: Прочие | L25: 670 и выше | M25: 5612042824 | N25: АО "ЭнергосбыТ Плюс" | O25: 3703020510 | P25: ООО "МИП "Кинешма" | R25: Э | S25: ВН | X25: =IF(IF($Q25=1,V25*$Q$10-W25,V25-W25)<0,0,IF($Q25=1,V25*$Q$10-W25,V25-W25)) -> 0 | Y25: =IFERROR(X25/V25,0) -> 0 | Z25: =IF(T25=1,SUMIF(W$4:Z$4,$S25,W$7:Z$7)*U25,IF(T25="ГН",W25*SUMIF(W$4:Z$4,$S25,W$5:Z$5),IF(T25=2,W25*SUMIF(W$4:Z$4,$S25,W$5:Z$5)+U25*SUMIF(W$4:Z$4,$S25,W$6:Z$6),0))) -> 0 | AE25: 0 | AF25: 0 | AG25: 0 | AL25: 0 | AM25: 0 | AN25: 0 | AS25: =IF(IF($Q25=1,AQ25*$Q$10-AR25,AQ25-AR25)<0,0,IF($Q25=1,AQ25*$Q$10-AR25,AQ25-AR25)) -> 0 | AT25: =IFERROR(AS25/AQ25,0) -> 0 | AU25: =IF(AO25=1,SUMIF(AR$4:AU$4,$S25,AR$7:AU$7)*AP25,IF(AO25="ГН",AR25*SUMIF(AR$4:AU$4,$S25,AR$5:AU$5),IF(AO25=2,AR25*SUMIF(AR$4:AU$4,$S25,AR$5:AU$5)+AP25*SUMIF(AR$4:AU$4,$S25,AR$6:AU$6),0))) -> 0 | AZ25: =IF(IF($Q25=1,AX25*$Q$10-AY25,AX25-AY25)<0,0,IF($Q25=1,AX25*$Q$10-AY25,AX25-AY25)) -> 0 | BA25: =IFERROR(AZ25/AX25,0) -> 0 | BB25: =IF(AV25=1,SUMIF(AY$4:BB$4,$S25,AY$7:BB$7)*AW25,IF(AV25="ГН",AY25*SUMIF(AY$4:BB$4,$S25,AY$5:BB$5),IF(AV25=2,AY25*SUMIF(AY$4:BB$4,$S25,AY$5:BB$5)+AW25*SUMIF(AY$4:BB$4,$S25,AY$6:BB$6),0))) -> 0 | BG25: =IF(IF($Q25=1,BE25*$Q$10-BF25,BE25-BF25)<0,0,IF($Q25=1,BE25*$Q$10-BF25,BE25-BF25)) -> 0 | BH25: =IFERROR(BG25/BE25,0) -> 0 | BI25: =IF(BC25=1,SUMIF(BF$4:BI$4,$S25,BF$7:BI$7)*BD25,IF(BC25="ГН",BF25*SUMIF(BF$4:BI$4,$S25,BF$5:BI$5),IF(BC25=2,BF25*SUMIF(BF$4:BI$4,$S25,BF$5:BI$5)+BD25*SUMIF(BF$4:BI$4,$S25,BF$6:BI$6),0))) -> 0 | BN25: =IF(IF($Q25=1,BL25*$Q$10-BM25,BL25-BM25)<0,0,IF($Q25=1,BL25*$Q$10-BM25,BL25-BM25)) -> 0 | BO25: =IFERROR(BN25/BL25,0) -> 0 | BP25: =IF(BJ25=1,SUMIF(BM$4:BP$4,$S25,BM$7:BP$7)*BK25,IF(BJ25="ГН",BM25*SUMIF(BM$4:BP$4,$S25,BM$5:BP$5),IF(BJ25=2,BM25*SUMIF(BM$4:BP$4,$S25,BM$5:BP$5)+BK25*SUMIF(BM$4:BP$4,$S25,BM$6:BP$6),0))) -> 0 | BU25: =IF(IF($Q25=1,BS25*$Q$10-BT25,BS25-BT25)<0,0,IF($Q25=1,BS25*$Q$10-BT25,BS25-BT25)) -> 0 | BV25: =IFERROR(BU25/BS25,0) -> 0 | BW25: =IF(BQ25=1,SUMIF(BT$4:BW$4,$S25,BT$7:BW$7)*BR25,IF(BQ25="ГН",BT25*SUMIF(BT$4:BW$4,$S25,BT$5:BW$5),IF(BQ25=2,BT25*SUMIF(BT$4:BW$4,$S25,BT$5:BW$5)+BR25*SUMIF(BT$4:BW$4,$S25,BT$6:BW$6),0))) -> 0 | CB25: =IF(IF($Q25=1,BZ25*$Q$10-CA25,BZ25-CA25)<0,0,IF($Q25=1,BZ25*$Q$10-CA25,BZ25-CA25)) -> 0 | CC25: =IFERROR(CB25/BZ25,0) -> 0 | CD25: =IF(BX25=1,SUMIF(CA$4:CD$4,$S25,CA$7:CD$7)*BY25,IF(BX25="ГН",CA25*SUMIF(CA$4:CD$4,$S25,CA$5:CD$5),IF(BX25=2,CA25*SUMIF(CA$4:CD$4,$S25,CA$5:CD$5)+BY25*SUMIF(CA$4:CD$4,$S25,CA$6:CD$6),0))) -> 0 | CI25: =IF(IF($Q25=1,CG25*$Q$10-CH25,CG25-CH25)<0,0,IF($Q25=1,CG25*$Q$10-CH25,CG25-CH25)) -> 0 | CJ25: =IFERROR(CI25/CG25,0) -> 0 | CK25: =IF(CE25=1,SUMIF(CH$4:CK$4,$S25,CH$7:CK$7)*CF25,IF(CE25="ГН",CH25*SUMIF(CH$4:CK$4,$S25,CH$5:CK$5),IF(CE25=2,CH25*SUMIF(CH$4:CK$4,$S25,CH$5:CK$5)+CF25*SUMIF(CH$4:CK$4,$S25,CH$6:CK$6),0))) -> 0 | CL25: 2 | CM25: 160.379 | CN25: 1.2 | CO25: 0.283258 | CP25: =IF(IF($Q25=1,CN25*$Q$10-CO25,CN25-CO25)<0,0,IF($Q25=1,CN25*$Q$10-CO25,CN25-CO25)) -> 0.916742 | CQ25: =IFERROR(CP25/CN25,0) -> 0.7639516667 | CR25: =IF(CL25=1,SUMIF(CO$4:CR$4,$S25,CO$7:CR$7)*CM25,IF(CL25="ГН",CO25*SUMIF(CO$4:CR$4,$S25,CO$5:CR$5),IF(CL25=2,CO25*SUMIF(CO$4:CR$4,$S25,CO$5:CR$5)+CM25*SUMIF(CO$4:CR$4,$S25,CO$6:CR$6),0))) -> 395955.6886 | CS25: 2 | CT25: 173.607 | CU25: 1.2 | CV25: 0.297209 | CW25: =IF(IF($Q25=1,CU25*$Q$10-CV25,CU25-CV25)<0,0,IF($Q25=1,CU25*$Q$10-CV25,CU25-CV25)) -> 0.902791 | CX25: =IFERROR(CW25/CU25,0) -> 0.7523258333 | CY25: =IF(CS25=1,SUMIF(CV$4:CY$4,$S25,CV$7:CY$7)*CT25,IF(CS25="ГН",CV25*SUMIF(CV$4:CY$4,$S25,CV$5:CY$5),IF(CS25=2,CV25*SUMIF(CV$4:CY$4,$S25,CV$5:CY$5)+CT25*SUMIF(CV$4:CY$4,$S25,CV$6:CY$6),0))) -> 0 | CZ25: 2 | DA25: 168.267 | DB25: 1.2 | DC25: 0.289822 | DD25: =IF(IF($Q25=1,DB25*$Q$10-DC25,DB25-DC25)<0,0,IF($Q25=1,DB25*$Q$10-DC25,DB25-DC25)) -> 0.910178 | DE25: =IFERROR(DD25/DB25,0) -> 0.7584816667 | DF25: =MIN(CX25,CQ25,CJ25,CC25,BV25,BO25,BH25,BA25,AT25,AM25,AF25,Y25,DE25) -> 0 | DG25: =IF(AND(DF25>0.4,DJ25>0),DD25*DG$11,0) -> 0 | DH25: =SUM(DI25:DJ25) -> 0 | DI25: =DG25*SUMIF(DG$4:DJ$4,$S25,DG$5:DJ$5) -> 0 | DJ25: =IF(CZ25=1,SUMIF(DG$4:DJ$4,$S25,DG$7:DJ$7)*DA25,IF(CZ25="ГН",DC25*SUMIF(DG$4:DJ$4,$S25,DG$5:DJ$5),IF(CZ25=2,DC25*SUMIF(DG$4:DJ$4,$S25,DG$5:DJ$5)+DA25*SUMIF(DG$4:DJ$4,$S25,DG$6:DJ$6),0))) -> 0 | DK25: 2 | DL25: 145.069 | DM25: 1.2 | DN25: 0.266904 | DO25: =IF(IF($Q25=1,DM25*$Q$10-DN25,DM25-DN25)<0,0,IF($Q25=1,DM25*$Q$10-DN25,DM25-DN25)) -> 0.933096 | DP25: =IFERROR(DO25/DM25,0) -> 0.77758 | DQ25: =MIN(DE25,CX25,CQ25,CJ25,CC25,BV25,BO25,BH25,BA25,AT25,AM25,AF25,DP25) -> 0 | DR25: =IF(AND(DQ25>0.4,DU25>0),DO25*DR$11,0) -> 0 | DS25: =SUM(DT25:DU25) -> 0 | DT25: =DR25*SUMIF(DR$4:DU$4,$S25,DR$5:DU$5) -> 0 | DU25: =IF(DK25=1,SUMIF(DR$4:DU$4,$S25,DR$7:DU$7)*DL25,IF(DK25="ГН",DN25*SUMIF(DR$4:DU$4,$S25,DR$5:DU$5),IF(DK25=2,DN25*SUMIF(DR$4:DU$4,$S25,DR$5:DU$5)+DL25*SUMIF(DR$4:DU$4,$S25,DR$6:DU$6),0))) -> 0 | DV25: 2 | DW25: 157.388 | DX25: 1.2 | DY25: 0.282506 | DZ25: =IF(IF($Q25=1,DX25*$Q$10-DY25,DX25-DY25)<0,0,IF($Q25=1,DX25*$Q$10-DY25,DX25-DY25)) -> 0.917494 | EA25: =IFERROR(DZ25/DX25,0) -> 0.7645783333 | EB25: =MIN(DP25,DE25,CX25,CQ25,CJ25,CC25,BV25,BO25,BH25,BA25,AT25,AM25,EA25) -> 0 | EC25: =IF(AND(EB25>0.4,EF25>0),DZ25*EC$11,0) -> 0 | ED25: =SUM(EE25:EF25) -> 0 | EE25: =EC25*SUMIF(EC$4:EF$4,$S25,EC$5:EF$5) -> 0 | EF25: =IF(DV25=1,SUMIF(EC$4:EF$4,$S25,EC$7:EF$7)*DW25,IF(DV25="ГН",DY25*SUMIF(EC$4:EF$4,$S25,EC$5:EF$5),IF(DV25=2,DY25*SUMIF(EC$4:EF$4,$S25,EC$5:EF$5)+DW25*SUMIF(EC$4:EF$4,$S25,EC$6:EF$6),0))) -> 0 | EG25: 2 | EH25: 121.053 | EI25: 1.2 | EJ25: 0.209055 | EK25: =IF(IF($Q25=1,EI25*$Q$10-EJ25,EI25-EJ25)<0,0,IF($Q25=1,EI25*$Q$10-EJ25,EI25-EJ25)) -> 0.990945 | EL25: =IFERROR(EK25/EI25,0) -> 0.8257875 | EM25: =MIN(EA25,DP25,DE25,CX25,CQ25,CJ25,CC25,BV25,BO25,BH25,BA25,AT25,EL25) -> 0 | EN25: =IF(AND(EM25>0.4,EQ25>0),EK25*EN$11,0) -> 0 | EO25: =SUM(EP25:EQ25) -> 0 | EP25: =EN25*SUMIF(EN$4:EQ$4,$S25,EN$5:EQ$5) -> 0 | EQ25: =IF(EG25=1,SUMIF(EN$4:EQ$4,$S25,EN$7:EQ$7)*EH25,IF(EG25="ГН",EJ25*SUMIF(EN$4:EQ$4,$S25,EN$5:EQ$5),IF(EG25=2,EJ25*SUMIF(EN$4:EQ$4,$S25,EN$5:EQ$5)+EH25*SUMIF(EN$4:EQ$4,$S25,EN$6:EQ$6),0))) -> 0 | ER25: 2 | ES25: 136.933 | ET25: 1.2 | EU25: 0.236411 | EV25: =IF(IF($Q25=1,ET25*$Q$10-EU25,ET25-EU25)<0,0,IF($Q25=1,ET25*$Q$10-EU25,ET25-EU25)) -> 0.963589 | EW25: =IFERROR(EV25/ET25,0) -> 0.8029908333 | EX25: =MIN(EL25,EA25,DP25,DE25,CX25,CQ25,CJ25,CC25,BV25,BO25,BH25,BA25,EW25) -> 0 | EY25: =IF(AND(EX25>0.4,FB25>0),EV25*EY$11,0) -> 0 | EZ25: =SUM(FA25:FB25) -> 0 | FA25: =EY25*SUMIF(EY$4:FB$4,$S25,EY$5:FB$5) -> 0 | FB25: =IF(ER25=1,SUMIF(EY$4:FB$4,$S25,EY$7:FB$7)*ES25,IF(ER25="ГН",EU25*SUMIF(EY$4:FB$4,$S25,EY$5:FB$5),IF(ER25=2,EU25*SUMIF(EY$4:FB$4,$S25,EY$5:FB$5)+ES25*SUMIF(EY$4:FB$4,$S25,EY$6:FB$6),0))) -> 0 | FC25: 2 | FD25: 144.384 | FE25: 1.2 | FF25: 0.253561 | FG25: =IF(IF($Q25=1,FE25*$Q$10-FF25,FE25-FF25)<0,0,IF($Q25=1,FE25*$Q$10-FF25,FE25-FF25)) -> 0.946439 | FH25: =IFERROR(FG25/FE25,0) -> 0.7886991667 | FI25: =MIN(EW25,EL25,EA25,DP25,DE25,CX25,CQ25,CJ25,CC25,BV25,BO25,BH25,FH25) -> 0 | FJ25: =IF(AND(FI25>0.4,FM25>0),FG25*FJ$11,0) -> 0 | FK25: =SUM(FL25:FM25) -> 0 | FL25: =FJ25*SUMIF(FJ$4:FM$4,$S25,FJ$5:FM$5) -> 0 | FM25: =IF(FC25=1,SUMIF(FJ$4:FM$4,$S25,FJ$7:FM$7)*FD25,IF(FC25="ГН",FF25*SUMIF(FJ$4:FM$4,$S25,FJ$5:FM$5),IF(FC25=2,FF25*SUMIF(FJ$4:FM$4,$S25,FJ$5:FM$5)+FD25*SUMIF(FJ$4:FM$4,$S25,FJ$6:FM$6),0))) -> 0 | FN25: 2 | FO25: 173.321 | FP25: 1.2 | FQ25: 0.294133 | FR25: =IF(IF($Q25=1,FP25*$Q$10-FQ25,FP25-FQ25)<0,0,IF($Q25=1,FP25*$Q$10-FQ25,FP25-FQ25)) -> 0.905867 | FS25: =IFERROR(FR25/FP25,0) -> 0.7548891667 | FT25: =MIN(FH25,EW25,EL25,EA25,DP25,DE25,CX25,CQ25,CJ25,CC25,BV25,BO25,FS25) -> 0 | FU25: =IF(AND(FT25>0.4,FX25>0),FR25*FU$11,0) -> 0 | FV25: =SUM(FW25:FX25) -> 0 | FW25: =FU25*SUMIF(FU$4:FX$4,$S25,FU$5:FX$5) -> 0 | FX25: =IF(FN25=1,SUMIF(FU$4:FX$4,$S25,FU$7:FX$7)*FO25,IF(FN25="ГН",FQ25*SUMIF(FU$4:FX$4,$S25,FU$5:FX$5),IF(FN25=2,FQ25*SUMIF(FU$4:FX$4,$S25,FU$5:FX$5)+FO25*SUMIF(FU$4:FX$4,$S25,FU$6:FX$6),0))) -> 0 | FY25: 2 | FZ25: 165.185 | GA25: 1.2 | GB25: 0.287221 | GC25: =IF(IF($Q25=1,GA25*$Q$10-GB25,GA25-GB25)<0,0,IF($Q25=1,GA25*$Q$10-GB25,GA25-GB25)) -> 0.912779 | GD25: =IFERROR(GC25/GA25,0) -> 0.7606491667 | GE25: =MIN(FS25,FH25,EW25,EL25,EA25,DP25,DE25,CX25,CQ25,CJ25,CC25,BV25,GD25) -> 0 | GF25: =IF(AND(GE25>0.4,GI25>0),GC25*GF$11,0) -> 0 | GG25: =SUM(GH25:GI25) -> 0 | GH25: =GF25*SUMIF(GF$4:GI$4,$S25,GF$5:GI$5) -> 0 | GI25: =IF(FY25=1,SUMIF(GF$4:GI$4,$S25,GF$7:GI$7)*FZ25,IF(FY25="ГН",GB25*SUMIF(GF$4:GI$4,$S25,GF$5:GI$5),IF(FY25=2,GB25*SUMIF(GF$4:GI$4,$S25,GF$5:GI$5)+FZ25*SUMIF(GF$4:GI$4,$S25,GF$6:GI$6),0))) -> 0 | GJ25: 2 | GK25: 56.931 | GL25: 1.2 | GM25: 0.121018 | GN25: =IF(IF($Q25=1,GL25*$Q$10-GM25,GL25-GM25)<0,0,IF($Q25=1,GL25*$Q$10-GM25,GL25-GM25)) -> 1.078982 | GO25: =IFERROR(GN25/GL25,0) -> 0.8991516667 | GP25: =MIN(GD25,FS25,FH25,EW25,EL25,EA25,DP25,DE25,CX25,CQ25,CJ25,CC25,GO25) -> 0 | GQ25: =IF(AND(GP25>0.4,GT25>0),GN25*GQ$11,0) -> 0 | GR25: =SUM(GS25:GT25) -> 0 | GS25: =GQ25*SUMIF(GQ$4:GT$4,$S25,GQ$5:GT$5) -> 0 | GT25: =IF(GJ25=1,SUMIF(GQ$4:GT$4,$S25,GQ$7:GT$7)*GK25,IF(GJ25="ГН",GM25*SUMIF(GQ$4:GT$4,$S25,GQ$5:GT$5),IF(GJ25=2,GM25*SUMIF(GQ$4:GT$4,$S25,GQ$5:GT$5)+GK25*SUMIF(GQ$4:GT$4,$S25,GQ$6:GT$6),0))) -> 0 | GU25: 2 | GV25: 67.07 | GW25: 1.2 | GX25: 0.123447 | GY25: =IF(IF($Q25=1,GW25*$Q$10-GX25,GW25-GX25)<0,0,IF($Q25=1,GW25*$Q$10-GX25,GW25-GX25)) -> 1.076553 | GZ25: =IFERROR(GY25/GW25,0) -> 0.8971275 | HA25: =MIN(GO25,GD25,FS25,FH25,EW25,EL25,EA25,DP25,DE25,CX25,CQ25,CJ25,GZ25) -> 0 | HB25: =IF(AND(HA25>0.4,HE25>0),GY25*HB$11,0) -> 0 | HC25: =SUM(HD25:HE25) -> 0 | HD25: =HB25*SUMIF(HB$4:HE$4,$S25,HB$5:HE$5) -> 0 | HE25: =IF(GU25=1,SUMIF(HB$4:HE$4,$S25,HB$7:HE$7)*GV25,IF(GU25="ГН",GX25*SUMIF(HB$4:HE$4,$S25,HB$5:HE$5),IF(GU25=2,GX25*SUMIF(HB$4:HE$4,$S25,HB$5:HE$5)+GV25*SUMIF(HB$4:HE$4,$S25,HB$6:HE$6),0))) -> 0 | HF25: 2 | HG25: 160.3057 | HH25: 1.2 | HI25: 0.27913 | HJ25: =IF(IF($Q25=1,HH25*$Q$10-HI25,HH25-HI25)<0,0,IF($Q25=1,HH25*$Q$10-HI25,HH25-HI25)) -> 0.92087 | HK25: =IFERROR(HJ25/HH25,0) -> 0.7673916667 | HL25: =MIN(GZ25,GO25,GD25,FS25,FH25,EW25,EL25,EA25,DP25,DE25,CX25,CQ25,HK25) -> 0.7523258333 | HM25: =IF(AND(HL25>0.4,HP25>0),HJ25*HM$11,0) -> 0 | HN25: =SUM(HO25:HP25) -> 0 | HO25: =HM25*SUMIF(HM$4:HP$4,$S25,HM$5:HP$5) -> 0 | HP25: =IF(HF25=1,SUMIF(HM$4:HP$4,$S25,HM$7:HP$7)*HG25,IF(HF25="ГН",HI25*SUMIF(HM$4:HP$4,$S25,HM$5:HP$5),IF(HF25=2,HI25*SUMIF(HM$4:HP$4,$S25,HM$5:HP$5)+HG25*SUMIF(HM$4:HP$4,$S25,HM$6:HP$6),0))) -> 0 | HU25: =IF(IF($Q25=1,HS25*$Q$10-HT25,HS25-HT25)<0,0,IF($Q25=1,HS25*$Q$10-HT25,HS25-HT25)) -> 0 | HV25: =IFERROR(HU25/HS25,0) -> 0 | HW25: =MIN(HK25,GZ25,GO25,GD25,FS25,FH25,EW25,EL25,EA25,DP25,DE25,CX25,HV25) -> 0 | HX25: =IF(AND(HW25>0.4,IA25>0),HU25*HX$11,0) -> 0 | HY25: =SUM(HZ25:IA25) -> 0 | HZ25: =HX25*SUMIF(HX$4:IA$4,$S25,HX$5:IA$5) -> 0 | IA25: =IF(HQ25=1,SUMIF(HX$4:IA$4,$S25,HX$7:IA$7)*HR25,IF(HQ25="ГН",HT25*SUMIF(HX$4:IA$4,$S25,HX$5:IA$5),IF(HQ25=2,HT25*SUMIF(HX$4:IA$4,$S25,HX$5:IA$5)+HR25*SUMIF(HX$4:IA$4,$S25,HX$6:IA$6),0))) -> 0 | IB25: =IFERROR(AVERAGE(HQ25,HF25,GU25,GJ25,FY25,FN25,FC25,ER25,EG25,DV25,DK25,CZ25),0) -> 2 | IC25: =SUM(HR25,HG25,GV25,GK25,FZ25,FO25,FD25,ES25,EH25,DW25,DL25,DA25) -> 1495.9067 | ID25: =IFERROR(AVERAGE(HS25,HH25,GW25,GL25,GA25,FP25,FE25,ET25,EI25,DX25,DM25,DB25),0) -> 1.2 | IE25: =IFERROR(AVERAGE(HT25,HI25,GX25,GM25,GB25,FQ25,FF25,EU25,EJ25,DY25,DN25,DC25),0) -> 0.2402916364 | IF25: =IFERROR(AVERAGE(HU25,HJ25,GY25,GN25,GC25,FR25,FG25,EV25,EK25,DZ25,DO25,DD25),0) -> 0.8797326667 | IG25: =IFERROR(IF25/ID25,0) -> 0.7331105556 | IH25: =IFERROR(AVERAGE(HX25,HM25,HB25,GQ25,GF25,FU25,FJ25,EY25,EN25,EC25,DR25,DG25),0) -> 0 | II25: =IJ25+IK25 -> 0 | IJ25: =SUM(HZ25,HO25,HD25,GS25,GH25,FW25,FL25,FA25,EP25,EE25,DT25,DI25) -> 0 | IK25: =SUM(IA25,HP25,HE25,GT25,GI25,FX25,FM25,FB25,EQ25,EF25,DU25,DJ25) -> 0
A26: ООО "МИП "Кинешма" | B26: Ивановская область | D26: ООО "Авангард " | E26: ГПП "Автозаводская" ООО "МИП "Кинешма", яч.34 ф.№130 | F26: Прочие | G26: Прочие | L26: 670 и выше | M26: 5612042824 | N26: АО "ЭнергосбыТ Плюс" | O26: 3703020510 | P26: ООО "МИП "Кинешма" | Q26: 1 | R26: Э | S26: ВН | X26: 0 | Y26: 0 | Z26: 0 | AE26: =IF(IF($Q26=1,AC26*$Q$10-AD26,AC26-AD26)<0,0,IF($Q26=1,AC26*$Q$10-AD26,AC26-AD26)) -> 0 | AF26: =IFERROR(AE26/AC26,0) -> 0 | AG26: =IF(AA26=1,SUMIF(AD$4:AG$4,$S26,AD$7:AG$7)*AB26,IF(AA26="ГН",AD26*SUMIF(AD$4:AG$4,$S26,AD$5:AG$5),IF(AA26=2,AD26*SUMIF(AD$4:AG$4,$S26,AD$5:AG$5)+AB26*SUMIF(AD$4:AG$4,$S26,AD$6:AG$6),0))) -> 0 | AL26: =IF(IF($Q26=1,AJ26*$Q$10-AK26,AJ26-AK26)<0,0,IF($Q26=1,AJ26*$Q$10-AK26,AJ26-AK26)) -> 0 | AM26: =IFERROR(AL26/AJ26,0) -> 0 | AN26: =IF(AH26=1,SUMIF(AK$4:AN$4,$S26,AK$7:AN$7)*AI26,IF(AH26="ГН",AK26*SUMIF(AK$4:AN$4,$S26,AK$5:AN$5),IF(AH26=2,AK26*SUMIF(AK$4:AN$4,$S26,AK$5:AN$5)+AI26*SUMIF(AK$4:AN$4,$S26,AK$6:AN$6),0))) -> 0 | AS26: 0 | AT26: 0 | AU26: 0 | AZ26: 0 | BA26: 0 | BB26: 0 | BG26: 0 | BH26: 0 | BI26: 0 | BN26: 0 | BO26: 0 | BP26: 0 | BU26: 0 | BV26: 0 | BW26: 0 | CB26: 0 | CC26: 0 | CD26: 0 | CI26: 0 | CJ26: 0 | CK26: 0 | CL26: 2 | CM26: 0 | CN26: 1.2 | CO26: 0 | CP26: 0.66 | CQ26: 0.55 | CR26: 0 | CS26: 2 | CT26: 0 | CU26: 1.2 | CV26: 0 | CW26: 0.66 | CX26: 0.55 | CY26: 0 | CZ26: 2 | DA26: 0 | DB26: 1.2 | DC26: 0 | DD26: 0.66 | DE26: 0.55 | DF26: 0 | DG26: 0 | DH26: 0 | DI26: 0 | DJ26: 0 | DK26: 2 | DL26: 0 | DM26: 1.2 | DN26: 0 | DO26: 0.66 | DP26: 0.55 | DQ26: 0 | DR26: 0 | DS26: 0 | DT26: 0 | DU26: 0 | DV26: 2 | DW26: 0 | DX26: 1.2 | DY26: 0 | DZ26: 0.66 | EA26: 0.55 | EB26: 0 | EC26: 0 | ED26: 0 | EE26: 0 | EF26: 0 | EG26: 2 | EH26: 0 | EI26: 1.2 | EJ26: 0 | EK26: 0.66 | EL26: 0.55 | EM26: 0 | EN26: 0 | EO26: 0 | EP26: 0 | EQ26: 0 | ER26: 2 | ES26: 0 | ET26: 1.2 | EU26: 0 | EV26: 0.66 | EW26: 0.55 | EX26: 0 | EY26: 0 | EZ26: 0 | FA26: 0 | FB26: 0 | FC26: 2 | FD26: 0 | FE26: 1.2 | FF26: 0 | FG26: 0.66 | FH26: 0.55 | FI26: 0 | FJ26: 0 | FK26: 0 | FL26: 0 | FM26: 0 | FN26: 2 | FO26: 0 | FP26: 1.2 | FQ26: 0 | FR26: 0.66 | FS26: 0.55 | FT26: 0 | FU26: 0 | FV26: 0 | FW26: 0 | FX26: 0 | FY26: 2 | FZ26: 0 | GA26: 1.2 | GB26: 0 | GC26: 0.66 | GD26: 0.55 | GE26: 0 | GF26: 0 | GG26: 0 | GH26: 0 | GI26: 0 | GJ26: 2 | GK26: 88.777 | GL26: 1.2 | GM26: 0.164215 | GN26: 0.495785 | GO26: 0.4131541667 | GP26: 0 | GQ26: 0 | GR26: 0 | GS26: 0 | GT26: 0 | GU26: 2 | GV26: 96.458 | GW26: 1.2 | GX26: 0.176815 | GY26: 0.483185 | GZ26: 0.4026541667 | HA26: 0 | HB26: 0 | HC26: 0 | HD26: 0 | HE26: 0 | HF26: 2 | HG26: 83.2886 | HH26: 1.2 | HI26: 0.147974 | HJ26: 0.512026 | HK26: 0.4266883333 | HL26: 0.4026541667 | HM26: 0 | HN26: 0 | HO26: 0 | HP26: 0 | HU26: 0 | HV26: 0 | HW26: 0 | HX26: 0 | HY26: 0 | HZ26: 0 | IA26: 0 | IB26: 2 | IC26: 268.5236 | ID26: 1.2 | IE26: 0.04445490909 | IF26: 0.5642496667 | IG26: 0.4702080556 | IH26: 0 | II26: 0 | IJ26: 0 | IK26: 0
A27: ООО "МИП "Кинешма" | B27: Ивановская область | D27: ФКУ "ИК №3" УФСИН по Ив.обл. | E27: ПС "Автозаводская" ООО "МИП "Кинешма", РУ10кВ СШ2, яч.27, ф.№106 | F27: Гос. Учреждения | G27: ГУ.Прочие | H27: Федеральный | L27: 670 и выше | M27: 5612042824 | N27: АО "ЭнергосбыТ Плюс" | O27: 3703020510 | P27: ООО "МИП "Кинешма" | R27: Э | S27: ВН | X27: =IF(IF($Q27=1,V27*$Q$10-W27,V27-W27)<0,0,IF($Q27=1,V27*$Q$10-W27,V27-W27)) -> 0 | Y27: =IFERROR(X27/V27,0) -> 0 | Z27: =IF(T27=1,SUMIF(W$4:Z$4,$S27,W$7:Z$7)*U27,IF(T27="ГН",W27*SUMIF(W$4:Z$4,$S27,W$5:Z$5),IF(T27=2,W27*SUMIF(W$4:Z$4,$S27,W$5:Z$5)+U27*SUMIF(W$4:Z$4,$S27,W$6:Z$6),0))) -> 0 | AE27: =IF(IF($Q27=1,AC27*$Q$10-AD27,AC27-AD27)<0,0,IF($Q27=1,AC27*$Q$10-AD27,AC27-AD27)) -> 0 | AF27: =IFERROR(AE27/AC27,0) -> 0 | AG27: =IF(AA27=1,SUMIF(AD$4:AG$4,$S27,AD$7:AG$7)*AB27,IF(AA27="ГН",AD27*SUMIF(AD$4:AG$4,$S27,AD$5:AG$5),IF(AA27=2,AD27*SUMIF(AD$4:AG$4,$S27,AD$5:AG$5)+AB27*SUMIF(AD$4:AG$4,$S27,AD$6:AG$6),0))) -> 0 | AL27: =IF(IF($Q27=1,AJ27*$Q$10-AK27,AJ27-AK27)<0,0,IF($Q27=1,AJ27*$Q$10-AK27,AJ27-AK27)) -> 0 | AM27: =IFERROR(AL27/AJ27,0) -> 0 | AN27: =IF(AH27=1,SUMIF(AK$4:AN$4,$S27,AK$7:AN$7)*AI27,IF(AH27="ГН",AK27*SUMIF(AK$4:AN$4,$S27,AK$5:AN$5),IF(AH27=2,AK27*SUMIF(AK$4:AN$4,$S27,AK$5:AN$5)+AI27*SUMIF(AK$4:AN$4,$S27,AK$6:AN$6),0))) -> 0 | AS27: =IF(IF($Q27=1,AQ27*$Q$10-AR27,AQ27-AR27)<0,0,IF($Q27=1,AQ27*$Q$10-AR27,AQ27-AR27)) -> 0 | AT27: =IFERROR(AS27/AQ27,0) -> 0 | AU27: =IF(AO27=1,SUMIF(AR$4:AU$4,$S27,AR$7:AU$7)*AP27,IF(AO27="ГН",AR27*SUMIF(AR$4:AU$4,$S27,AR$5:AU$5),IF(AO27=2,AR27*SUMIF(AR$4:AU$4,$S27,AR$5:AU$5)+AP27*SUMIF(AR$4:AU$4,$S27,AR$6:AU$6),0))) -> 0 | AZ27: =IF(IF($Q27=1,AX27*$Q$10-AY27,AX27-AY27)<0,0,IF($Q27=1,AX27*$Q$10-AY27,AX27-AY27)) -> 0 | BA27: =IFERROR(AZ27/AX27,0) -> 0 | BB27: =IF(AV27=1,SUMIF(AY$4:BB$4,$S27,AY$7:BB$7)*AW27,IF(AV27="ГН",AY27*SUMIF(AY$4:BB$4,$S27,AY$5:BB$5),IF(AV27=2,AY27*SUMIF(AY$4:BB$4,$S27,AY$5:BB$5)+AW27*SUMIF(AY$4:BB$4,$S27,AY$6:BB$6),0))) -> 0 | BG27: =IF(IF($Q27=1,BE27*$Q$10-BF27,BE27-BF27)<0,0,IF($Q27=1,BE27*$Q$10-BF27,BE27-BF27)) -> 0 | BH27: =IFERROR(BG27/BE27,0) -> 0 | BI27: =IF(BC27=1,SUMIF(BF$4:BI$4,$S27,BF$7:BI$7)*BD27,IF(BC27="ГН",BF27*SUMIF(BF$4:BI$4,$S27,BF$5:BI$5),IF(BC27=2,BF27*SUMIF(BF$4:BI$4,$S27,BF$5:BI$5)+BD27*SUMIF(BF$4:BI$4,$S27,BF$6:BI$6),0))) -> 0 | BN27: =IF(IF($Q27=1,BL27*$Q$10-BM27,BL27-BM27)<0,0,IF($Q27=1,BL27*$Q$10-BM27,BL27-BM27)) -> 0 | BO27: =IFERROR(BN27/BL27,0) -> 0 | BP27: =IF(BJ27=1,SUMIF(BM$4:BP$4,$S27,BM$7:BP$7)*BK27,IF(BJ27="ГН",BM27*SUMIF(BM$4:BP$4,$S27,BM$5:BP$5),IF(BJ27=2,BM27*SUMIF(BM$4:BP$4,$S27,BM$5:BP$5)+BK27*SUMIF(BM$4:BP$4,$S27,BM$6:BP$6),0))) -> 0 | BU27: =IF(IF($Q27=1,BS27*$Q$10-BT27,BS27-BT27)<0,0,IF($Q27=1,BS27*$Q$10-BT27,BS27-BT27)) -> 0 | BV27: =IFERROR(BU27/BS27,0) -> 0 | BW27: =IF(BQ27=1,SUMIF(BT$4:BW$4,$S27,BT$7:BW$7)*BR27,IF(BQ27="ГН",BT27*SUMIF(BT$4:BW$4,$S27,BT$5:BW$5),IF(BQ27=2,BT27*SUMIF(BT$4:BW$4,$S27,BT$5:BW$5)+BR27*SUMIF(BT$4:BW$4,$S27,BT$6:BW$6),0))) -> 0 | CB27: =IF(IF($Q27=1,BZ27*$Q$10-CA27,BZ27-CA27)<0,0,IF($Q27=1,BZ27*$Q$10-CA27,BZ27-CA27)) -> 0 | CC27: =IFERROR(CB27/BZ27,0) -> 0 | CD27: =IF(BX27=1,SUMIF(CA$4:CD$4,$S27,CA$7:CD$7)*BY27,IF(BX27="ГН",CA27*SUMIF(CA$4:CD$4,$S27,CA$5:CD$5),IF(BX27=2,CA27*SUMIF(CA$4:CD$4,$S27,CA$5:CD$5)+BY27*SUMIF(CA$4:CD$4,$S27,CA$6:CD$6),0))) -> 0 | CI27: =IF(IF($Q27=1,CG27*$Q$10-CH27,CG27-CH27)<0,0,IF($Q27=1,CG27*$Q$10-CH27,CG27-CH27)) -> 0 | CJ27: =IFERROR(CI27/CG27,0) -> 0 | CK27: =IF(CE27=1,SUMIF(CH$4:CK$4,$S27,CH$7:CK$7)*CF27,IF(CE27="ГН",CH27*SUMIF(CH$4:CK$4,$S27,CH$5:CK$5),IF(CE27=2,CH27*SUMIF(CH$4:CK$4,$S27,CH$5:CK$5)+CF27*SUMIF(CH$4:CK$4,$S27,CH$6:CK$6),0))) -> 0 | CL27: 1 | CM27: =111.429-CM20-13.5 -> 96.809 | CN27: =(0.68-CN29)/2 -> 0.305 | CO27: =0.240345-CO20-CO29 -> 0.2147 | CP27: =IF(IF($Q27=1,CN27*$Q$10-CO27,CN27-CO27)<0,0,IF($Q27=1,CN27*$Q$10-CO27,CN27-CO27)) -> 0.0903 | CQ27: =IFERROR(CP27/CN27,0) -> 0.2960655738 | CR27: =IF(CL27=1,SUMIF(CO$4:CR$4,$S27,CO$7:CR$7)*CM27,IF(CL27="ГН",CO27*SUMIF(CO$4:CR$4,$S27,CO$5:CR$5),IF(CL27=2,CO27*SUMIF(CO$4:CR$4,$S27,CO$5:CR$5)+CM27*SUMIF(CO$4:CR$4,$S27,CO$6:CR$6),0))) -> 191613.0856 | CS27: 1 | CT27: =120.655-CT20-25.05 -> 94.885 | CU27: =(0.68-CU29)/2 -> 0.305 | CV27: =0.249682-CV20-CV29 -> 0.205263 | CW27: =IF(IF($Q27=1,CU27*$Q$10-CV27,CU27-CV27)<0,0,IF($Q27=1,CU27*$Q$10-CV27,CU27-CV27)) -> 0.099737 | CX27: =IFERROR(CW27/CU27,0) -> 0.3270065574 | CY27: =IF(CS27=1,SUMIF(CV$4:CY$4,$S27,CV$7:CY$7)*CT27,IF(CS27="ГН",CV27*SUMIF(CV$4:CY$4,$S27,CV$5:CY$5),IF(CS27=2,CV27*SUMIF(CV$4:CY$4,$S27,CV$5:CY$5)+CT27*SUMIF(CV$4:CY$4,$S27,CV$6:CY$6),0))) -> 0 | CZ27: 1 | DA27: =116.028-DA20-DA29 -> 104.238 | DB27: 0.305 | DC27: =0.239206-DC20-DC29 -> 0.21855 | DD27: =IF(IF($Q27=1,DB27*$Q$10-DC27,DB27-DC27)<0,0,IF($Q27=1,DB27*$Q$10-DC27,DB27-DC27)) -> 0.08645 | DE27: =IFERROR(DD27/DB27,0) -> 0.283442623 | DF27: =MIN(CX27,CQ27,CJ27,CC27,BV27,BO27,BH27,BA27,AT27,AM27,AF27,Y27,DE27) -> 0 | DG27: =IF(AND(DF27>0.4,DJ27>0),DD27*DG$11,0) -> 0 | DH27: =SUM(DI27:DJ27) -> 0 | DI27: =DG27*SUMIF(DG$4:DJ$4,$S27,DG$5:DJ$5) -> 0 | DJ27: =IF(CZ27=1,SUMIF(DG$4:DJ$4,$S27,DG$7:DJ$7)*DA27,IF(CZ27="ГН",DC27*SUMIF(DG$4:DJ$4,$S27,DG$5:DJ$5),IF(CZ27=2,DC27*SUMIF(DG$4:DJ$4,$S27,DG$5:DJ$5)+DA27*SUMIF(DG$4:DJ$4,$S27,DG$6:DJ$6),0))) -> 0 | DK27: 1 | DL27: =107.116-DL20-DL29 -> 95.926 | DM27: 0.305 | DN27: =0.228268-DN20-DN29 -> 0.20867 | DO27: =IF(IF($Q27=1,DM27*$Q$10-DN27,DM27-DN27)<0,0,IF($Q27=1,DM27*$Q$10-DN27,DM27-DN27)) -> 0.09633 | DP27: =IFERROR(DO27/DM27,0) -> 0.3158360656 | DQ27: =MIN(DE27,CX27,CQ27,CJ27,CC27,BV27,BO27,BH27,BA27,AT27,AM27,AF27,DP27) -> 0 | DR27: =IF(AND(DQ27>0.4,DU27>0),DO27*DR$11,0) -> 0 | DS27: =SUM(DT27:DU27) -> 0 | DT27: =DR27*SUMIF(DR$4:DU$4,$S27,DR$5:DU$5) -> 0 | DU27: =IF(DK27=1,SUMIF(DR$4:DU$4,$S27,DR$7:DU$7)*DL27,IF(DK27="ГН",DN27*SUMIF(DR$4:DU$4,$S27,DR$5:DU$5),IF(DK27=2,DN27*SUMIF(DR$4:DU$4,$S27,DR$5:DU$5)+DL27*SUMIF(DR$4:DU$4,$S27,DR$6:DU$6),0))) -> 0 | DV27: 1 | DW27: =109.878-DW20-DW29 -> 98.228 | DX27: 0.305 | DY27: =0.229516-DY20-DY29 -> 0.208152 | DZ27: =IF(IF($Q27=1,DX27*$Q$10-DY27,DX27-DY27)<0,0,IF($Q27=1,DX27*$Q$10-DY27,DX27-DY27)) -> 0.096848 | EA27: =IFERROR(DZ27/DX27,0) -> 0.3175344262 | EB27: =MIN(DP27,DE27,CX27,CQ27,CJ27,CC27,BV27,BO27,BH27,BA27,AT27,AM27,EA27) -> 0 | EC27: =IF(AND(EB27>0.4,EF27>0),DZ27*EC$11,0) -> 0 | ED27: =SUM(EE27:EF27) -> 0 | EE27: =EC27*SUMIF(EC$4:EF$4,$S27,EC$5:EF$5) -> 0 | EF27: =IF(DV27=1,SUMIF(EC$4:EF$4,$S27,EC$7:EF$7)*DW27,IF(DV27="ГН",DY27*SUMIF(EC$4:EF$4,$S27,EC$5:EF$5),IF(DV27=2,DY27*SUMIF(EC$4:EF$4,$S27,EC$5:EF$5)+DW27*SUMIF(EC$4:EF$4,$S27,EC$6:EF$6),0))) -> 0 | EG27: 1 | EH27: =103.756-EH20-EH29 -> 93.436 | EI27: 0.305 | EJ27: =0.22335-EJ20-EJ29 -> 0.20486 | EK27: =IF(IF($Q27=1,EI27*$Q$10-EJ27,EI27-EJ27)<0,0,IF($Q27=1,EI27*$Q$10-EJ27,EI27-EJ27)) -> 0.10014 | EL27: =IFERROR(EK27/EI27,0) -> 0.3283278689 | EM27: =MIN(EA27,DP27,DE27,CX27,CQ27,CJ27,CC27,BV27,BO27,BH27,BA27,AT27,EL27) -> 0 | EN27: =IF(AND(EM27>0.4,EQ27>0),EK27*EN$11,0) -> 0 | EO27: =SUM(EP27:EQ27) -> 0 | EP27: =EN27*SUMIF(EN$4:EQ$4,$S27,EN$5:EQ$5) -> 0 | EQ27: =IF(EG27=1,SUMIF(EN$4:EQ$4,$S27,EN$7:EQ$7)*EH27,IF(EG27="ГН",EJ27*SUMIF(EN$4:EQ$4,$S27,EN$5:EQ$5),IF(EG27=2,EJ27*SUMIF(EN$4:EQ$4,$S27,EN$5:EQ$5)+EH27*SUMIF(EN$4:EQ$4,$S27,EN$6:EQ$6),0))) -> 0 | ER27: 1 | ES27: =109.805-ES20-ES29 -> 96.115 | ET27: 0.305 | EU27: =0.247765-EU20-EU29 -> 0.223495 | EV27: =IF(IF($Q27=1,ET27*$Q$10-EU27,ET27-EU27)<0,0,IF($Q27=1,ET27*$Q$10-EU27,ET27-EU27)) -> 0.081505 | EW27: =IFERROR(EV27/ET27,0) -> 0.2672295082 | EX27: =MIN(EL27,EA27,DP27,DE27,CX27,CQ27,CJ27,CC27,BV27,BO27,BH27,BA27,EW27) -> 0 | EY27: =IF(AND(EX27>0.4,FB27>0),EV27*EY$11,0) -> 0 | EZ27: =SUM(FA27:FB27) -> 0 | FA27: =EY27*SUMIF(EY$4:FB$4,$S27,EY$5:FB$5) -> 0 | FB27: =IF(ER27=1,SUMIF(EY$4:FB$4,$S27,EY$7:FB$7)*ES27,IF(ER27="ГН",EU27*SUMIF(EY$4:FB$4,$S27,EY$5:FB$5),IF(ER27=2,EU27*SUMIF(EY$4:FB$4,$S27,EY$5:FB$5)+ES27*SUMIF(EY$4:FB$4,$S27,EY$6:FB$6),0))) -> 0 | FC27: 1 | FD27: =97.267-FD20-FD29 -> 82.297 | FE27: 0.305 | FF27: =0.223395-FF20-FF29 -> 0.196803 | FG27: =IF(IF($Q27=1,FE27*$Q$10-FF27,FE27-FF27)<0,0,IF($Q27=1,FE27*$Q$10-FF27,FE27-FF27)) -> 0.108197 | FH27: =IFERROR(FG27/FE27,0) -> 0.3547442623 | FI27: =MIN(EW27,EL27,EA27,DP27,DE27,CX27,CQ27,CJ27,CC27,BV27,BO27,BH27,FH27) -> 0 | FJ27: =IF(AND(FI27>0.4,FM27>0),FG27*FJ$11,0) -> 0 | FK27: =SUM(FL27:FM27) -> 0 | FL27: =FJ27*SUMIF(FJ$4:FM$4,$S27,FJ$5:FM$5) -> 0 | FM27: =IF(FC27=1,SUMIF(FJ$4:FM$4,$S27,FJ$7:FM$7)*FD27,IF(FC27="ГН",FF27*SUMIF(FJ$4:FM$4,$S27,FJ$5:FM$5),IF(FC27=2,FF27*SUMIF(FJ$4:FM$4,$S27,FJ$5:FM$5)+FD27*SUMIF(FJ$4:FM$4,$S27,FJ$6:FM$6),0))) -> 0 | FN27: 1 | FO27: =54.871-FO20-FO29 -> 40.101 | FP27: 0.305 | FQ27: =0.120532-FQ20-FQ29 -> 0.094214 | FR27: =IF(IF($Q27=1,FP27*$Q$10-FQ27,FP27-FQ27)<0,0,IF($Q27=1,FP27*$Q$10-FQ27,FP27-FQ27)) -> 0.210786 | FS27: =IFERROR(FR27/FP27,0) -> 0.6911016393 | FT27: =MIN(FH27,EW27,EL27,EA27,DP27,DE27,CX27,CQ27,CJ27,CC27,BV27,BO27,FS27) -> 0 | FU27: =IF(AND(FT27>0.4,FX27>0),FR27*FU$11,0) -> 0 | FV27: =SUM(FW27:FX27) -> 0 | FW27: =FU27*SUMIF(FU$4:FX$4,$S27,FU$5:FX$5) -> 0 | FX27: =IF(FN27=1,SUMIF(FU$4:FX$4,$S27,FU$7:FX$7)*FO27,IF(FN27="ГН",FQ27*SUMIF(FU$4:FX$4,$S27,FU$5:FX$5),IF(FN27=2,FQ27*SUMIF(FU$4:FX$4,$S27,FU$5:FX$5)+FO27*SUMIF(FU$4:FX$4,$S27,FU$6:FX$6),0))) -> 0 | FY27: 1 | FZ27: 0.082 | GA27: 0.305 | GB27: 0.0003 | GC27: =IF(IF($Q27=1,GA27*$Q$10-GB27,GA27-GB27)<0,0,IF($Q27=1,GA27*$Q$10-GB27,GA27-GB27)) -> 0.3047 | GD27: =IFERROR(GC27/GA27,0) -> 0.9990163934 | GE27: =MIN(FS27,FH27,EW27,EL27,EA27,DP27,DE27,CX27,CQ27,CJ27,CC27,BV27,GD27) -> 0 | GF27: =IF(AND(GE27>0.4,GI27>0),GC27*GF$11,0) -> 0 | GG27: =SUM(GH27:GI27) -> 0 | GH27: =GF27*SUMIF(GF$4:GI$4,$S27,GF$5:GI$5) -> 0 | GI27: =IF(FY27=1,SUMIF(GF$4:GI$4,$S27,GF$7:GI$7)*FZ27,IF(FY27="ГН",GB27*SUMIF(GF$4:GI$4,$S27,GF$5:GI$5),IF(FY27=2,GB27*SUMIF(GF$4:GI$4,$S27,GF$5:GI$5)+FZ27*SUMIF(GF$4:GI$4,$S27,GF$6:GI$6),0))) -> 0 | GJ27: 1 | GK27: 0.145 | GL27: 0.305 | GM27: 0.003382 | GN27: =IF(IF($Q27=1,GL27*$Q$10-GM27,GL27-GM27)<0,0,IF($Q27=1,GL27*$Q$10-GM27,GL27-GM27)) -> 0.301618 | GO27: =IFERROR(GN27/GL27,0) -> 0.9889114754 | GP27: =MIN(GD27,FS27,FH27,EW27,EL27,EA27,DP27,DE27,CX27,CQ27,CJ27,CC27,GO27) -> 0 | GQ27: =IF(AND(GP27>0.4,GT27>0),GN27*GQ$11,0) -> 0 | GR27: =SUM(GS27:GT27) -> 0 | GS27: =GQ27*SUMIF(GQ$4:GT$4,$S27,GQ$5:GT$5) -> 0 | GT27: =IF(GJ27=1,SUMIF(GQ$4:GT$4,$S27,GQ$7:GT$7)*GK27,IF(GJ27="ГН",GM27*SUMIF(GQ$4:GT$4,$S27,GQ$5:GT$5),IF(GJ27=2,GM27*SUMIF(GQ$4:GT$4,$S27,GQ$5:GT$5)+GK27*SUMIF(GQ$4:GT$4,$S27,GQ$6:GT$6),0))) -> 0 | GU27: 1 | GV27: 0.079 | GW27: 0.305 | GX27: 0.0003 | GY27: =IF(IF($Q27=1,GW27*$Q$10-GX27,GW27-GX27)<0,0,IF($Q27=1,GW27*$Q$10-GX27,GW27-GX27)) -> 0.3047 | GZ27: =IFERROR(GY27/GW27,0) -> 0.9990163934 | HA27: =MIN(GO27,GD27,FS27,FH27,EW27,EL27,EA27,DP27,DE27,CX27,CQ27,CJ27,GZ27) -> 0 | HB27: =IF(AND(HA27>0.4,HE27>0),GY27*HB$11,0) -> 0 | HC27: =SUM(HD27:HE27) -> 0 | HD27: =HB27*SUMIF(HB$4:HE$4,$S27,HB$5:HE$5) -> 0 | HE27: =IF(GU27=1,SUMIF(HB$4:HE$4,$S27,HB$7:HE$7)*GV27,IF(GU27="ГН",GX27*SUMIF(HB$4:HE$4,$S27,HB$5:HE$5),IF(GU27=2,GX27*SUMIF(HB$4:HE$4,$S27,HB$5:HE$5)+GV27*SUMIF(HB$4:HE$4,$S27,HB$6:HE$6),0))) -> 0 | HF27: 1 | HG27: 0.075 | HH27: 0.305 | HI27: 0.000315 | HJ27: =IF(IF($Q27=1,HH27*$Q$10-HI27,HH27-HI27)<0,0,IF($Q27=1,HH27*$Q$10-HI27,HH27-HI27)) -> 0.304685 | HK27: =IFERROR(HJ27/HH27,0) -> 0.9989672131 | HL27: =MIN(GZ27,GO27,GD27,FS27,FH27,EW27,EL27,EA27,DP27,DE27,CX27,CQ27,HK27) -> 0.2672295082 | HM27: =IF(AND(HL27>0.4,HP27>0),HJ27*HM$11,0) -> 0 | HN27: =SUM(HO27:HP27) -> 0 | HO27: =HM27*SUMIF(HM$4:HP$4,$S27,HM$5:HP$5) -> 0 | HP27: =IF(HF27=1,SUMIF(HM$4:HP$4,$S27,HM$7:HP$7)*HG27,IF(HF27="ГН",HI27*SUMIF(HM$4:HP$4,$S27,HM$5:HP$5),IF(HF27=2,HI27*SUMIF(HM$4:HP$4,$S27,HM$5:HP$5)+HG27*SUMIF(HM$4:HP$4,$S27,HM$6:HP$6),0))) -> 0 | HU27: =IF(IF($Q27=1,HS27*$Q$10-HT27,HS27-HT27)<0,0,IF($Q27=1,HS27*$Q$10-HT27,HS27-HT27)) -> 0 | HV27: =IFERROR(HU27/HS27,0) -> 0 | HW27: =MIN(HK27,GZ27,GO27,GD27,FS27,FH27,EW27,EL27,EA27,DP27,DE27,CX27,HV27) -> 0 | HX27: =IF(AND(HW27>0.4,IA27>0),HU27*HX$11,0) -> 0 | HY27: =SUM(HZ27:IA27) -> 0 | HZ27: =HX27*SUMIF(HX$4:IA$4,$S27,HX$5:IA$5) -> 0 | IA27: =IF(HQ27=1,SUMIF(HX$4:IA$4,$S27,HX$7:IA$7)*HR27,IF(HQ27="ГН",HT27*SUMIF(HX$4:IA$4,$S27,HX$5:IA$5),IF(HQ27=2,HT27*SUMIF(HX$4:IA$4,$S27,HX$5:IA$5)+HR27*SUMIF(HX$4:IA$4,$S27,HX$6:IA$6),0))) -> 0 | IB27: =IFERROR(AVERAGE(HQ27,HF27,GU27,GJ27,FY27,FN27,FC27,ER27,EG27,DV27,DK27,CZ27),0) -> 1 | IC27: =SUM(HR27,HG27,GV27,GK27,FZ27,FO27,FD27,ES27,EH27,DW27,DL27,DA27) -> 610.722 | ID27: =IFERROR(AVERAGE(HS27,HH27,GW27,GL27,GA27,FP27,FE27,ET27,EI27,DX27,DM27,DB27),0) -> 0.305 | IE27: =IFERROR(AVERAGE(HT27,HI27,GX27,GM27,GB27,FQ27,FF27,EU27,EJ27,DY27,DN27,DC27),0) -> 0.1235491818 | IF27: =IFERROR(AVERAGE(HU27,HJ27,GY27,GN27,GC27,FR27,FG27,EV27,EK27,DZ27,DO27,DD27),0) -> 0.1663299167 | IG27: =IFERROR(IF27/ID27,0) -> 0.5453439891 | IH27: =IFERROR(AVERAGE(HX27,HM27,HB27,GQ27,GF27,FU27,FJ27,EY27,EN27,EC27,DR27,DG27),0) -> 0 | II27: =IJ27+IK27 -> 0 | IJ27: =SUM(HZ27,HO27,HD27,GS27,GH27,FW27,FL27,FA27,EP27,EE27,DT27,DI27) -> 0 | IK27: =SUM(IA27,HP27,HE27,GT27,GI27,FX27,FM27,FB27,EQ27,EF27,DU27,DJ27) -> 0
A28: ООО "МИП "Кинешма" | B28: Ивановская область | D28: ФКУ "ИК №3" УФСИН по Ив.обл. | E28: ПС "Автозаводская" ООО "МИП "Кинешма", РУ10кВ СШ2, яч.20, №110 | F28: Гос. Учреждения | G28: ГУ.Прочие | H28: Федеральный | L28: 670 и выше | M28: 5612042824 | N28: АО "ЭнергосбыТ Плюс" | O28: 3703020510 | P28: ООО "МИП "Кинешма" | R28: Э | S28: ВН | X28: 0 | Y28: 0 | Z28: 0 | AE28: 0 | AF28: 0 | AG28: 0 | AL28: 0 | AM28: 0 | AN28: 0 | AS28: 0 | AT28: 0 | AU28: 0 | AZ28: 0 | BA28: 0 | BB28: 0 | BG28: 0 | BH28: 0 | BI28: 0 | BN28: 0 | BO28: 0 | BP28: 0 | BU28: 0 | BV28: 0 | BW28: 0 | CB28: 0 | CC28: 0 | CD28: 0 | CI28: 0 | CJ28: 0 | CK28: 0 | CL28: 1 | CM28: 0.15 | CN28: =(0.68-CN29)/2 -> 0.305 | CO28: 0.0003 | CP28: =IF(IF($Q28=1,CN28*$Q$10-CO28,CN28-CO28)<0,0,IF($Q28=1,CN28*$Q$10-CO28,CN28-CO28)) -> 0.3047 | CQ28: =IFERROR(CP28/CN28,0) -> 0.9990163934 | CR28: =IF(CL28=1,SUMIF(CO$4:CR$4,$S28,CO$7:CR$7)*CM28,IF(CL28="ГН",CO28*SUMIF(CO$4:CR$4,$S28,CO$5:CR$5),IF(CL28=2,CO28*SUMIF(CO$4:CR$4,$S28,CO$5:CR$5)+CM28*SUMIF(CO$4:CR$4,$S28,CO$6:CR$6),0))) -> 296.8935 | CS28: 1 | CT28: 0.151 | CU28: =(0.68-CU29)/2 -> 0.305 | CV28: 0.0003 | CW28: =IF(IF($Q28=1,CU28*$Q$10-CV28,CU28-CV28)<0,0,IF($Q28=1,CU28*$Q$10-CV28,CU28-CV28)) -> 0.3047 | CX28: =IFERROR(CW28/CU28,0) -> 0.9990163934 | CY28: =IF(CS28=1,SUMIF(CV$4:CY$4,$S28,CV$7:CY$7)*CT28,IF(CS28="ГН",CV28*SUMIF(CV$4:CY$4,$S28,CV$5:CY$5),IF(CS28=2,CV28*SUMIF(CV$4:CY$4,$S28,CV$5:CY$5)+CT28*SUMIF(CV$4:CY$4,$S28,CV$6:CY$6),0))) -> 0 | CZ28: 1 | DA28: 0.153 | DB28: 0.305 | DC28: 0.0003 | DD28: =IF(IF($Q28=1,DB28*$Q$10-DC28,DB28-DC28)<0,0,IF($Q28=1,DB28*$Q$10-DC28,DB28-DC28)) -> 0.3047 | DE28: =IFERROR(DD28/DB28,0) -> 0.9990163934 | DF28: =MIN(CX28,CQ28,CJ28,CC28,BV28,BO28,BH28,BA28,AT28,AM28,AF28,Y28,DE28) -> 0 | DG28: =IF(AND(DF28>0.4,DJ28>0),DD28*DG$11,0) -> 0 | DH28: =SUM(DI28:DJ28) -> 0 | DI28: =DG28*SUMIF(DG$4:DJ$4,$S28,DG$5:DJ$5) -> 0 | DJ28: =IF(CZ28=1,SUMIF(DG$4:DJ$4,$S28,DG$7:DJ$7)*DA28,IF(CZ28="ГН",DC28*SUMIF(DG$4:DJ$4,$S28,DG$5:DJ$5),IF(CZ28=2,DC28*SUMIF(DG$4:DJ$4,$S28,DG$5:DJ$5)+DA28*SUMIF(DG$4:DJ$4,$S28,DG$6:DJ$6),0))) -> 0 | DK28: 1 | DL28: 0.139 | DM28: 0.305 | DN28: 0.0003 | DO28: =IF(IF($Q28=1,DM28*$Q$10-DN28,DM28-DN28)<0,0,IF($Q28=1,DM28*$Q$10-DN28,DM28-DN28)) -> 0.3047 | DP28: =IFERROR(DO28/DM28,0) -> 0.9990163934 | DQ28: =MIN(DE28,CX28,CQ28,CJ28,CC28,BV28,BO28,BH28,BA28,AT28,AM28,AF28,DP28) -> 0 | DR28: =IF(AND(DQ28>0.4,DU28>0),DO28*DR$11,0) -> 0 | DS28: =SUM(DT28:DU28) -> 0 | DT28: =DR28*SUMIF(DR$4:DU$4,$S28,DR$5:DU$5) -> 0 | DU28: =IF(DK28=1,SUMIF(DR$4:DU$4,$S28,DR$7:DU$7)*DL28,IF(DK28="ГН",DN28*SUMIF(DR$4:DU$4,$S28,DR$5:DU$5),IF(DK28=2,DN28*SUMIF(DR$4:DU$4,$S28,DR$5:DU$5)+DL28*SUMIF(DR$4:DU$4,$S28,DR$6:DU$6),0))) -> 0 | DV28: 1 | DW28: 0.149 | DX28: 0.305 | DY28: 0.0003 | DZ28: =IF(IF($Q28=1,DX28*$Q$10-DY28,DX28-DY28)<0,0,IF($Q28=1,DX28*$Q$10-DY28,DX28-DY28)) -> 0.3047 | EA28: =IFERROR(DZ28/DX28,0) -> 0.9990163934 | EB28: =MIN(DP28,DE28,CX28,CQ28,CJ28,CC28,BV28,BO28,BH28,BA28,AT28,AM28,EA28) -> 0 | EC28: =IF(AND(EB28>0.4,EF28>0),DZ28*EC$11,0) -> 0 | ED28: =SUM(EE28:EF28) -> 0 | EE28: =EC28*SUMIF(EC$4:EF$4,$S28,EC$5:EF$5) -> 0 | EF28: =IF(DV28=1,SUMIF(EC$4:EF$4,$S28,EC$7:EF$7)*DW28,IF(DV28="ГН",DY28*SUMIF(EC$4:EF$4,$S28,EC$5:EF$5),IF(DV28=2,DY28*SUMIF(EC$4:EF$4,$S28,EC$5:EF$5)+DW28*SUMIF(EC$4:EF$4,$S28,EC$6:EF$6),0))) -> 0 | EG28: 1 | EH28: 0.148 | EI28: 0.305 | EJ28: 0.0003 | EK28: =IF(IF($Q28=1,EI28*$Q$10-EJ28,EI28-EJ28)<0,0,IF($Q28=1,EI28*$Q$10-EJ28,EI28-EJ28)) -> 0.3047 | EL28: =IFERROR(EK28/EI28,0) -> 0.9990163934 | EM28: =MIN(EA28,DP28,DE28,CX28,CQ28,CJ28,CC28,BV28,BO28,BH28,BA28,AT28,EL28) -> 0 | EN28: =IF(AND(EM28>0.4,EQ28>0),EK28*EN$11,0) -> 0 | EO28: =SUM(EP28:EQ28) -> 0 | EP28: =EN28*SUMIF(EN$4:EQ$4,$S28,EN$5:EQ$5) -> 0 | EQ28: =IF(EG28=1,SUMIF(EN$4:EQ$4,$S28,EN$7:EQ$7)*EH28,IF(EG28="ГН",EJ28*SUMIF(EN$4:EQ$4,$S28,EN$5:EQ$5),IF(EG28=2,EJ28*SUMIF(EN$4:EQ$4,$S28,EN$5:EQ$5)+EH28*SUMIF(EN$4:EQ$4,$S28,EN$6:EQ$6),0))) -> 0 | ER28: 1 | ES28: 0.162 | ET28: 0.305 | EU28: 0.0003 | EV28: =IF(IF($Q28=1,ET28*$Q$10-EU28,ET28-EU28)<0,0,IF($Q28=1,ET28*$Q$10-EU28,ET28-EU28)) -> 0.3047 | EW28: =IFERROR(EV28/ET28,0) -> 0.9990163934 | EX28: =MIN(EL28,EA28,DP28,DE28,CX28,CQ28,CJ28,CC28,BV28,BO28,BH28,BA28,EW28) -> 0 | EY28: =IF(AND(EX28>0.4,FB28>0),EV28*EY$11,0) -> 0 | EZ28: =SUM(FA28:FB28) -> 0 | FA28: =EY28*SUMIF(EY$4:FB$4,$S28,EY$5:FB$5) -> 0 | FB28: =IF(ER28=1,SUMIF(EY$4:FB$4,$S28,EY$7:FB$7)*ES28,IF(ER28="ГН",EU28*SUMIF(EY$4:FB$4,$S28,EY$5:FB$5),IF(ER28=2,EU28*SUMIF(EY$4:FB$4,$S28,EY$5:FB$5)+ES28*SUMIF(EY$4:FB$4,$S28,EY$6:FB$6),0))) -> 0 | FC28: 1 | FD28: 0.162 | FE28: 0.305 | FF28: 0.0003 | FG28: =IF(IF($Q28=1,FE28*$Q$10-FF28,FE28-FF28)<0,0,IF($Q28=1,FE28*$Q$10-FF28,FE28-FF28)) -> 0.3047 | FH28: =IFERROR(FG28/FE28,0) -> 0.9990163934 | FI28: =MIN(EW28,EL28,EA28,DP28,DE28,CX28,CQ28,CJ28,CC28,BV28,BO28,BH28,FH28) -> 0 | FJ28: =IF(AND(FI28>0.4,FM28>0),FG28*FJ$11,0) -> 0 | FK28: =SUM(FL28:FM28) -> 0 | FL28: =FJ28*SUMIF(FJ$4:FM$4,$S28,FJ$5:FM$5) -> 0 | FM28: =IF(FC28=1,SUMIF(FJ$4:FM$4,$S28,FJ$7:FM$7)*FD28,IF(FC28="ГН",FF28*SUMIF(FJ$4:FM$4,$S28,FJ$5:FM$5),IF(FC28=2,FF28*SUMIF(FJ$4:FM$4,$S28,FJ$5:FM$5)+FD28*SUMIF(FJ$4:FM$4,$S28,FJ$6:FM$6),0))) -> 0 | FN28: 1 | FO28: =2.857+36.451 -> 39.308 | FP28: 0.305 | FQ28: =0.103577 -> 0.103577 | FR28: =IF(IF($Q28=1,FP28*$Q$10-FQ28,FP28-FQ28)<0,0,IF($Q28=1,FP28*$Q$10-FQ28,FP28-FQ28)) -> 0.201423 | FS28: =IFERROR(FR28/FP28,0) -> 0.6604032787 | FT28: =MIN(FH28,EW28,EL28,EA28,DP28,DE28,CX28,CQ28,CJ28,CC28,BV28,BO28,FS28) -> 0 | FU28: =IF(AND(FT28>0.4,FX28>0),FR28*FU$11,0) -> 0 | FV28: =SUM(FW28:FX28) -> 0 | FW28: =FU28*SUMIF(FU$4:FX$4,$S28,FU$5:FX$5) -> 0 | FX28: =IF(FN28=1,SUMIF(FU$4:FX$4,$S28,FU$7:FX$7)*FO28,IF(FN28="ГН",FQ28*SUMIF(FU$4:FX$4,$S28,FU$5:FX$5),IF(FN28=2,FQ28*SUMIF(FU$4:FX$4,$S28,FU$5:FX$5)+FO28*SUMIF(FU$4:FX$4,$S28,FU$6:FX$6),0))) -> 0 | FY28: 1 | FZ28: =100.645-FZ20-FZ29 -> 84.735 | GA28: 0.305 | GB28: =0.226571-GB20-GB29 -> 0.197383 | GC28: =IF(IF($Q28=1,GA28*$Q$10-GB28,GA28-GB28)<0,0,IF($Q28=1,GA28*$Q$10-GB28,GA28-GB28)) -> 0.107617 | GD28: =IFERROR(GC28/GA28,0) -> 0.352842623 | GE28: =MIN(FS28,FH28,EW28,EL28,EA28,DP28,DE28,CX28,CQ28,CJ28,CC28,BV28,GD28) -> 0 | GF28: =IF(AND(GE28>0.4,GI28>0),GC28*GF$11,0) -> 0 | GG28: =SUM(GH28:GI28) -> 0 | GH28: =GF28*SUMIF(GF$4:GI$4,$S28,GF$5:GI$5) -> 0 | GI28: =IF(FY28=1,SUMIF(GF$4:GI$4,$S28,GF$7:GI$7)*FZ28,IF(FY28="ГН",GB28*SUMIF(GF$4:GI$4,$S28,GF$5:GI$5),IF(FY28=2,GB28*SUMIF(GF$4:GI$4,$S28,GF$5:GI$5)+FZ28*SUMIF(GF$4:GI$4,$S28,GF$6:GI$6),0))) -> 0 | GJ28: 1 | GK28: =110.378-GK20-GK29 -> 91.788 | GL28: 0.305 | GM28: =0.254545-GM20-GM29 -> 0.221843 | GN28: =IF(IF($Q28=1,GL28*$Q$10-GM28,GL28-GM28)<0,0,IF($Q28=1,GL28*$Q$10-GM28,GL28-GM28)) -> 0.083157 | GO28: =IFERROR(GN28/GL28,0) -> 0.2726459016 | GP28: =MIN(GD28,FS28,FH28,EW28,EL28,EA28,DP28,DE28,CX28,CQ28,CJ28,CC28,GO28) -> 0 | GQ28: =IF(AND(GP28>0.4,GT28>0),GN28*GQ$11,0) -> 0 | GR28: =SUM(GS28:GT28) -> 0 | GS28: =GQ28*SUMIF(GQ$4:GT$4,$S28,GQ$5:GT$5) -> 0 | GT28: =IF(GJ28=1,SUMIF(GQ$4:GT$4,$S28,GQ$7:GT$7)*GK28,IF(GJ28="ГН",GM28*SUMIF(GQ$4:GT$4,$S28,GQ$5:GT$5),IF(GJ28=2,GM28*SUMIF(GQ$4:GT$4,$S28,GQ$5:GT$5)+GK28*SUMIF(GQ$4:GT$4,$S28,GQ$6:GT$6),0))) -> 0 | GU28: 1 | GV28: =106.886-GV20-GV29 -> 89.386 | GW28: 0.305 | GX28: =0.214691-GX20-GX29 -> 0.184155 | GY28: =IF(IF($Q28=1,GW28*$Q$10-GX28,GW28-GX28)<0,0,IF($Q28=1,GW28*$Q$10-GX28,GW28-GX28)) -> 0.120845 | GZ28: =IFERROR(GY28/GW28,0) -> 0.3962131148 | HA28: =MIN(GO28,GD28,FS28,FH28,EW28,EL28,EA28,DP28,DE28,CX28,CQ28,CJ28,GZ28) -> 0 | HB28: =IF(AND(HA28>0.4,HE28>0),GY28*HB$11,0) -> 0 | HC28: =SUM(HD28:HE28) -> 0 | HD28: =HB28*SUMIF(HB$4:HE$4,$S28,HB$5:HE$5) -> 0 | HE28: =IF(GU28=1,SUMIF(HB$4:HE$4,$S28,HB$7:HE$7)*GV28,IF(GU28="ГН",GX28*SUMIF(HB$4:HE$4,$S28,HB$5:HE$5),IF(GU28=2,GX28*SUMIF(HB$4:HE$4,$S28,HB$5:HE$5)+GV28*SUMIF(HB$4:HE$4,$S28,HB$6:HE$6),0))) -> 0 | HF28: 1 | HG28: =110.467-HG20-HG29 -> 92.717 | HH28: 0.305 | HI28: =0.22924-HI20-HI29 -> 0.198539 | HJ28: =IF(IF($Q28=1,HH28*$Q$10-HI28,HH28-HI28)<0,0,IF($Q28=1,HH28*$Q$10-HI28,HH28-HI28)) -> 0.106461 | HK28: =IFERROR(HJ28/HH28,0) -> 0.349052459 | HL28: =MIN(GZ28,GO28,GD28,FS28,FH28,EW28,EL28,EA28,DP28,DE28,CX28,CQ28,HK28) -> 0.2726459016 | HM28: =IF(AND(HL28>0.4,HP28>0),HJ28*HM$11,0) -> 0 | HN28: =SUM(HO28:HP28) -> 0 | HO28: =HM28*SUMIF(HM$4:HP$4,$S28,HM$5:HP$5) -> 0 | HP28: =IF(HF28=1,SUMIF(HM$4:HP$4,$S28,HM$7:HP$7)*HG28,IF(HF28="ГН",HI28*SUMIF(HM$4:HP$4,$S28,HM$5:HP$5),IF(HF28=2,HI28*SUMIF(HM$4:HP$4,$S28,HM$5:HP$5)+HG28*SUMIF(HM$4:HP$4,$S28,HM$6:HP$6),0))) -> 0 | HU28: =IF(IF($Q28=1,HS28*$Q$10-HT28,HS28-HT28)<0,0,IF($Q28=1,HS28*$Q$10-HT28,HS28-HT28)) -> 0 | HV28: =IFERROR(HU28/HS28,0) -> 0 | HW28: =MIN(HK28,GZ28,GO28,GD28,FS28,FH28,EW28,EL28,EA28,DP28,DE28,CX28,HV28) -> 0 | HX28: =IF(AND(HW28>0.4,IA28>0),HU28*HX$11,0) -> 0 | HY28: =SUM(HZ28:IA28) -> 0 | HZ28: =HX28*SUMIF(HX$4:IA$4,$S28,HX$5:IA$5) -> 0 | IA28: =IF(HQ28=1,SUMIF(HX$4:IA$4,$S28,HX$7:IA$7)*HR28,IF(HQ28="ГН",HT28*SUMIF(HX$4:IA$4,$S28,HX$5:IA$5),IF(HQ28=2,HT28*SUMIF(HX$4:IA$4,$S28,HX$5:IA$5)+HR28*SUMIF(HX$4:IA$4,$S28,HX$6:IA$6),0))) -> 0 | IB28: =IFERROR(AVERAGE(HQ28,HF28,GU28,GJ28,FY28,FN28,FC28,ER28,EG28,DV28,DK28,CZ28),0) -> 1 | IC28: =SUM(HR28,HG28,GV28,GK28,FZ28,FO28,FD28,ES28,EH28,DW28,DL28,DA28) -> 398.847 | ID28: =IFERROR(AVERAGE(HS28,HH28,GW28,GL28,GA28,FP28,FE28,ET28,EI28,DX28,DM28,DB28),0) -> 0.305 | IE28: =IFERROR(AVERAGE(HT28,HI28,GX28,GM28,GB28,FQ28,FF28,EU28,EJ28,DY28,DN28,DC28),0) -> 0.08248154545 | IF28: =IFERROR(AVERAGE(HU28,HJ28,GY28,GN28,GC28,FR28,FG28,EV28,EK28,DZ28,DO28,DD28),0) -> 0.20397525 | IG28: =IFERROR(IF28/ID28,0) -> 0.6687713115 | IH28: =IFERROR(AVERAGE(HX28,HM28,HB28,GQ28,GF28,FU28,FJ28,EY28,EN28,EC28,DR28,DG28),0) -> 0 | II28: =IJ28+IK28 -> 0 | IJ28: =SUM(HZ28,HO28,HD28,GS28,GH28,FW28,FL28,FA28,EP28,EE28,DT28,DI28) -> 0 | IK28: =SUM(IA28,HP28,HE28,GT28,GI28,FX28,FM28,FB28,EQ28,EF28,DU28,DJ28) -> 0
A29: ООО "МИП "Кинешма" | B29: Ивановская область | D29: СИЗО №2 УФСИН по Ив.обл. | E29: ГПП "Автозаводская" ООО "МИП "Кинешма", ЗРУ 10кВ, РУ 10кВ, ТП1 | F29: Гос. Учреждения | G29: ГУ.Прочие | H29: Федеральный | L29: менее 670 | M29: 5612042824 | N29: АО "ЭнергосбыТ Плюс" | O29: 3703020510 | P29: ООО "МИП "Кинешма" | R29: Э | S29: ВН | X29: 0 | Y29: 0 | Z29: 0 | AE29: 0 | AF29: 0 | AG29: 0 | AL29: 0 | AM29: 0 | AN29: 0 | AS29: 0 | AT29: 0 | AU29: 0 | AZ29: 0 | BA29: 0 | BB29: 0 | BG29: 0 | BH29: 0 | BI29: 0 | BN29: 0 | BO29: 0 | BP29: 0 | BU29: 0 | BV29: 0 | BW29: 0 | CB29: 0 | CC29: 0 | CD29: 0 | CI29: 0 | CJ29: 0 | CK29: 0 | CL29: 1 | CM29: 13.5 | CN29: 0.07 | CO29: 0.023156 | CP29: 0.046844 | CQ29: 0.6692 | CR29: 26720.415 | CS29: 1 | CT29: 25.05 | CU29: 0.07 | CV29: 0.042967 | CW29: 0.027033 | CX29: 0.3861857143 | CY29: 0 | CZ29: 1 | DA29: 10.35 | DB29: 0.07 | DC29: 0.017753 | DD29: 0.052247 | DE29: 0.7463857143 | DF29: 0 | DG29: 0 | DH29: 0 | DI29: 0 | DJ29: 0 | DK29: 1 | DL29: 10.65 | DM29: 0.07 | DN29: 0.018268 | DO29: 0.051732 | DP29: 0.7390285714 | DQ29: 0 | DR29: 0 | DS29: 0 | DT29: 0 | DU29: 0 | DV29: 1 | DW29: 10.23 | DX29: 0.07 | DY29: 0.017547 | DZ29: 0.052453 | EA29: 0.7493285714 | EB29: 0 | EC29: 0 | ED29: 0 | EE29: 0 | EF29: 0 | EG29: 1 | EH29: 9.72 | EI29: 0.07 | EJ29: 0.016672 | EK29: 0.053328 | EL29: 0.7618285714 | EM29: 0 | EN29: 0 | EO29: 0 | EP29: 0 | EQ29: 0 | ER29: 1 | ES29: 13.35 | ET29: 0.07 | EU29: 0.022899 | EV29: 0.047101 | EW29: 0.6728714286 | EX29: 0 | EY29: 0 | EZ29: 0 | FA29: 0 | FB29: 0 | FC29: 1 | FD29: 14.67 | FE29: 0.07 | FF29: 0.025163 | FG29: 0.044837 | FH29: 0.6405285714 | FI29: 0 | FJ29: 0 | FK29: 0 | FL29: 0 | FM29: 0 | FN29: 1 | FO29: 14.43 | FP29: 0.07 | FQ29: 0.024751 | FR29: 0.045249 | FS29: 0.6464142857 | FT29: 0 | FU29: 0 | FV29: 0 | FW29: 0 | FX29: 0 | FY29: 1 | FZ29: 15.39 | GA29: 0.07 | GB29: 0.027324 | GC29: 0.042676 | GD29: 0.6096571429 | GE29: 0 | GF29: 0 | GG29: 0 | GH29: 0 | GI29: 0 | GJ29: 1 | GK29: 17.97 | GL29: 0.07 | GM29: 0.030823 | GN29: 0.039177 | GO29: 0.5596714286 | GP29: 0 | GQ29: 0 | GR29: 0 | GS29: 0 | GT29: 0 | GU29: 1 | GV29: 16.62 | GW29: 0.07 | GX29: 0.028508 | GY29: 0.041492 | GZ29: 0.5927428571 | HA29: 0 | HB29: 0 | HC29: 0 | HD29: 0 | HE29: 0 | HF29: 1 | HG29: 16.83 | HH29: 0.07 | HI29: 0.028868 | HJ29: 0.041132 | HK29: 0.5876 | HL29: 0.3861857143 | HM29: 0 | HN29: 0 | HO29: 0 | HP29: 0 | HU29: 0 | HV29: 0 | HW29: 0 | HX29: 0 | HY29: 0 | HZ29: 0 | IA29: 0 | IB29: 1 | IC29: 150.21 | ID29: 0.07 | IE29: 0.02350690909 | IF29: 0.04261866667 | IG29: 0.6088380952 | IH29: 0 | II29: 0 | IJ29: 0 | IK29: 0
A30: ООО "МИП "Кинешма" | B30: Ивановская область | D30: ООО"ЖелДорМаш-Кинешма" | E30: ПС "Автозаводская-110/10кВ" ООО "МИП "Кинешма", ф.№125, КЛ10кВ от яч.№35 | F30: Прочие | G30: Прочие | L30: 670 и выше | M30: 5612042824 | N30: АО "ЭнергосбыТ Плюс" | O30: 3703020510 | P30: ООО "МИП "Кинешма" | Q30: 1 | R30: Э | S30: ВН | Z30: =IF(T30=1,SUMIF(W$4:Z$4,$S30,W$7:Z$7)*U30,IF(T30="ГН",W30*SUMIF(W$4:Z$4,$S30,W$5:Z$5),IF(T30=2,W30*SUMIF(W$4:Z$4,$S30,W$5:Z$5)+U30*SUMIF(W$4:Z$4,$S30,W$6:Z$6),0))) -> 0 | AG30: =IF(AA30=1,SUMIF(AD$4:AG$4,$S30,AD$7:AG$7)*AB30,IF(AA30="ГН",AD30*SUMIF(AD$4:AG$4,$S30,AD$5:AG$5),IF(AA30=2,AD30*SUMIF(AD$4:AG$4,$S30,AD$5:AG$5)+AB30*SUMIF(AD$4:AG$4,$S30,AD$6:AG$6),0))) -> 0 | AN30: =IF(AH30=1,SUMIF(AK$4:AN$4,$S30,AK$7:AN$7)*AI30,IF(AH30="ГН",AK30*SUMIF(AK$4:AN$4,$S30,AK$5:AN$5),IF(AH30=2,AK30*SUMIF(AK$4:AN$4,$S30,AK$5:AN$5)+AI30*SUMIF(AK$4:AN$4,$S30,AK$6:AN$6),0))) -> 0 | AU30: =IF(AO30=1,SUMIF(AR$4:AU$4,$S30,AR$7:AU$7)*AP30,IF(AO30="ГН",AR30*SUMIF(AR$4:AU$4,$S30,AR$5:AU$5),IF(AO30=2,AR30*SUMIF(AR$4:AU$4,$S30,AR$5:AU$5)+AP30*SUMIF(AR$4:AU$4,$S30,AR$6:AU$6),0))) -> 0 | BB30: =IF(AV30=1,SUMIF(AY$4:BB$4,$S30,AY$7:BB$7)*AW30,IF(AV30="ГН",AY30*SUMIF(AY$4:BB$4,$S30,AY$5:BB$5),IF(AV30=2,AY30*SUMIF(AY$4:BB$4,$S30,AY$5:BB$5)+AW30*SUMIF(AY$4:BB$4,$S30,AY$6:BB$6),0))) -> 0 | BI30: =IF(BC30=1,SUMIF(BF$4:BI$4,$S30,BF$7:BI$7)*BD30,IF(BC30="ГН",BF30*SUMIF(BF$4:BI$4,$S30,BF$5:BI$5),IF(BC30=2,BF30*SUMIF(BF$4:BI$4,$S30,BF$5:BI$5)+BD30*SUMIF(BF$4:BI$4,$S30,BF$6:BI$6),0))) -> 0 | BP30: =IF(BJ30=1,SUMIF(BM$4:BP$4,$S30,BM$7:BP$7)*BK30,IF(BJ30="ГН",BM30*SUMIF(BM$4:BP$4,$S30,BM$5:BP$5),IF(BJ30=2,BM30*SUMIF(BM$4:BP$4,$S30,BM$5:BP$5)+BK30*SUMIF(BM$4:BP$4,$S30,BM$6:BP$6),0))) -> 0 | BW30: =IF(BQ30=1,SUMIF(BT$4:BW$4,$S30,BT$7:BW$7)*BR30,IF(BQ30="ГН",BT30*SUMIF(BT$4:BW$4,$S30,BT$5:BW$5),IF(BQ30=2,BT30*SUMIF(BT$4:BW$4,$S30,BT$5:BW$5)+BR30*SUMIF(BT$4:BW$4,$S30,BT$6:BW$6),0))) -> 0 | CD30: =IF(BX30=1,SUMIF(CA$4:CD$4,$S30,CA$7:CD$7)*BY30,IF(BX30="ГН",CA30*SUMIF(CA$4:CD$4,$S30,CA$5:CD$5),IF(BX30=2,CA30*SUMIF(CA$4:CD$4,$S30,CA$5:CD$5)+BY30*SUMIF(CA$4:CD$4,$S30,CA$6:CD$6),0))) -> 0 | CK30: =IF(CE30=1,SUMIF(CH$4:CK$4,$S30,CH$7:CK$7)*CF30,IF(CE30="ГН",CH30*SUMIF(CH$4:CK$4,$S30,CH$5:CK$5),IF(CE30=2,CH30*SUMIF(CH$4:CK$4,$S30,CH$5:CK$5)+CF30*SUMIF(CH$4:CK$4,$S30,CH$6:CK$6),0))) -> 0 | CL30: 2 | CM30: 8.532 | CN30: =0.6/2 -> 0.3 | CO30: 0.01518 | CP30: =IF(IF($Q30=1,CN30*$Q$10-CO30,CN30-CO30)<0,0,IF($Q30=1,CN30*$Q$10-CO30,CN30-CO30)) -> 0.14982 | CQ30: =IFERROR(CP30/CN30,0) -> 0.4994 | CR30: =IF(CL30=1,SUMIF(CO$4:CR$4,$S30,CO$7:CR$7)*CM30,IF(CL30="ГН",CO30*SUMIF(CO$4:CR$4,$S30,CO$5:CR$5),IF(CL30=2,CO30*SUMIF(CO$4:CR$4,$S30,CO$5:CR$5)+CM30*SUMIF(CO$4:CR$4,$S30,CO$6:CR$6),0))) -> 21213.91974 | CS30: 2 | CT30: 9.228 | CU30: =0.6/2 -> 0.3 | CV30: 0.015873 | CW30: =IF(IF($Q30=1,CU30*$Q$10-CV30,CU30-CV30)<0,0,IF($Q30=1,CU30*$Q$10-CV30,CU30-CV30)) -> 0.149127 | CX30: =IFERROR(CW30/CU30,0) -> 0.49709 | CY30: =IF(CS30=1,SUMIF(CV$4:CY$4,$S30,CV$7:CY$7)*CT30,IF(CS30="ГН",CV30*SUMIF(CV$4:CY$4,$S30,CV$5:CY$5),IF(CS30=2,CV30*SUMIF(CV$4:CY$4,$S30,CV$5:CY$5)+CT30*SUMIF(CV$4:CY$4,$S30,CV$6:CY$6),0))) -> 0 | CZ30: 2 | DA30: 9.269 | DB30: 0.3 | DC30: 0.016165 | DD30: =IF(IF($Q30=1,DB30*$Q$10-DC30,DB30-DC30)<0,0,IF($Q30=1,DB30*$Q$10-DC30,DB30-DC30)) -> 0.148835 | DE30: =IFERROR(DD30/DB30,0) -> 0.4961166667 | DF30: =MIN(CX30,CQ30,CJ30,CC30,BV30,BO30,BH30,BA30,AT30,AM30,AF30,Y30,DE30) -> 0.4961166667 | DG30: =IF(AND(DF30>0.4,DJ30>0),DD30*DG$11,0) -> 0 | DH30: =SUM(DI30:DJ30) -> 0 | DI30: =DG30*SUMIF(DG$4:DJ$4,$S30,DG$5:DJ$5) -> 0 | DJ30: =IF(CZ30=1,SUMIF(DG$4:DJ$4,$S30,DG$7:DJ$7)*DA30,IF(CZ30="ГН",DC30*SUMIF(DG$4:DJ$4,$S30,DG$5:DJ$5),IF(CZ30=2,DC30*SUMIF(DG$4:DJ$4,$S30,DG$5:DJ$5)+DA30*SUMIF(DG$4:DJ$4,$S30,DG$6:DJ$6),0))) -> 0 | DK30: 2 | DL30: 8.503 | DM30: 0.3 | DN30: 0.015853 | DO30: =IF(IF($Q30=1,DM30*$Q$10-DN30,DM30-DN30)<0,0,IF($Q30=1,DM30*$Q$10-DN30,DM30-DN30)) -> 0.149147 | DP30: =IFERROR(DO30/DM30,0) -> 0.4971566667 | DQ30: =MIN(DE30,CX30,CQ30,CJ30,CC30,BV30,BO30,BH30,BA30,AT30,AM30,AF30,DP30) -> 0.4961166667 | DR30: =IF(AND(DQ30>0.4,DU30>0),DO30*DR$11,0) -> 0 | DS30: =SUM(DT30:DU30) -> 0 | DT30: =DR30*SUMIF(DR$4:DU$4,$S30,DR$5:DU$5) -> 0 | DU30: =IF(DK30=1,SUMIF(DR$4:DU$4,$S30,DR$7:DU$7)*DL30,IF(DK30="ГН",DN30*SUMIF(DR$4:DU$4,$S30,DR$5:DU$5),IF(DK30=2,DN30*SUMIF(DR$4:DU$4,$S30,DR$5:DU$5)+DL30*SUMIF(DR$4:DU$4,$S30,DR$6:DU$6),0))) -> 0 | DV30: 2 | DW30: 8.47 | DX30: 0.3 | DY30: 0.015032 | DZ30: =IF(IF($Q30=1,DX30*$Q$10-DY30,DX30-DY30)<0,0,IF($Q30=1,DX30*$Q$10-DY30,DX30-DY30)) -> 0.149968 | EA30: =IFERROR(DZ30/DX30,0) -> 0.4998933333 | EB30: =MIN(DP30,DE30,CX30,CQ30,CJ30,CC30,BV30,BO30,BH30,BA30,AT30,AM30,EA30) -> 0.4961166667 | EC30: =IF(AND(EB30>0.4,EF30>0),DZ30*EC$11,0) -> 0 | ED30: =SUM(EE30:EF30) -> 0 | EE30: =EC30*SUMIF(EC$4:EF$4,$S30,EC$5:EF$5) -> 0 | EF30: =IF(DV30=1,SUMIF(EC$4:EF$4,$S30,EC$7:EF$7)*DW30,IF(DV30="ГН",DY30*SUMIF(EC$4:EF$4,$S30,EC$5:EF$5),IF(DV30=2,DY30*SUMIF(EC$4:EF$4,$S30,EC$5:EF$5)+DW30*SUMIF(EC$4:EF$4,$S30,EC$6:EF$6),0))) -> 0 | EG30: 2 | EH30: 7.573 | EI30: 0.3 | EJ30: 0.013036 | EK30: =IF(IF($Q30=1,EI30*$Q$10-EJ30,EI30-EJ30)<0,0,IF($Q30=1,EI30*$Q$10-EJ30,EI30-EJ30)) -> 0.151964 | EL30: =IFERROR(EK30/EI30,0) -> 0.5065466667 | EM30: =MIN(EA30,DP30,DE30,CX30,CQ30,CJ30,CC30,BV30,BO30,BH30,BA30,AT30,EL30) -> 0.4961166667 | EN30: =IF(AND(EM30>0.4,EQ30>0),EK30*EN$11,0) -> 0 | EO30: =SUM(EP30:EQ30) -> 0 | EP30: =EN30*SUMIF(EN$4:EQ$4,$S30,EN$5:EQ$5) -> 0 | EQ30: =IF(EG30=1,SUMIF(EN$4:EQ$4,$S30,EN$7:EQ$7)*EH30,IF(EG30="ГН",EJ30*SUMIF(EN$4:EQ$4,$S30,EN$5:EQ$5),IF(EG30=2,EJ30*SUMIF(EN$4:EQ$4,$S30,EN$5:EQ$5)+EH30*SUMIF(EN$4:EQ$4,$S30,EN$6:EQ$6),0))) -> 0 | ER30: 2 | ES30: 6.394 | ET30: 0.3 | EU30: 0.011788 | EV30: =IF(IF($Q30=1,ET30*$Q$10-EU30,ET30-EU30)<0,0,IF($Q30=1,ET30*$Q$10-EU30,ET30-EU30)) -> 0.153212 | EW30: =IFERROR(EV30/ET30,0) -> 0.5107066667 | EX30: =MIN(EL30,EA30,DP30,DE30,CX30,CQ30,CJ30,CC30,BV30,BO30,BH30,BA30,EW30) -> 0.4961166667 | EY30: =IF(AND(EX30>0.4,FB30>0),EV30*EY$11,0) -> 0 | EZ30: =SUM(FA30:FB30) -> 0 | FA30: =EY30*SUMIF(EY$4:FB$4,$S30,EY$5:FB$5) -> 0 | FB30: =IF(ER30=1,SUMIF(EY$4:FB$4,$S30,EY$7:FB$7)*ES30,IF(ER30="ГН",EU30*SUMIF(EY$4:FB$4,$S30,EY$5:FB$5),IF(ER30=2,EU30*SUMIF(EY$4:FB$4,$S30,EY$5:FB$5)+ES30*SUMIF(EY$4:FB$4,$S30,EY$6:FB$6),0))) -> 0 | FC30: 2 | FD30: 4.452 | FE30: 0.3 | FF30: 0.00936 | FG30: =IF(IF($Q30=1,FE30*$Q$10-FF30,FE30-FF30)<0,0,IF($Q30=1,FE30*$Q$10-FF30,FE30-FF30)) -> 0.15564 | FH30: =IFERROR(FG30/FE30,0) -> 0.5188 | FI30: =MIN(EW30,EL30,EA30,DP30,DE30,CX30,CQ30,CJ30,CC30,BV30,BO30,BH30,FH30) -> 0.4961166667 | FJ30: =IF(AND(FI30>0.4,FM30>0),FG30*FJ$11,0) -> 0 | FK30: =SUM(FL30:FM30) -> 0 | FL30: =FJ30*SUMIF(FJ$4:FM$4,$S30,FJ$5:FM$5) -> 0 | FM30: =IF(FC30=1,SUMIF(FJ$4:FM$4,$S30,FJ$7:FM$7)*FD30,IF(FC30="ГН",FF30*SUMIF(FJ$4:FM$4,$S30,FJ$5:FM$5),IF(FC30=2,FF30*SUMIF(FJ$4:FM$4,$S30,FJ$5:FM$5)+FD30*SUMIF(FJ$4:FM$4,$S30,FJ$6:FM$6),0))) -> 0 | FN30: 2 | FO30: 4.039 | FP30: 0.3 | FQ30: 0.009709 | FR30: =IF(IF($Q30=1,FP30*$Q$10-FQ30,FP30-FQ30)<0,0,IF($Q30=1,FP30*$Q$10-FQ30,FP30-FQ30)) -> 0.155291 | FS30: =IFERROR(FR30/FP30,0) -> 0.5176366667 | FT30: =MIN(FH30,EW30,EL30,EA30,DP30,DE30,CX30,CQ30,CJ30,CC30,BV30,BO30,FS30) -> 0.4961166667 | FU30: =IF(AND(FT30>0.4,FX30>0),FR30*FU$11,0) -> 0 | FV30: =SUM(FW30:FX30) -> 0 | FW30: =FU30*SUMIF(FU$4:FX$4,$S30,FU$5:FX$5) -> 0 | FX30: =IF(FN30=1,SUMIF(FU$4:FX$4,$S30,FU$7:FX$7)*FO30,IF(FN30="ГН",FQ30*SUMIF(FU$4:FX$4,$S30,FU$5:FX$5),IF(FN30=2,FQ30*SUMIF(FU$4:FX$4,$S30,FU$5:FX$5)+FO30*SUMIF(FU$4:FX$4,$S30,FU$6:FX$6),0))) -> 0 | FY30: 2 | FZ30: 4.403 | GA30: 0.3 | GB30: 0.0084 | GC30: =IF(IF($Q30=1,GA30*$Q$10-GB30,GA30-GB30)<0,0,IF($Q30=1,GA30*$Q$10-GB30,GA30-GB30)) -> 0.1566 | GD30: =IFERROR(GC30/GA30,0) -> 0.522 | GE30: =MIN(FS30,FH30,EW30,EL30,EA30,DP30,DE30,CX30,CQ30,CJ30,CC30,BV30,GD30) -> 0.4961166667 | GF30: =IF(AND(GE30>0.4,GI30>0),GC30*GF$11,0) -> 0 | GG30: =SUM(GH30:GI30) -> 0 | GH30: =GF30*SUMIF(GF$4:GI$4,$S30,GF$5:GI$5) -> 0 | GI30: =IF(FY30=1,SUMIF(GF$4:GI$4,$S30,GF$7:GI$7)*FZ30,IF(FY30="ГН",GB30*SUMIF(GF$4:GI$4,$S30,GF$5:GI$5),IF(FY30=2,GB30*SUMIF(GF$4:GI$4,$S30,GF$5:GI$5)+FZ30*SUMIF(GF$4:GI$4,$S30,GF$6:GI$6),0))) -> 0 | GJ30: 2 | GK30: 5.148 | GL30: 0.3 | GM30: 0.010473 | GN30: =IF(IF($Q30=1,GL30*$Q$10-GM30,GL30-GM30)<0,0,IF($Q30=1,GL30*$Q$10-GM30,GL30-GM30)) -> 0.154527 | GO30: =IFERROR(GN30/GL30,0) -> 0.51509 | GP30: =MIN(GD30,FS30,FH30,EW30,EL30,EA30,DP30,DE30,CX30,CQ30,CJ30,CC30,GO30) -> 0.4961166667 | GQ30: =IF(AND(GP30>0.4,GT30>0),GN30*GQ$11,0) -> 0 | GR30: =SUM(GS30:GT30) -> 0 | GS30: =GQ30*SUMIF(GQ$4:GT$4,$S30,GQ$5:GT$5) -> 0 | GT30: =IF(GJ30=1,SUMIF(GQ$4:GT$4,$S30,GQ$7:GT$7)*GK30,IF(GJ30="ГН",GM30*SUMIF(GQ$4:GT$4,$S30,GQ$5:GT$5),IF(GJ30=2,GM30*SUMIF(GQ$4:GT$4,$S30,GQ$5:GT$5)+GK30*SUMIF(GQ$4:GT$4,$S30,GQ$6:GT$6),0))) -> 0 | GU30: 2 | GV30: 6.733 | GW30: 0.3 | GX30: 0.012545 | GY30: =IF(IF($Q30=1,GW30*$Q$10-GX30,GW30-GX30)<0,0,IF($Q30=1,GW30*$Q$10-GX30,GW30-GX30)) -> 0.152455 | GZ30: =IFERROR(GY30/GW30,0) -> 0.5081833333 | HA30: =MIN(GO30,GD30,FS30,FH30,EW30,EL30,EA30,DP30,DE30,CX30,CQ30,CJ30,GZ30) -> 0.4961166667 | HB30: =IF(AND(HA30>0.4,HE30>0),GY30*HB$11,0) -> 0 | HC30: =SUM(HD30:HE30) -> 0 | HD30: =HB30*SUMIF(HB$4:HE$4,$S30,HB$5:HE$5) -> 0 | HE30: =IF(GU30=1,SUMIF(HB$4:HE$4,$S30,HB$7:HE$7)*GV30,IF(GU30="ГН",GX30*SUMIF(HB$4:HE$4,$S30,HB$5:HE$5),IF(GU30=2,GX30*SUMIF(HB$4:HE$4,$S30,HB$5:HE$5)+GV30*SUMIF(HB$4:HE$4,$S30,HB$6:HE$6),0))) -> 0 | HF30: 2 | HG30: 8.15 | HH30: 0.3 | HI30: 0.01446 | HJ30: 0.15054 | HK30: =IFERROR(HJ30/HH30,0) -> 0.5018 | HL30: =MIN(GZ30,GO30,GD30,FS30,FH30,EW30,EL30,EA30,DP30,DE30,CX30,CQ30,HK30) -> 0.4961166667 | HM30: =IF(AND(HL30>0.4,HP30>0),HJ30*HM$11,0) -> 0 | HN30: =SUM(HO30:HP30) -> 0 | HO30: =HM30*SUMIF(HM$4:HP$4,$S30,HM$5:HP$5) -> 0 | HP30: =IF(HF30=1,SUMIF(HM$4:HP$4,$S30,HM$7:HP$7)*HG30,IF(HF30="ГН",HI30*SUMIF(HM$4:HP$4,$S30,HM$5:HP$5),IF(HF30=2,HI30*SUMIF(HM$4:HP$4,$S30,HM$5:HP$5)+HG30*SUMIF(HM$4:HP$4,$S30,HM$6:HP$6),0))) -> 0 | HU30: =IF(IF($Q30=1,HS30*$Q$10-HT30,HS30-HT30)<0,0,IF($Q30=1,HS30*$Q$10-HT30,HS30-HT30)) -> 0 | HV30: =IFERROR(HU30/HS30,0) -> 0 | HW30: =MIN(HK30,GZ30,GO30,GD30,FS30,FH30,EW30,EL30,EA30,DP30,DE30,CX30,HV30) -> 0 | HX30: =IF(AND(HW30>0.4,IA30>0),HU30*HX$11,0) -> 0 | HY30: =SUM(HZ30:IA30) -> 0 | HZ30: =HX30*SUMIF(HX$4:IA$4,$S30,HX$5:IA$5) -> 0 | IA30: =IF(HQ30=1,SUMIF(HX$4:IA$4,$S30,HX$7:IA$7)*HR30,IF(HQ30="ГН",HT30*SUMIF(HX$4:IA$4,$S30,HX$5:IA$5),IF(HQ30=2,HT30*SUMIF(HX$4:IA$4,$S30,HX$5:IA$5)+HR30*SUMIF(HX$4:IA$4,$S30,HX$6:IA$6),0))) -> 0 | IB30: 2 | IC30: 73.134 | ID30: 0.3 | IE30: 0.01243827273 | IF30: =IFERROR(AVERAGE(HU30,HJ30,GY30,GN30,GC30,FR30,FG30,EV30,EK30,DZ30,DO30,DD30),0) -> 0.13984825 | IG30: =IFERROR(IF30/ID30,0) -> 0.4661608333 | IH30: =IFERROR(AVERAGE(HX30,HM30,HB30,GQ30,GF30,FU30,FJ30,EY30,EN30,EC30,DR30,DG30),0) -> 0 | II30: 0 | IJ30: 0 | IK30: =SUM(IA30,HP30,HE30,GT30,GI30,FX30,FM30,FB30,EQ30,EF30,DU30,DJ30) -> 0
A31: ООО "МИП "Кинешма" | B31: Ивановская область | D31: ООО"ЖелДорМаш-Кинешма" | E31: ПС "Автозаводская-110/10кВ" ООО "МИП "Кинешма", ф.№128, КЛ10кВ от яч.№32 | F31: Прочие | G31: Прочие | L31: 670 и выше | M31: 5612042824 | N31: АО "ЭнергосбыТ Плюс" | O31: 3703020510 | P31: ООО "МИП "Кинешма" | Q31: 1 | R31: Э | S31: ВН | Z31: 0 | AG31: 0 | AN31: 0 | AU31: 0 | BB31: 0 | BI31: 0 | BP31: 0 | BW31: 0 | CD31: 0 | CK31: 0 | CL31: 2 | CM31: 0 | CN31: =0.6/2 -> 0.3 | CO31: 0 | CP31: 0.165 | CQ31: 0.55 | CR31: 0 | CS31: 2 | CT31: 0 | CU31: =0.6/2 -> 0.3 | CV31: 0 | CW31: 0.165 | CX31: 0.55 | CY31: 0 | CZ31: 2 | DA31: 0 | DB31: 0.3 | DC31: 0 | DD31: 0.165 | DE31: 0.55 | DF31: 0.55 | DG31: 0 | DH31: 0 | DI31: 0 | DJ31: 0 | DK31: 2 | DL31: 0 | DM31: 0.3 | DN31: 0 | DO31: 0.165 | DP31: 0.55 | DQ31: 0.55 | DR31: 0 | DS31: 0 | DT31: 0 | DU31: 0 | DV31: 2 | DW31: 0 | DX31: 0.3 | DY31: 0 | DZ31: 0.165 | EA31: 0.55 | EB31: 0.55 | EC31: 0 | ED31: 0 | EE31: 0 | EF31: 0 | EG31: 2 | EH31: 0 | EI31: 0.3 | EJ31: 0 | EK31: 0.165 | EL31: 0.55 | EM31: 0.55 | EN31: 0 | EO31: 0 | EP31: 0 | EQ31: 0 | ER31: 2 | ES31: 0 | ET31: 0.3 | EU31: 0 | EV31: 0.165 | EW31: 0.55 | EX31: 0.55 | EY31: 0 | EZ31: 0 | FA31: 0 | FB31: 0 | FC31: 2 | FD31: 0 | FE31: 0.3 | FF31: 0 | FG31: 0.165 | FH31: 0.55 | FI31: 0.55 | FJ31: 0 | FK31: 0 | FL31: 0 | FM31: 0 | FN31: 2 | FO31: 0 | FP31: 0.3 | FQ31: 0 | FR31: 0.165 | FS31: 0.55 | FT31: 0.55 | FU31: 0 | FV31: 0 | FW31: 0 | FX31: 0 | FY31: 2 | FZ31: 0 | GA31: 0.3 | GB31: 0 | GC31: 0.165 | GD31: 0.55 | GE31: 0.55 | GF31: 0 | GG31: 0 | GH31: 0 | GI31: 0 | GJ31: 2 | GK31: 0 | GL31: 0.3 | GM31: 0 | GN31: 0.165 | GO31: 0.55 | GP31: 0.55 | GQ31: 0 | GR31: 0 | GS31: 0 | GT31: 0 | GU31: 2 | GV31: 0 | GW31: 0.3 | GX31: 0 | GY31: 0.165 | GZ31: 0.55 | HA31: 0.55 | HB31: 0 | HC31: 0 | HD31: 0 | HE31: 0 | HF31: 2 | HG31: 0.425 | HH31: 0.3 | HI31: 0.0036 | HJ31: 0.1614 | HK31: 0.538 | HL31: 0.538 | HM31: 0 | HN31: 0 | HO31: 0 | HP31: 0 | HU31: 0 | HV31: 0 | HW31: 0 | HX31: 0 | HY31: 0 | HZ31: 0 | IA31: 0 | IB31: 2 | IC31: 0.425 | ID31: 0.3 | IE31: 0.0003272727273 | IF31: 0.15095 | IG31: 0.5031666667 | IH31: 0 | II31: 0 | IJ31: 0 | IK31: 0
A32: ООО "МИП "Кинешма" | B32: Ивановская область | D32: Горбунов А.В. | E32: ПС "Автозаводская-110/10кВ" ООО "МИП "Кинешма", ф.№115, КЛ10кВ от яч.№23 | F32: Промышленность | G32: Производство | L32: 670 и выше | M32: 5612042824 | N32: АО "ЭнергосбыТ Плюс" | O32: 3703020510 | P32: ООО "МИП "Кинешма" | Q32: 1 | R32: Э | S32: ВН | Z32: =IF(T32=1,SUMIF(W$4:Z$4,$S32,W$7:Z$7)*U32,IF(T32="ГН",W32*SUMIF(W$4:Z$4,$S32,W$5:Z$5),IF(T32=2,W32*SUMIF(W$4:Z$4,$S32,W$5:Z$5)+U32*SUMIF(W$4:Z$4,$S32,W$6:Z$6),0))) -> 0 | AG32: =IF(AA32=1,SUMIF(AD$4:AG$4,$S32,AD$7:AG$7)*AB32,IF(AA32="ГН",AD32*SUMIF(AD$4:AG$4,$S32,AD$5:AG$5),IF(AA32=2,AD32*SUMIF(AD$4:AG$4,$S32,AD$5:AG$5)+AB32*SUMIF(AD$4:AG$4,$S32,AD$6:AG$6),0))) -> 0 | AN32: =IF(AH32=1,SUMIF(AK$4:AN$4,$S32,AK$7:AN$7)*AI32,IF(AH32="ГН",AK32*SUMIF(AK$4:AN$4,$S32,AK$5:AN$5),IF(AH32=2,AK32*SUMIF(AK$4:AN$4,$S32,AK$5:AN$5)+AI32*SUMIF(AK$4:AN$4,$S32,AK$6:AN$6),0))) -> 0 | AU32: =IF(AO32=1,SUMIF(AR$4:AU$4,$S32,AR$7:AU$7)*AP32,IF(AO32="ГН",AR32*SUMIF(AR$4:AU$4,$S32,AR$5:AU$5),IF(AO32=2,AR32*SUMIF(AR$4:AU$4,$S32,AR$5:AU$5)+AP32*SUMIF(AR$4:AU$4,$S32,AR$6:AU$6),0))) -> 0 | BB32: =IF(AV32=1,SUMIF(AY$4:BB$4,$S32,AY$7:BB$7)*AW32,IF(AV32="ГН",AY32*SUMIF(AY$4:BB$4,$S32,AY$5:BB$5),IF(AV32=2,AY32*SUMIF(AY$4:BB$4,$S32,AY$5:BB$5)+AW32*SUMIF(AY$4:BB$4,$S32,AY$6:BB$6),0))) -> 0 | BI32: =IF(BC32=1,SUMIF(BF$4:BI$4,$S32,BF$7:BI$7)*BD32,IF(BC32="ГН",BF32*SUMIF(BF$4:BI$4,$S32,BF$5:BI$5),IF(BC32=2,BF32*SUMIF(BF$4:BI$4,$S32,BF$5:BI$5)+BD32*SUMIF(BF$4:BI$4,$S32,BF$6:BI$6),0))) -> 0 | BP32: =IF(BJ32=1,SUMIF(BM$4:BP$4,$S32,BM$7:BP$7)*BK32,IF(BJ32="ГН",BM32*SUMIF(BM$4:BP$4,$S32,BM$5:BP$5),IF(BJ32=2,BM32*SUMIF(BM$4:BP$4,$S32,BM$5:BP$5)+BK32*SUMIF(BM$4:BP$4,$S32,BM$6:BP$6),0))) -> 0 | BW32: =IF(BQ32=1,SUMIF(BT$4:BW$4,$S32,BT$7:BW$7)*BR32,IF(BQ32="ГН",BT32*SUMIF(BT$4:BW$4,$S32,BT$5:BW$5),IF(BQ32=2,BT32*SUMIF(BT$4:BW$4,$S32,BT$5:BW$5)+BR32*SUMIF(BT$4:BW$4,$S32,BT$6:BW$6),0))) -> 0 | CD32: =IF(BX32=1,SUMIF(CA$4:CD$4,$S32,CA$7:CD$7)*BY32,IF(BX32="ГН",CA32*SUMIF(CA$4:CD$4,$S32,CA$5:CD$5),IF(BX32=2,CA32*SUMIF(CA$4:CD$4,$S32,CA$5:CD$5)+BY32*SUMIF(CA$4:CD$4,$S32,CA$6:CD$6),0))) -> 0 | CK32: =IF(CE32=1,SUMIF(CH$4:CK$4,$S32,CH$7:CK$7)*CF32,IF(CE32="ГН",CH32*SUMIF(CH$4:CK$4,$S32,CH$5:CK$5),IF(CE32=2,CH32*SUMIF(CH$4:CK$4,$S32,CH$5:CK$5)+CF32*SUMIF(CH$4:CK$4,$S32,CH$6:CK$6),0))) -> 0 | CL32: 2 | CM32: =182.218-121.778-50.329 -> 10.111 | CN32: =(2.32-0.45-0.2)/2 -> 0.835 | CO32: =0.032-CO33 -> 0.0312 | CP32: =IF(IF($Q32=1,CN32*$Q$10-CO32,CN32-CO32)<0,0,IF($Q32=1,CN32*$Q$10-CO32,CN32-CO32)) -> 0.42805 | CQ32: =IFERROR(CP32/CN32,0) -> 0.5126347305 | CR32: =IF(CL32=1,SUMIF(CO$4:CR$4,$S32,CO$7:CR$7)*CM32,IF(CL32="ГН",CO32*SUMIF(CO$4:CR$4,$S32,CO$5:CR$5),IF(CL32=2,CO32*SUMIF(CO$4:CR$4,$S32,CO$5:CR$5)+CM32*SUMIF(CO$4:CR$4,$S32,CO$6:CR$6),0))) -> 42936.29244 | CS32: 2 | CT32: =195.079-CT34-CT35 -> 10.818 | CU32: =(2.32-0.45-0.2)/2 -> 0.835 | CV32: =0.031-CV33 -> 0.0302 | CW32: 0.42905 | CX32: 0.5138323353 | CY32: 0 | CZ32: 2 | DA32: =185.553-DA34-DA35 -> 8.595 | DB32: 0.835 | DC32: =0.032-DC33 -> 0.0312 | DD32: 0.42805 | DE32: 0.5126347305 | DF32: 0.5126347305 | DG32: 0 | DH32: 0 | DI32: 0 | DJ32: =IF(CZ32=1,SUMIF(DG$4:DJ$4,$S32,DG$7:DJ$7)*DA32,IF(CZ32="ГН",DC32*SUMIF(DG$4:DJ$4,$S32,DG$5:DJ$5),IF(CZ32=2,DC32*SUMIF(DG$4:DJ$4,$S32,DG$5:DJ$5)+DA32*SUMIF(DG$4:DJ$4,$S32,DG$6:DJ$6),0))) -> 0 | DK32: 2 | DL32: =193.518-DL34-DL35 -> 7.269 | DM32: 0.835 | DN32: =0.024-DN33 -> 0.0232 | DO32: 0.43605 | DP32: 0.5222155689 | DQ32: 0.5126347305 | DR32: 0 | DS32: 0 | DT32: 0 | DU32: =IF(DK32=1,SUMIF(DR$4:DU$4,$S32,DR$7:DU$7)*DL32,IF(DK32="ГН",DN32*SUMIF(DR$4:DU$4,$S32,DR$5:DU$5),IF(DK32=2,DN32*SUMIF(DR$4:DU$4,$S32,DR$5:DU$5)+DL32*SUMIF(DR$4:DU$4,$S32,DR$6:DU$6),0))) -> 0 | DV32: 2 | DW32: =198.317-DW34-DW35 -> 8.293 | DX32: 0.835 | DY32: =0.025-DY33 -> 0.0242 | DZ32: 0.43505 | EA32: 0.5210179641 | EB32: 0.5126347305 | EC32: 0 | ED32: 0 | EE32: 0 | EF32: =IF(DV32=1,SUMIF(EC$4:EF$4,$S32,EC$7:EF$7)*DW32,IF(DV32="ГН",DY32*SUMIF(EC$4:EF$4,$S32,EC$5:EF$5),IF(DV32=2,DY32*SUMIF(EC$4:EF$4,$S32,EC$5:EF$5)+DW32*SUMIF(EC$4:EF$4,$S32,EC$6:EF$6),0))) -> 0 | EG32: 2 | EH32: =175.813-EH34-EH35 -> 6.495 | EI32: 0.835 | EJ32: =0.019-EJ33 -> 0.0182 | EK32: 0.44105 | EL32: 0.5282035928 | EM32: 0.5126347305 | EN32: 0 | EO32: 0 | EP32: 0 | EQ32: =IF(EG32=1,SUMIF(EN$4:EQ$4,$S32,EN$7:EQ$7)*EH32,IF(EG32="ГН",EJ32*SUMIF(EN$4:EQ$4,$S32,EN$5:EQ$5),IF(EG32=2,EJ32*SUMIF(EN$4:EQ$4,$S32,EN$5:EQ$5)+EH32*SUMIF(EN$4:EQ$4,$S32,EN$6:EQ$6),0))) -> 0 | ER32: 2 | ES32: =201.75-ES34-ES35 -> 4.241 | ET32: 0.835 | EU32: =0.015-EU33 -> 0.0142 | EV32: 0.44505 | EW32: 0.532994012 | EX32: 0.5126347305 | EY32: 0 | EZ32: 0 | FA32: 0 | FB32: =IF(ER32=1,SUMIF(EY$4:FB$4,$S32,EY$7:FB$7)*ES32,IF(ER32="ГН",EU32*SUMIF(EY$4:FB$4,$S32,EY$5:FB$5),IF(ER32=2,EU32*SUMIF(EY$4:FB$4,$S32,EY$5:FB$5)+ES32*SUMIF(EY$4:FB$4,$S32,EY$6:FB$6),0))) -> 0 | FC32: 2 | FD32: =157.386-FD34-FD35 -> 5.111 | FE32: 0.835 | FF32: =0.016-FF33 -> 0.0152 | FG32: 0.44405 | FH32: 0.5317964072 | FI32: 0.5126347305 | FJ32: 0 | FK32: 0 | FL32: 0 | FM32: =IF(FC32=1,SUMIF(FJ$4:FM$4,$S32,FJ$7:FM$7)*FD32,IF(FC32="ГН",FF32*SUMIF(FJ$4:FM$4,$S32,FJ$5:FM$5),IF(FC32=2,FF32*SUMIF(FJ$4:FM$4,$S32,FJ$5:FM$5)+FD32*SUMIF(FJ$4:FM$4,$S32,FJ$6:FM$6),0))) -> 0 | FN32: 2 | FO32: =166.927-FO34 -> 5.354 | FP32: 0.835 | FQ32: =(0.33341+0.099164-FQ34-FQ35)/2 -> 0.0223135 | FR32: 0.4369365 | FS32: 0.5232772455 | FT32: 0.5126347305 | FU32: 0 | FV32: 0 | FW32: 0 | FX32: =IF(FN32=1,SUMIF(FU$4:FX$4,$S32,FU$7:FX$7)*FO32,IF(FN32="ГН",FQ32*SUMIF(FU$4:FX$4,$S32,FU$5:FX$5),IF(FN32=2,FQ32*SUMIF(FU$4:FX$4,$S32,FU$5:FX$5)+FO32*SUMIF(FU$4:FX$4,$S32,FU$6:FX$6),0))) -> 0 | FY32: 2 | FZ32: 0.274 | GA32: 0.835 | GB32: 0.0008 | GC32: 0.45845 | GD32: 0.5490419162 | GE32: 0.5126347305 | GF32: 0 | GG32: 0 | GH32: 0 | GI32: =IF(FY32=1,SUMIF(GF$4:GI$4,$S32,GF$7:GI$7)*FZ32,IF(FY32="ГН",GB32*SUMIF(GF$4:GI$4,$S32,GF$5:GI$5),IF(FY32=2,GB32*SUMIF(GF$4:GI$4,$S32,GF$5:GI$5)+FZ32*SUMIF(GF$4:GI$4,$S32,GF$6:GI$6),0))) -> 0 | GJ32: 2 | GK32: 0.268 | GL32: 0.835 | GM32: 0.0008 | GN32: 0.45845 | GO32: 0.5490419162 | GP32: 0.5126347305 | GQ32: 0 | GR32: 0 | GS32: 0 | GT32: =IF(GJ32=1,SUMIF(GQ$4:GT$4,$S32,GQ$7:GT$7)*GK32,IF(GJ32="ГН",GM32*SUMIF(GQ$4:GT$4,$S32,GQ$5:GT$5),IF(GJ32=2,GM32*SUMIF(GQ$4:GT$4,$S32,GQ$5:GT$5)+GK32*SUMIF(GQ$4:GT$4,$S32,GQ$6:GT$6),0))) -> 0 | GU32: 2 | GV32: 0.229 | GW32: 0.835 | GX32: 0.0008 | GY32: 0.45845 | GZ32: 0.5490419162 | HA32: 0.5126347305 | HB32: 0 | HC32: 0 | HD32: 0 | HE32: =IF(GU32=1,SUMIF(HB$4:HE$4,$S32,HB$7:HE$7)*GV32,IF(GU32="ГН",GX32*SUMIF(HB$4:HE$4,$S32,HB$5:HE$5),IF(GU32=2,GX32*SUMIF(HB$4:HE$4,$S32,HB$5:HE$5)+GV32*SUMIF(HB$4:HE$4,$S32,HB$6:HE$6),0))) -> 0 | HF32: 2 | HG32: 0.2032 | HH32: 0.835 | HI32: 0.00092 | HJ32: 0.45833 | HK32: 0.5488982036 | HL32: 0.5126347305 | HM32: 0 | HN32: 0 | HO32: 0 | HP32: =IF(HF32=1,SUMIF(HM$4:HP$4,$S32,HM$7:HP$7)*HG32,IF(HF32="ГН",HI32*SUMIF(HM$4:HP$4,$S32,HM$5:HP$5),IF(HF32=2,HI32*SUMIF(HM$4:HP$4,$S32,HM$5:HP$5)+HG32*SUMIF(HM$4:HP$4,$S32,HM$6:HP$6),0))) -> 0 | HU32: 0 | HV32: 0 | HW32: 0 | HX32: 0 | HY32: 0 | HZ32: 0 | IA32: =IF(HQ32=1,SUMIF(HX$4:IA$4,$S32,HX$7:IA$7)*HR32,IF(HQ32="ГН",HT32*SUMIF(HX$4:IA$4,$S32,HX$5:IA$5),IF(HQ32=2,HT32*SUMIF(HX$4:IA$4,$S32,HX$5:IA$5)+HR32*SUMIF(HX$4:IA$4,$S32,HX$6:IA$6),0))) -> 0 | IB32: 2 | IC32: 46.3322 | ID32: 0.835 | IE32: 0.01380304545 | IF32: 0.408326375 | IG32: 0.4890136228 | IH32: 0 | II32: 0 | IJ32: 0 | IK32: =SUM(IA32,HP32,HE32,GT32,GI32,FX32,FM32,FB32,EQ32,EF32,DU32,DJ32) -> 0
A33: ООО "МИП "Кинешма" | B33: Ивановская область | D33: Горбунов А.В. | E33: ПС "Автозаводская-110/10кВ" ООО "МИП "Кинешма", ф.№116, КЛ10кВ от яч.№24 | F33: Промышленность | G33: Производство | L33: 670 и выше | M33: 5612042824 | N33: АО "ЭнергосбыТ Плюс" | O33: 3703020510 | P33: ООО "МИП "Кинешма" | Q33: 1 | R33: Э | S33: ВН | Z33: 0 | AG33: 0 | AN33: 0 | AU33: 0 | BB33: 0 | BI33: 0 | BP33: 0 | BW33: 0 | CD33: 0 | CK33: 0 | CL33: 2 | CM33: 0.1896 | CN33: =(2.32-0.45-0.2)/2 -> 0.835 | CO33: 0.0008 | CP33: 0.45845 | CQ33: 0.5490419162 | CR33: 1094.687968 | CS33: 2 | CT33: 0.186 | CU33: =(2.32-0.45-0.2)/2 -> 0.835 | CV33: 0.0008 | CW33: 0.45845 | CX33: 0.5490419162 | CY33: 0 | CZ33: 2 | DA33: 0.186 | DB33: 0.835 | DC33: 0.0008 | DD33: 0.45845 | DE33: 0.5490419162 | DF33: 0.5490419162 | DG33: 0 | DH33: 0 | DI33: 0 | DJ33: 0 | DK33: 2 | DL33: 0.1704 | DM33: 0.835 | DN33: 0.0008 | DO33: 0.45845 | DP33: 0.5490419162 | DQ33: 0.5490419162 | DR33: 0 | DS33: 0 | DT33: 0 | DU33: 0 | DV33: 2 | DW33: 0.185 | DX33: 0.835 | DY33: 0.0008 | DZ33: 0.45845 | EA33: 0.5490419162 | EB33: 0.5490419162 | EC33: 0 | ED33: 0 | EE33: 0 | EF33: 0 | EG33: 2 | EH33: 0.186 | EI33: 0.835 | EJ33: 0.0008 | EK33: 0.45845 | EL33: 0.5490419162 | EM33: 0.5490419162 | EN33: 0 | EO33: 0 | EP33: 0 | EQ33: 0 | ER33: 2 | ES33: 0.211 | ET33: 0.835 | EU33: 0.0008 | EV33: 0.45845 | EW33: 0.5490419162 | EX33: 0.5490419162 | EY33: 0 | EZ33: 0 | FA33: 0 | FB33: 0 | FC33: 2 | FD33: 0.215 | FE33: 0.835 | FF33: 0.0008 | FG33: 0.45845 | FH33: 0.5490419162 | FI33: 0.5490419162 | FJ33: 0 | FK33: 0 | FL33: 0 | FM33: 0 | FN33: 2 | FO33: =35.052-FO35 -> 3.511 | FP33: 0.835 | FQ33: =(0.33341+0.099164-FQ34-FQ35)/2 -> 0.0223135 | FR33: 0.4369365 | FS33: 0.5232772455 | FT33: 0.5232772455 | FU33: 0 | FV33: 0 | FW33: 0 | FX33: 0 | FY33: 2 | FZ33: =202.912-FZ34-FZ35 -> 8.994 | GA33: 0.835 | GB33: =0.028-GB32 -> 0.0272 | GC33: 0.43205 | GD33: 0.5174251497 | GE33: 0.5174251497 | GF33: 0 | GG33: 0 | GH33: 0 | GI33: 0 | GJ33: 2 | GK33: =204.926-GK34-GK35 -> 11.419 | GL33: 0.835 | GM33: =0.033-GM32 -> 0.0322 | GN33: 0.42705 | GO33: 0.5114371257 | GP33: 0.5114371257 | GQ33: 0 | GR33: 0 | GS33: 0 | GT33: 0 | GU33: 2 | GV33: =236.329-GV34-GV35 -> 27.323 | GW33: 0.835 | GX33: =0.078-GX32 -> 0.0772 | GY33: 0.38205 | GZ33: 0.4575449102 | HA33: 0.4575449102 | HB33: 0 | HC33: 0 | HD33: 0 | HE33: 0 | HF33: 2 | HG33: =235.5312-HG34-HG35 -> 22.4582 | HH33: 0.835 | HI33: =0.47624-HI34-HI35 -> 0.040592 | HJ33: 0.418658 | HK33: 0.5013868263 | HL33: 0.4575449102 | HM33: 0 | HN33: 0 | HO33: 0 | HP33: 0 | HU33: 0 | HV33: 0 | HW33: 0 | HX33: 0 | HY33: 0 | HZ33: 0 | IA33: 0 | IB33: 2 | IC33: 74.8586 | ID33: 0.835 | IE33: 0.01857322727 | IF33: 0.4039537083 | IG33: 0.4837768962 | IH33: 0 | II33: 0 | IJ33: 0 | IK33: 0
A34: ООО "МИП "Кинешма" | B34: Ивановская область | D34: ООО "КФК" | E34: Яч.№4 КСО-266 РУ-10кВ, ф.1 КТП№4 | F34: Промышленность | G34: Производство | L34: менее 670 | M34: 5612042824 | N34: АО "ЭнергосбыТ Плюс" | O34: 3703020510 | P34: ООО "МИП "Кинешма" | R34: Э | S34: ВН | Z34: 0 | AG34: 0 | AN34: 0 | AU34: 0 | BB34: 0 | BI34: 0 | BP34: 0 | BW34: 0 | CD34: 0 | CK34: 0 | CL34: 1 | CM34: 121.778 | CN34: 0.45 | CO34: 0.2538 | CP34: 0.1962 | CQ34: 0.436 | CR34: 241033.9776 | CS34: 1 | CT34: 132.877 | CU34: 0.45 | CV34: 0.3308 | CW34: 0.1192 | CX34: 0.2648888889 | CY34: 0 | CZ34: 1 | DA34: 138.273 | DB34: 0.45 | DC34: 0.3278 | DD34: 0.1222 | DE34: 0.2715555556 | DF34: 0.2648888889 | DG34: 0 | DH34: 0 | DI34: 0 | DJ34: 0 | DK34: 1 | DL34: 146.706 | DM34: 0.45 | DN34: 0.274053 | DO34: 0.175947 | DP34: 0.3909933333 | DQ34: 0.2648888889 | DR34: 0 | DS34: 0 | DT34: 0 | DU34: 0 | DV34: 1 | DW34: 150.296 | DX34: 0.45 | DY34: 0.169853 | DZ34: 0.280147 | EA34: 0.6225488889 | EB34: 0.2648888889 | EC34: 0 | ED34: 0 | EE34: 0 | EF34: 0 | EG34: 1 | EH34: 130.934 | EI34: 0.45 | EJ34: 0.249155 | EK34: 0.200845 | EL34: 0.4463222222 | EM34: 0.2648888889 | EN34: 0 | EO34: 0 | EP34: 0 | EQ34: 0 | ER34: 1 | ES34: 164.132 | ET34: 0.45 | EU34: 0.263412 | EV34: 0.186588 | EW34: 0.41464 | EX34: 0.2648888889 | EY34: 0 | EZ34: 0 | FA34: 0 | FB34: 0 | FC34: 1 | FD34: 122.196 | FE34: 0.45 | FF34: 0.21235 | FG34: 0.23765 | FH34: 0.5281111111 | FI34: 0.2648888889 | FJ34: 0 | FK34: 0 | FL34: 0 | FM34: 0 | FN34: 1 | FO34: 161.573 | FP34: 0.45 | FQ34: 0.256627 | FR34: 0.193373 | FS34: 0.4297177778 | FT34: 0.2648888889 | FU34: 0 | FV34: 0 | FW34: 0 | FX34: 0 | FY34: 1 | FZ34: 163.553 | GA34: 0.45 | GB34: 0.274438 | GC34: 0.175562 | GD34: 0.3901377778 | GE34: 0.2648888889 | GF34: 0 | GG34: 0 | GH34: 0 | GI34: 0 | GJ34: 1 | GK34: 160.046 | GL34: 0.45 | GM34: 0.2758 | GN34: 0.1742 | GO34: 0.3871111111 | GP34: 0.2648888889 | GQ34: 0 | GR34: 0 | GS34: 0 | GT34: 0 | GU34: 1 | GV34: 177.482 | GW34: 0.45 | GX34: 0.311745 | GY34: 0.138255 | GZ34: 0.3072333333 | HA34: 0.2648888889 | HB34: 0 | HC34: 0 | HD34: 0 | HE34: 0 | HF34: 1 | HG34: 167.606 | HH34: 0.45 | HI34: 0.2757 | HJ34: 0.1743 | HK34: 0.3873333333 | HL34: 0.2648888889 | HM34: 0 | HN34: 0 | HO34: 0 | HP34: 0 | HU34: 0 | HV34: 0 | HW34: 0 | HX34: 0 | HY34: 0 | HZ34: 0 | IA34: 0 | IB34: 1 | IC34: 1682.797 | ID34: 0.45 | IE34: 0.2628120909 | IF34: 0.1715889167 | IG34: 0.3813087037 | IH34: 0 | II34: 0 | IJ34: 0 | IK34: 0
A35: ООО "МИП "Кинешма" | B35: Ивановская область | D35: ООО "НПП Энергетика" | E35: ПС "Автозаводская-110/10кВ" ООО "МИП "Кинешма", КТП №2 | F35: Прочие | G35: Прочие | L35: менее 670 | M35: 5612042824 | N35: АО "ЭнергосбыТ Плюс" | O35: 3703020510 | P35: ООО "МИП "Кинешма" | R35: Э | S35: ВН | Z35: 0 | AG35: 0 | AN35: 0 | AU35: 0 | BB35: 0 | BI35: 0 | BP35: 0 | BW35: 0 | CD35: 0 | CK35: 0 | CL35: 1 | CM35: 50.329 | CN35: 0.2 | CO35: 0.180444 | CP35: 0.019556 | CQ35: 0.09778 | CR35: 99615.68641 | CS35: 1 | CT35: 51.384 | CU35: 0.2 | CV35: 0.173975 | CW35: 0.026025 | CX35: 0.130125 | CY35: 0 | CZ35: 1 | DA35: 38.685 | DB35: 0.2 | DC35: 0.147487 | DD35: 0.052513 | DE35: 0.262565 | DF35: 0.09778 | DG35: 0 | DH35: 0 | DI35: 0 | DJ35: 0 | DK35: 1 | DL35: 39.543 | DM35: 0.2 | DN35: 0.159617 | DO35: 0.040383 | DP35: 0.201915 | DQ35: 0.09778 | DR35: 0 | DS35: 0 | DT35: 0 | DU35: 0 | DV35: 1 | DW35: 39.728 | DX35: 0.2 | DY35: 0.163714 | DZ35: 0.036286 | EA35: 0.18143 | EB35: 0.09778 | EC35: 0 | ED35: 0 | EE35: 0 | EF35: 0 | EG35: 1 | EH35: 38.384 | EI35: 0.2 | EJ35: 0.142891 | EK35: 0.057109 | EL35: 0.285545 | EM35: 0.09778 | EN35: 0 | EO35: 0 | EP35: 0 | EQ35: 0 | ER35: 1 | ES35: 33.377 | ET35: 0.2 | EU35: 0.150089 | EV35: 0.049911 | EW35: 0.249555 | EX35: 0.09778 | EY35: 0 | EZ35: 0 | FA35: 0 | FB35: 0 | FC35: 1 | FD35: 30.079 | FE35: 0.2 | FF35: 0.137024 | FG35: 0.062976 | FH35: 0.31488 | FI35: 0.09778 | FJ35: 0 | FK35: 0 | FL35: 0 | FM35: 0 | FN35: 1 | FO35: 31.541 | FP35: 0.2 | FQ35: 0.13132 | FR35: 0.06868 | FS35: 0.3434 | FT35: 0.09778 | FU35: 0 | FV35: 0 | FW35: 0 | FX35: 0 | FY35: 1 | FZ35: 30.365 | GA35: 0.2 | GB35: 0.13379 | GC35: 0.06621 | GD35: 0.33105 | GE35: 0.09778 | GF35: 0 | GG35: 0 | GH35: 0 | GI35: 0 | GJ35: 1 | GK35: 33.461 | GL35: 0.2 | GM35: 0.131804 | GN35: 0.068196 | GO35: 0.34098 | GP35: 0.09778 | GQ35: 0 | GR35: 0 | GS35: 0 | GT35: 0 | GU35: 1 | GV35: 31.524 | GW35: 0.2 | GX35: 0.125004 | GY35: 0.074996 | GZ35: 0.37498 | HA35: 0.09778 | HB35: 0 | HC35: 0 | HD35: 0 | HE35: 0 | HF35: 1 | HG35: 45.467 | HH35: 0.2 | HI35: 0.159948 | HJ35: 0.040052 | HK35: 0.20026 | HL35: 0.09778 | HM35: 0 | HN35: 0 | HO35: 0 | HP35: 0 | HU35: 0 | HV35: 0 | HW35: 0 | HX35: 0 | HY35: 0 | HZ35: 0 | IA35: 0 | IB35: 1 | IC35: 392.154 | ID35: 0.2 | IE35: 0.1438807273 | IF35: 0.05144266667 | IG35: 0.2572133333 | IH35: 0 | II35: 0 | IJ35: 0 | IK35: 0
A36: ООО "МИП "Кинешма" | B36: Ивановская область | D36: ООО "Сибгазойл" | E36: ГПП "Автозаводская" ООО "МИП "Кинешма", ЗРУ 10кВ, ф.№105 | F36: Прочие | G36: Прочие | L36: менее 670 | M36: 5612042824 | N36: АО "ЭнергосбыТ Плюс" | O36: 3703020510 | P36: ООО "МИП "Кинешма" | Q36: 1 | R36: Э | S36: ВН | Z36: 0 | AG36: 0 | AN36: 0 | AU36: 0 | BB36: 0 | BI36: 0 | BP36: 0 | BW36: 0 | CD36: 0 | CK36: 0 | CL36: 1 | CM36: 4.315 | CN36: 0.2 | CO36: 0.009768 | CP36: 0.100232 | CQ36: 0.50116 | CR36: 8540.63635 | CS36: 1 | CT36: 4.679 | CU36: 0.2 | CV36: 0.010447 | CW36: 0.099553 | CX36: 0.497765 | CY36: 0 | CZ36: 1 | DA36: 4.557 | DB36: 0.2 | DC36: 0.010913 | DD36: 0.099087 | DE36: 0.495435 | DF36: 0.495435 | DG36: 0 | DH36: 0 | DI36: 0 | DJ36: 0 | DK36: 1 | DL36: 4.068 | DM36: 0.2 | DN36: 0.009436 | DO36: 0.100564 | DP36: 0.50282 | DQ36: 0.495435 | DR36: 0 | DS36: 0 | DT36: 0 | DU36: 0 | DV36: 1 | DW36: 4.179 | DX36: 0.2 | DY36: 0.009255 | DZ36: 0.100745 | EA36: 0.503725 | EB36: 0.495435 | EC36: 0 | ED36: 0 | EE36: 0 | EF36: 0 | EG36: 1 | EH36: 3.458 | EI36: 0.2 | EJ36: 0.007931 | EK36: 0.102069 | EL36: 0.510345 | EM36: 0.495435 | EN36: 0 | EO36: 0 | EP36: 0 | EQ36: 0 | ER36: 1 | ES36: 3.737 | ET36: 0.2 | EU36: 0.010866 | EV36: 0.099134 | EW36: 0.49567 | EX36: 0.495435 | EY36: 0 | EZ36: 0 | FA36: 0 | FB36: 0 | FC36: 1 | FD36: 3.33 | FE36: 0.2 | FF36: 0.00902 | FG36: 0.10098 | FH36: 0.5049 | FI36: 0.495435 | FJ36: 0 | FK36: 0 | FL36: 0 | FM36: 0 | FN36: 1 | FO36: 3.296 | FP36: 0.2 | FQ36: 0.007615 | FR36: 0.102385 | FS36: 0.511925 | FT36: 0.495435 | FU36: 0 | FV36: 0 | FW36: 0 | FX36: 0 | FY36: 1 | FZ36: 3.344 | GA36: 0.2 | GB36: 0.008335 | GC36: 0.101665 | GD36: 0.508325 | GE36: 0.495435 | GF36: 0 | GG36: 0 | GH36: 0 | GI36: 0 | GJ36: 1 | GK36: 3.943 | GL36: 0.2 | GM36: 0.008662 | GN36: 0.101338 | GO36: 0.50669 | GP36: 0.495435 | GQ36: 0 | GR36: 0 | GS36: 0 | GT36: 0 | GU36: 1 | GV36: 5.212 | GW36: 0.2 | GX36: 0.010938 | GY36: 0.099062 | GZ36: 0.49531 | HA36: 0.49531 | HB36: 0 | HC36: 0 | HD36: 0 | HE36: 0 | HF36: 1 | HG36: 5.124 | HH36: 0.2 | HI36: 0.012004 | HJ36: 0.097996 | HK36: 0.48998 | HL36: 0.48998 | HM36: 0 | HN36: 0 | HO36: 0 | HP36: 0 | HU36: 0 | HV36: 0 | HW36: 0 | HX36: 0 | HY36: 0 | HZ36: 0 | IA36: 0 | IB36: 1 | IC36: 44.248 | ID36: 0.2 | IE36: 0.009543181818 | IF36: 0.09208541667 | IG36: 0.4604270833 | IH36: 0 | II36: 0 | IJ36: 0 | IK36: 0
A37: ООО "МИП "Кинешма" | B37: Ивановская область | D37: ООО "Гранд" | E37: КТП№32 ООО "МИП "Кинешма", яч.6 | F37: Прочие | G37: Прочие | L37: менее 670 | M37: 5612042824 | N37: АО "ЭнергосбыТ Плюс" | O37: 3703020510 | P37: ООО "МИП "Кинешма" | R37: Э | S37: СН2 | Z37: 0 | AG37: 0 | AN37: 0 | AU37: 0 | BB37: 0 | BI37: 0 | BP37: 0 | BW37: 0 | CD37: 0 | CK37: 0 | CL37: 1 | CM37: 2.812 | CN37: 0.015 | CO37: 0.006392 | CP37: 0.008608 | CQ37: 0.5738666667 | CR37: 5776.66348 | CS37: 1 | CT37: 2.948 | CU37: 0.015 | CV37: 0.006146 | CW37: 0.008854 | CX37: 0.5902666667 | CY37: 0 | CZ37: 1 | DA37: 2.899 | DB37: 0.015 | DC37: 0.006106 | DD37: 0.008894 | DE37: 0.5929333333 | DF37: 0.5738666667 | DG37: 0 | DH37: 0 | DI37: 0 | DJ37: 0 | DK37: 1 | DL37: 2.582 | DM37: 0.015 | DN37: 0.005981 | DO37: 0.009019 | DP37: 0.6012666667 | DQ37: 0.5738666667 | DR37: 0 | DS37: 0 | DT37: 0 | DU37: 0 | DV37: 1 | DW37: 2.244 | DX37: 0.015 | DY37: 0.005082 | DZ37: 0.009918 | EA37: 0.6612 | EB37: 0.5738666667 | EC37: 0 | ED37: 0 | EE37: 0 | EF37: 0 | EG37: 1 | EH37: 1.761 | EI37: 0.015 | EJ37: 0.004383 | EK37: 0.010617 | EL37: 0.7078 | EM37: 0.5738666667 | EN37: 0 | EO37: 0 | EP37: 0 | EQ37: 0 | ER37: 1 | ES37: 1.518 | ET37: 0.015 | EU37: 0.003976 | EV37: 0.011024 | EW37: 0.7349333333 | EX37: 0.5738666667 | EY37: 0 | EZ37: 0 | FA37: 0 | FB37: 0 | FC37: 1 | FD37: 1.474 | FE37: 0.015 | FF37: 0.004199 | FG37: 0.010801 | FH37: 0.7200666667 | FI37: 0.5738666667 | FJ37: 0 | FK37: 0 | FL37: 0 | FM37: 0 | FN37: 1 | FO37: 1.376 | FP37: 0.015 | FQ37: 0.00367 | FR37: 0.01133 | FS37: 0.7553333333 | FT37: 0.5738666667 | FU37: 0 | FV37: 0 | FW37: 0 | FX37: 0 | FY37: 1 | FZ37: 1.547 | GA37: 0.015 | GB37: 0.004445 | GC37: 0.010555 | GD37: 0.7036666667 | GE37: 0.5738666667 | GF37: 0 | GG37: 0 | GH37: 0 | GI37: 0 | GJ37: 1 | GK37: 1.831 | GL37: 0.015 | GM37: 0.004685 | GN37: 0.010315 | GO37: 0.6876666667 | GP37: 0.5738666667 | GQ37: 0 | GR37: 0 | GS37: 0 | GT37: 0 | GU37: 1 | GV37: 1.979 | GW37: 0.015 | GX37: 0.004809 | GY37: 0.010191 | GZ37: 0.6794 | HA37: 0.5738666667 | HB37: 0 | HC37: 0 | HD37: 0 | HE37: 0 | HF37: 1 | HG37: 2.809 | HH37: 0.015 | HI37: 0.006387 | HJ37: 0.008613 | HK37: 0.5742 | HL37: 0.5738666667 | HM37: 0 | HN37: 0 | HO37: 0 | HP37: 0 | HU37: 0 | HV37: 0 | HW37: 0 | HX37: 0 | HY37: 0 | HZ37: 0 | IA37: 0 | IB37: 1 | IC37: 22.02 | ID37: 0.015 | IE37: 0.004883909091 | IF37: 0.009273083333 | IG37: 0.6182055556 | IH37: 0 | II37: 0 | IJ37: 0 | IK37: 0
A38: ООО "МИП "Кинешма" | B38: Ивановская область | D38: ОАО "СМУ-15" | E38: Стена котельной ООО "МИП "Кинешма" | F38: Прочие | G38: Прочие | L38: менее 670 | M38: 5612042824 | N38: АО "ЭнергосбыТ Плюс" | O38: 3703020510 | P38: ООО "МИП "Кинешма" | R38: Э | S38: НН | Z38: 0 | AG38: 0 | AN38: 0 | AU38: 0 | BB38: 0 | BI38: 0 | BP38: 0 | BW38: 0 | CD38: 0 | CK38: 0 | CL38: 1 | CM38: =4.598-0.146 -> 4.452 | CN38: =0.04-CN39 -> 0.035 | CO38: =0.017608-CO39 -> 0.017405 | CP38: 0.017595 | CQ38: 0.5027142857 | CR38: 13081.80132 | CS38: 1 | CT38: =4.431-CT39 -> 3.639 | CU38: =0.04-CU39 -> 0.035 | CV38: =0.014097-CV39 -> 0.013032 | CW38: 0.021968 | CX38: 0.6276571429 | CY38: 0 | CZ38: 1 | DA38: =4.663-DA39 -> 3.669 | DB38: 0.035 | DC38: =0.019367-DC39 -> 0.018031 | DD38: 0.016969 | DE38: 0.4848285714 | DF38: 0.4848285714 | DG38: 0 | DH38: 0 | DI38: 0 | DJ38: 0 | DK38: 1 | DL38: =4.804-DL39 -> 4.194 | DM38: 0.035 | DN38: =0.018425-DN39 -> 0.017549 | DO38: 0.017451 | DP38: 0.4986 | DQ38: 0.4848285714 | DR38: 0 | DS38: 0 | DT38: 0 | DU38: 0 | DV38: 1 | DW38: =3.896-DW39 -> 3.246 | DX38: 0.035 | DY38: =0.018277-DY39 -> 0.017403 | DZ38: 0.017597 | EA38: 0.5027714286 | EB38: 0.4848285714 | EC38: 0 | ED38: 0 | EE38: 0 | EF38: 0 | EG38: 1 | EH38: =3.142-EH39 -> 3.142 | EI38: 0.035 | EJ38: =0.011935-EJ39 -> 0.011935 | EK38: 0.023065 | EL38: 0.659 | EM38: 0.4848285714 | EN38: 0 | EO38: 0 | EP38: 0 | EQ38: 0 | ER38: 1 | ES38: =3.142-ES39 -> 3.142 | ET38: 0.035 | EU38: =0.012001-EU39 -> 0.012001 | EV38: 0.022999 | EW38: 0.6571142857 | EX38: 0.4848285714 | EY38: 0 | EZ38: 0 | FA38: 0 | FB38: 0 | FC38: 1 | FD38: =3.261-FD39 -> 3.171 | FE38: 0.035 | FF38: =0.01303-FF39 -> 0.012905 | FG38: 0.022095 | FH38: 0.6312857143 | FI38: 0.4848285714 | FJ38: 0 | FK38: 0 | FL38: 0 | FM38: 0 | FN38: 1 | FO38: =3.129-FO39 -> 3.079 | FP38: 0.035 | FQ38: =0.012649-FQ39 -> 0.012582 | FR38: 0.022418 | FS38: 0.6405142857 | FT38: 0.4848285714 | FU38: 0 | FV38: 0 | FW38: 0 | FX38: 0 | FY38: 1 | FZ38: =3.607-FZ39 -> 3.602 | GA38: 0.035 | GB38: =0.014533-GB39 -> 0.014489 | GC38: 0.020511 | GD38: 0.5860285714 | GE38: 0.4848285714 | GF38: 0 | GG38: 0 | GH38: 0 | GI38: 0 | GJ38: 1 | GK38: =3.803-GK39 -> 3.77 | GL38: 0.035 | GM38: =0.016103-GM39 -> 0.016096 | GN38: 0.018904 | GO38: 0.5401142857 | GP38: 0.4848285714 | GQ38: 0 | GR38: 0 | GS38: 0 | GT38: 0 | GU38: 1 | GV38: =3.927-GV39 -> 3.796 | GW38: 0.035 | GX38: =0.015354-GX39 -> 0.015178 | GY38: 0.019822 | GZ38: 0.5663428571 | HA38: 0.4848285714 | HB38: 0 | HC38: 0 | HD38: 0 | HE38: 0 | HF38: 1 | HG38: =4.225-HG39 -> 4.093 | HH38: 0.035 | HI38: =0.015847-HI39 -> 0.015664 | HJ38: 0.019336 | HK38: 0.5524571429 | HL38: 0.4848285714 | HM38: 0 | HN38: 0 | HO38: 0 | HP38: 0 | HU38: 0 | HV38: 0 | HW38: 0 | HX38: 0 | HY38: 0 | HZ38: 0 | IA38: 0 | IB38: 1 | IC38: 38.904 | ID38: 0.035 | IE38: 0.01489390909 | IF38: 0.01843058333 | IG38: 0.5265880952 | IH38: 0 | II38: 0 | IJ38: 0 | IK38: 0
A39: ООО "МИП "Кинешма" | B39: Ивановская область | D39: ООО "Газпром" | E39: ЩУ-0,4кВ на стене здания ОАО "СМУ-15" | F39: Прочие | G39: Прочие | L39: менее 670 | M39: 5612042824 | N39: АО "ЭнергосбыТ Плюс" | O39: 3703020510 | P39: ООО "МИП "Кинешма" | R39: Э | S39: НН | Z39: 0 | AG39: 0 | AN39: 0 | AU39: 0 | BB39: 0 | BI39: 0 | BP39: 0 | BW39: 0 | CD39: 0 | CK39: 0 | CL39: 1 | CM39: 0.146 | CN39: 0.005 | CO39: 0.000203 | CP39: 0.004797 | CQ39: 0.9594 | CR39: 429.00786 | CS39: 1 | CT39: 0.792 | CU39: 0.005 | CV39: 0.001065 | CW39: 0.003935 | CX39: 0.787 | CY39: 0 | CZ39: 1 | DA39: 0.994 | DB39: 0.005 | DC39: 0.001336 | DD39: 0.003664 | DE39: 0.7328 | DF39: 0.7328 | DG39: 0 | DH39: 0 | DI39: 0 | DJ39: 0 | DK39: 1 | DL39: 0.61 | DM39: 0.005 | DN39: 0.000876 | DO39: 0.004124 | DP39: 0.8248 | DQ39: 0.7328 | DR39: 0 | DS39: 0 | DT39: 0 | DU39: 0 | DV39: 1 | DW39: 0.65 | DX39: 0.005 | DY39: 0.000874 | DZ39: 0.004126 | EA39: 0.8252 | EB39: 0.7328 | EC39: 0 | ED39: 0 | EE39: 0 | EF39: 0 | EG39: 1 | EH39: 0 | EI39: 0.005 | EJ39: 0 | EK39: 0.005 | EL39: 1 | EM39: 0.7328 | EN39: 0 | EO39: 0 | EP39: 0 | EQ39: 0 | ER39: 1 | ES39: 0 | ET39: 0.005 | EU39: 0 | EV39: 0.005 | EW39: 1 | EX39: 0.7328 | EY39: 0 | EZ39: 0 | FA39: 0 | FB39: 0 | FC39: 1 | FD39: 0.09 | FE39: 0.005 | FF39: =0.000125 -> 0.000125 | FG39: 0.004875 | FH39: 0.975 | FI39: 0.7328 | FJ39: 0 | FK39: 0 | FL39: 0 | FM39: 0 | FN39: 1 | FO39: 0.05 | FP39: 0.005 | FQ39: 6.7e-05 | FR39: 0.004933 | FS39: 0.9866 | FT39: 0.7328 | FU39: 0 | FV39: 0 | FW39: 0 | FX39: 0 | FY39: 1 | FZ39: 0.005 | GA39: 0.005 | GB39: 4.4e-05 | GC39: 0.004956 | GD39: 0.9912 | GE39: 0.7328 | GF39: 0 | GG39: 0 | GH39: 0 | GI39: 0 | GJ39: 1 | GK39: 0.033 | GL39: 0.005 | GM39: 7e-06 | GN39: 0.004993 | GO39: 0.9986 | GP39: 0.7328 | GQ39: 0 | GR39: 0 | GS39: 0 | GT39: 0 | GU39: 1 | GV39: 0.131 | GW39: 0.005 | GX39: 0.000176 | GY39: 0.004824 | GZ39: 0.9648 | HA39: 0.7328 | HB39: 0 | HC39: 0 | HD39: 0 | HE39: 0 | HF39: 1 | HG39: 0.132 | HH39: 0.005 | HI39: 0.000183 | HJ39: 0.004817 | HK39: 0.9634 | HL39: 0.7328 | HM39: 0 | HN39: 0 | HO39: 0 | HP39: 0 | HU39: 0 | HV39: 0 | HW39: 0 | HX39: 0 | HY39: 0 | HZ39: 0 | IA39: 0 | IB39: 1 | IC39: 2.695 | ID39: 0.005 | IE39: 0.0003352727273 | IF39: 0.004276 | IG39: 0.8552 | IH39: 0 | II39: 0 | IJ39: 0 | IK39: 0
A40: ООО "МИП "Кинешма" | B40: Ивановская область | D40: ООО "ИТС-Групп" | E40: КТП№42 ООО "МИП "Кинешма", щит ЩСУ группа 3 в термическом участке МК-1 | F40: Прочие | G40: Прочие | L40: менее 670 | M40: 5612042824 | N40: АО "ЭнергосбыТ Плюс" | O40: 3703020510 | P40: ООО "МИП "Кинешма" | R40: Э | S40: НН | Z40: 0 | AG40: 0 | AN40: 0 | AU40: 0 | BB40: 0 | BI40: 0 | BP40: 0 | BW40: 0 | CD40: 0 | CK40: 0 | CL40: 1 | CM40: 2.07 | CN40: 0.025 | CO40: 0.006888 | CP40: 0.018112 | CQ40: 0.72448 | CR40: 6082.5087 | CS40: 1 | CT40: 3.373 | CU40: 0.025 | CV40: 0.011264 | CW40: 0.013736 | CX40: 0.54944 | CY40: 0 | CZ40: 1 | DA40: 2.496 | DB40: 0.025 | DC40: 0.006261 | DD40: 0.018739 | DE40: 0.74956 | DF40: 0.54944 | DG40: 0 | DH40: 0 | DI40: 0 | DJ40: 0 | DK40: 1 | DL40: 3.004 | DM40: 0.025 | DN40: 0.007756 | DO40: 0.017244 | DP40: 0.68976 | DQ40: 0.54944 | DR40: 0 | DS40: 0 | DT40: 0 | DU40: 0 | DV40: 1 | DW40: 3.709 | DX40: 0.025 | DY40: 0.013604 | DZ40: 0.011396 | EA40: 0.45584 | EB40: 0.45584 | EC40: 0 | ED40: 0 | EE40: 0 | EF40: 0 | EG40: 1 | EH40: 3.769 | EI40: 0.025 | EJ40: 0.017165 | EK40: 0.007835 | EL40: 0.3134 | EM40: 0.3134 | EN40: 0 | EO40: 0 | EP40: 0 | EQ40: 0 | ER40: 1 | ES40: 3.683 | ET40: 0.025 | EU40: 0.018275 | EV40: 0.006725 | EW40: 0.269 | EX40: 0.269 | EY40: 0 | EZ40: 0 | FA40: 0 | FB40: 0 | FC40: 1 | FD40: 3.649 | FE40: 0.025 | FF40: 0.020436 | FG40: 0.004564 | FH40: 0.18256 | FI40: 0.18256 | FJ40: 0 | FK40: 0 | FL40: 0 | FM40: 0 | FN40: 1 | FO40: 3.217 | FP40: 0.025 | FQ40: 0.021273 | FR40: 0.003727 | FS40: 0.14908 | FT40: 0.14908 | FU40: 0 | FV40: 0 | FW40: 0 | FX40: 0 | FY40: 1 | FZ40: 2.037 | GA40: 0.025 | GB40: 0.018177 | GC40: 0.006823 | GD40: 0.27292 | GE40: 0.14908 | GF40: 0 | GG40: 0 | GH40: 0 | GI40: 0 | GJ40: 1 | GK40: 1.988 | GL40: 0.025 | GM40: 0.017553 | GN40: 0.007447 | GO40: 0.29788 | GP40: 0.14908 | GQ40: 0 | GR40: 0 | GS40: 0 | GT40: 0 | GU40: 1 | GV40: 2.505 | GW40: 0.025 | GX40: 0.013778 | GY40: 0.011222 | GZ40: 0.44888 | HA40: 0.14908 | HB40: 0 | HC40: 0 | HD40: 0 | HE40: 0 | HF40: 1 | HG40: 3.309 | HH40: 0.025 | HI40: 0.015882 | HJ40: 0.009118 | HK40: 0.36472 | HL40: 0.14908 | HM40: 0 | HN40: 0 | HO40: 0 | HP40: 0 | HU40: 0 | HV40: 0 | HW40: 0 | HX40: 0 | HY40: 0 | HZ40: 0 | IA40: 0 | IB40: 1 | IC40: 33.366 | ID40: 0.025 | IE40: 0.01546909091 | IF40: 0.008736666667 | IG40: 0.3494666667 | IH40: 0 | II40: 0 | IJ40: 0 | IK40: 0
A41: ООО "МИП "Кинешма" | B41: Ивановская область | D41: ООО "Технотранс" | E41: ПС "Автозаводская" ООО "МИП "Кинешма", ф.№112 яч.21 КТП№5 яч.1-6 в РУ0,4кВ; | F41: Прочие | G41: Прочие | L41: менее 670 | M41: 5612042824 | N41: АО "ЭнергосбыТ Плюс" | O41: 3703020510 | P41: ООО "МИП "Кинешма" | R41: Э | S41: СН2 | Z41: =IF(T41=1,SUMIF(W$4:Z$4,$S41,W$7:Z$7)*U41,IF(T41="ГН",W41*SUMIF(W$4:Z$4,$S41,W$5:Z$5),IF(T41=2,W41*SUMIF(W$4:Z$4,$S41,W$5:Z$5)+U41*SUMIF(W$4:Z$4,$S41,W$6:Z$6),0))) -> 0 | AG41: =IF(AA41=1,SUMIF(AD$4:AG$4,$S41,AD$7:AG$7)*AB41,IF(AA41="ГН",AD41*SUMIF(AD$4:AG$4,$S41,AD$5:AG$5),IF(AA41=2,AD41*SUMIF(AD$4:AG$4,$S41,AD$5:AG$5)+AB41*SUMIF(AD$4:AG$4,$S41,AD$6:AG$6),0))) -> 0 | AN41: =IF(AH41=1,SUMIF(AK$4:AN$4,$S41,AK$7:AN$7)*AI41,IF(AH41="ГН",AK41*SUMIF(AK$4:AN$4,$S41,AK$5:AN$5),IF(AH41=2,AK41*SUMIF(AK$4:AN$4,$S41,AK$5:AN$5)+AI41*SUMIF(AK$4:AN$4,$S41,AK$6:AN$6),0))) -> 0 | AU41: =IF(AO41=1,SUMIF(AR$4:AU$4,$S41,AR$7:AU$7)*AP41,IF(AO41="ГН",AR41*SUMIF(AR$4:AU$4,$S41,AR$5:AU$5),IF(AO41=2,AR41*SUMIF(AR$4:AU$4,$S41,AR$5:AU$5)+AP41*SUMIF(AR$4:AU$4,$S41,AR$6:AU$6),0))) -> 0 | BB41: =IF(AV41=1,SUMIF(AY$4:BB$4,$S41,AY$7:BB$7)*AW41,IF(AV41="ГН",AY41*SUMIF(AY$4:BB$4,$S41,AY$5:BB$5),IF(AV41=2,AY41*SUMIF(AY$4:BB$4,$S41,AY$5:BB$5)+AW41*SUMIF(AY$4:BB$4,$S41,AY$6:BB$6),0))) -> 0 | BI41: =IF(BC41=1,SUMIF(BF$4:BI$4,$S41,BF$7:BI$7)*BD41,IF(BC41="ГН",BF41*SUMIF(BF$4:BI$4,$S41,BF$5:BI$5),IF(BC41=2,BF41*SUMIF(BF$4:BI$4,$S41,BF$5:BI$5)+BD41*SUMIF(BF$4:BI$4,$S41,BF$6:BI$6),0))) -> 0 | BP41: =IF(BJ41=1,SUMIF(BM$4:BP$4,$S41,BM$7:BP$7)*BK41,IF(BJ41="ГН",BM41*SUMIF(BM$4:BP$4,$S41,BM$5:BP$5),IF(BJ41=2,BM41*SUMIF(BM$4:BP$4,$S41,BM$5:BP$5)+BK41*SUMIF(BM$4:BP$4,$S41,BM$6:BP$6),0))) -> 0 | BW41: =IF(BQ41=1,SUMIF(BT$4:BW$4,$S41,BT$7:BW$7)*BR41,IF(BQ41="ГН",BT41*SUMIF(BT$4:BW$4,$S41,BT$5:BW$5),IF(BQ41=2,BT41*SUMIF(BT$4:BW$4,$S41,BT$5:BW$5)+BR41*SUMIF(BT$4:BW$4,$S41,BT$6:BW$6),0))) -> 0 | CD41: =IF(BX41=1,SUMIF(CA$4:CD$4,$S41,CA$7:CD$7)*BY41,IF(BX41="ГН",CA41*SUMIF(CA$4:CD$4,$S41,CA$5:CD$5),IF(BX41=2,CA41*SUMIF(CA$4:CD$4,$S41,CA$5:CD$5)+BY41*SUMIF(CA$4:CD$4,$S41,CA$6:CD$6),0))) -> 0 | CK41: =IF(CE41=1,SUMIF(CH$4:CK$4,$S41,CH$7:CK$7)*CF41,IF(CE41="ГН",CH41*SUMIF(CH$4:CK$4,$S41,CH$5:CK$5),IF(CE41=2,CH41*SUMIF(CH$4:CK$4,$S41,CH$5:CK$5)+CF41*SUMIF(CH$4:CK$4,$S41,CH$6:CK$6),0))) -> 0 | CL41: 1 | CM41: 1.119 | CN41: 0.1 | CO41: 0.004379 | CP41: =IF(IF($Q41=1,CN41*$Q$10-CO41,CN41-CO41)<0,0,IF($Q41=1,CN41*$Q$10-CO41,CN41-CO41)) -> 0.095621 | CQ41: =IFERROR(CP41/CN41,0) -> 0.95621 | CR41: =IF(CL41=1,SUMIF(CO$4:CR$4,$S41,CO$7:CR$7)*CM41,IF(CL41="ГН",CO41*SUMIF(CO$4:CR$4,$S41,CO$5:CR$5),IF(CL41=2,CO41*SUMIF(CO$4:CR$4,$S41,CO$5:CR$5)+CM41*SUMIF(CO$4:CR$4,$S41,CO$6:CR$6),0))) -> 2298.75051 | CS41: 1 | CT41: 1.128 | CU41: 0.1 | CV41: 0.004384 | CW41: 0.095616 | CX41: 0.95616 | CY41: 0 | CZ41: 1 | DA41: 1.388 | DB41: 0.1 | DC41: 0.004376 | DD41: 0.095624 | DE41: 0.95624 | DF41: 0.95616 | DG41: 0 | DH41: 0 | DI41: 0 | DJ41: =IF(CZ41=1,SUMIF(DG$4:DJ$4,$S41,DG$7:DJ$7)*DA41,IF(CZ41="ГН",DC41*SUMIF(DG$4:DJ$4,$S41,DG$5:DJ$5),IF(CZ41=2,DC41*SUMIF(DG$4:DJ$4,$S41,DG$5:DJ$5)+DA41*SUMIF(DG$4:DJ$4,$S41,DG$6:DJ$6),0))) -> 0 | DK41: 1 | DL41: 1.171 | DM41: 0.1 | DN41: 0.004367 | DO41: 0.095633 | DP41: 0.95633 | DQ41: 0.95616 | DR41: 0 | DS41: 0 | DT41: 0 | DU41: =IF(DK41=1,SUMIF(DR$4:DU$4,$S41,DR$7:DU$7)*DL41,IF(DK41="ГН",DN41*SUMIF(DR$4:DU$4,$S41,DR$5:DU$5),IF(DK41=2,DN41*SUMIF(DR$4:DU$4,$S41,DR$5:DU$5)+DL41*SUMIF(DR$4:DU$4,$S41,DR$6:DU$6),0))) -> 0 | DV41: 1 | DW41: 1.368 | DX41: 0.1 | DY41: 0.004305 | DZ41: 0.095695 | EA41: 0.95695 | EB41: 0.95616 | EC41: 0 | ED41: 0 | EE41: 0 | EF41: =IF(DV41=1,SUMIF(EC$4:EF$4,$S41,EC$7:EF$7)*DW41,IF(DV41="ГН",DY41*SUMIF(EC$4:EF$4,$S41,EC$5:EF$5),IF(DV41=2,DY41*SUMIF(EC$4:EF$4,$S41,EC$5:EF$5)+DW41*SUMIF(EC$4:EF$4,$S41,EC$6:EF$6),0))) -> 0 | EG41: 1 | EH41: 1.289 | EI41: 0.1 | EJ41: 0.004368 | EK41: 0.095632 | EL41: 0.95632 | EM41: 0.95616 | EN41: 0 | EO41: 0 | EP41: 0 | EQ41: =IF(EG41=1,SUMIF(EN$4:EQ$4,$S41,EN$7:EQ$7)*EH41,IF(EG41="ГН",EJ41*SUMIF(EN$4:EQ$4,$S41,EN$5:EQ$5),IF(EG41=2,EJ41*SUMIF(EN$4:EQ$4,$S41,EN$5:EQ$5)+EH41*SUMIF(EN$4:EQ$4,$S41,EN$6:EQ$6),0))) -> 0 | ER41: 1 | ES41: 1.303 | ET41: 0.1 | EU41: 0.004269 | EV41: 0.095731 | EW41: 0.95731 | EX41: 0.95616 | EY41: 0 | EZ41: 0 | FA41: 0 | FB41: =IF(ER41=1,SUMIF(EY$4:FB$4,$S41,EY$7:FB$7)*ES41,IF(ER41="ГН",EU41*SUMIF(EY$4:FB$4,$S41,EY$5:FB$5),IF(ER41=2,EU41*SUMIF(EY$4:FB$4,$S41,EY$5:FB$5)+ES41*SUMIF(EY$4:FB$4,$S41,EY$6:FB$6),0))) -> 0 | FC41: 1 | FD41: 1.292 | FE41: 0.1 | FF41: 0.004344 | FG41: 0.095656 | FH41: 0.95656 | FI41: 0.95616 | FJ41: 0 | FK41: 0 | FL41: 0 | FM41: =IF(FC41=1,SUMIF(FJ$4:FM$4,$S41,FJ$7:FM$7)*FD41,IF(FC41="ГН",FF41*SUMIF(FJ$4:FM$4,$S41,FJ$5:FM$5),IF(FC41=2,FF41*SUMIF(FJ$4:FM$4,$S41,FJ$5:FM$5)+FD41*SUMIF(FJ$4:FM$4,$S41,FJ$6:FM$6),0))) -> 0 | FN41: 1 | FO41: 1.13 | FP41: 0.1 | FQ41: 0.004094 | FR41: 0.095906 | FS41: 0.95906 | FT41: 0.95616 | FU41: 0 | FV41: 0 | FW41: 0 | FX41: =IF(FN41=1,SUMIF(FU$4:FX$4,$S41,FU$7:FX$7)*FO41,IF(FN41="ГН",FQ41*SUMIF(FU$4:FX$4,$S41,FU$5:FX$5),IF(FN41=2,FQ41*SUMIF(FU$4:FX$4,$S41,FU$5:FX$5)+FO41*SUMIF(FU$4:FX$4,$S41,FU$6:FX$6),0))) -> 0 | FY41: 1 | FZ41: 1.38 | GA41: 0.1 | GB41: 0.004365 | GC41: 0.095635 | GD41: 0.95635 | GE41: 0.95616 | GF41: 0 | GG41: 0 | GH41: 0 | GI41: =IF(FY41=1,SUMIF(GF$4:GI$4,$S41,GF$7:GI$7)*FZ41,IF(FY41="ГН",GB41*SUMIF(GF$4:GI$4,$S41,GF$5:GI$5),IF(FY41=2,GB41*SUMIF(GF$4:GI$4,$S41,GF$5:GI$5)+FZ41*SUMIF(GF$4:GI$4,$S41,GF$6:GI$6),0))) -> 0 | GJ41: 1 | GK41: 1.073 | GL41: 0.1 | GM41: 0.004261 | GN41: 0.095739 | GO41: 0.95739 | GP41: 0.95616 | GQ41: 0 | GR41: 0 | GS41: 0 | GT41: =IF(GJ41=1,SUMIF(GQ$4:GT$4,$S41,GQ$7:GT$7)*GK41,IF(GJ41="ГН",GM41*SUMIF(GQ$4:GT$4,$S41,GQ$5:GT$5),IF(GJ41=2,GM41*SUMIF(GQ$4:GT$4,$S41,GQ$5:GT$5)+GK41*SUMIF(GQ$4:GT$4,$S41,GQ$6:GT$6),0))) -> 0 | GU41: 1 | GV41: 0.936 | GW41: 0.1 | GX41: 0.00399 | GY41: 0.09601 | GZ41: 0.9601 | HA41: 0.95616 | HB41: 0 | HC41: 0 | HD41: 0 | HE41: =IF(GU41=1,SUMIF(HB$4:HE$4,$S41,HB$7:HE$7)*GV41,IF(GU41="ГН",GX41*SUMIF(HB$4:HE$4,$S41,HB$5:HE$5),IF(GU41=2,GX41*SUMIF(HB$4:HE$4,$S41,HB$5:HE$5)+GV41*SUMIF(HB$4:HE$4,$S41,HB$6:HE$6),0))) -> 0 | HF41: 1 | HG41: 0.889 | HH41: 0.1 | HI41: 0.004012 | HJ41: 0.095988 | HK41: 0.95988 | HL41: 0.95616 | HM41: 0 | HN41: 0 | HO41: 0 | HP41: =IF(HF41=1,SUMIF(HM$4:HP$4,$S41,HM$7:HP$7)*HG41,IF(HF41="ГН",HI41*SUMIF(HM$4:HP$4,$S41,HM$5:HP$5),IF(HF41=2,HI41*SUMIF(HM$4:HP$4,$S41,HM$5:HP$5)+HG41*SUMIF(HM$4:HP$4,$S41,HM$6:HP$6),0))) -> 0 | HU41: 0 | HV41: 0 | HW41: 0 | HX41: 0 | HY41: 0 | HZ41: 0 | IA41: =IF(HQ41=1,SUMIF(HX$4:IA$4,$S41,HX$7:IA$7)*HR41,IF(HQ41="ГН",HT41*SUMIF(HX$4:IA$4,$S41,HX$5:IA$5),IF(HQ41=2,HT41*SUMIF(HX$4:IA$4,$S41,HX$5:IA$5)+HR41*SUMIF(HX$4:IA$4,$S41,HX$6:IA$6),0))) -> 0 | IB41: 1 | IC41: 13.219 | ID41: 0.1 | IE41: 0.004250090909 | IF41: 0.08777075 | IG41: 0.8777075 | IH41: 0 | II41: 0 | IJ41: 0 | IK41: =SUM(IA41,HP41,HE41,GT41,GI41,FX41,FM41,FB41,EQ41,EF41,DU41,DJ41) -> 0
A42: ООО "МИП "Кинешма" | B42: Ивановская область | D42: ООО "Технотранс" | E42: ПС "Автозаводская" ООО "МИП "Кинешма", РП3 10кВ яч.3, КТП№3 яч.1-4 в РУ0,4кВ | F42: Прочие | G42: Прочие | L42: менее 670 | M42: 5612042824 | N42: АО "ЭнергосбыТ Плюс" | O42: 3703020510 | P42: ООО "МИП "Кинешма" | R42: Э | S42: СН2 | Z42: 0 | AG42: 0 | AN42: 0 | AU42: 0 | BB42: 0 | BI42: 0 | BP42: 0 | BW42: 0 | CD42: 0 | CK42: 0 | CL42: 1 | CM42: 0 | CN42: 0.1 | CO42: 0 | CP42: 0.1 | CQ42: 1 | CR42: 0 | CS42: 1 | CT42: 0 | CU42: 0.1 | CV42: 0 | CW42: 0.1 | CX42: 1 | CY42: 0 | CZ42: 1 | DA42: 0 | DB42: 0.1 | DC42: 0 | DD42: 0.1 | DE42: 1 | DF42: 1 | DG42: 0 | DH42: 0 | DI42: 0 | DJ42: 0 | DK42: 1 | DL42: 0 | DM42: 0.1 | DN42: 0 | DO42: 0.1 | DP42: 1 | DQ42: 1 | DR42: 0 | DS42: 0 | DT42: 0 | DU42: 0 | DV42: 1 | DW42: 0 | DX42: 0.1 | DY42: 0 | DZ42: 0.1 | EA42: 1 | EB42: 1 | EC42: 0 | ED42: 0 | EE42: 0 | EF42: 0 | EG42: 1 | EH42: 0 | EI42: 0.1 | EJ42: 0 | EK42: 0.1 | EL42: 1 | EM42: 1 | EN42: 0 | EO42: 0 | EP42: 0 | EQ42: 0 | ER42: 1 | ES42: 0 | ET42: 0.1 | EU42: 0 | EV42: 0.1 | EW42: 1 | EX42: 1 | EY42: 0 | EZ42: 0 | FA42: 0 | FB42: 0 | FC42: 1 | FD42: 0 | FE42: 0.1 | FF42: 0 | FG42: 0.1 | FH42: 1 | FI42: 1 | FJ42: 0 | FK42: 0 | FL42: 0 | FM42: 0 | FN42: 1 | FO42: 0 | FP42: 0.1 | FQ42: 0 | FR42: 0.1 | FS42: 1 | FT42: 1 | FU42: 0 | FV42: 0 | FW42: 0 | FX42: 0 | FY42: 1 | FZ42: 0 | GA42: 0.1 | GB42: 0 | GC42: 0.1 | GD42: 1 | GE42: 1 | GF42: 0 | GG42: 0 | GH42: 0 | GI42: 0 | GJ42: 1 | GK42: 0 | GL42: 0.1 | GM42: 0 | GN42: 0.1 | GO42: 1 | GP42: 1 | GQ42: 0 | GR42: 0 | GS42: 0 | GT42: 0 | GU42: 1 | GV42: 0 | GW42: 0.1 | GX42: 0 | GY42: 0.1 | GZ42: 1 | HA42: 1 | HB42: 0 | HC42: 0 | HD42: 0 | HE42: 0 | HF42: 1 | HG42: 0 | HH42: 0.1 | HI42: 0 | HJ42: 0.1 | HK42: 1 | HL42: 1 | HM42: 0 | HN42: 0 | HO42: 0 | HP42: 0 | HU42: 0 | HV42: 0 | HW42: 0 | HX42: 0 | HY42: 0 | HZ42: 0 | IA42: 0 | IB42: 1 | IC42: 0 | ID42: 0.1 | IE42: 0 | IF42: 0.09166666667 | IG42: 0.9166666667 | IH42: 0 | II42: 0 | IJ42: 0 | IK42: 0
A43: ООО "МИП "Кинешма" | B43: Ивановская область | D43: ООО "СвеТ" | E43: КТП№12 ООО "МИП "Кинешма", РУ04кВ, КЛ 0,22кВ | F43: Прочие | G43: Прочие | L43: менее 670 | M43: 5612042824 | N43: АО "ЭнергосбыТ Плюс" | O43: 3703020510 | P43: ООО "МИП "Кинешма" | R43: Э | S43: НН | Z43: 0 | AG43: 0 | AN43: 0 | AU43: 0 | BB43: 0 | BI43: 0 | BP43: 0 | BW43: 0 | CD43: 0 | CK43: 0 | CL43: 1 | CM43: 0 | CN43: 0.02 | CO43: 0 | CP43: 0.02 | CQ43: 1 | CR43: 0 | CS43: 1 | CT43: 0 | CU43: 0.02 | CV43: 0 | CW43: 0.02 | CX43: 1 | CY43: 0 | CZ43: 1 | DA43: 0.093 | DB43: 0.02 | DC43: 0.000267 | DD43: 0.019733 | DE43: 0.98665 | DF43: 0.98665 | DG43: 0 | DH43: 0 | DI43: 0 | DJ43: 0 | DK43: 1 | DL43: 0.108 | DM43: 0.02 | DN43: 0.00031 | DO43: 0.01969 | DP43: 0.9845 | DQ43: 0.9845 | DR43: 0 | DS43: 0 | DT43: 0 | DU43: 0 | DV43: 1 | DW43: 0.231 | DX43: 0.02 | DY43: 0.000642 | DZ43: 0.019358 | EA43: 0.9679 | EB43: 0.9679 | EC43: 0 | ED43: 0 | EE43: 0 | EF43: 0 | EG43: 1 | EH43: 0.168 | EI43: 0.02 | EJ43: 0.000483 | EK43: 0.019517 | EL43: 0.97585 | EM43: 0.9679 | EN43: 0 | EO43: 0 | EP43: 0 | EQ43: 0 | ER43: 1 | ES43: 0.241 | ET43: 0.02 | EU43: 0.000669 | EV43: 0.019331 | EW43: 0.96655 | EX43: 0.96655 | EY43: 0 | EZ43: 0 | FA43: 0 | FB43: 0 | FC43: 1 | FD43: 0.222 | FE43: 0.02 | FF43: 0.000617 | FG43: 0.019383 | FH43: 0.96915 | FI43: 0.96655 | FJ43: 0 | FK43: 0 | FL43: 0 | FM43: 0 | FN43: 1 | FO43: 0.201 | FP43: 0.02 | FQ43: 0.00054 | FR43: 0.01946 | FS43: 0.973 | FT43: 0.96655 | FU43: 0 | FV43: 0 | FW43: 0 | FX43: 0 | FY43: 1 | FZ43: 0.219 | GA43: 0.02 | GB43: 0.000589 | GC43: 0.019411 | GD43: 0.97055 | GE43: 0.96655 | GF43: 0 | GG43: 0 | GH43: 0 | GI43: 0 | GJ43: 1 | GK43: 0.229 | GL43: 0.02 | GM43: 0.000636 | GN43: 0.019364 | GO43: 0.9682 | GP43: 0.96655 | GQ43: 0 | GR43: 0 | GS43: 0 | GT43: 0 | GU43: 1 | GV43: 0.248 | GW43: 0.02 | GX43: 0.000667 | GY43: 0.019333 | GZ43: 0.96665 | HA43: 0.96655 | HB43: 0 | HC43: 0 | HD43: 0 | HE43: 0 | HF43: 1 | HG43: 0.201 | HH43: 0.02 | HI43: 0.000558 | HJ43: 0.019442 | HK43: 0.9721 | HL43: 0.96655 | HM43: 0 | HN43: 0 | HO43: 0 | HP43: 0 | HU43: 0 | HV43: 0 | HW43: 0 | HX43: 0 | HY43: 0 | HZ43: 0 | IA43: 0 | IB43: 1 | IC43: 2.161 | ID43: 0.02 | IE43: 0.0005434545455 | IF43: 0.01783516667 | IG43: 0.8917583333 | IH43: 0 | II43: 0 | IJ43: 0 | IK43: 0
A44: ООО "МИП "Кинешма" | B44: Ивановская область | D44: ООО "Подкова" | E44: КТП№1 ООО "МИП "Кинешма", РУ04кВ, КЛ 0,4кВ | F44: Прочие | G44: Прочие | L44: менее 670 | M44: 5612042824 | N44: АО "ЭнергосбыТ Плюс" | O44: 3703020510 | P44: ООО "МИП "Кинешма" | R44: Э | S44: НН | Z44: 0 | AG44: 0 | AN44: 0 | AU44: 0 | BB44: 0 | BI44: 0 | BP44: 0 | BW44: 0 | CD44: 0 | CK44: 0 | CL44: 1 | CM44: 0 | CN44: 0.03 | CO44: 0 | CP44: 0.03 | CQ44: 1 | CR44: 0 | CS44: 1 | CT44: 0.97 | CU44: 0.03 | CV44: 0.003129 | CW44: 0.026871 | CX44: 0.8957 | CY44: 0 | CZ44: 1 | DA44: 1.08 | DB44: 0.03 | DC44: 0.004138 | DD44: 0.025862 | DE44: 0.8620666667 | DF44: 0.8620666667 | DG44: 0 | DH44: 0 | DI44: 0 | DJ44: 0 | DK44: 1 | DL44: 1.15 | DM44: 0.03 | DN44: 0.004406 | DO44: 0.025594 | DP44: 0.8531333333 | DQ44: 0.8531333333 | DR44: 0 | DS44: 0 | DT44: 0 | DU44: 0 | DV44: 1 | DW44: 0.85 | DX44: 0.03 | DY44: 0.003047 | DZ44: 0.026953 | EA44: 0.8984333333 | EB44: 0.8531333333 | EC44: 0 | ED44: 0 | EE44: 0 | EF44: 0 | EG44: 1 | EH44: 0 | EI44: 0.03 | EJ44: 0 | EK44: 0.03 | EL44: 1 | EM44: 0.8531333333 | EN44: 0 | EO44: 0 | EP44: 0 | EQ44: 0 | ER44: 1 | ES44: 1.81 | ET44: 0.03 | EU44: 0.006704 | EV44: 0.023296 | EW44: 0.7765333333 | EX44: 0.7765333333 | EY44: 0 | EZ44: 0 | FA44: 0 | FB44: 0 | FC44: 1 | FD44: 0.84 | FE44: 0.03 | FF44: 0.003111 | FG44: 0.026889 | FH44: 0.8963 | FI44: 0.7765333333 | FJ44: 0 | FK44: 0 | FL44: 0 | FM44: 0 | FN44: 1 | FO44: 0.803 | FP44: 0.03 | FQ44: 0.002878 | FR44: 0.027122 | FS44: 0.9040666667 | FT44: 0.7765333333 | FU44: 0 | FV44: 0 | FW44: 0 | FX44: 0 | FY44: 1 | FZ44: 0.607 | GA44: 0.03 | GB44: 0.002176 | GC44: 0.027824 | GD44: 0.9274666667 | GE44: 0.7765333333 | GF44: 0 | GG44: 0 | GH44: 0 | GI44: 0 | GJ44: 1 | GK44: 0.88 | GL44: 0.03 | GM44: 0.003259 | GN44: 0.026741 | GO44: 0.8913666667 | GP44: 0.7765333333 | GQ44: 0 | GR44: 0 | GS44: 0 | GT44: 0 | GU44: 1 | GV44: 1.559 | GW44: 0.03 | GX44: 0.005588 | GY44: 0.024412 | GZ44: 0.8137333333 | HA44: 0.7765333333 | HB44: 0 | HC44: 0 | HD44: 0 | HE44: 0 | HF44: 1 | HG44: 0.721 | HH44: 0.03 | HI44: 0.00267 | HJ44: 0.02733 | HK44: 0.911 | HL44: 0.7765333333 | HM44: 0 | HN44: 0 | HO44: 0 | HP44: 0 | HU44: 0 | HV44: 0 | HW44: 0 | HX44: 0 | HY44: 0 | HZ44: 0 | IA44: 0 | IB44: 1 | IC44: 10.3 | ID44: 0.03 | IE44: 0.003452454545 | IF44: 0.02433525 | IG44: 0.811175 | IH44: 0 | II44: 0 | IJ44: 0 | IK44: 0
A45: ООО "МИП "Кинешма" | B45: Ивановская область | D45: ООО "Экострой" | E45: КТП№19 10/0,4кВ ООО "МИП "Кинешма", КЛ 0,4кВ от яч.№5 РУ0,4кВ | F45: Прочие | G45: Прочие | L45: менее 670 | M45: 5612042824 | N45: АО "ЭнергосбыТ Плюс" | O45: 3703020510 | P45: ООО "МИП "Кинешма" | R45: Э | S45: НН | Z45: 0 | AG45: 0 | AN45: 0 | AU45: 0 | BB45: 0 | BI45: 0 | BP45: 0 | BW45: 0 | CD45: 0 | CK45: 0 | CL45: 1 | CM45: 0 | CN45: 0.02 | CO45: 0 | CP45: 0.02 | CQ45: 1 | CR45: 0 | CS45: 1 | CT45: 3.627 | CU45: 0.02 | CV45: 0.0155 | CW45: 0.0045 | CX45: 0.225 | CY45: 0 | CZ45: 1 | DA45: 13.815 | DB45: 0.02 | DC45: 0.063958 | DD45: 0 | DE45: 0 | DF45: 0 | DG45: 0 | DH45: 0 | DI45: 0 | DJ45: 0 | DK45: 1 | DL45: 8.245 | DM45: 0.02 | DN45: 0.038171 | DO45: 0 | DP45: 0 | DQ45: 0 | DR45: 0 | DS45: 0 | DT45: 0 | DU45: 0 | DV45: 1 | DW45: 4.099 | DX45: 0.02 | DY45: 0.018218 | DZ45: 0.001782 | EA45: 0.0891 | EB45: 0 | EC45: 0 | ED45: 0 | EE45: 0 | EF45: 0 | EG45: 1 | EH45: 2.741 | EI45: 0.02 | EJ45: 0.011714 | EK45: 0.008286 | EL45: 0.4143 | EM45: 0 | EN45: 0 | EO45: 0 | EP45: 0 | EQ45: 0 | ER45: 1 | ES45: 1.611 | ET45: 0.02 | EU45: 0.00716 | EV45: 0.01284 | EW45: 0.642 | EX45: 0 | EY45: 0 | EZ45: 0 | FA45: 0 | FB45: 0 | FC45: 1 | FD45: 0.578 | FE45: 0.02 | FF45: 0.00247 | FG45: 0.01753 | FH45: 0.8765 | FI45: 0 | FJ45: 0 | FK45: 0 | FL45: 0 | FM45: 0 | FN45: 1 | FO45: 0.272 | FP45: 0.02 | FQ45: 0.001119 | FR45: 0.018881 | FS45: 0.94405 | FT45: 0 | FU45: 0 | FV45: 0 | FW45: 0 | FX45: 0 | FY45: 1 | FZ45: 0.26 | GA45: 0.02 | GB45: 0.001111 | GC45: 0.018889 | GD45: 0.94445 | GE45: 0 | GF45: 0 | GG45: 0 | GH45: 0 | GI45: 0 | GJ45: 1 | GK45: 1.41 | GL45: 0.02 | GM45: 0.006026 | GN45: 0.013974 | GO45: 0.6987 | GP45: 0 | GQ45: 0 | GR45: 0 | GS45: 0 | GT45: 0 | GU45: 1 | GV45: 2.839 | GW45: 0.02 | GX45: 0.011683 | GY45: 0.008317 | GZ45: 0.41585 | HA45: 0 | HB45: 0 | HC45: 0 | HD45: 0 | HE45: 0 | HF45: 1 | HG45: 3.437 | HH45: 0.02 | HI45: 0.015276 | HJ45: 0.004724 | HK45: 0.2362 | HL45: 0 | HM45: 0 | HN45: 0 | HO45: 0 | HP45: 0 | HU45: 0 | HV45: 0 | HW45: 0 | HX45: 0 | HY45: 0 | HZ45: 0 | IA45: 0 | IB45: 1 | IC45: 39.307 | ID45: 0.02 | IE45: 0.01608236364 | IF45: 0.008768583333 | IG45: 0.4384291667 | IH45: 0 | II45: 0 | IJ45: 0 | IK45: 0
A46: ООО "МИП "Кинешма" | B46: Ивановская область | C46: Итого | U46: =SUM(U17:U29) -> 0 | V46: =SUM(V17:V29) -> 0 | W46: =SUM(W17:W29) -> 0 | X46: =SUM(X17:X29) -> 0 | Y46: =IFERROR(X46/V46,0) -> 0 | Z46: =SUM(Z17:Z29) -> 0 | AB46: =SUM(AB17:AB29) -> 0 | AC46: =SUM(AC17:AC29) -> 0 | AD46: =SUM(AD17:AD29) -> 0 | AE46: =SUM(AE17:AE29) -> 0 | AF46: =IFERROR(AE46/AC46,0) -> 0 | AG46: =SUM(AG17:AG29) -> 0 | AI46: =SUM(AI17:AI29) -> 0 | AJ46: =SUM(AJ17:AJ29) -> 0 | AK46: =SUM(AK17:AK29) -> 0 | AL46: =SUM(AL17:AL29) -> 0 | AM46: =IFERROR(AL46/AJ46,0) -> 0 | AN46: =SUM(AN17:AN29) -> 0 | AP46: =SUM(AP17:AP29) -> 0 | AQ46: =SUM(AQ17:AQ29) -> 0 | AR46: =SUM(AR17:AR29) -> 0 | AS46: =SUM(AS17:AS29) -> 0 | AT46: =IFERROR(AS46/AQ46,0) -> 0 | AU46: =SUM(AU17:AU29) -> 0 | AW46: =SUM(AW17:AW29) -> 0 | AX46: =SUM(AX17:AX29) -> 0 | AY46: =SUM(AY17:AY29) -> 0 | AZ46: =SUM(AZ17:AZ29) -> 0 | BA46: =IFERROR(AZ46/AX46,0) -> 0 | BB46: =SUM(BB17:BB29) -> 0 | BD46: =SUM(BD17:BD29) -> 0 | BE46: =SUM(BE17:BE29) -> 0 | BF46: =SUM(BF17:BF29) -> 0 | BG46: =SUM(BG17:BG29) -> 0 | BH46: =IFERROR(BG46/BE46,0) -> 0 | BI46: =SUM(BI17:BI29) -> 0 | BK46: =SUM(BK17:BK29) -> 0 | BL46: =SUM(BL17:BL29) -> 0 | BM46: =SUM(BM17:BM29) -> 0 | BN46: =SUM(BN17:BN29) -> 0 | BO46: =IFERROR(BN46/BL46,0) -> 0 | BP46: =SUM(BP17:BP29) -> 0 | BR46: =SUM(BR17:BR29) -> 0 | BS46: =SUM(BS17:BS29) -> 0 | BT46: =SUM(BT17:BT29) -> 0 | BU46: =SUM(BU17:BU29) -> 0 | BV46: =IFERROR(BU46/BS46,0) -> 0 | BW46: =SUM(BW17:BW29) -> 0 | BY46: =SUM(BY17:BY29) -> 0 | BZ46: =SUM(BZ17:BZ29) -> 0 | CA46: =SUM(CA17:CA29) -> 0 | CB46: =SUM(CB17:CB29) -> 0 | CC46: =IFERROR(CB46/BZ46,0) -> 0 | CD46: =SUM(CD17:CD29) -> 0 | CF46: =SUM(CF17:CF29) -> 0 | CG46: =SUM(CG17:CG29) -> 0 | CH46: =SUM(CH17:CH29) -> 0 | CI46: =SUM(CI17:CI29) -> 0 | CJ46: =IFERROR(CI46/CG46,0) -> 0 | CK46: =SUM(CK17:CK29) -> 0 | CM46: =SUM(CM17:CM45) -> 498.1726 | CN46: =SUM(CN17:CN45) -> 6.6439 | CO46: =SUM(CO17:CO45) -> 1.101478 | CP46: =SUM(CP17:CP45) -> 3.895313 | CQ46: =IFERROR(CP46/CN46,0) -> 0.5862991616 | CR46: =SUM(CR17:CR45) -> 1103474.86 | CT46: =SUM(CT17:CT45) -> 539.465 | CU46: =SUM(CU17:CU45) -> 6.6439 | CV46: =SUM(CV17:CV45) -> 1.212304 | CW46: =SUM(CW17:CW45) -> 3.78115 | CX46: =IFERROR(CW46/CU46,0) -> 0.5691160312 | CY46: =SUM(CY17:CY45) -> 0 | DA46: =SUM(DA17:DA45) -> 526.439 | DB46: =SUM(DB17:DB45) -> 6.6439 | DC46: =SUM(DC17:DC45) -> 1.208238 | DD46: =IF(IF($Q46=1,DB46*$Q$10-DC46,DB46-DC46)<0,0,IF($Q46=1,DB46*$Q$10-DC46,DB46-DC46)) -> 5.435662 | DE46: =IFERROR(DD46/DB46,0) -> 0.8181432592 | DF46: =MIN(CX46,CQ46,CJ46,CC46,BV46,BO46,BH46,BA46,AT46,AM46,AF46,Y46,DE46) -> 0 | DG46: =SUM(DG17:DG45) -> 0 | DH46: =SUM(DH17:DH45) -> 0 | DI46: =SUM(DI17:DI45) -> 0 | DJ46: =SUM(DJ17:DJ45) -> 0 | DL46: =SUM(DL17:DL45) -> 495.3424 | DM46: 6.6439 | DN46: =SUM(DN17:DN45) -> 2.4027128 | DO46: =IF(IF($Q46=1,DM46*$Q$10-DN46,DM46-DN46)<0,0,IF($Q46=1,DM46*$Q$10-DN46,DM46-DN46)) -> 4.2411872 | DP46: =IFERROR(DO46/DM46,0) -> 0.6383580728 | DQ46: =MIN(DI46,DB46,CU46,CN46,CG46,BZ46,BS46,BL46,BE46,AX46,AQ46,AJ46,DP46) -> 0 | DR46: =SUM(DR17:DR45) -> 0 | DS46: =SUM(DS17:DS45) -> 0 | DT46: =SUM(DT17:DT45) -> 0 | DU46: =SUM(DU17:DU45) -> 0 | DW46: =SUM(DW17:DW45) -> 509.873 | DX46: 6.6439 | DY46: =SUM(DY17:DY45) -> 0.997376 | DZ46: =IF(IF($Q46=1,DX46*$Q$10-DY46,DX46-DY46)<0,0,IF($Q46=1,DX46*$Q$10-DY46,DX46-DY46)) -> 5.646524 | EA46: =IFERROR(DZ46/DX46,0) -> 0.8498809434 | EB46: =MIN(DT46,DM46,DF46,CY46,CR46,CK46,CD46,BW46,BP46,BI46,BB46,AU46,EA46) -> 0 | EC46: =SUM(EC17:EC45) -> 0 | ED46: =SUM(ED17:ED45) -> 0 | EE46: =SUM(EE17:EE45) -> 0 | EF46: =SUM(EF17:EF45) -> 0 | EH46: =SUM(EH17:EH45) -> 438.847 | EI46: 6.6439 | EJ46: =SUM(EJ17:EJ45) -> 0.949155 | EK46: =IF(IF($Q46=1,EI46*$Q$10-EJ46,EI46-EJ46)<0,0,IF($Q46=1,EI46*$Q$10-EJ46,EI46-EJ46)) -> 5.694745 | EL46: =IFERROR(EK46/EI46,0) -> 0.8571388793 | EM46: =MIN(EE46,DX46,DQ46,DJ46,DC46,CV46,CO46,CH46,CA46,BT46,BM46,BF46,EL46) -> 0 | EN46: =SUM(EN17:EN45) -> 0 | EO46: =SUM(EO17:EO45) -> 0 | EP46: =SUM(EP17:EP45) -> 0 | EQ46: =SUM(EQ17:EQ45) -> 0 | ES46: =SUM(ES17:ES45) -> 486.741 | ET46: 6.6439 | EU46: =SUM(EU17:EU45) -> 1.023567 | EV46: =IF(IF($Q46=1,ET46*$Q$10-EU46,ET46-EU46)<0,0,IF($Q46=1,ET46*$Q$10-EU46,ET46-EU46)) -> 5.620333 | EW46: =IFERROR(EV46/ET46,0) -> 0.8459388311 | EX46: =MIN(EP46,EI46,EB46,DU46,DN46,DG46,CZ46,CS46,CL46,CE46,BX46,BQ46,EW46) -> 0 | EY46: =SUM(EY17:EY45) -> 0 | EZ46: =SUM(EZ17:EZ45) -> 0 | FA46: =SUM(FA17:FA45) -> 0 | FB46: =SUM(FB17:FB45) -> 0 | FD46: =SUM(FD17:FD45) -> 431.934 | FE46: 6.6439 | FF46: =SUM(FF17:FF45) -> 0.941627 | FG46: =IF(IF($Q46=1,FE46*$Q$10-FF46,FE46-FF46)<0,0,IF($Q46=1,FE46*$Q$10-FF46,FE46-FF46)) -> 5.702273 | FH46: =IFERROR(FG46/FE46,0) -> 0.8582719487 | FI46: =MIN(FA46,ET46,EM46,EF46,DY46,DR46,DK46,DD46,CW46,CP46,CI46,CB46,FH46) -> 0 | FJ46: =SUM(FJ17:FJ45) -> 0 | FK46: =SUM(FK17:FK45) -> 0 | FL46: =SUM(FL17:FL45) -> 0 | FM46: =SUM(FM17:FM45) -> 0 | FO46: =SUM(FO17:FO45) -> 500.998 | FP46: 6.6439 | FQ46: =SUM(FQ17:FQ45) -> 1.050742 | FR46: =IF(IF($Q46=1,FP46*$Q$10-FQ46,FP46-FQ46)<0,0,IF($Q46=1,FP46*$Q$10-FQ46,FP46-FQ46)) -> 5.593158 | FS46: =IFERROR(FR46/FP46,0) -> 0.841848613 | FT46: =MIN(FL46,FE46,EX46,EQ46,EJ46,EC46,DV46,DO46,DH46,DA46,CT46,CM46,FS46) -> 0 | FU46: =SUM(FU17:FU45) -> 0 | FV46: =SUM(FV17:FV45) -> 0 | FW46: =SUM(FW17:FW45) -> 0 | FX46: =SUM(FX17:FX45) -> 0 | FZ46: =SUM(FZ17:FZ45) -> 500.537 | GA46: 6.6439 | GB46: =SUM(GB17:GB45) -> 1.04903 | GC46: =IF(IF($Q46=1,GA46*$Q$10-GB46,GA46-GB46)<0,0,IF($Q46=1,GA46*$Q$10-GB46,GA46-GB46)) -> 5.59487 | GD46: =IFERROR(GC46/GA46,0) -> 0.842106293 | GE46: =MIN(FW46,FP46,FI46,FB46,EU46,EN46,EG46,DZ46,DS46,DL46,DE46,CX46,GD46) -> 0 | GF46: =SUM(GF17:GF45) -> 0 | GG46: =SUM(GG17:GG45) -> 0 | GH46: =SUM(GH17:GH45) -> 0 | GI46: =SUM(GI17:GI45) -> 0 | GK46: =SUM(GK17:GK45) -> 496.589 | GL46: =SUM(GL17:GL45) -> 6.6439 | GM46: =SUM(GM17:GM45) -> 1.094549 | GN46: =IF(IF($Q46=1,GL46*$Q$10-GM46,GL46-GM46)<0,0,IF($Q46=1,GL46*$Q$10-GM46,GL46-GM46)) -> 5.549351 | GO46: =IFERROR(GN46/GL46,0) -> 0.835255046 | GP46: =MIN(GH46,GA46,FT46,FM46,FF46,EY46,ER46,EK46,ED46,DW46,DP46,DI46,GO46) -> 0 | GQ46: =SUM(GQ17:GQ45) -> 0 | GR46: =SUM(GR17:GR45) -> 0 | GS46: =SUM(GS17:GS45) -> 0 | GT46: =SUM(GT17:GT45) -> 0 | GV46: =SUM(GV17:GV45) -> 548.714 | GW46: =SUM(GW17:GW45) -> 6.6439 | GX46: =SUM(GX17:GX45) -> 1.152765 | GY46: =IF(IF($Q46=1,GW46*$Q$10-GX46,GW46-GX46)<0,0,IF($Q46=1,GW46*$Q$10-GX46,GW46-GX46)) -> 5.491135 | GZ46: =IFERROR(GY46/GW46,0) -> 0.8264927226 | HA46: =MIN(GS46,GL46,GE46,FX46,FQ46,FJ46,FC46,EV46,EO46,EH46,EA46,DT46,GZ46) -> 0 | HB46: =SUM(HB17:HB45) -> 0 | HC46: =SUM(HC17:HC45) -> 0 | HD46: =SUM(HD17:HD45) -> 0 | HE46: =SUM(HE17:HE45) -> 0 | HG46: =SUM(HG17:HG45) -> 633.9457 | HH46: =SUM(HH17:HH45) -> 6.6439 | HI46: =SUM(HI17:HI45) -> 1.266356 | HJ46: =IF(IF($Q46=1,HH46*$Q$10-HI46,HH46-HI46)<0,0,IF($Q46=1,HH46*$Q$10-HI46,HH46-HI46)) -> 5.377544 | HK46: =IFERROR(HJ46/HH46,0) -> 0.8093956863 | HL46: =MIN(HD46,GW46,GP46,GI46,GB46,FU46,FN46,FG46,EZ46,ES46,EL46,EE46,HK46) -> 0 | HM46: =SUM(HM17:HM29) -> 0 | HN46: =SUM(HN17:HN45) -> 0 | HO46: =SUM(HO17:HO45) -> 0 | HP46: =SUM(HP17:HP45) -> 0 | HR46: =SUM(HR17:HR45) -> 0 | HS46: 0 | HT46: =SUM(HT17:HT45) -> 0 | HU46: =IF(IF($Q46=1,HS46*$Q$10-HT46,HS46-HT46)<0,0,IF($Q46=1,HS46*$Q$10-HT46,HS46-HT46)) -> 0 | HV46: =IFERROR(HU46/HS46,0) -> 0 | HW46: =MIN(HO46,HH46,HA46,GT46,GM46,GF46,FY46,FR46,FK46,FD46,EW46,EP46,HV46) -> 0 | HX46: =SUM(HX17:HX45) -> 0 | HY46: =SUM(HY17:HY45) -> 0 | HZ46: =SUM(HZ17:HZ45) -> 0 | IA46: =SUM(IA17:IA45) -> 0 | IC46: =SUM(IC17:IC45) -> 5569.9601 | ID46: =SUM(ID17:ID45) -> 6.6439 | IE46: =SUM(IE17:IE45) -> 1.194192527 | IF46: =SUM(IF17:IF45) -> 3.596030267 | IG46: =IFERROR(IF46/ID46,0) -> 0.5412529187 | IH46: =SUM(IH17:IH45) -> 0 | II46: 0 | IJ46: =SUM(IJ17:IJ45) -> 0 | IK46: =SUM(IK17:IK45) -> 0
DW199: =(#REF!+#REF!+#REF!+#REF!+#REF!+#REF!+#REF!)*#REF! -> 

Sheet Лист1
A1: Промышленность | B1: Черная металлургия | C1: Федеральный
A2: Прочие | B2: Пищевая | C2: Областной
A3: ЖКХ | B3: Водоснабжение | C3: Местный
A4: Гос. учреждения | B4: ГУ.Прочие
B5: МВД
B6: ЖКХ.Прочие

Sheet свод (hidden)
A1: Сводный расчет резервируемой максимальной мощности по данным за 2019 год. | M1: Приложение
A3: Субъект РФ | B3: Классификатор потребителей | D3: ИТОГО ПО ДАННЫМ ЗА 2019 год
D4: ЭЭ, млн кВтч | E4: сред. знач Pmax, МВт | F4: сред. знач Pфакт, МВт | G4: Pрезерв, МВт | H4: доля Pрезерв, % | I4: сред знач Pрезерв_опл, МВт | J4: Стоимость услуги по передаче, млн руб. (без НДС) | M4: Увеличение затрат, %
B5: Основной | C5: Дополн. | I5: 0.05 | J5: всего | K5: резерв | L5: передача
A6: 2 | B6: 3 | C6: 4 | D6: 6 | E6: 7 | F6: 8 | G6: 9 | H6: 10 | I6: 11 | J6: 12 | K6: 13 | L6: 14 | M6: 15
A7: Белгородская область | C7: ИТОГО по субъекту РФ: | D7: =SUM(D8,D13,D29,D55,D60) ->  | E7: =SUM(E8,E13,E29,E55,E60) ->  | F7: =SUM(F8,F13,F29,F55,F60) ->  | G7: =E7-F7 ->  | H7: =IFERROR(G7/E7,0) -> 0 | I7: =SUM(I8,I13,I29,I55,I60) ->  | J7: =K7+L7 ->  | K7: =SUM(K8,K13,K29,K55,K60) ->  | L7: =SUM(L8,L13,L29,L55,L60) ->  | M7: =IFERROR(K7/L7,0) -> 0
A8: Белгородская область | B8: ЖКХ | C8: Всего | D8: =SUM(D9:D12) ->  | E8: =SUM(E9:E12) ->  | F8: =SUM(F9:F12) ->  | G8: =E8-F8 ->  | H8: 0 | I8: =SUM(I9:I12) ->  | K8: =SUM(K9:K12) ->  | L8: =SUM(L9:L12) ->  | M8: =IFERROR(K8/L8,0) -> 0
A9: Белгородская область | B9: ЖКХ | C9: Водоснабжение | D9: =БД!#REF!/1000 ->  | E9: =БД!#REF! ->  | F9: =БД!#REF! ->  | G9: =E9-F9 ->  | H9: 0 | I9: =БД!#REF! ->  | K9: =БД!#REF!/1000 ->  | L9: =БД!#REF!/1000 ->  | M9: =IFERROR(K9/L9,0) -> 0
A10: Белгородская область | B10: ЖКХ | C10: Теплоснабжение | D10: =БД!#REF!/1000 ->  | E10: =БД!#REF! ->  | F10: =БД!#REF! ->  | G10: =E10-F10 ->  | H10: 0 | I10: =БД!#REF! ->  | K10: =БД!#REF!/1000 ->  | L10: =БД!#REF!/1000 ->  | M10: =IFERROR(K10/L10,0) -> 0
A11: Белгородская область | B11: ЖКХ | C11: Электротранспорт | D11: =БД!#REF!/1000 ->  | E11: =БД!#REF! ->  | F11: =БД!#REF! ->  | H11: 0 | I11: =БД!#REF! ->  | K11: =БД!#REF!/1000 ->  | L11: =БД!#REF!/1000 ->  | M11: 0
A12: Белгородская область | B12: ЖКХ | C12: ЖКХ.Прочие | D12: =БД!#REF!/1000 ->  | E12: =БД!#REF! ->  | F12: =БД!#REF! ->  | G12: =E12-F12 ->  | H12: 0 | I12: =БД!#REF! ->  | K12: =БД!#REF!/1000 ->  | L12: =БД!#REF!/1000 ->  | M12: =IFERROR(K12/L12,0) -> 0
A13: Белгородская область | B13: Гос. учреждения | C13: Всего | D13: =SUM(D14:D28) ->  | E13: =SUM(E14:E28) ->  | F13: =SUM(F14:F28) ->  | G13: =E13-F13 ->  | H13: 0 | I13: =SUM(I14:I28) ->  | K13: =SUM(K14:K28) ->  | L13: =SUM(L14:L28) ->  | M13: 0
A14: Белгородская область | B14: Гос. учреждения | C14: ФСБ | D14: =БД!#REF!/1000 ->  | E14: =БД!#REF! ->  | F14: =БД!#REF! ->  | H14: 0 | I14: =БД!#REF! ->  | K14: =БД!#REF!/1000 ->  | L14: =БД!#REF!/1000 ->  | M14: 0
A15: Белгородская область | B15: Гос. учреждения | C15: МВД | D15: =БД!#REF!/1000 ->  | E15: =БД!#REF! ->  | F15: =БД!#REF! ->  | H15: 0 | I15: =БД!#REF! ->  | K15: =БД!#REF!/1000 ->  | L15: =БД!#REF!/1000 ->  | M15: 0
A16: Белгородская область | B16: Гос. учреждения | C16: ФСО | D16: =БД!#REF!/1000 ->  | E16: =БД!#REF! ->  | F16: =БД!#REF! ->  | H16: 0 | I16: =БД!#REF! ->  | K16: =БД!#REF!/1000 ->  | L16: =БД!#REF!/1000 ->  | M16: 0
A17: Белгородская область | B17: Гос. учреждения | C17: СВР | D17: =БД!#REF!/1000 ->  | E17: =БД!#REF! ->  | F17: =БД!#REF! ->  | H17: 0 | I17: =БД!#REF! ->  | K17: =БД!#REF!/1000 ->  | L17: =БД!#REF!/1000 ->  | M17: 0
A18: Белгородская область | B18: Гос. учреждения | C18: Росгвардия | D18: =БД!#REF!/1000 ->  | E18: =БД!#REF! ->  | F18: =БД!#REF! ->  | H18: 0 | I18: =БД!#REF! ->  | K18: =БД!#REF!/1000 ->  | L18: =БД!#REF!/1000 ->  | M18: 0
A19: Белгородская область | B19: Гос. учреждения | C19: ГУСП | D19: =БД!#REF!/1000 ->  | E19: =БД!#REF! ->  | F19: =БД!#REF! ->  | H19: 0 | I19: =БД!#REF! ->  | K19: =БД!#REF!/1000 ->  | L19: =БД!#REF!/1000 ->  | M19: 0
A20: Белгородская область | B20: Гос. учреждения | C20: Больницы | D20: =БД!#REF!/1000 ->  | E20: =БД!#REF! ->  | F20: =БД!#REF! ->  | H20: 0 | I20: =БД!#REF! ->  | K20: =БД!#REF!/1000 ->  | L20: =БД!#REF!/1000 ->  | M20: 0
A21: Белгородская область | B21: Гос. учреждения | C21: Ветеринарная служба | D21: =БД!#REF!/1000 ->  | E21: =БД!#REF! ->  | F21: =БД!#REF! ->  | H21: 0 | I21: =БД!#REF! ->  | K21: =БД!#REF!/1000 ->  | L21: =БД!#REF!/1000 ->  | M21: 0
A22: Белгородская область | B22: Гос. учреждения | C22: Россвязь | D22: =БД!#REF!/1000 ->  | E22: =БД!#REF! ->  | F22: =БД!#REF! ->  | H22: 0 | I22: =БД!#REF! ->  | K22: =БД!#REF!/1000 ->  | L22: =БД!#REF!/1000 ->  | M22: 0
A23: Белгородская область | B23: Гос. учреждения | C23: МО | D23: =БД!#REF!/1000 ->  | E23: =БД!#REF! ->  | F23: =БД!#REF! ->  | H23: 0 | I23: =БД!#REF! ->  | K23: =БД!#REF!/1000 ->  | L23: =БД!#REF!/1000 ->  | M23: 0
A24: Белгородская область | B24: Гос. учреждения | C24: ФСБ | D24: =БД!#REF!/1000 ->  | E24: =БД!#REF! ->  | F24: =БД!#REF! ->  | H24: 0 | I24: =БД!#REF! ->  | K24: =БД!#REF!/1000 ->  | L24: =БД!#REF!/1000 ->  | M24: 0
A25: Белгородская область | B25: Гос. учреждения | C25: МЧС | D25: =БД!#REF!/1000 ->  | E25: =БД!#REF! ->  | F25: =БД!#REF! ->  | H25: 0 | I25: =БД!#REF! ->  | K25: =БД!#REF!/1000 ->  | L25: =БД!#REF!/1000 ->  | M25: 0
A26: Белгородская область | B26: Гос. учреждения | C26: УИН | D26: =БД!#REF!/1000 ->  | E26: =БД!#REF! ->  | F26: =БД!#REF! ->  | H26: 0 | I26: =БД!#REF! ->  | K26: =БД!#REF!/1000 ->  | L26: =БД!#REF!/1000 ->  | M26: 0
A27: Белгородская область | B27: Гос. учреждения | C27: Образование | D27: =БД!#REF!/1000 ->  | E27: =БД!#REF! ->  | F27: =БД!#REF! ->  | H27: 0 | I27: =БД!#REF! ->  | K27: =БД!#REF!/1000 ->  | L27: =БД!#REF!/1000 ->  | M27: 0
A28: Белгородская область | B28: Гос. учреждения | C28: ГУ.Прочие | D28: =БД!#REF!/1000 ->  | E28: =БД!#REF! ->  | F28: =БД!#REF! ->  | H28: 0 | I28: =БД!#REF! ->  | K28: =БД!#REF!/1000 ->  | L28: =БД!#REF!/1000 ->  | M28: 0
A29: Белгородская область | B29: Промышленность | C29: Всего | D29: =SUM(D30:D54) ->  | E29: =SUM(E30:E54) ->  | F29: =SUM(F30:F54) ->  | G29: =E29-F29 ->  | H29: 0 | I29: =SUM(I30:I54) ->  | J29: =K29+L29 ->  | K29: =SUM(K30:K54) ->  | L29: =SUM(L30:L54) ->  | M29: 0
A30: Белгородская область | B30: Промышленность | C30: Электроэнергетика | D30: =БД!#REF!/1000 ->  | E30: =БД!#REF! ->  | F30: =БД!#REF! ->  | H30: 0 | I30: =БД!#REF! ->  | J30: =K30+L30 ->  | K30: =БД!#REF!/1000 ->  | L30: =БД!#REF!/1000 ->  | M30: 0
A31: Белгородская область | B31: Промышленность | C31: Нефтедобывающая | D31: =БД!#REF!/1000 ->  | E31: =БД!#REF! ->  | F31: =БД!#REF! ->  | H31: 0 | I31: =БД!#REF! ->  | J31: =K31+L31 ->  | K31: =БД!#REF!/1000 ->  | L31: =БД!#REF!/1000 ->  | M31: 0
A32: Белгородская область | B32: Промышленность | C32: Нефтеперерабатывающая | D32: =БД!#REF!/1000 ->  | E32: =БД!#REF! ->  | F32: =БД!#REF! ->  | H32: 0 | I32: =БД!#REF! ->  | K32: =БД!#REF!/1000 ->  | L32: =БД!#REF!/1000 ->  | M32: 0
A33: Белгородская область | B33: Промышленность | C33: Газовая | D33: =БД!#REF!/1000 ->  | E33: =БД!#REF! ->  | F33: =БД!#REF! ->  | H33: 0 | I33: =БД!#REF! ->  | K33: =БД!#REF!/1000 ->  | L33: =БД!#REF!/1000 ->  | M33: 0
A34: Белгородская область | B34: Промышленность | C34: Угольная | D34: =БД!#REF!/1000 ->  | E34: =БД!#REF! ->  | F34: =БД!#REF! ->  | H34: 0 | I34: =БД!#REF! ->  | K34: =БД!#REF!/1000 ->  | L34: =БД!#REF!/1000 ->  | M34: 0
A35: Белгородская область | B35: Промышленность | C35: Сланцевая | D35: =БД!#REF!/1000 ->  | E35: =БД!#REF! ->  | F35: =БД!#REF! ->  | H35: 0 | I35: =БД!#REF! ->  | K35: =БД!#REF!/1000 ->  | L35: =БД!#REF!/1000 ->  | M35: 0
A36: Белгородская область | B36: Промышленность | C36: Торфяная | D36: =БД!#REF!/1000 ->  | E36: =БД!#REF! ->  | F36: =БД!#REF! ->  | H36: 0 | I36: =БД!#REF! ->  | K36: =БД!#REF!/1000 ->  | L36: =БД!#REF!/1000 ->  | M36: 0
A37: Белгородская область | B37: Промышленность | C37: Черная металлургия | D37: =БД!#REF!/1000 ->  | E37: =БД!#REF! ->  | F37: =БД!#REF! ->  | H37: 0 | I37: =БД!#REF! ->  | K37: =БД!#REF!/1000 ->  | L37: =БД!#REF!/1000 ->  | M37: 0
A38: Белгородская область | B38: Промышленность | C38: Цветная металлургия | D38: =БД!#REF!/1000 ->  | E38: =БД!#REF! ->  | F38: =БД!#REF! ->  | H38: 0 | I38: =БД!#REF! ->  | K38: =БД!#REF!/1000 ->  | L38: =БД!#REF!/1000 ->  | M38: 0
A39: Белгородская область | B39: Промышленность | C39: Химия и нефтехимия | D39: =БД!#REF!/1000 ->  | E39: =БД!#REF! ->  | F39: =БД!#REF! ->  | H39: 0 | I39: =БД!#REF! ->  | K39: =БД!#REF!/1000 ->  | L39: =БД!#REF!/1000 ->  | M39: 0
A40: Белгородская область | B40: Промышленность | C40: Машиностроение и металлообработка | D40: =БД!#REF!/1000 ->  | E40: =БД!#REF! ->  | F40: =БД!#REF! ->  | H40: 0 | I40: =БД!#REF! ->  | K40: =БД!#REF!/1000 ->  | L40: =БД!#REF!/1000 ->  | M40: 0
A41: Белгородская область | B41: Промышленность | C41: Деревообрабатывающая | D41: =БД!#REF!/1000 ->  | E41: =БД!#REF! ->  | F41: =БД!#REF! ->  | H41: 0 | I41: =БД!#REF! ->  | K41: =БД!#REF!/1000 ->  | L41: =БД!#REF!/1000 ->  | M41: 0
A42: Белгородская область | B42: Промышленность | C42: Промышленность строительных материалов | D42: =БД!#REF!/1000 ->  | E42: =БД!#REF! ->  | F42: =БД!#REF! ->  | H42: 0 | I42: =БД!#REF! ->  | K42: =БД!#REF!/1000 ->  | L42: =БД!#REF!/1000 ->  | M42: 0
A43: Белгородская область | B43: Промышленность | C43: Стекольная и фарфоро - фаянсовая | D43: =БД!#REF!/1000 ->  | E43: =БД!#REF! ->  | F43: =БД!#REF! ->  | H43: 0 | I43: =БД!#REF! ->  | K43: =БД!#REF!/1000 ->  | L43: =БД!#REF!/1000 ->  | M43: 0
A44: Белгородская область | B44: Промышленность | C44: Легкая | D44: =БД!#REF!/1000 ->  | E44: =БД!#REF! ->  | F44: =БД!#REF! ->  | H44: 0 | I44: =БД!#REF! ->  | K44: =БД!#REF!/1000 ->  | L44: =БД!#REF!/1000 ->  | M44: 0
A45: Белгородская область | B45: Промышленность | C45: Пищевая | D45: =БД!#REF!/1000 ->  | E45: =БД!#REF! ->  | F45: =БД!#REF! ->  | H45: 0 | I45: =БД!#REF! ->  | K45: =БД!#REF!/1000 ->  | L45: =БД!#REF!/1000 ->  | M45: 0
A46: Белгородская область | B46: Промышленность | C46: Микробиологическая | D46: =БД!#REF!/1000 ->  | E46: =БД!#REF! ->  | F46: =БД!#REF! ->  | H46: 0 | I46: =БД!#REF! ->  | K46: =БД!#REF!/1000 ->  | L46: =БД!#REF!/1000 ->  | M46: 0
A47: Белгородская область | B47: Промышленность | C47: Мукомольно - крупяная | D47: =БД!#REF!/1000 ->  | E47: =БД!#REF! ->  | F47: =БД!#REF! ->  | H47: 0 | I47: =БД!#REF! ->  | K47: =БД!#REF!/1000 ->  | L47: =БД!#REF!/1000 ->  | M47: 0
A48: Белгородская область | B48: Промышленность | C48: Медицинская | D48: =БД!#REF!/1000 ->  | E48: =БД!#REF! ->  | F48: =БД!#REF! ->  | H48: 0 | I48: =БД!#REF! ->  | K48: =БД!#REF!/1000 ->  | L48: =БД!#REF!/1000 ->  | M48: 0
A49: Белгородская область | B49: Промышленность | C49: Полиграфическая | D49: =БД!#REF!/1000 ->  | E49: =БД!#REF! ->  | F49: =БД!#REF! ->  | H49: 0 | I49: =БД!#REF! ->  | K49: =БД!#REF!/1000 ->  | L49: =БД!#REF!/1000 ->  | M49: 0
A50: Белгородская область | B50: Промышленность | C50: Железнодорожный транспорт | D50: =БД!#REF!/1000 ->  | E50: =БД!#REF! ->  | F50: =БД!#REF! ->  | H50: 0 | I50: =БД!#REF! ->  | K50: =БД!#REF!/1000 ->  | L50: =БД!#REF!/1000 ->  | M50: 0
A51: Белгородская область | B51: Промышленность | C51: Нефтепроводный транспорт | D51: =БД!#REF!/1000 ->  | E51: =БД!#REF! ->  | F51: =БД!#REF! ->  | H51: 0 | I51: =БД!#REF! ->  | K51: =БД!#REF!/1000 ->  | L51: =БД!#REF!/1000 ->  | M51: 0
A52: Белгородская область | B52: Промышленность | C52: Газопроводный транспорт | D52: =БД!#REF!/1000 ->  | E52: =БД!#REF! ->  | F52: =БД!#REF! ->  | H52: 0 | I52: =БД!#REF! ->  | K52: =БД!#REF!/1000 ->  | L52: =БД!#REF!/1000 ->  | M52: 0
A53: Белгородская область | B53: Промышленность | C53: Авиационный транспорт | D53: =БД!#REF!/1000 ->  | E53: =БД!#REF! ->  | F53: =БД!#REF! ->  | H53: 0 | I53: =БД!#REF! ->  | K53: =БД!#REF!/1000 ->  | L53: =БД!#REF!/1000 ->  | M53: 0
A54: Белгородская область | B54: Промышленность | C54: Пром.Прочие | D54: =БД!#REF!/1000 ->  | E54: =БД!#REF! ->  | F54: =БД!#REF! ->  | H54: 0 | I54: =БД!#REF! ->  | K54: =БД!#REF!/1000 ->  | L54: =БД!#REF!/1000 ->  | M54: 0
A55: Белгородская область | B55: Сельское хозяйство | C55: Всего | D55: =SUM(D56:D59) ->  | E55: =SUM(E56:E59) ->  | F55: =SUM(F56:F59) ->  | H55: 0 | I55: =SUM(I56:I59) ->  | K55: =SUM(K56:K59) ->  | L55: =SUM(L56:L59) ->  | M55: 0
A56: Белгородская область | B56: Растениеводство | C56: Растениеводство | D56: =БД!#REF!/1000 ->  | E56: =БД!#REF! ->  | F56: =БД!#REF! ->  | H56: 0 | I56: =БД!#REF! ->  | K56: =БД!#REF!/1000 ->  | L56: =БД!#REF!/1000 ->  | M56: 0
A57: Белгородская область | B57: Животноводство | C57: Животноводство | D57: =БД!#REF!/1000 ->  | E57: =БД!#REF! ->  | F57: =БД!#REF! ->  | H57: 0 | I57: =БД!#REF! ->  | K57: =БД!#REF!/1000 ->  | L57: =БД!#REF!/1000 ->  | M57: 0
A58: Белгородская область | B58: Рыболовство | C58: Рыболовство | D58: =БД!#REF!/1000 ->  | E58: =БД!#REF! ->  | F58: =БД!#REF! ->  | H58: 0 | I58: =БД!#REF! ->  | K58: =БД!#REF!/1000 ->  | L58: =БД!#REF!/1000 ->  | M58: 0
A59: Белгородская область | B59: Смешанное | C59: Смешанное | D59: =БД!#REF!/1000 ->  | E59: =БД!#REF! ->  | F59: =БД!#REF! ->  | H59: 0 | I59: =БД!#REF! ->  | K59: =БД!#REF!/1000 ->  | L59: =БД!#REF!/1000 ->  | M59: 0
A60: Белгородская область | B60: Прочие | C60: Всего | D60: =БД!#REF!/1000 ->  | E60: =БД!#REF! ->  | F60: =БД!#REF! ->  | G60: =E60-F60 ->  | H60: =IFERROR(G60/E60,0) -> 0 | I60: =БД!#REF! ->  | J60: =K60+L60 ->  | K60: =БД!#REF!/1000 ->  | L60: =БД!#REF!/1000 ->  | M60: 0
D62: =D7-БД!#REF!/1000 ->  | E62: =E7-БД!#REF! ->  | F62: =F7-БД!#REF! ->  | I62: =I7-БД!#REF! ->  | J62: =J7-БД!#REF!/1000 ->  | K62: =K7-БД!#REF!/1000 ->  | L62: =L7-БД!#REF!/1000 -> 

Sheet Справочник субъектов (hidden)
A1: 22 | B1: Алтайский край
A2: 28 | B2: Амурская область
A3: 29 | B3: Архангельская область
A4: 30 | B4: Астраханская область
A5: 31 | B5: Белгородская область
A6: 32 | B6: Брянская область
A7: 33 | B7: Владимирская область
A8: 34 | B8: Волгоградская область
A9: 35 | B9: Вологодская область
A10: 36 | B10: Воронежская область
A11: 77 | B11: г. Москва
A12: 79 | B12: Еврейская автономная область
A13: 75 | B13: Забайкальский край
A14: 37 | B14: Ивановская область
A15: 99 | B15: Иные территории, включая город и космодром Байконур
A16: 38 | B16: Иркутская область
A17: 7 | B17: Кабардино-Балкарская Республика
A18: 39 | B18: Калининградская область
A19: 40 | B19: Калужская область
A20: 41 | B20: Камчатский край
A21: 9 | B21: Карачаево-Черкесская Республика
A22: 42 | B22: Кемеровская область
A23: 43 | B23: Кировская область
A24: 44 | B24: Костромская область
A25: 23 | B25: Краснодарский край
A26: 24 | B26: Красноярский край
A27: 45 | B27: Курганская область
A28: 46 | B28: Курская область
A29: 47 | B29: Ленинградская область
A30: 48 | B30: Липецкая область
A31: 49 | B31: Магаданская область
A32: 50 | B32: Московская область
A33: 51 | B33: Мурманская область
A34: 83 | B34: Ненецкий автономный округ
A35: 52 | B35: Нижегородская область
A36: 53 | B36: Новгородская область
A37: 54 | B37: Новосибирская область
A38: 55 | B38: Омская область
A39: 56 | B39: Оренбургская область
A40: 57 | B40: Орловская область
A41: 58 | B41: Пензенская область
A42: 59 | B42: Пермский край
A43: 25 | B43: Приморский край
A44: 60 | B44: Псковская область
A45: 1 | B45: Республика Адыгея (Адыгея)
A46: 4 | B46: Республика Алтай
A47: 2 | B47: Республика Башкортостан
A48: 3 | B48: Республика Бурятия
A49: 5 | B49: Республика Дагестан
A50: 6 | B50: Республика Ингушетия
A51: 8 | B51: Республика Калмыкия
A52: 10 | B52: Республика Карелия
A53: 11 | B53: Республика Коми
A54: 91 | B54: Республика Крым
A55: 12 | B55: Республика Марий Эл
A56: 13 | B56: Республика Мордовия
A57: 14 | B57: Республика Саха (Якутия)
A58: 15 | B58: Республика Северная Осетия - Алания
A59: 16 | B59: Республика Татарстан (Татарстан)
A60: 17 | B60: Республика Тыва
A61: 19 | B61: Республика Хакасия
A62: 61 | B62: Ростовская область
A63: 62 | B63: Рязанская область
A64: 63 | B64: Самарская область
A65: 78 | B65: Санкт-Петербург
A66: 64 | B66: Саратовская область
A67: 65 | B67: Сахалинская область
A68: 66 | B68: Свердловская область
A69: 92 | B69: Севастополь
A70: 67 | B70: Смоленская область
A71: 26 | B71: Ставропольский край
A72: 68 | B72: Тамбовская область
A73: 69 | B73: Тверская область
A74: 70 | B74: Томская область
A75: 71 | B75: Тульская область
A76: 72 | B76: Тюменская область
A77: 18 | B77: Удмуртская Республика
A78: 73 | B78: Ульяновская область
A79: 27 | B79: Хабаровский край
A80: 86 | B80: Ханты-Мансийский автономный округ - Югра
A81: 74 | B81: Челябинская область
A82: 20 | B82: Чеченская Республика
A83: 21 | B83: Чувашская Республика - Чувашия
A84: 87 | B84: Чукотский автономный округ
A85: 89 | B85: Ямало-Ненецкий автономный округ
A86: 76 | B86: Ярославская область

Sheet справочник ГП(ЭСК) (hidden)
A1: ИНН | B1: Наименование | C1: субъект
A2: 1001012875 | B2: ТНС энерго Карелия, АО | C2: Республика Карелия
A3: 1001174763 | B3: Энергокомфорт. Единая Карельская сбытовая компания, ООО | C3: Республика Карелия
A4: 1101301856 | B4: Коми энергосбытовая компания, АО | C4: Республика Коми
A5: 1215099739 | B5: ТНС энерго Марий Эл, ПАО | C5: Республика МАРИЙ ЭЛ
A6: 1326192645 | B6: Мордовская энергосбытовая компания, ОАО | C6: Республика Мордовия
A7: 1502002701 | B7: Севкавказэнерго, ПАО | C7: Республика Северная Осетия-Алания
A8: 1701040660 | B8: Тываэнергосбыт, АО | C8: Республика Тыва
A9: 1901064509 | B9: Абаканэнергосбыт, ООО | C9: Республика Хакасия
A10: 1901067690 | B10: Хакасэнергосбыт, АО | C10: Республика Хакасия
A11: 2128700232 | B11: Чувашская энергосбытовая компания, АО | C11: Республика Чувашия
A12: 2224103849 | B12: Алтайэнергосбыт, АО | C12: Алтайский край
A13: 2224103849 | B13: Алтайэнергосбыт, АО | C13: Республика Алтай
A14: 2308091759 | B14: НЭСК, АО | C14: Краснодарский край
A15: 2308119595 | B15: ТНС энерго Кубань, ПАО | C15: Краснодарский край
A16: 2466132221 | B16: Красноярскэнергосбыт, ПАО | C16: Красноярский край
A17: 2626033550 | B17: Ставропольэнергосбыт, ПАО | C17: Ставропольский край
A18: 2901134250 | B18: Архэнергосбыт, ПАО | C18: Архангельская область
A19: 2901179251 | B19: АрхоблЭнерго, АО | C19: Архангельская область
A20: 3017041554 | B20: Астраханская энергосбытовая компания, ПАО | C20: Астраханская область
A21: 3123110760 | B21: Белгородская сбытовая компания, ОАО | C21: Белгородская область
A22: 323125110 | B22: Бурятэнергосбыт, ОАО | C22: Республика Бурятия
A23: 3250056153 | B23: Брянскэнергосбыт, ОАО | C23: Брянская область
A24: 3302021309 | B24: Владимирэнергосбыт, ПАО | C24: Владимирская область
A25: 3327329166 | B25: ВКС, ОАО | C25: Владимирская область
A26: 3328424479 | B26: РКС-энерго, ООО | C26: Ленинградская область
A27: 3445071523 | B27: Волгоградэнергосбыт, ПАО | C27: Волгоградская область
A28: 3525154831 | B28: Вологдаэнергосбыт, ПАО | C28: Вологодская область
A29: 3604016496 | B29: БЭСО Борисоглебского городского округа Воронежской обл, МУП | C29: Воронежская область
A30: 3663050467 | B30: ТНС энерго Воронеж, ПАО | C30: Воронежская область
A31: 3702044413 | B31: Ивановоэнергосбыт, ООО | C31: Ивановская область
A32: 3702065117 | B32: Ивэнергосбыт, ОАО | C32: Ивановская область
A33: 3808166404 | B33: Иркутскэнергосбыт, ООО | C33: Не присвоено
A34: 3908600865 | B34: Янтарьэнергосбыт, ОАО | C34: Калининградская область
A35: 4029030252 | B35: Калужская сбытовая компания, ПАО | C35: Калужская область
A36: 4205109214 | B36: Кузбассэнергосбыт, ПАО | C36: Кемеровская область
A37: 4217039402 | B37: Металлэнергофинанс, ООО | C37: Кемеровская область
A38: 4401050567 | B38: Костромская сбытовая компания, ПАО | C38: Костромская область
A39: 4632049456 | B39: Курскрегионэнергосбыт, ОАО | C39: Курская область
A40: 4633017746 | B40: Региональная энергосбытовая компания, ООО | C40: Курская область
A41: 4822001244 | B41: ЛЭСК, ОАО | C41: Липецкая область
A42: 4822001340 | B42: ГЭСК, ООО | C42: Липецкая область
A43: 5001003540 | B43: БЭЛС, ЗАО | C43: г. Москва и Московская область
A44: 5016013300 | B44: Ивантеевские электросети, МУП | C44: г. Москва и Московская область
A45: 5017034511 | B45: Объединение Истринские электросети, МУП | C45: г. Москва и Московская область
A46: 5018141474 | B46: Королёвская электросеть СК, ОАО | C46: г. Москва и Московская область
A47: 5024037961 | B47: КЭС, АО | C47: г. Москва и Московская область
A48: 5029087589 | B48: Электросеть, ОАО | C48: г. Москва и Московская область
A49: 5105041148 | B49: Колэнергосбыт, ОАО | C49: Мурманская область
A50: 5107910347 | B50: Арктик-энерго, ООО | C50: Мурманская область
A51: 5254081010 | B51: Обеспечение РФЯЦ-ВНИИЭФ, АО | C51: Нижегородская область
A52: 5256062171 | B52: Волгаэнергосбыт, ЗАО | C52: Нижегородская область
A53: 5260148520 | B53: ТНС энерго НН, ПАО | C53: Нижегородская область
A54: 5260200603 | B54: МРСК Центра и Приволжья, ОАО | C54: Не присвоено
A55: 5321102236 | B55: Новгородоблэнергосбыт, АО | C55: Новгородская область
A56: 541031172 | B56: Дагестанская энергосбытовая компания, ПАО | C56: Республика Дагестан
A57: 541031172 | B57: Дагестанская энергосбытовая компания, ПАО | C57: Республика Дагестан
A58: 541031172 | B58: Дагестанская энергосбытовая компания, ПАО | C58: Республика Дагестан
A59: 5503091518 | B59: Омскэнергосбыт, ОАО | C59: Омская область
A60: 5610095517 | B60: Оренбургсельэнергосбыт, ЗАО | C60: Оренбургская область
A61: 5612042824 | B61: ЭнергосбыТ Плюс, ОАО | C61: Оренбургская область
A62: 5612042824 | B62: ЭнергосбыТ Плюс, ОАО | C62: Свердловская область
A63: 5612042824 | B63: ЭнергосбыТ Плюс, ОАО | C63: Кировская область
A64: 5612042824 | B64: ЭнергосбыТ Плюс, ОАО | C64: Республика Удмуртия
A65: 5751028841 | B65: Орелэнергосбыт, ОАО | C65: Орловская область
A66: 5754020600 | B66: Интер РАО - Орловский энергосбыт, ООО | C66: Орловская область
A67: 5835059003 | B67: Пензаэнергосбыт, ОАО | C67: Пензенская область
A68: 5904123809 | B68: Пермэнергосбыт, ПАО | C68: Пермский край
A69: 602013494 | B69: Ингушэнерго, АО | C69: Республика Ингушентия
A70: 6027084016 | B70: Псковэнергосбыт, ОАО | C70: Псковская область
A71: 6168002922 | B71: ТНС энерго Ростов-на-Дону, ПАО | C71: Ростовская область
A72: 6229049014 | B72: Рязанская энергетическая сбытовая компания, ПАО | C72: Рязанская область
A73: 6229054695 | B73: РГМЭК, ООО | C73: Рязанская область
A74: 6315222985 | B74: Самараэнерго, ПАО | C74: Самарская область
A75: 6450014808 | B75: Саратовэнерго, ПАО | C75: Саратовская область
A76: 6629018839 | B76: Новоуральская энергосбытовая компания, ООО | C76: Свердловская область
A77: 6671250899 | B77: Екатеринбургэнергосбыт, ОАО | C77: Свердловская область
A78: 6731048633 | B78: Смоленскскэнергосбыт, ОАО | C78: Смоленская область
A79: 6829010210 | B79: Тамбовская энергосбытовая компания, ОАО | C79: Тамбовская область
A80: 6829017247 | B80: Тамбовская областная сбытовая компания, ОАО | C80: Тамбовская область
A81: 6901068245 | B81: Тверьэнергосбыт, ОАО | C81: Тверская область
A82: 6901086741 | B82: Тверьоблэнергосбыт, ООО | C82: Тверская область
A83: 7017114680 | B83: Томскэнергосбыт, ПАО | C83: Томская область
A84: 7101006428 | B84: Тулаэнергосбыт, ОАО | C84: Тульская область
A85: 7105037307 | B85: ТНС энерго Тула, АО | C85: Тульская область
A86: 711008455 | B86: Каббалкэнерго, ПАО | C86: Республика Кабардино-Балкария
A87: 7111017002 | B87: Алексинэнергосбыт, ООО | C87: Тульская область
A88: 7116127560 | B88: Новомосковская энергосбытовая компания, ООО | C88: Тульская область
A89: 7327012462 | B89: Ульяновскэнерго, ПАО | C89: Ульяновская область
A90: 7445020452 | B90: Магнитогорская энергетическая компания, ООО | C90: Челябинская область
A91: 7451213318 | B91: Челябэнергосбыт, ПАО | C91: Челябинская область
A92: 7530007886 | B92: ЖКУ, УМП | C92: Забайкальский край
A93: 7536066430 | B93: Читаэнергосбыт, АО | C93: Республика Бурятия
A94: 7536066430 | B94: Читаэнергосбыт, АО | C94: Забайкальский край
A95: 7604193710 | B95: ТГК-2 Энергосбыт | C95: Архангельская область
A96: 7606052264 | B96: ТНС энерго Ярославль, ПАО | C96: Ярославская область
A97: 7702743761 | B97: ТНС энерго Пенза, ООО | C97: Пензенская область
A98: 7703599239 | B98: ЭНЕРГОСБЫТХОЛДИНГ, ООО | C98: г. Москва и Московская область
A99: 7704228075 | B99: АтомЭнергоСбыт, АО | C99: Мурманская область
A100: 7704228075 | B100: АтомЭнергоСбыт, АО | C100: Курская область
A101: 7704228075 | B101: АтомЭнергоСбыт, АО | C101: Смоленская область
A102: 7704228075 | B102: АтомЭнергоСбыт, АО | C102: Тверская область
A103: 7704440018 | B103: ЭНЕРГОСБЫТ ВОЛГА, ООО | C103: Владимирская область
A104: 7704440018 | B104: ЭНЕРГОСБЫТ ВОЛГА, ООО | C104: Не присвоено
A105: 7704731218 | B105: Оборонэнергосбыт, АО | C105: Республика Мордовия
A106: 7704731218 | B106: Оборонэнергосбыт, АО | C106: Оренбургская область
A107: 7704731218 | B107: Оборонэнергосбыт, АО | C107: Саратовская область
A108: 7704731218 | B108: Оборонэнергосбыт, АО | C108: Новгородская область
A109: 7704731218 | B109: Оборонэнергосбыт, АО | C109: Псковская область
A110: 7704731218 | B110: Оборонэнергосбыт, АО | C110: Забайкальский край
A111: 7704731218 | B111: Оборонэнергосбыт, АО | C111: Свердловская область
A112: 7704731218 | B112: Оборонэнергосбыт, АО | C112: Челябинская область
A113: 7704731218 | B113: Оборонэнергосбыт, АО | C113: Владимирская область
A114: 7704731218 | B114: Оборонэнергосбыт, АО | C114: Ивановская область
A115: 7704731218 | B115: Оборонэнергосбыт, АО | C115: Калужская область
A116: 7704731218 | B116: Оборонэнергосбыт, АО | C116: Кировская область
A117: 7704731218 | B117: Оборонэнергосбыт, АО | C117: Республика МАРИЙ ЭЛ
A118: 7704731218 | B118: Оборонэнергосбыт, АО | C118: Нижегородская область
A119: 7704731218 | B119: Оборонэнергосбыт, АО | C119: Рязанская область
A120: 7704731218 | B120: Оборонэнергосбыт, АО | C120: Белгородская область
A121: 7704731218 | B121: Оборонэнергосбыт, АО | C121: Брянская область
A122: 7704731218 | B122: Оборонэнергосбыт, АО | C122: Костромская область
A123: 7704731218 | B123: Оборонэнергосбыт, АО | C123: Липецкая область
A124: 7704731218 | B124: Оборонэнергосбыт, АО | C124: Орловская область
A125: 7704731218 | B125: Оборонэнергосбыт, АО | C125: Смоленская область
A126: 7704731218 | B126: Оборонэнергосбыт, АО | C126: Тверская область
A127: 7704731218 | B127: Оборонэнергосбыт, АО | C127: Ярославская область
A128: 7704731218 | B128: Оборонэнергосбыт, АО | C128: Астраханская область
A129: 7704731218 | B129: Оборонэнергосбыт, АО | C129: Краснодарский край
A130: 7704731218 | B130: Оборонэнергосбыт, АО | C130: Ленинградская область
A131: 7704731218 | B131: Оборонэнергосбыт, АО | C131: г. Москва и Московская область
A132: 7704731218 | B132: Оборонэнергосбыт, АО | C132: Калининградская область
A133: 7706284124 | B133: РУСЭНЕРГОСБЫТ, ООО | C133: Республика Мордовия
A134: 7706284124 | B134: РУСЭНЕРГОСБЫТ, ООО | C134: Оренбургская область
A135: 7706284124 | B135: РУСЭНЕРГОСБЫТ, ООО | C135: Саратовская область
A136: 7706284124 | B136: РУСЭНЕРГОСБЫТ, ООО | C136: Республика Карелия
A137: 7706284124 | B137: РУСЭНЕРГОСБЫТ, ООО | C137: Мурманская область
A138: 7706284124 | B138: РУСЭНЕРГОСБЫТ, ООО | C138: Республика Хакасия
A139: 7706284124 | B139: РУСЭНЕРГОСБЫТ, ООО | C139: Владимирская область
A140: 7706284124 | B140: РУСЭНЕРГОСБЫТ, ООО | C140: Кировская область
A141: 7706284124 | B141: РУСЭНЕРГОСБЫТ, ООО | C141: Нижегородская область
A142: 7706284124 | B142: РУСЭНЕРГОСБЫТ, ООО | C142: Костромская область
A143: 7706284124 | B143: РУСЭНЕРГОСБЫТ, ООО | C143: Ярославская область
A144: 7706284124 | B144: РУСЭНЕРГОСБЫТ, ООО | C144: Астраханская область
A145: 7706284124 | B145: РУСЭНЕРГОСБЫТ, ООО | C145: Волгоградская область
A146: 7706284124 | B146: РУСЭНЕРГОСБЫТ, ООО | C146: Ленинградская область
A147: 7706284124 | B147: РУСЭНЕРГОСБЫТ, ООО | C147: г. Москва и Московская область
A148: 7709538063 | B148: Роскоммунэнерго, АО | C148: Свердловская область
A149: 7715825806 | B149: ТНС энерго Великий Новгород, ООО | C149: Новгородская область
A150: 7727743393 | B150: Энергосбытовая компания ГАРАНТ, ООО | C150: Ивановская область
A151: 7736520080 | B151: Мосэнергосбыт, АО | C151: г. Москва и Московская область
A152: 7841322249 | B152: Петербургская сбытовая компания, АО | C152: Омская область
A153: 7841322249 | B153: Петербургская сбытовая компания, АО | C153: Ленинградская область
A154: 814166090 | B154: Калмэнергосбыт, ОАО | C154: Республика Калмыкия
A155: 8602067215 | B155: Газпром энергосбыт Тюмень, АО | C155: Тюменская область
A156: 8602173527 | B156: Газпром энергосбыт Брянск, ООО | C156: Брянская область
A157: 901000327 | B157: Карачаево-Черкесскэнерго, АО | C157: Карачаево-черкесская республика

Sheet Справочник СО (hidden)
A1: ИНН сетевой организации | B1: Наименование сетевой организации | C1: Субъект РФ
A2: 1655063821 | B2: ООО Ново-Рязанская ТЭЦ | C2: Рязанская область
A3: 1701029232 | B3: ОАО "Тываэнерго" | C3: Республика Тыва
A4: 1826000278 | B4: Ижевские электрические сети | C4: Удмуртская Республика
A5: 1827001683 | B5: ОАО Сарапульский электрогенераторный завод | C5: Удмуртская Республика
A6: 1831083343 | B6: ОАО Ижевский электромеханический завод Купол | C6: Удмуртская Республика
A7: 1834028862 | B7: ООО Удмуртэнергонефть | C7: Удмуртская Республика
A8: 1835038790 | B8: Филиал УПП №821 ФГУП ГУССТ №8 при Спецстрое России | C8: Удмуртская Республика
A9: 1835060957 | B9: ООО Электрические сети Удмуртии | C9: Удмуртская Республика
A10: 1837013649 | B10: ООО ТрансЭлектроСеть | C10: Удмуртская Республика
A11: 1840005542 | B11: АО Ижметмаш | C11: Удмуртская Республика
A12: 1840028170 | B12: ООО Горэлектросеть | C12: Удмуртская Республика
A13: 1841009571 | B13: ООО Контакт | C13: Удмуртская Республика
A14: 2016081143 | B14: АО "Чеченэнерго" | C14: Чеченская Республика
A15: 2128701733 | B15: ОАО ТГК-5 | C15: Чувашская Республика
A16: 2204052762 | B16: Бийскэнерго | C16: Алтайский край
A17: 2261009273 | B17: Регион-Энерго | C17: Алтайский край
A18: 2308190012 | B18: ООО «Краснодарэнерго» | C18: Краснодарский край
A19: 2309001660 | B19: ПАО "Кубаньэнерго" | C19: Краснодарский край
A20: 2312171950 | B20: ООО "АКСОЙ" | C20: Краснодарский край
A21: 2312178995 | B21: ООО «Ростэкэлектросети» | C21: Краснодарский край
A22: 2460069527 | B22: ПАО "МРСК Сибири" | C22: Алтайский край
A23: =A22 -> 2460069527 | B23: ПАО "МРСК Сибири" | C23: Забайкальский край
A24: 2460069527 | B24: ПАО "МРСК Сибири" | C24: Кемеровская область
A25: 2460069527 | B25: ПАО "МРСК Сибири" | C25: Красноярский край
A26: 2460069527 | B26: ПАО "МРСК Сибири" | C26: Омская область
A27: 2460069527 | B27: ПАО "МРСК Сибири" | C27: Республика Алтай
A28: 2460069527 | B28: ПАО "МРСК Сибири" | C28: Республика Бурятия
A29: 2460069527 | B29: ПАО "МРСК Сибири" | C29: Республика Хакасия
A30: 2632082033 | B30: ПАО "МРСК Северного Кавказа" | C30: Кабардино-Балкарская Республика
A31: =A30 -> 2632082033 | B31: ПАО "МРСК Северного Кавказа" | C31: Карачаево-Черкесская Республика
A32: 2632082033 | B32: ПАО "МРСК Северного Кавказа" | C32: Республика Ингушетия
A33: 2632082033 | B33: ПАО "МРСК Северного Кавказа" | C33: Республика Северная Осетия - Алания
A34: 2632082033 | B34: ПАО "МРСК Северного Кавказа" | C34: Ставропольский край
A35: 2632800485 | B35: АО "Дагестанская сетевая компания" | C35: Республика Дагестан
A36: 3127000014 | B36: АО Лебединский ГОК | C36: Белгородская область
A37: 3128011788 | B37: ОАО Стойленский ГОК | C37: Белгородская область
A38: 3257012934 | B38: ООО БРЭСК | C38: Брянская область
A39: 3324121145 | B39: ООО "Промэнерго" | C39: Владимирская область
A40: 3329000151 | B40: ОАО "Полимерсинтез" | C40: Владимирская область
A41: 3329038170 | B41: ОАО Владимирская областная электросетевая компания | C41: Владимирская область
A42: 3435000266 | B42: ОАО Волжский азотно-кислородный завод | C42: Волгоградская область
A43: 3441010181 | B43: МУПП Волгоградские межрайонные электрические сети | C43: Волгоградская область
A44: 3442110943 | B44: ОАО Производственное объединение Баррикады | C44: Волгоградская область
A45: 3444110201 | B45: ООО ЖКХ | C45: Волгоградская область
A46: 3448009717 | B46: Администрация ВОЛГОДОН | C46: Волгоградская область
A47: 3528219741 | B47: АО "Редаелли ССМ" | C47: Волгоградская область
A48: 3604001066 | B48: МУП Борисоглебская Горэлектросеть | C48: Воронежская область
A49: 3627000397 | B49: ОАО Минудобрения | C49: Воронежская область
A50: 3652007597 | B50: ООО Лискимонтажконструкция | C50: Воронежская область
A51: 3661046200 | B51: ООО ТеплоЭнергоГаз | C51: Воронежская область
A52: 3662051517 | B52: ЗАО Воронежский конденсаторный завод | C52: Воронежская область
A53: 3662063336 | B53: ОАО ВЭКС Воронежский экскаватор | C53: Воронежская область
A54: 3663000804 | B54: ЗАО Воронежстальмост | C54: Воронежская область
A55: 3665046177 | B55: ОАО Конструкторское бюро химавтоматики | C55: Воронежская область
A56: 3701047387 | B56: ООО Тепловик | C56: Ивановская область
A57: 3702005291 | B57: ООО ТДЛ Энерго | C57: Ивановская область
A58: 3702024079 | B58: ЗАО "СпинЭф" | C58: Ивановская область
A59: 3702054860 | B59: ОАО ПСК | C59: Ивановская область
A60: 3702083638 | B60: ООО Энергосетьком | C60: Ивановская область
A61: 3702099236 | B61: ООО "Альфа-Энерго" | C61: Ивановская область
A62: 3702512911 | B62: ООО ПРОФЕССИОНАЛ | C62: Ивановская область
A63: 3702537169 | B63: ОАО Поликор | C63: Ивановская область
A64: 3702556570 | B64: ООО "Электро-Сервис" | C64: Ивановская область
A65: 3702558803 | B65: ООО Энергетические сети - Меланж | C65: Ивановская область
A66: 3702577556 | B66: ООО Подстанция Красный Октябрь | C66: Ивановская область
A67: 3703015172 | B67: ОАО Кинешемская ГЭС | C67: Ивановская область
A68: 3703045850 | B68: ООО "МИП Кинешма" | C68: Ивановская область
A69: 3710005383 | B69: ООО Химзавод | C69: Ивановская область
A70: 3731023288 | B70: ОАО "ИЗТС" | C70: Ивановская область
A71: 3731024644 | B71: ОАО Автокран | C71: Ивановская область
A72: 3900000111 | B72: ОАО Прибалтийский судостроительный завод Янтарь | C72: Калининградская область
A73: 3900000390 | B73: ФГУП Калининградский морской рыбный порт | C73: Калининградская область
A74: 3903010326 | B74: ОАО Кварц | C74: Калининградская область
A75: 3904058970 | B75: ООО БалтТехПром | C75: Калининградская область
A76: 3906126174 | B76: ООО "Энергосеть" | C76: Калининградская область
A77: 3906214663 | B77: АО "Региональная энергетическая компания" | C77: Калининградская область
A78: 3906970638 | B78: АО Западная энергетическая компания | C78: Калининградская область
A79: 3912005795 | B79: АО "Янтарьэнерго" | C79: Калининградская область
A80: 3917000092 | B80: ООО Вальдау | C80: Калининградская область
A81: 4000000255 | B81: ОАО "Калужский двигатель" | C81: Калужская область
A82: 4028026750 | B82: ООО "Каскад-Энергосеть" | C82: Калужская область
A83: 4029032450 | B83: Людиновский филиал ОАО Калужский завод "Ремпутьмаш" | C83: Калужская область
A84: 4205130008 | B84: ООО ИнвестГрадСтрой | C84: Томская область
A85: 4212024138 | B85: ОАО "СУЭК-Кузбасс" | C85: Кемеровская область
A86: 4217084532 | B86: ООО ЕвразЭнергоТранс | C86: Свердловская область
A87: 4312126856 | B87: ООО "ГалоПолимер Кирово-Чепецк" | C87: Кировская область
A88: 4312134857 | B88: ООО "Вятская сетевая компания" | C88: Кировская область
A89: =A88 -> 4312134857 | B89: ООО "РЭЦ Цепели" | C89: Кировская область
A90: 4340000830 | B90: ОАО "Молот" | C90: Кировская область
A91: 4345029946 | B91: ОАО "Ново-Вятка" | C91: Кировская область
A92: 4345066465 | B92: ООО "Транзит" | C92: Кировская область
A93: 4345268479 | B93: ЗАО "Промуправление" | C93: Кировская область
A94: 4345287866 | B94: ООО "Региональная сеть" | C94: Кировская область
A95: 4345331628 | B95: ООО "Вятэнергосервис" | C95: Кировская область
A96: 4345379570 | B96: ООО "Вятская Энерго-Сберегающая компания" | C96: Кировская область
A97: 4345433098 | B97: ООО "Единая Электросетевая Компания" | C97: Кировская область
A98: 4346001502 | B98: МУП Горэлектросеть | C98: Кировская область
A99: =A98 -> 4346001502 | B99: =B98 -> МУП Горэлектросеть | C99: Республика Алтай
A100: 4346011123 | B100: ОАО "Коммунэнерго" | C100: Кировская область
A101: 4401095367 | B101: ООО Энергосервис | C101: Костромская область
A102: 4401140450 | B102: ООО КФК ЭНЕРГО | C102: Костромская область
A103: 4632064246 | B103: АО КЭС | C103: Курская область
A104: 4632118318 | B104: ООО Электроснабжение | C104: Курская область
A105: 4633020869 | B105: ООО Железногорская Сетевая Компания | C105: Курская область
A106: 4703074613 | B106: ОАО ЛОЭСК | C106: Ленинградская область
A107: 4703105646 | B107: ООО Управление сетевыми комплексами (ООО УСК) | C107: Ленинградская область
A108: 4716016979 | B108: ПАО "ФСК ЕЭС" | C108: Алтайский край
A109: =A108 -> 4716016979 | B109: ПАО "ФСК ЕЭС" | C109: Амурская область
A110: 4716016979 | B110: ПАО "ФСК ЕЭС" | C110: Архангельская область
A111: 4716016979 | B111: ПАО "ФСК ЕЭС" | C111: Астраханская область
A112: 4716016979 | B112: ПАО "ФСК ЕЭС" | C112: Белгородская область
A113: 4716016979 | B113: ПАО "ФСК ЕЭС" | C113: Брянская область
A114: 4716016979 | B114: ПАО "ФСК ЕЭС" | C114: Владимирская область
A115: 4716016979 | B115: ПАО "ФСК ЕЭС" | C115: Волгоградская область
A116: 4716016979 | B116: ПАО "ФСК ЕЭС" | C116: Вологодская область
A117: 4716016979 | B117: ПАО "ФСК ЕЭС" | C117: Воронежская область
A118: 4716016979 | B118: ПАО "ФСК ЕЭС" | C118: Еврейская автономная область
A119: 4716016979 | B119: ПАО "ФСК ЕЭС" | C119: Забайкальский край
A120: 4716016979 | B120: ПАО "ФСК ЕЭС" | C120: Ивановская область
A121: 4716016979 | B121: ПАО "ФСК ЕЭС" | C121: Иркутская область
A122: 4716016979 | B122: ПАО "ФСК ЕЭС" | C122: Кабардино-Балкарская Республика
A123: 4716016979 | B123: ПАО "ФСК ЕЭС" | C123: Калужская область
A124: 4716016979 | B124: ПАО "ФСК ЕЭС" | C124: Кемеровская область
A125: =A124 -> 4716016979 | B125: ПАО "ФСК ЕЭС" | C125: Кировская область
A126: 4716016979 | B126: ПАО "ФСК ЕЭС" | C126: Костромская область
A127: 4716016979 | B127: ПАО "ФСК ЕЭС" | C127: Краснодарский край
A128: 4716016979 | B128: ПАО "ФСК ЕЭС" | C128: Красноярский край
A129: 4716016979 | B129: ПАО "ФСК ЕЭС" | C129: Курская область
A130: 4716016979 | B130: ПАО "ФСК ЕЭС" | C130: Ленинградская область
A131: 4716016979 | B131: ПАО "ФСК ЕЭС" | C131: Липецкая область
A132: 4716016979 | B132: ПАО "ФСК ЕЭС" | C132: Москва
A133: 4716016979 | B133: ПАО "ФСК ЕЭС" | C133: Московская область
A134: 4716016979 | B134: ПАО "ФСК ЕЭС" | C134: Мурманская область
A135: 4716016979 | B135: ПАО "ФСК ЕЭС" | C135: Нижегородская область
A136: 4716016979 | B136: ПАО "ФСК ЕЭС" | C136: Новгородская область
A137: 4716016979 | B137: ПАО "ФСК ЕЭС" | C137: Новосибирская область
A138: 4716016979 | B138: ПАО "ФСК ЕЭС" | C138: Омская область
A139: 4716016979 | B139: ПАО "ФСК ЕЭС" | C139: Оренбургская область
A140: 4716016979 | B140: ПАО "ФСК ЕЭС" | C140: Орловская область
A141: =A140 -> 4716016979 | B141: ПАО "ФСК ЕЭС" | C141: Пензенская область
A142: 4716016979 | B142: ПАО "ФСК ЕЭС" | C142: Пермский край
A143: 4716016979 | B143: ПАО "ФСК ЕЭС" | C143: Приморский край
A144: 4716016979 | B144: ПАО "ФСК ЕЭС" | C144: Псковская область
A145: 4716016979 | B145: ПАО "ФСК ЕЭС" | C145: Республика Бурятия
A146: 4716016979 | B146: ПАО "ФСК ЕЭС" | C146: Республика Дагестан
A147: 4716016979 | B147: ПАО "ФСК ЕЭС" | C147: Республика Карелия
A148: 4716016979 | B148: ПАО "ФСК ЕЭС" | C148: Республика Коми
A149: 4716016979 | B149: ПАО "ФСК ЕЭС" | C149: Республика Марий Эл
A150: 4716016979 | B150: ПАО "ФСК ЕЭС" | C150: Республика Мордовия
A151: 4716016979 | B151: ПАО "ФСК ЕЭС" | C151: Республика Саха (Якутия)
A152: 4716016979 | B152: ПАО "ФСК ЕЭС" | C152: Республика Северная Осетия - Алания
A153: 4716016979 | B153: ПАО "ФСК ЕЭС" | C153: Республика Тыва
A154: 4716016979 | B154: ПАО "ФСК ЕЭС" | C154: Республика Хакасия
A155: 4716016979 | B155: ПАО "ФСК ЕЭС" | C155: Ростовская область
A156: 4716016979 | B156: ПАО "ФСК ЕЭС" | C156: Рязанская область
A157: =A156 -> 4716016979 | B157: ПАО "ФСК ЕЭС" | C157: Самарская область
A158: 4716016979 | B158: ПАО "ФСК ЕЭС" | C158: Санкт-Петербург
A159: 4716016979 | B159: ПАО "ФСК ЕЭС" | C159: Саратовская область
A160: 4716016979 | B160: ПАО "ФСК ЕЭС" | C160: Свердловская область
A161: 4716016979 | B161: ПАО "ФСК ЕЭС" | C161: Смоленская область
A162: 4716016979 | B162: ПАО "ФСК ЕЭС" | C162: Ставропольский край
A163: 4716016979 | B163: ПАО "ФСК ЕЭС" | C163: Тамбовская область
A164: 4716016979 | B164: ПАО "ФСК ЕЭС" | C164: Тверская область
A165: 4716016979 | B165: ПАО "ФСК ЕЭС" | C165: Томская область
A166: 4716016979 | B166: ПАО "ФСК ЕЭС" | C166: Тульская область
A167: 4716016979 | B167: ПАО "ФСК ЕЭС" | C167: Тюменская область (включая Ханты-Мансийский автономный округ -Югра, Ямало-Ненецкий автономный округ)
A168: 4716016979 | B168: ПАО "ФСК ЕЭС" | C168: Удмуртская Республика
A169: 4716016979 | B169: ПАО "ФСК ЕЭС" | C169: Ульяновская область
A170: 4716016979 | B170: ПАО "ФСК ЕЭС" | C170: Хабаровский край
A171: 4716016979 | B171: ПАО "ФСК ЕЭС" | C171: Челябинская область
A172: 4716016979 | B172: ПАО "ФСК ЕЭС" | C172: Чеченская Республика
A173: =A172 -> 4716016979 | B173: =B172 -> ПАО "ФСК ЕЭС" | C173: Чувашская Республика
A174: =A173 -> 4716016979 | B174: =B173 -> ПАО "ФСК ЕЭС" | C174: Ярославская область
A175: 4802023634 | B175: ООО Техноинжиниринг | C175: Липецкая область
A176: 4813009631 | B176: ООО ФИН-Групп | C176: Липецкая область
A177: 4821000142 | B177: АО ЭНЕРГИЯ | C177: Липецкая область
A178: 4823006703 | B178: ПАО НЛМК | C178: Липецкая область
A179: 4823073114 | B179: ООО ЛИПЕЦКИЙ СИЛИКАТНЫЙ ЗАВОД | C179: Липецкая область
A180: 4824022970 | B180: ОАО Липецкое торгово-промышленное объединение | C180: Липецкая область
A181: 4825065704 | B181: ООО Лонгричбизнес | C181: Липецкая область
A182: 4825066916 | B182: АО ЛГЭК | C182: Липецкая область
A183: 4825083742 | B183: ООО ЛТК СВОБОДНЫЙ СОКОЛ | C183: Липецкая область
A184: 4826052440 | B184: ОАО ОЭЗ ППТ Липецк | C184: Липецкая область
A185: 5036065113 | B185: ПАО "МОСКОВСКАЯ ОБЪЕДИНЕННАЯ ЭЛЕКТРОСЕТЕВАЯ КОМПАНИЯ" | C185: Москва
A186: =A185 -> 5036065113 | B186: =B185 -> ПАО "МОСКОВСКАЯ ОБЪЕДИНЕННАЯ ЭЛЕКТРОСЕТЕВАЯ КОМПАНИЯ" | C186: Московская область
A187: 5043048430 | B187: ЗАО "ЭнергоТранс-С" | C187: Кировская область
A188: 5214011560 | B188: ООО ВОЛОДАРСК-ЭНЕРГО | C188: Нижегородская область
A189: 5246015831 | B189: ЗАО Свет | C189: Нижегородская область
A190: 5248004137 | B190: ОАО Заволжский моторный завод (ОАО ЗМЗ) | C190: Нижегородская область
A191: 5249051203 | B191: ОАО Сибур-Нефтехим | C191: Нижегородская область
A192: 5249133382 | B192: ООО Капролактам-Энерго | C192: Нижегородская область
A193: 5252000350 | B193: ОАО Павловский автобус | C193: Нижегородская область
A194: 5252021872 | B194: ООО Павловоэнерго | C194: Нижегородская область
A195: 5252024312 | B195: ООО ПСК ТрансЭнерго | C195: Нижегородская область
A196: 5257003806 | B196: АООТ Нижегородский масло-жировой комбинат | C196: Нижегородская область
A197: 5257005049 | B197: АО Завод Красный Якорь | C197: Нижегородская область
A198: 5258039097 | B198: ООО Этна | C198: Нижегородская область
A199: 5258049909 | B199: ООО Зефс-Энерго | C199: Нижегородская область
A200: 5258050559 | B200: ЗАО Энерго групп | C200: Нижегородская область
... 180 more rows
